Workbook

Sheet IMP-RESUMEN
B1: EDECHI
B3: INGRESO MÁXIMO PERMITIDO = IMP
B5: En miles de Balboas
B7: INGRESO MÁXIMO PERMITIDO | C7: JUL26/ JUN27 | D7: JUL27 / JUN28 | E7: JUL28/ JUN29 | F7: JUL29/ JUN30
B9: IPSD - Ingreso Máximo Permitido por Distribución | C9: =+IMPD!D15 -> 59955.24505 | D9: =+IMPD!E15 -> 62936.97533 | E9: =+IMPD!F15 -> 64347.65422 | F9: =+IMPD!G15 -> 66904.95444
B10: IMPCO - Ingreso Máximo Permitido por Comercialización | C10: =+IMPCO!D14 -> 17574.68124 | D10: =+IMPCO!E14 -> 18213.82993 | E10: =+IMPCO!F14 -> 18885.70511 | F10: =+IMPCO!G14 -> 19563.29333
B11: ALUMPU - Ingreso Máximo Permitido por Alumbrado Público | C11: =+ALUMPU!D14 -> 1325.709501 | D11: =+ALUMPU!E14 -> 1290.338449 | E11: =+ALUMPU!F14 -> 1258.907345 | F11: =+ALUMPU!G14 -> 1227.388398
B12: IPPD - Ingreso Máximo Permitido por Pérdidas en Distribución | C12: =+IMPD!D19 -> 10800.78896 | D12: =+IMPD!E19 -> 11248.92129 | E12: =+IMPD!F19 -> 11710.00201 | F12: =+IMPD!G19 -> 12186.40919
B13: INVNE - Descuento por Inversiones no Ejecutadas en periodo anterior | C13: -12112.42808
B15: IMP - Ingreso Máximo Permitido | C15: =+C9+C12+C10+C11+C13 -> 77543.99667 | D15: =+D9+D12+D10+D11+D13 -> 93690.065 | E15: =+E9+E12+E10+E11+E13 -> 96202.2687 | F15: =+F9+F12+F10+F11+F13 -> 99882.04535
B17: Factor de Descuento | C17: =1/(1+RETORNO!D40) -> 0.9029888932 | D17: =1/(1+RETORNO!D40)*1/(1+RETORNO!D40) -> 0.8153889413 | E17: =1/(1+RETORNO!D40)*1/(1+RETORNO!D40)*1/(1+RETORNO!D40) -> 0.7362871577 | F17: =1/(1+RETORNO!D40)*1/(1+RETORNO!D40)*1/(1+RETORNO!D40)*1/(1+RETORNO!D40) -> 0.6648591256
B18: Factor de Descuento Aplicado | C18: =+(1+C17)/2 -> 0.9514944466 | D18: =+(C17+D17)/2 -> 0.8591889173 | E18: =+(D17+E17)/2 -> 0.7758380495 | F18: =+(E17+F17)/2 -> 0.7005731416
B20: VPN DEL INGRESO MÁXIMO PERMITIDO | C20: =C7 -> JUL26/ JUN27 | D20: =D7 -> JUL27 / JUN28 | E20: JUL28/ JUN29 | F20: JUL29/ JUN30
B22: IPSD | C22: =+(C9+$C$13/SUM($C$9:$C$12)*C9)*C$18 -> 49340.1204 | D22: =+D9*D$18 -> 54074.75169 | E22: 49923.35854 | F22: 46871.81412
B23: IMPCO | C23: =+(C10+$C$13/SUM($C$9:$C$12)*C10)*C$18 -> 14463.06971 | D23: 15649.12082 | E23: 14652.24862 | F23: 13705.51787
B24: ALUMPU | C24: =+(C11+$C$13/SUM($C$9:$C$12)*C11)*C$18 -> 1090.991561 | D24: 1108.644495 | E24: 976.7082188 | F24: 859.8753462
B25: IPPD | C25: =+(C12+$C$13/SUM($C$9:$C$12)*C12)*C$18 -> 8888.500534 | D25: 9664.948501 | E25: 9085.065123 | F25: 8537.470969
B27: IMP | C27: =SUM(C22:C26) -> 73782.6822 | D27: =SUM(D22:D26) -> 80497.4655 | E27: =SUM(E22:E26) -> 74637.3805 | F27: =SUM(F22:F26) -> 69974.6783
B29: Energía Facturada (MWh) sin incluir AP | C29: =C18*DEMANDA!E12 -> 1108979.211 | D29: =D18*DEMANDA!F12 -> 1045239.302 | E29: =E18*DEMANDA!G12 -> 984614.2987 | F29: =F18*DEMANDA!H12 -> 927177.2097
B32: VALOR PRESENTE NETO - INGRESO MÁXIMO PERMITIDO
B33: Expresado a diciembre 2025 | C33: UNIDADES | D33: JULIO/26-JUNIO/30
B35: VP-IPSD - DISTRIBUCIÓN | C35: Miles de B/. | D35: =+C22+D22+E22+F22 -> 200210.0448
B36: VP-IMPCO - COMERCIALIZACIÓN | C36: Miles de B/. | D36: =+C23+D23+E23+F23 -> 58469.95701
B37: VP-ALUMPU - ALUMBRADO PÚBLICO | C37: Miles de B/. | D37: =+C24+D24+E24+F24 -> 4036.219621
B38: SUB-TOTAL | C38: Miles de B/. | D38: =SUM(D35:D37) -> 262716.2214
B39: VP-IPPD - PÉRDIDAS DE DISTRIBUCIÓN | C39: Miles de B/. | D39: =+C25+D25+E25+F25 -> 36175.98513
B40: IMP TOTAL | C40: Miles de B/. | D40: =SUM(D35:D37)+D39 -> 298892.2065
B41: ENERGIA FACTURADA (sin AP) | C41: MWh | D41: =+C29+D29+E29+F29 -> 4066010.022
B42: IMP | C42: B/./MWh | D42: =+D40/D41*1000 -> 73.50995322
B43: IMP S/Pérdidas | C43: B/./MWh | D43: =D42-(D39*1000/D41) -> 64.61278255
B45: (1) Las pérdidas estándar de energía se han fijado conforme a las ecuaciones de eficiencia, no obstante, el monto (en B/.) es un valor de referencia.
B46: El mismo se revisa semestralmente, según varía el costo real de la energía.
C48: Considerando Inversiones para Soterramiento
C49: SI

Sheet IMPD
B2: EDECHI
B4: INGRESO MÁXIMO PERMITIDO POR DISTRIBUCIÓN = IMPD
B5: En miles de Balboas
B7: DISTRIBUCIÓN | D7: ='IMP-RESUMEN'!C7:C8 -> JUL26/ JUN27 | E7: ='IMP-RESUMEN'!D7:D8 -> JUL27 / JUN28 | F7: ='IMP-RESUMEN'!E7:E8 -> JUL28/ JUN29 | G7: ='IMP-RESUMEN'!F7:F8 -> JUL29/ JUN30
B10: Rentabilidad sobre Activos | C10: BCDN * RR | D10: =+ACTIVOS!H14*RETORNO!$D$40 -> 23347.60542 | E10: =+ACTIVOS!I14*RETORNO!$D$40 -> 24320.75129 | F10: =+ACTIVOS!J14*RETORNO!$D$40 -> 24397.10957 | G10: =+ACTIVOS!K14*RETORNO!$D$40 -> 25688.38406
B11: Depreciación | C11: Depo+INVi * DEP% | D11: ='BC y Dep'!D80/1000+((ACTIVOS!H9-ACTIVOS!G9)/2)*'PERDIDAS y OTROS'!E$11+((ACTIVOS!G9-ACTIVOS!F9))*'BC y Dep'!C84 -> 10522.22605 | E11: ='BC y Dep'!E80/1000+(ACTIVOS!H9-ACTIVOS!G9)*'PERDIDAS y OTROS'!E$11+((ACTIVOS!I9-ACTIVOS!H9)/2)*'PERDIDAS y OTROS'!F$11+((ACTIVOS!G9-ACTIVOS!F9))*'BC y Dep'!C84 -> 11695.39527 | F11: ='BC y Dep'!F80/1000+(ACTIVOS!H9-ACTIVOS!G9)*'PERDIDAS y OTROS'!E$11+(ACTIVOS!I9-ACTIVOS!H9)*'PERDIDAS y OTROS'!F$11+((ACTIVOS!J9-ACTIVOS!I9)/2)*'PERDIDAS y OTROS'!G$11+((ACTIVOS!G9-ACTIVOS!F9))*'BC y Dep'!C84 -> 12183.37793 | G11: ='BC y Dep'!G80/1000+(ACTIVOS!H9-ACTIVOS!G9)*'PERDIDAS y OTROS'!E$11+(ACTIVOS!I9-ACTIVOS!H9)*'PERDIDAS y OTROS'!F$11+(ACTIVOS!J9-ACTIVOS!I9)*'PERDIDAS y OTROS'!G$11+((ACTIVOS!K9-ACTIVOS!J9))/2*'PERDIDAS y OTROS'!H$11+((ACTIVOS!G9-ACTIVOS!F9))*'BC y Dep'!C84 -> 12570.15249
B12: Operación y Mantenimiento | C12: OM | D12: ='Costos y Pérdidas Eficientes'!D84/1000 -> 18959.70771 | E12: ='Costos y Pérdidas Eficientes'!E84/1000 -> 19569.67845 | F12: ='Costos y Pérdidas Eficientes'!F84/1000 -> 20186.07248 | G12: ='Costos y Pérdidas Eficientes'!G84/1000 -> 20827.1239
B13: Administración | C13: ADM | D13: ='Costos y Pérdidas Eficientes'!D86/1000 -> 7125.705867 | E13: ='Costos y Pérdidas Eficientes'!E86/1000 -> 7351.150318 | F13: ='Costos y Pérdidas Eficientes'!F86/1000 -> 7581.094245 | G13: ='Costos y Pérdidas Eficientes'!G86/1000 -> 7819.293986
B15: IPSD | D15: =+D13+D12+D11+D10 -> 59955.24505 | E15: =+E13+E12+E11+E10 -> 62936.97533 | F15: =+F13+F12+F11+F10 -> 64347.65422 | G15: =+G13+G12+G11+G10 -> 66904.95444
B17: Pérdidas (incluye NT) | C17: (PD%) * MWhD * CMM | D17: =+('PERDIDAS y OTROS'!E9+'PERDIDAS y OTROS'!E10)*'PERDIDAS y OTROS'!E8*DEMANDA!E7/1000 -> 10800.78896 | E17: =+('PERDIDAS y OTROS'!F9+'PERDIDAS y OTROS'!F10)*'PERDIDAS y OTROS'!F8*DEMANDA!F7/1000 -> 11248.92129 | F17: =+('PERDIDAS y OTROS'!G9+'PERDIDAS y OTROS'!G10)*'PERDIDAS y OTROS'!G8*DEMANDA!G7/1000 -> 11710.00201 | G17: =+('PERDIDAS y OTROS'!H9+'PERDIDAS y OTROS'!H10)*'PERDIDAS y OTROS'!H8*DEMANDA!H7/1000 -> 12186.40919
B19: IPPD | D19: =+D17+D18 -> 10800.78896 | E19: =+E17+E18 -> 11248.92129 | F19: =+F17+F18 -> 11710.00201 | G19: =+G17+G18 -> 12186.40919
B21: IMPD | D21: =+D15+D19 -> 70756.03401 | E21: =+E15+E19 -> 74185.89661 | F21: =+F15+F19 -> 76057.65624 | G21: =+G15+G19 -> 79091.36362

Sheet IMPCO
B2: EDECHI
B4: INGRESO MÁXIMO PERMITIDO POR COMERCIALIZACIÓN = IMPCO
B5: En miles de Balboas
B7: COMERCIALIZACION | D7: =IMPD!D7 -> JUL26/ JUN27 | E7: =IMPD!E7 -> JUL27 / JUN28 | F7: =IMPD!F7 -> JUL28/ JUN29 | G7: =IMPD!G7 -> JUL29/ JUN30
B10: Rentabilidad sobre Activos | C10: BCNC * RR | D10: =+ACTIVOS!H15*RETORNO!$D$40 -> 1274.630108 | E10: =+ACTIVOS!I15*RETORNO!$D$40 -> 1319.638671 | F10: =+ACTIVOS!J15*RETORNO!$D$40 -> 1364.6052 | G10: =+ACTIVOS!K15*RETORNO!$D$40 -> 1411.552215
B11: Depreciación | C11: Depo+INVi * DEP% | D11: ='BC y Dep'!D82/1000+((ACTIVOS!H10-ACTIVOS!G10)/2)*'PERDIDAS y OTROS'!E$12+((ACTIVOS!G10-ACTIVOS!F10))*'BC y Dep'!C86 -> 929.481089 | E11: ='BC y Dep'!E82/1000+(ACTIVOS!H10-ACTIVOS!G10)*'PERDIDAS y OTROS'!E$12+((ACTIVOS!I10-ACTIVOS!H10)/2)*'PERDIDAS y OTROS'!F$12+((ACTIVOS!G10-ACTIVOS!F10))*'BC y Dep'!C86 -> 962.8998385 | F11: ='BC y Dep'!F82/1000+(ACTIVOS!H10-ACTIVOS!G10)*'PERDIDAS y OTROS'!E$12+(ACTIVOS!I10-ACTIVOS!H10)*'PERDIDAS y OTROS'!F$12+((ACTIVOS!J10-ACTIVOS!I10)/2)*'PERDIDAS y OTROS'!G$12+((ACTIVOS!G10-ACTIVOS!F10))*'BC y Dep'!C86 -> 1008.762574 | G11: ='BC y Dep'!G82/1000+(ACTIVOS!H10-ACTIVOS!G10)*'PERDIDAS y OTROS'!E$12+(ACTIVOS!I10-ACTIVOS!H10)*'PERDIDAS y OTROS'!F$12+(ACTIVOS!J10-ACTIVOS!I10)*'PERDIDAS y OTROS'!G$12+((ACTIVOS!K10-ACTIVOS!J10)/2)*'PERDIDAS y OTROS'!H$12+((ACTIVOS!G10-ACTIVOS!F10))*'BC y Dep'!C86 -> 1037.296674
B12: Comercialización | C12: COM | D12: ='Costos y Pérdidas Eficientes'!D85/1000 -> 15370.57004 | E12: ='Costos y Pérdidas Eficientes'!E85/1000 -> 15931.29142 | F12: ='Costos y Pérdidas Eficientes'!F85/1000 -> 16512.33734 | G12: ='Costos y Pérdidas Eficientes'!G85/1000 -> 17114.44444
B14: IMPCO | D14: =+D10+D11+D12 -> 17574.68124 | E14: =+E10+E11+E12 -> 18213.82993 | F14: =+F10+F11+F12 -> 18885.70511 | G14: =+G10+G11+G12 -> 19563.29333

Sheet ALUMPU
B2: EDECHI
B4: INGRESO MÁXIMO PERMITIDO POR ALUMBRADO PÚBLICO = ALUMPU
B5: En miles de Balboas
B7: ALUMBRADO PÚBLICO | D7: =IMPCO!D7 -> JUL26/ JUN27 | E7: =IMPCO!E7 -> JUL27 / JUN28 | F7: =IMPCO!F7 -> JUL28/ JUN29 | G7: =IMPCO!G7 -> JUL29/ JUN30
B10: Rentabilidad sobre Activos | C10: ACTNalum * RR | D10: =+ACTIVOS!H16*RETORNO!$D$40 -> 499.9898897 | E10: =+ACTIVOS!I16*RETORNO!$D$40 -> 469.4573411 | F10: =+ACTIVOS!J16*RETORNO!$D$40 -> 439.3362737 | G10: =+ACTIVOS!K16*RETORNO!$D$40 -> 409.6861933
B11: Depreciación | C11: Depo+INVi * DEP% | D11: ='BC y Dep'!D81/1000+((ACTIVOS!H11-ACTIVOS!G11)/2)*'PERDIDAS y OTROS'!E$13+((ACTIVOS!G11-ACTIVOS!F11))*'BC y Dep'!C85 -> 466.3260012 | E11: ='BC y Dep'!E81/1000+(ACTIVOS!H11-ACTIVOS!G11)*'PERDIDAS y OTROS'!E$13+((ACTIVOS!I11-ACTIVOS!H11)/2)*'PERDIDAS y OTROS'!F$13+((ACTIVOS!G11-ACTIVOS!F11))*'BC y Dep'!C85 -> 458.6599558 | F11: ='BC y Dep'!F81/1000+(ACTIVOS!H11-ACTIVOS!G11)*'PERDIDAS y OTROS'!E$13+(ACTIVOS!I11-ACTIVOS!H11)*'PERDIDAS y OTROS'!F$13+((ACTIVOS!J11-ACTIVOS!I11)/2)*'PERDIDAS y OTROS'!G$13+((ACTIVOS!G11-ACTIVOS!F11))*'BC y Dep'!C85 -> 454.5248487 | G11: ='BC y Dep'!G81/1000+(ACTIVOS!H11-ACTIVOS!G11)*'PERDIDAS y OTROS'!E$13+(ACTIVOS!I11-ACTIVOS!H11)*'PERDIDAS y OTROS'!F$13+(ACTIVOS!J11-ACTIVOS!I11)*'PERDIDAS y OTROS'!G$13+((ACTIVOS!K11-ACTIVOS!J11)/2)*'PERDIDAS y OTROS'!H$13+((ACTIVOS!G11-ACTIVOS!F11))*'BC y Dep'!C85 -> 449.8358555
B12: Operación y Mantenimiento | C12: OMalum | D12: =$D$25*(D24+E24)/2/1000 -> 359.3936099 | E12: =$D$25*(E24+F24)/2/1000 -> 362.2211519 | F12: =$D$25*(F24+G24)/2/1000 -> 365.0462223 | G12: =$D$25*(G24+H24)/2/1000 -> 367.8663495
B14: ALUMPU | D14: =+D10+D11+D12 -> 1325.709501 | E14: =+E10+E11+E12 -> 1290.338449 | F14: 1258.907345 | G14: 1227.388398
D23: 2022-06-01 | E23: 2023-06-01 | F23: 2024-06-01 | G23: 2025-06-01 | H23: 2026-06-01
B24: Cantidad de luminarias al 30/6 | D24: 72417.83333 | E24: =D24+INVERSIONES!K29+INVERSIONES!L29 -> 72989.83333 | F24: =E24+INVERSIONES!M29+INVERSIONES!N29 -> 73561.83333 | G24: =F24+INVERSIONES!O29+INVERSIONES!P29 -> 74132.83333 | H24: =G24+INVERSIONES!Q29+INVERSIONES!R29 -> 74702.83333
B25: Costo O&M por luminaria [B/. /año] | D25: =MIN(D35,H33) -> 4.943255306
E27: =+(E24+D24)/2 -> 72703.83333 | F27: =+(F24+E24)/2 -> 73275.83333 | G27: =+(G24+F24)/2 -> 73847.33333 | H27: 74417.83333
B29: Detalle | C29: Unidad | D29: 2022 | E29: =D29+1 -> 2023 | F29: =E29+1 -> 2024 | G29: 2025 | H29: Promedio
B30: Costo AP | C30: B/. | D30: 468109.9359 | E30: 472118.4225 | F30: 1251724.837 | H30: =AVERAGE(D30:G30) -> 730651.0652
B31: Luminarias | C31: Cant. | D31: 68016.5 | E31: 70163.33333 | F31: 71399.91667 | G31: 72048.83333 | H31: =AVERAGE(D31:G31) -> 70407.14583
B33: Costo Mant./lum Cont. | D33: =D30/D31*C48 -> 6.90995018 | E33: =E30/E31*D48 -> 6.73015784 | F33: =F30/F31*E48 -> 17.5142918 | H33: =AVERAGE(D33:F33) -> 10.38479994
B35: Costo Mant./lum RT-1 (Act) | D35: 4.943255306 | E35: 4.923474627
B37: Costo Mant./lum | D37: =D35 -> 4.943255306
B40: Actualización
B41: Detalle | C41: Jul-Dic/2022 | D41: Ene-Jun/2023 | E41: Jul-Dic/2023 | F41: Ene-Jun/2024 | G41: Jul-Dic/2024 | H41: Ene-Jun/2025 | I41: Jul-Dic/2025 | J41: Acumulado
B42: FAC de Comercialización | C42: 1.007708276 | D42: 1.041939885 | E42: 0.9795273433 | F42: 1.012983864 | G42: 1.003937359 | H42: 1.003501793 | I42: 0.9932327361 | J42: =PRODUCT(C42:I42) -> 1.04249114
B43: FAC de redes de Distribución, conexión | C43: 1.004313413 | D43: 1.023468809 | E43: 0.9885438676 | F43: 1.007530699 | G43: 1.002283686 | H43: 1.002031056 | I43: 0.9960749569 | J43: =PRODUCT(C43:I43) -> 1.024146236
B44: FAC por Servicio de Alumbrado Público | C44: 1.001629064 | D44: 1.00886356 | E44: 0.995673316 | F44: 1.003822258 | G44: 1.0011591 | H44: 1.001030876 | I44: 0.9980078172 | J44: 1.010177193
C47: 2022 | D47: =C47+1 -> 2023 | E47: =D47+1 -> 2024 | F47: 2025
B48: Actualización | C48: =PRODUCT(F44:$I$44) -> 1.004017626 | D48: =PRODUCT(G44:$I$44) -> 1.000194624 | E48: =PRODUCT(H44:$I$44) -> 0.9990366398 | F48: =I44 -> 0.9980078172
B49: Act Jun 18 - Jun 22 | C49: =C48 -> 1.004017626
B58: IPC0 | C58: 104.1
B59: IPCN | C59: 108.8

Sheet DEMANDA
B3: EDECHI
B5: IMPULSORES DE COSTOS | C5: Unidades | D5: BASE | E5: =ALUMPU!D7 -> JUL26/ JUN27 | F5: =ALUMPU!E7 -> JUL27 / JUN28 | G5: =ALUMPU!F7 -> JUL28/ JUN29 | H5: =ALUMPU!G7 -> JUL29/ JUN30 | I5: CREC.a.a.
B6: Demanda Máxima | C6: MW | D6: =+D7/8760/D15 -> 201.4292058 | E6: =+E7/8760/E15 -> 210.3598726 | F6: =+F7/8760/F15 -> 219.9080008 | G6: =+G7/8760/G15 -> 227.6981852 | H6: =+H7/8760/H15 -> 236.6654579 | I6: =(H6/D6)^(1/4)-1 -> 0.04112556036
B7: Energía ingresada al sist. Propio (eficiente) | C7: MWh | D7: =+(D12+D13)/(1-D14) -> 1255099.287 | E7: =+(E12+E13)/(1-E14) -> 1309293.874 | F7: 1364755.09 | G7: 1421866.135 | H7: 1480924.034 | I7: =(H7/D7)^(1/4)-1 -> 0.04223025117
B8: Clientes | C8: Nº clientes | D8: 203603.5386 | E8: 210792.7068 | F8: 218233.97 | G8: 225936.1882 | H8: 233908.514 | I8: =(H8/D8)^(1/4)-1 -> 0.035297528
B9: DEM/CLIENTE | C9: KW/CL | D9: =D6/D8*1000 -> 0.9893207514 | E9: 1.836935005 | F9: 1.814307922 | G9: 1.784533004 | H9: 1.806068282
B10: ENERGIA-AÑO/CLIENTE | C10: MWh/CL | D10: =+D12/D8 -> 5.479556245 | E10: 9.060038081 | F10: 9.32608498 | G10: 8.982732672 | H10: 9.039666561
B12: Energia facturada sin AP | C12: MWh | D12: 1115657.042 | E12: 1165513.068 | F12: 1216541.882 | G12: 1269097.719 | H12: 1323455.26 | I12: =(H12/D12)^(1/4)-1 -> 0.04362539491
B13: Energía facturada AP | C13: MWh | D13: 42100.77626 | E13: 42322.43229 | F13: 42545.25532 | G13: 42769.25148 | H13: 42994.42696 | I13: =(H13/D13)^(1/4)-1 -> 0.005264891753
B14: Perdidas eficientes | D14: =7.1880766251504%*D17 -> 0.07755678798 | E14: =7.1880766251504%*E17 -> 0.07749090996 | F14: 0.07742631164 | G14: 0.07736253202 | H14: 0.07729926978
B15: Factor de carga | D15: 0.7112979161 | E15: 0.7105098947 | F15: 0.7084506224 | G15: 0.7128448807 | H15: 0.7143216273
C17: Factor de Ajuste | D17: 1.078964402 | E17: 1.078047912 | F17: 1.077149225 | G17: 1.076261927 | H17: 1.075381828
D19: =D14*1000000000-('Costos y Pérdidas Eficientes'!C98+'PERDIDAS y OTROS'!E10)*1000000000 -> 1.788139343e-07 | E19: =E14*1000000000-('Costos y Pérdidas Eficientes'!D98+'PERDIDAS y OTROS'!E10)*1000000000 -> 1.192092896e-07 | F19: =F14*1000000000-('Costos y Pérdidas Eficientes'!E98+'PERDIDAS y OTROS'!F10)*1000000000 -> 0 | G19: =G14*1000000000-('Costos y Pérdidas Eficientes'!F98+'PERDIDAS y OTROS'!G10)*1000000000 -> 1.192092896e-07 | H19: =H14*1000000000-('Costos y Pérdidas Eficientes'!G98+'PERDIDAS y OTROS'!H10)*1000000000 -> 0

Sheet Costos y Pérdidas Eficientes
A1: EDEMET
A2: Estimaciones de los costos a partir de parametros estimados y las variables reales, actualizados U$S junio 2024
D3: C | E3: Ln Clientes | F3: Ln DM | G3: Ln DM/Cli | H3: Ln O&M | I3: Ln COM | J3: Ln (O&M + COM) | K3: Ln MWh | L3: Ln MWh/Cli
A4: Activos de Distribución: | C4: Ln AD | D4: 16.938381 | E4: 0 | F4: 0.862667 | G4: 0 | H4: 0 | I4: 0 | J4: 0 | K4: 0 | L4: -0.581895
A5: Activos de Comercialización: | C5: Ln AC | D5: 6.48909 | E5: 0.939715 | F5: 0 | G5: 0 | H5: 0 | I5: 0 | J5: 0 | K5: 0 | L5: 0
A6: Costos de Operación y Mantenimiento de Distribución: | C6: Ln O&M | D6: 6.638115 | E6: 0 | F6: 0.893847 | G6: -0.826253 | H6: 0 | I6: 0 | J6: 0 | K6: 0 | L6: 0
A7: Costos de Comercialización: | C7: Ln COM | D7: 4.17036 | E7: 1.032803 | F7: 0 | G7: 0 | H7: 0 | I7: 0 | J7: 0 | K7: 0 | L7: 0
A8: Costos de Administración: | C8: Ln ADM | D8: -0.061995 | E8: 0 | F8: 0 | G8: 0 | H8: 0 | I8: 0 | J8: 0.931384 | K8: 0 | L8: 0
A9: Ecuación de Pérdidas Estándar o Eficientes: | C9: Ln Perd | D9: -2.274458 | E9: 0 | F9: 0 | G9: 0 | H9: 0 | I9: 0 | J9: 0 | K9: 0.979898 | L9: 0
A31: Tabla de Datos Proyectados | C31: Base
A32: Variable | B32: Unidad | C32: Jul 24 -jun 25 | D32: Jul 25 -jun 26 | E32: Jul 26 -jun 27 | F32: Jul 27 -jun 28 | G32: Jul 28 -jun 29 | H32: Jul 29 -jun 30
A33: Demanda Máxima | B33: MW | D33: =DEMANDA!D6 -> 201.4292058 | E33: =DEMANDA!E6 -> 210.3598726 | F33: =DEMANDA!F6 -> 219.9080008 | G33: =DEMANDA!G6 -> 227.6981852 | H33: =DEMANDA!H6 -> 236.6654579
A34: Longitud de red áerea | B34: km
A35: Longitud de red subterranea | B35: km
A36: Venta totales de energía [MWh] | B36: MWh | D36: =DEMANDA!D12+DEMANDA!D13 -> 1157757.818 | E36: =DEMANDA!E12+DEMANDA!E13 -> 1207835.5 | F36: =DEMANDA!F12+DEMANDA!F13 -> 1259087.137 | G36: =DEMANDA!G12+DEMANDA!G13 -> 1311866.97 | H36: =DEMANDA!H12+DEMANDA!H13 -> 1366449.687
A37: Costos OyM (D) | B37: USD | D37: =+C45 -> 26609784.99 | E37: 27464184.89 | F37: 28347761.22 | G37: 29240642.06 | H37: 30169240.49
A38: Costos OyM (C) | B38: USD | D38: 19683111.03 | E38: 20401323.9 | F38: 21145568.16 | G38: 21916789.13 | H38: 22715964.56
A39: Clientes | B39: Cant. | D39: =DEMANDA!D8 -> 203603.5386 | E39: =DEMANDA!E8 -> 210792.7068 | F39: =DEMANDA!F8 -> 218233.97 | G39: =DEMANDA!G8 -> 225936.1882 | H39: =DEMANDA!H8 -> 233908.514
D40: =D34+D35 -> 0 | E40: =E34+E35 -> 0 | F40: =F34+F35 -> 0 | G40: =G34+G35 -> 0 | H40: =H34+H35 -> 0
A41: Tabla de Costos sin Ajuste en USD (EEUU) a junio 2024
A42: COSTO | B42: =+C32 -> Jul 24 -jun 25 | C42: =D32 -> Jul 25 -jun 26 | D42: =E32 -> Jul 26 -jun 27 | E42: =F32 -> Jul 27 -jun 28 | F42: =G32 -> Jul 28 -jun 29 | G42: =H32 -> Jul 29 -jun 30
A43: AD | C43: =EXP($D$4+$E$4*LN(D$39)+$F$4*LN(D$33)+$G$4*LN(D$33/D$39)+$H$4*LN(D$37)+$I$4*LN(D$38)+$K$4*LN(D$36)+$L$4*LN(D36/D39)) -> 802976054.3 | D43: 829896353.4 | E43: 858854714.7 | F43: 881758774.4 | G43: =EXP($D$4+$E$4*LN(H$39)+$F$4*LN(H$33)+$G$4*LN(H$33/H$39)+$H$4*LN(H$37)+$I$4*LN(H$38)+$K$4*LN(H$36)+$L$4*LN(H36/H39)) -> 908412259.8
A44: AC | C44: =EXP($D$5+$E$5*LN(D$39)+$F$5*LN(D$33)+$G$5*LN(D$33/D$39)+$H$5*LN(D$37)+$I$5*LN(D$38)+$K$5*LN(D$36)) -> 64109321.16 | D44: =EXP($D$5+$E$5*LN(E$39)+$F$5*LN(E$33)+$G$5*LN(E$33/E$39)+$H$5*LN(E$37)+$I$5*LN(E$38)+$K$5*LN(E$36)) -> 66234296.31 | E44: =EXP($D$5+$E$5*LN(F$39)+$F$5*LN(F$33)+$G$5*LN(F$33/F$39)+$H$5*LN(F$37)+$I$5*LN(F$38)+$K$5*LN(F$36)) -> 68429189.9 | F44: =EXP($D$5+$E$5*LN(G$39)+$F$5*LN(G$33)+$G$5*LN(G$33/G$39)+$H$5*LN(G$37)+$I$5*LN(G$38)+$K$5*LN(G$36)) -> 70696309.48 | G44: =EXP($D$5+$E$5*LN(H$39)+$F$5*LN(H$33)+$G$5*LN(H$33/H$39)+$H$5*LN(H$37)+$I$5*LN(H$38)+$K$5*LN(H$36)) -> 73038033.17
A45: OMD | C45: =EXP($D$6+$E$6*LN(D$39)+$F$6*LN(D$33)+$G$6*LN(D$33/D$39)+$K$6*LN(D$36)) -> 26609784.99 | D45: =EXP($D$6+$E$6*LN(E$39)+$F$6*LN(E$33)+$G$6*LN(E$33/E$39)+$K$6*LN(E$36)) -> 27464184.89 | E45: =EXP($D$6+$E$6*LN(F$39)+$F$6*LN(F$33)+$G$6*LN(F$33/F$39)+$K$6*LN(F$36)) -> 28347761.22 | F45: =EXP($D$6+$E$6*LN(G$39)+$F$6*LN(G$33)+$G$6*LN(G$33/G$39)+$K$6*LN(G$36)) -> 29240642.06 | G45: =EXP($D$6+$E$6*LN(H$39)+$F$6*LN(H$33)+$G$6*LN(H$33/H$39)+$K$6*LN(H$36)) -> 30169240.49
A46: COM | C46: =EXP($D$7+$E$7*LN(D$39)+$F$7*LN(D$33)+$G$7*LN(D$33/D$39)+$H$7*LN(D$37)+$K$7*LN(D$36)) -> 19683111.03 | D46: =EXP($D$7+$E$7*LN(E$39)+$F$7*LN(E$33)+$G$7*LN(E$33/E$39)+$H$7*LN(E$37)+$K$7*LN(E$36)) -> 20401323.9 | E46: =EXP($D$7+$E$7*LN(F$39)+$F$7*LN(F$33)+$G$7*LN(F$33/F$39)+$H$7*LN(F$37)+$K$7*LN(F$36)) -> 21145568.16 | F46: =EXP($D$7+$E$7*LN(G$39)+$F$7*LN(G$33)+$G$7*LN(G$33/G$39)+$H$7*LN(G$37)+$K$7*LN(G$36)) -> 21916789.13 | G46: =EXP($D$7+$E$7*LN(H$39)+$F$7*LN(H$33)+$G$7*LN(H$33/H$39)+$H$7*LN(H$37)+$K$7*LN(H$36)) -> 22715964.56
A47: ADM | C47: =EXP($D$8+$E$8*LN(D$39)+$F$8*LN(D$33)+$G$8*LN(D$33/D$39)+$H$8*LN(D$37)+$I$8*LN(D$38)+$J$8*LN(D$37+D$38)+$K$8*LN(D$36)) -> 12960248.58 | D47: =EXP($D$8+$E$8*LN(E$39)+$F$8*LN(E$33)+$G$8*LN(E$33/E$39)+$H$8*LN(E$37)+$I$8*LN(E$38)+$J$8*LN(E$37+E$38)+$K$8*LN(E$36)) -> 13369838.37 | E47: 13792835.89 | F47: 14224275.69 | G47: 14671205.73
A59: Costos resultantes de las ecuaciones de eficiencia dados en Balboas a junio 2020 (utilizando Parametros del estudio actual)
A60: COSTO | B60: =+B42 -> Jul 24 -jun 25 | C60: Jul 25 -jun 26 | D60: Jul 26 -jun 27 | E60: Jul 27 -jun 28 | F60: Jul 28 -jun 29 | G60: Jul 29 -jun 30
A61: AD | C61: =C43*($C108*$B104+(1-$C108)*$C121*$B$117+(1-$C108)*(1-$C121)) -> 364455237.1 | D61: =D43*($C108*$B104+(1-$C108)*$C121*$B$117+(1-$C108)*(1-$C121)) -> 376673838.1 | E61: =E43*($C108*$B104+(1-$C108)*$C121*$B$117+(1-$C108)*(1-$C121)) -> 389817475.9 | F61: =F43*($C108*$B104+(1-$C108)*$C121*$B$117+(1-$C108)*(1-$C121)) -> 400213183.8 | G61: =G43*($C108*$B104+(1-$C108)*$C121*$B$117+(1-$C108)*(1-$C121)) -> 412310683.2
A62: AC | C62: =C44*($C109*$B104+(1-$C109)*$C122*$B$117+(1-$C109)*(1-$C122)) -> 40326118.19 | D62: =D44*($C109*$B104+(1-$C109)*$C122*$B$117+(1-$C109)*(1-$C122)) -> 41662772.49 | E62: =E44*($C109*$B104+(1-$C109)*$C122*$B$117+(1-$C109)*(1-$C122)) -> 43043406.95 | F62: =F44*($C109*$B104+(1-$C109)*$C122*$B$117+(1-$C109)*(1-$C122)) -> 44469473.09 | G62: =G44*($C109*$B104+(1-$C109)*$C122*$B$117+(1-$C109)*(1-$C122)) -> 45942466.79
A63: OMD | C63: =C45*($B110*$B104+(1-$B110)*$B123*$B$117+(1-$B110)*(1-$B123)) -> 18341330.65 | D63: =D45*($B110*$B104+(1-$B110)*$B123*$B$117+(1-$B110)*(1-$B123)) -> 18930243 | E63: =E45*($B110*$B104+(1-$B110)*$B123*$B$117+(1-$B110)*(1-$B123)) -> 19539265.79 | F63: =F45*($B110*$B104+(1-$B110)*$B123*$B$117+(1-$B110)*(1-$B123)) -> 20154701.91 | G63: =G45*($B110*$B104+(1-$B110)*$B123*$B$117+(1-$B110)*(1-$B123)) -> 20794757.09
A64: COM | C64: =C46*($B111*$B104+(1-$B111)*$B124*$B$117+(1-$B111)*(1-$B124)) -> 14810301.07 | D64: =D46*($B111*$B104+(1-$B111)*$B124*$B$117+(1-$B111)*(1-$B124)) -> 15350711.01 | E64: =E46*($B111*$B104+(1-$B111)*$B124*$B$117+(1-$B111)*(1-$B124)) -> 15910707.93 | F64: =F46*($B111*$B104+(1-$B111)*$B124*$B$117+(1-$B111)*(1-$B124)) -> 16491003.13 | G64: =G46*($B111*$B104+(1-$B111)*$B124*$B$117+(1-$B111)*(1-$B124)) -> 17092332.29
A65: ADM | C65: =C47*($B112*$B104+(1-$B112)*$B125*$B$117+(1-$B112)*(1-$B125)) -> 6891162.492 | D65: =D47*($B112*$B104+(1-$B112)*$B125*$B$117+(1-$B112)*(1-$B125)) -> 7108947.651 | E65: =E47*($B112*$B104+(1-$B112)*$B125*$B$117+(1-$B112)*(1-$B125)) -> 7333861.903 | F65: =F47*($B112*$B104+(1-$B112)*$B125*$B$117+(1-$B112)*(1-$B125)) -> 7563265.048 | G65: =G47*($B112*$B104+(1-$B112)*$B125*$B$117+(1-$B112)*(1-$B125)) -> 7800904.591
C66: =SUM(C61:C62) -> 404781355.3 | D66: =SUM(D61:D62) -> 418336610.6 | E66: =SUM(E61:E62) -> 432860882.8 | F66: =SUM(F61:F62) -> 444682656.9 | G66: =SUM(G61:G62) -> 458253150
A69: Activos proyectados con ecuaciones de eficiencia y mercado Proy Dda a precios de junio 2022
A70: Actividad | C70: =C60 -> Jul 25 -jun 26 | D70: =D60 -> Jul 26 -jun 27 | E70: =E60 -> Jul 27 -jun 28 | F70: =F60 -> Jul 28 -jun 29 | G70: =G60 -> Jul 29 -jun 30
A71: AD (Ecuación de eficiencia) | C71: =C61*$D130 -> 365162675.1 | D71: 377404993.4 | E71: 390574144.1 | F71: 400990030.9 | G71: 413111012.6
A72: AC (Ecuación de eficiencia) | C72: 40361445.41 | D72: 41699270.66 | E72: 43081114.62 | F72: 44508430.05 | G72: 45982714.14
A73: Total | C73: =SUM(C71:C72) -> 405524120.6 | D73: =SUM(D71:D72) -> 419104264.1 | E73: =SUM(E71:E72) -> 433655258.7 | F73: =SUM(F71:F72) -> 445498461 | G73: =SUM(G71:G72) -> 459093726.8
A75: Inversiones proyectadas con ecuaciones de eficiencia y mercado Proy Dda a precios de junio 2022
A76: Actividad | C76: =C70 -> Jul 25 -jun 26 | D76: =D70 -> Jul 26 -jun 27 | E76: =E70 -> Jul 27 -jun 28 | F76: =F70 -> Jul 28 -jun 29 | G76: =G70 -> Jul 29 -jun 30
A77: AD (Ecuación de eficiencia) | D77: =(D71-C71) -> 12242318.26 | E77: 13169150.72 | F77: 10415886.83 | G77: 12120981.69
A78: AC (Ecuación de eficiencia) | D78: 1337825.252 | E78: 1381843.952 | F78: 1427315.431 | G78: 1474284.095
A79: Total | D79: =+SUM(D77:D78) -> 13580143.51 | E79: =+SUM(E77:E78) -> 14550994.67 | F79: =+SUM(F77:F78) -> 11843202.26 | G79: =+SUM(G77:G78) -> 13595265.78
A82: Costos proyectados con ecuaciones de eficiencia y mercado Proy Dda a precios de junio 2022
A83: Actividad | B83: 2021 | C83: =C76 -> Jul 25 -jun 26 | D83: =D76 -> Jul 26 -jun 27 | E83: =E76 -> Jul 27 -jun 28 | F83: =F76 -> Jul 28 -jun 29 | G83: =G76 -> Jul 29 -jun 30
A84: OMD | D84: =D63*$D132 -> 18959707.71 | E84: 19569678.45 | F84: 20186072.48 | G84: 20827123.9
A85: COM | D85: 15370570.04 | E85: 15931291.42 | F85: 16512337.34 | G85: 17114444.44
A86: ADM | D86: 7125705.867 | E86: 7351150.318 | F86: 7581094.245 | G86: 7819293.986
D87: =SUM(D84:D86) -> 41455983.62 | E87: =SUM(E84:E86) -> 42852120.19 | F87: =SUM(F84:F86) -> 44279504.07 | G87: =SUM(G84:G86) -> 45760862.33
A90: 2 - PÉRDIDAS
A92: RESULTADOS PÉRDIDAS
A95: Porcentaje
A96: COSTO | C96: =C83 -> Jul 25 -jun 26 | D96: =D83 -> Jul 26 -jun 27 | E96: =E83 -> Jul 27 -jun 28 | F96: =F83 -> Jul 28 -jun 29 | G96: =G83 -> Jul 29 -jun 30
A97: PE_MWH | C97: =EXP($D$9+$K$9*LN(DEMANDA!D7)) -> 97341.46932 | D97: =EXP($D$9+$K$9*LN(DEMANDA!E7)) -> 101458.3737 | E97: =EXP($D$9+$K$9*LN(DEMANDA!F7)) -> 105667.9529 | F97: =EXP($D$9+$K$9*LN(DEMANDA!G7)) -> 109999.1644 | G97: =EXP($D$9+$K$9*LN(DEMANDA!H7)) -> 114474.3464
A98: PE_% | C98: =C97/DEMANDA!D7 -> 0.07755678798 | D98: =D97/DEMANDA!E7 -> 0.07749090996 | E98: =E97/DEMANDA!F7 -> 0.07742631164 | F98: =F97/DEMANDA!G7 -> 0.07736253202 | G98: =G97/DEMANDA!H7 -> 0.07729926978
A101: 3.- FACTORES DE AJUSTE
A102: Tabla de factores de ajuste del Componente Mano de Obra
B103: 2026 -2030
A104: Costo laboral relativo 2016 | B104: 0.288324305
A107: Participación MO en costos totales | B107: En Panama | C107: En EEUU
A108: AD | B108: 0.4224005874 | C108: 0.6649530545
A109: AC | B109: 0.2257416034 | C109: 0.4924879309
A110: OMD | B110: 0.3911
A111: COM | B111: 0.2655
A112: ADM | B112: 0.5794
A115: Tabla de factores de ajuste del Componente Materiales a PPP
A117: PPP | B117: 0.468
A120: % Nacional | B120: En Panama | C120: En EEUU
A121: AD | B121: 0.2445847228 | C121: 0.4089231293
A122: AC | B122: 0.03700539509 | C122: 0.0758794164
A123: OMD | B123: 0.1
A124: COM | B124: 0.15
A125: ADM | B125: 0.25
A129: % Total costos locales | B129: IPC 22/20 | C129: TC US$ 22/20 | D129: FA
A130: =B108+(1-B108)*B121 -> 0.5636725796 | B130: =B138/B137 -> 1.003443636 | C130: =B140/B139 -> 1 | D130: =A130*B130+(1-A130)*C130 -> 1.001941083
A131: =B109+(1-B109)*B122 -> 0.2543933413 | B131: =B130 -> 1.003443636 | C131: 1 | D131: =A131*B131+(1-A131)*C131 -> 1.000876038
A132: =B110+(1-B110)*B123 -> 0.45199 | B132: 1.003443636 | C132: 1 | D132: =A132*B132+(1-A132)*C132 -> 1.001556489
A133: =B111+(1-B111)*B124 -> 0.375675 | B133: 1.003443636 | C133: 1 | D133: =A133*B133+(1-A133)*C133 -> 1.001293688
A134: =B112+(1-B112)*B125 -> 0.68455 | B134: 1.003443636 | C134: 1 | D134: =A134*B134+(1-A134)*C134 -> 1.002357341
A137: IPC jun 2024 | B137: =B148 -> 99.45750452
A138: IPC dic 2025 | B138: 99.8
A139: TC US$ 2024 | B139: 1
A140: TC US$ 2025 | B140: 1
A143: 2025-01-01
A144: Base 2013 | B144: 110
A145: Base 2024 | B145: 100
A146: 2024-06-01
A147: Base 2013 | B147: 110.6
A148: Base 2024 | B148: =B144*B145/B147 -> 99.45750452
A181: =+A180+1 -> 1 | B181: 102.8 | C181: =(B181/B180)-1 ->  | D181: 0.97
A182: 2 | B182: 103.5 | C182: 0.006809338521 | D182: 0.97
A183: 3 | B183: 104.4 | C183: 0.008695652174 | D183: 0.96
A184: 4 | B184: 105.2 | C184: 0.007662835249 | D184: 0.95
A185: 5 | B185: 104.9 | C185: -0.002851711027 | D185: 0.95
A186: 6 | B186: 103.2 | C186: -0.01620591039 | D186: 0.97
A187: 7 | B187: 104.9 | C187: 0.01647286822 | D187: 0.95
A190: (a) Las ponderaciones utilizadas para el cálculo del Índice del sector Importación se basan en el
A191: valor CIF de las importaciones registradas en 1985; para el sector Industrial se utilizó el valor
A192: de las ventas de la industria manufacturera en la República, obtenido a través de la Encuesta
A193: de la Industria Manufacturera de 1985, complementado con otras fuentes y en el sector
A194: Agropecuario se utilizó el valor de la producción destinada a la venta en 1985.
A196: .. Dato no aplicable al grupo o categoría

Sheet INVERSIONES
B1: EDECHI | J1: EDECHI | U1: EDECHI
B3: INVERSIONES | J3: INVERSIONES | U3: INVERSIONES
B4: En miles de Balboas | J4: En Balboas | U4: En miles de Balboas
B6: INVERSIONES TOTALES | D6: =ALUMPU!D7 -> JUL26/ JUN27 | E6: =ALUMPU!E7 -> JUL27 / JUN28 | F6: =ALUMPU!F7 -> JUL28/ JUN29 | G6: =ALUMPU!G7 -> JUL29/ JUN30 | H6: TOTALES | J6: INVERSION EN SUBESTACIONES, ARQUITECTURA ASOCIADA Y LÍNEAS EN AT NO CONTEMPLADAS EN LAS ECUACIONES DE EFICIENCIA
H7: Miles de Balboas | J7: DETALLE | K7: 2026 | L7: 2027 | N7: 2028 | P7: 2029 | R7: 2030 | S7: Total | U7: DETALLE | V7: JUL22/ JUN23 | W7: JUL23 / JUN24 | X7: JUL24 / JUN25 | Y7: JUL25/ JUN26 | Z7: TOTALES
B8: Distribución | C8: ID | D8: ='Costos y Pérdidas Eficientes'!D77/1000+D15 -> 54933.69908 | E8: ='Costos y Pérdidas Eficientes'!E77/1000+E15 -> 20753.53243 | F8: ='Costos y Pérdidas Eficientes'!F77/1000+F15 -> 12894.12823 | G8: ='Costos y Pérdidas Eficientes'!G77/1000+G15 -> 24589.46209 | H8: =SUM(D8:G8) -> 113170.8218 | K8: II Sem | L8: I Sem | M8: II Sem | N8: I Sem | O8: II Sem | P8: I Sem | Q8: II Sem | R8: I Sem
B9: Comercialización | C9: IC | D9: ='Costos y Pérdidas Eficientes'!D78/1000+D16 -> 1337.825252 | E9: ='Costos y Pérdidas Eficientes'!E78/1000+E16 -> 1381.843952 | F9: ='Costos y Pérdidas Eficientes'!F78/1000+F16 -> 1427.315431 | G9: ='Costos y Pérdidas Eficientes'!G78/1000+G16 -> 1474.284095 | H9: =SUM(D9:G9) -> 5621.26873 | J9: Nueva SE Veladero 230/34,5 kV | K9: 5497016.844 | L9: 2570246.344 | M9: 958678.3906 | N9: 0 | O9: 0 | P9: 0 | Q9: 0 | R9: 0 | S9: =SUM(K9:R9) -> 9025941.578 | T9: ID | U9: =J9 -> Nueva SE Veladero 230/34,5 kV | V9: =(K9+L9)/1000 -> 8067.263187 | W9: =(M9+N9)/1000 -> 958.6783906 | X9: =(O9+P9)/1000 -> 0 | Y9: =(Q9+R9)/1000 -> 0 | Z9: =SUM(V9:Y9) -> 9025.941578
B10: Alumbrado Público | C10: IAP | D10: =+D17 -> 174.46 | E10: =+E17 -> 174.46 | F10: =+F17 -> 174.155 | G10: =+G17 -> 173.85 | H10: 696.925 | J10: Arquitectura de red de la subestación Veladero | K10: 250000 | L10: 250000 | M10: 250000 | N10: 0 | O10: 0 | P10: 0 | Q10: 0 | R10: 0 | S10: =SUM(K10:R10) -> 750000 | T10: ID | U10: =J10 -> Arquitectura de red de la subestación Veladero | V10: =(K10+L10)/1000 -> 500 | W10: =(M10+N10)/1000 -> 250 | X10: =(O10+P10)/1000 -> 0 | Y10: =(Q10+R10)/1000 -> 0 | Z10: =SUM(V10:Y10) -> 750
B11: TOTAL INVERSIONES | D11: =+D8+D9+D10 -> 56445.98433 | E11: =+E8+E9+E10 -> 22309.83638 | F11: =+F8+F9+F10 -> 14495.59866 | G11: =+G8+G9+G10 -> 26237.59618 | H11: =SUM(D11:G11) -> 119489.0155 | J11: Nueva SE Changuinola 2 34,5/13,8 kV | K11: 1174899.07 | L11: 0 | M11: 0 | N11: 0 | O11: 0 | P11: 0 | Q11: 0 | R11: 0 | S11: 1174899.07 | T11: ID | U11: Nueva SE Changuinola 2 34,5/13,8 kV | V11: 1174.89907 | W11: 0 | X11: 0 | Y11: 0 | Z11: 1174.89907
J12: Arquitectura SE Changuinola | S12: 0 | T12: ID | U12: Arquitectura SE Changuinola | V12: 0 | W12: 0 | X12: 0 | Y12: 0 | Z12: 0
B13: INVERSIONES NO CONTEMPLADAS EN LAS ECUACIONES DE EFICIENCIA | D13: =D6 -> JUL26/ JUN27 | E13: =E6 -> JUL27 / JUN28 | F13: =F6 -> JUL28/ JUN29 | G13: =G6 -> JUL29/ JUN30 | H13: TOTALES | J13: Segundo Transformador San Cristobal 115/13,8kV 30MVA | K13: 805097.8711 | L13: 5362125.242 | M13: 44653.87305 | N13: 0 | O13: 0 | P13: 0 | Q13: 0 | R13: 0 | S13: 6211876.986 | T13: ID | U13: Segundo Transformador San Cristobal 115/13,8kV 30MVA | V13: 6167.223113 | W13: 44.65387305 | X13: 0 | Y13: 0 | Z13: 6211.876986
D14: Miles de Balboas | E14: Miles de Balboas | F14: Miles de Balboas | G14: Miles de Balboas | H14: Miles de Balboas | J14: Nueva SE Almirante 2 34,5/4,16 kV | K14: 3027323.316 | L14: 2839435.172 | M14: 248274.4062 | N14: 0 | O14: 0 | P14: 0 | Q14: 0 | R14: 0 | S14: 6115032.895 | T14: ID | U14: Nueva SE Almirante 2 34,5/4,16 kV | V14: 5866.758488 | W14: 248.2744062 | X14: 0 | Y14: 0 | Z14: 6115.032895
B15: Inverisones adicionales Distribucion | C15: ID | D15: =SUMIF($T$9:$T$23,$C15,V$9:V$23) -> 42691.38082 | E15: 7584.381707 | F15: 2478.2414 | G15: 12468.4804 | H15: =SUM(D15:G15) -> 65222.48432 | J15: Segunda LAT MDN - San Cristobal 115kV | K15: 10156471.32 | L15: 6534524.242 | M15: 500533.6367 | N15: 0 | O15: 0 | P15: 0 | Q15: 0 | R15: 0 | S15: 17191529.2 | T15: ID | U15: Segunda LAT MDN - San Cristobal 115kV | V15: 16690.99556 | W15: 500.5336367 | X15: 0 | Y15: 0 | Z15: 17191.5292
B16: Inverisones adicionales Comercialización | C16: IC | D16: 0 | E16: 0 | F16: 0 | G16: 0 | H16: =SUM(D16:G16) -> 0 | J16: Circuito 34-19B | K16: 750000 | L16: 800000 | M16: 800000 | N16: 0 | O16: 0 | P16: 0 | Q16: 0 | R16: 0 | S16: 2350000 | T16: ID | U16: Circuito 34-19B | V16: 1550 | W16: 800 | X16: 0 | Y16: 0 | Z16: 2350
B17: Inversiones adicionales en alumbrado | C17: IAP | D17: 174.46 | E17: 174.46 | F17: 174.155 | G17: 173.85 | H17: 696.925 | J17: Circuito 34-42B | K17: 500000 | L17: 1000000 | M17: 1000000 | N17: 1000000 | O17: 500000 | P17: 0 | Q17: 0 | R17: 0 | S17: 4000000 | T17: ID | U17: Circuito 34-42B | V17: 1500 | W17: 2000 | X17: 500 | Y17: 0 | Z17: 4000
D18: =SUM(D15:D17)-V24 -> 0 | E18: =SUM(E15:E17)-W24 -> 0 | F18: =SUM(F15:F17)-X24 -> 0 | G18: =SUM(G15:G17)-Y24 -> 0 | H18: =SUM(H15:H17)-Z24 -> 0 | J18: Posicion de Linea 115KV Mata de Nance (MDN) 2da Linea | S18: 0 | T18: ID | U18: Posicion de Linea 115KV Mata de Nance (MDN) 2da Linea | V18: 0 | W18: 0 | X18: 0 | Y18: 0 | Z18: 0
B19: LUMINARIAS QUE SE INCORPORAN | D19: =D6 -> JUL26/ JUN27 | E19: =E6 -> JUL27 / JUN28 | F19: =F6 -> JUL28/ JUN29 | G19: =G6 -> JUL29/ JUN30 | H19: TOTALES | J19: Nueva Línea de COOSEMUPAR | K19: 0 | L19: 804000 | M19: 1072000 | N19: 1340000 | O19: 804000 | P19: 804000 | Q19: 536000 | R19: 0 | S19: 5360000 | T19: ID | U19: Nueva Línea de COOSEMUPAR | V19: 804 | W19: 2412 | X19: 1608 | Y19: 536 | Z19: 5360
B20: Crecimiento Vegetativo - Sodio | H20: =SUM(D20:G20) -> 0 | J20: Crecimiento Vegetativo LED. Para el periodo 2026 a 2030 | K20: 87230 | L20: 87230 | M20: 87230 | N20: 87230 | O20: 87230 | P20: 86925 | Q20: 86925 | R20: 86925 | S20: 696925 | T20: IAP | U20: Crecimiento Vegetativo LED. Para el periodo 2026 a 2030 | V20: 174.46 | W20: 174.46 | X20: 174.155 | Y20: 173.85 | Z20: 696.925
B21: Crecimiento Vegetativo - LED | D21: =V29 -> 572 | E21: =W29 -> 572 | F21: =X29 -> 571 | G21: =Y29 -> 570 | H21: =SUM(D21:G21) -> 2285 | J21: Medida Inteligente EDECHI | S21: 0 | T21: IC | U21: Medida Inteligente EDECHI | V21: =(K21+L21)/1000 -> 0 | W21: =(M21+N21)/1000 -> 0 | X21: =(O21+P21)/1000 -> 0 | Y21: =(Q21+R21)/1000 -> 0 | Z21: =SUM(V21:Y21) -> 0
B22: Proyectos especiales | H22: 0 | J22: OER | K22: 185120.7 | L22: 185120.7 | M22: 185120.7 | N22: 185120.7 | O22: 185120.7 | P22: 185120.7 | Q22: 185120.7 | R22: 185120.7 | S22: 1480965.6 | T22: ID | U22: OER | V22: 370.2414 | W22: 370.2414 | X22: 370.2414 | Y22: 370.2414 | Z22: 1480.9656
B23: TOTAL LUMINARIAS ADICIONALES | D23: =SUM(D20:D22) -> 572 | E23: =SUM(E20:E22) -> 572 | F23: =SUM(F20:F22) -> 571 | G23: =SUM(G20:G22) -> 570 | H23: =SUM(D23:G23) -> 2285 | J23: Interconexión eléctrica trifásica Isla Colón-Bastimento | Q23: =Q32/2 -> 5781119.5 | R23: =Q23 -> 5781119.5 | S23: 11562239 | T23: ID | U23: Interconexión eléctrica trifásica Isla Colón-Bastimento | V23: 0 | W23: 0 | X23: 0 | Y23: 11562.239 | Z23: 11562.239
J24: TOTAL | K24: =SUM(K9:K23) -> 22433159.12 | L24: =SUM(L9:L23) -> 20432681.7 | M24: 5146491.007 | N24: 2612350.7 | O24: 1576350.7 | P24: 1076045.7 | Q24: 6589165.2 | R24: 6053165.2 | S24: 65919409.32 | U24: TOTAL | V24: =SUM(V9:V23) -> 42865.84082 | W24: 7758.841707 | X24: 2652.3964 | Y24: 12642.3304 | Z24: 65919.40932
J26: CANTIDAD DE LUMINARIAS ADICIONALES (ALUMBRADO PÚBLICO)
J27: DETALLE | K27: 2022 | L27: 2023 | N27: 2024 | P27: 2025 | R27: 2026 | S27: Total | U27: DETALLE | V27: JUL22/ JUN23 | W27: JUL23 / JUN24 | X27: JUL24 / JUN25 | Y27: JUL25/ JUN26 | Z27: TOTALES
K28: II Sem | L28: I Sem | M28: II Sem | N28: I Sem | O28: II Sem | P28: I Sem | Q28: II Sem | R28: I Sem
J29: Crecimiento Vegetativo - LED | K29: 286 | L29: 286 | M29: 286 | N29: 286 | O29: 286 | P29: 285 | Q29: 285 | R29: 285 | S29: =+SUM(K29:R29) -> 2285 | U29: Crecimiento Vegetativo - LED | V29: =K29+L29 -> 572 | W29: =M29+N29 -> 572 | X29: =O29+P29 -> 571 | Y29: =Q29+R29 -> 570 | Z29: =SUM(V29:Y29) -> 2285
K30: =K20/K29 -> 305 | L30: =L20/L29 -> 305 | M30: 305 | N30: 305 | O30: 305 | P30: 305 | Q30: 305 | R30: 305
B31: INVERSIONES ESTIMADAS | D31: ENE - JUN 2026
D32: Miles de Balboas | Q32: 11562239
B33: Distribución | C33: ID | D33: 23350.68224
B34: Comercialización | C34: IC | D34: 1030.176999
B35: Alumbrado Público | C35: IAP | D35: 122.85
B36: TOTAL INVERSIONES | D36: =+D33+D34+D35 -> 24503.70923
D37: 0

Sheet ACTIVOS
B2: EDECHI
B4: ACTIVOS TARIFARIOS PERMITIDOS
B5: En miles de Balboas
B7: BASE DE CAPITAL | D7: ACT.JUN22 | E7: AJUSTE ACTNOREG | F7: BASE | G7: 2026-06-01 | H7: =INVERSIONES!D13 -> JUL26/ JUN27 | I7: =INVERSIONES!E13 -> JUL27 / JUN28 | J7: =INVERSIONES!F13 -> JUL28/ JUN29 | K7: =INVERSIONES!G13 -> JUL29/ JUN30
B9: Valor Bruto Base de Capital Distribución | C9: BCD | D9: ='BC y Dep'!C68/1000 -> 312803.1891 | E9: =G29 -> 0.9650435826 | F9: =D9*E9 -> 301868.7103 | G9: =+F9+INVERSIONES!D33 -> 325219.3925 | H9: =+G9+INVERSIONES!D8 -> 380153.0916 | I9: =+H9+INVERSIONES!E8 -> 400906.624 | J9: =+I9+INVERSIONES!F8 -> 413800.7523 | K9: =+J9+INVERSIONES!G8 -> 438390.2143
B10: Valor Bruto Base de Capital Comercialización | C10: BCC | D10: ='BC y Dep'!C70/1000 -> 25229.9819 | E10: =+E9 -> 0.9650435826 | F10: =D10*E10 -> 24348.03213 | G10: =F10+INVERSIONES!D34 -> 25378.20912 | H10: =+G10+INVERSIONES!D9 -> 26716.03438 | I10: =+H10+INVERSIONES!E9 -> 28097.87833 | J10: =+I10+INVERSIONES!F9 -> 29525.19376 | K10: =+J10+INVERSIONES!G9 -> 30999.47785
B11: Valor Bruto Activos Fijos Alumbrado Público | C11: ACTalum | D11: ='BC y Dep'!C69/1000 -> 14458.50747 | E11: =+E9 -> 0.9650435826 | F11: =D11*E11 -> 13953.08985 | G11: =F11+INVERSIONES!D35 -> 14075.93985 | H11: =+G11+INVERSIONES!D10 -> 14250.39985 | I11: =+H11+INVERSIONES!E10 -> 14424.85985 | J11: =+I11+INVERSIONES!F10 -> 14599.01485 | K11: =+J11+INVERSIONES!G10 -> 14772.86485
D12: =SUM(D9:D11) -> 352491.6785 | F12: =SUM(F9:F11) -> 340169.8323 | G12: =SUM(G9:G11) -> 364673.5415 | H12: =SUM(H9:H11) -> 421119.5258 | I12: 443429.3622 | J12: 457924.9609 | K12: 484162.557
B14: Valor Neto Base Capital Distribución | C14: BCND | D14: ='BC y Dep'!C76/1000 -> 164716.3617 | E14: =+E9 -> 0.9650435826 | F14: =D14*E14 -> 158958.4678 | G14: =F14+(G9-F9)-'BC y Dep'!C80/1000-((G9-F9)/2)*'BC y Dep'!C84 -> 172910.3274 | H14: =G14+(H9-G9)-'BC y Dep'!D80/1000-((H9-G9)/2)*'PERDIDAS y OTROS'!E$11-((G9-F9))*'BC y Dep'!C84 -> 217321.8004 | I14: =H14+(I9-H9)-'BC y Dep'!E80/1000-(H9-G9)*'PERDIDAS y OTROS'!E$11-((I9-H9)/2)*'PERDIDAS y OTROS'!F$11-((G9-F9))*'BC y Dep'!C84 -> 226379.9376 | J14: =I14+(J9-I9)-'BC y Dep'!F80/1000-(H9-G9)*'PERDIDAS y OTROS'!E$11-(I9-H9)*'PERDIDAS y OTROS'!F$11-((J9-I9)/2)*'PERDIDAS y OTROS'!G$11-((G9-F9))*'BC y Dep'!C84 -> 227090.6879 | K14: =J14+(K9-J9)-'BC y Dep'!G80/1000-(H9-G9)*'PERDIDAS y OTROS'!E$11-(I9-H9)*'PERDIDAS y OTROS'!F$11-(J9-I9)*'PERDIDAS y OTROS'!G$11-((K9-J9)/2)*'PERDIDAS y OTROS'!H$11-((G9-F9))*'BC y Dep'!C84 -> 239109.9975
B15: Valor Neto Base Capital Comercialización | C15: BCNC | D15: ='BC y Dep'!C78/1000 -> 11751.81286 | E15: =+E9 -> 0.9650435826 | F15: =D15*E15 -> 11341.01158 | G15: =F15+(G10-F10)-'BC y Dep'!C82/1000-((G10-F10)/2)*'BC y Dep'!C86 -> 11456.03786 | H15: =G15+(H10-G10)-'BC y Dep'!D82/1000-((H10-G10)/2)*'PERDIDAS y OTROS'!E$12-((G10-F10))*'BC y Dep'!C86 -> 11864.38202 | I15: =H15+(I10-H10)-'BC y Dep'!E82/1000-(H10-G10)*'PERDIDAS y OTROS'!E$12-((I10-H10)/2)*'PERDIDAS y OTROS'!F$12-((G10-F10))*'BC y Dep'!C86 -> 12283.32613 | J15: =I15+(J10-I10)-'BC y Dep'!F82/1000-(H10-G10)*'PERDIDAS y OTROS'!E$12-(I10-H10)*'PERDIDAS y OTROS'!F$12-((J10-I10)/2)*'PERDIDAS y OTROS'!G$12-((G10-F10))*'BC y Dep'!C86 -> 12701.87899 | K15: =J15+(K10-J10)-'BC y Dep'!G82/1000-(H10-G10)*'PERDIDAS y OTROS'!E$12-(I10-H10)*'PERDIDAS y OTROS'!F$12-(J10-I10)*'PERDIDAS y OTROS'!G$12-((K10-J10)/2)*'PERDIDAS y OTROS'!H$12-((G10-F10))*'BC y Dep'!C86 -> 13138.86641
B16: Valor Neto Activos Fijos Alumbrado Público | C16: ACTN alum | D16: ='BC y Dep'!C77/1000 -> 5490.147513 | E16: =+E9 -> 0.9650435826 | F16: =D16*E16 -> 5298.231625 | G16: =F16+(G11-F11)-'BC y Dep'!C81/1000-((G11-F11)/2)*'BC y Dep'!C85 -> 4945.820916 | H16: =G16+(H11-G11)-'BC y Dep'!D81/1000-((H11-G11)/2)*'PERDIDAS y OTROS'!E$13-((G11-F11))*'BC y Dep'!C85 -> 4653.954915 | I16: =H16+(I11-H11)-'BC y Dep'!E81/1000-(H11-G11)*'PERDIDAS y OTROS'!E$13-((I11-H11)/2)*'PERDIDAS y OTROS'!F$13-((G11-F11))*'BC y Dep'!C85 -> 4369.754959 | J16: =I16+(J11-I11)-'BC y Dep'!F81/1000-(H11-G11)*'PERDIDAS y OTROS'!E$13-(I11-H11)*'PERDIDAS y OTROS'!F$13-((J11-I11)/2)*'PERDIDAS y OTROS'!G$13-((G11-F11))*'BC y Dep'!C85 -> 4089.38511 | K16: =J16+(K11-J11)-'BC y Dep'!G81/1000-(H11-G11)*'PERDIDAS y OTROS'!E$13-(I11-H11)*'PERDIDAS y OTROS'!F$13-(J11-I11)*'PERDIDAS y OTROS'!G$13-((K11-J11)/2)*'PERDIDAS y OTROS'!H$13-((G11-F11))*'BC y Dep'!C85 -> 3813.399255
D17: =SUM(D14:D16) -> 181958.3221 | F17: =SUM(F14:F16) -> 175597.711 | G17: =SUM(G14:G16) -> 189312.1862 | H17: =SUM(H14:H16) -> 233840.1374 | I17: 243033.0187 | J17: 243881.952 | K17: 256062.2631
B18: Check | D18: =D12-'BC y Dep'!C71/1000 -> 0 | H18: =G17+INVERSIONES!D11-(IMPD!D11+IMPCO!D11+ALUMPU!D11)-H17 -> 0 | I18: =H17+INVERSIONES!E11-(IMPD!E11+IMPCO!E11+ALUMPU!E11)-I17 -> 0 | J18: =I17+INVERSIONES!F11-(IMPD!F11+IMPCO!F11+ALUMPU!F11)-J17 -> 0 | K18: =J17+INVERSIONES!G11-(IMPD!G11+IMPCO!G11+ALUMPU!G11)-K17 -> 0
D19: =D17-'BC y Dep'!C79/1000 -> 0
B20: Ajuste Activos no Regulados
B22: Detalle | C22: 2022 | D22: =C22+1 -> 2023 | E22: =D22+1 -> 2024 | F22: 2025 | G22: Promedio
B23: Ingresos no regulados | C23: 1648580.95 | D23: 1869293.99 | E23: 2011584.87 | F23: 2465171.79 | G23: =AVERAGE(C23:E23) -> 1843153.27
B24: Ingresos por venta de energía | C24: 186378629 | D24: 178288586 | E24: 214402820.2 | G24: =AVERAGE(C24:E24) -> 193023345.1
B25: Compras de energía | C25: -135226901 | D25: -140976155 | E25: -150214902.7 | G25: -142139319.6
B26: otros ingresos
B27: Ingreso Neto por actividades reguladas | C27: =C24+C25+C26 -> 51151728.01 | D27: 37312431.01 | E27: 64187917.44 | F27: =F24+F25+F26 -> 0 | G27: =G24+G25+G26 -> 50884025.49
B29: Factor de ajuste | C29: =C27/(C27+C23) -> 0.9687770586 | D29: =D27/(D27+D23) -> 0.9522916873 | E29: 0.9696132932 | F29: =F27/(F27+F23) -> 0 | G29: =G27/(G27+G23) -> 0.9650435826

Sheet BC y Dep
A1: PLANILLA AA-01 | FH1: =+IF(FA5=0,0,($BZ5-$CA5-$CB5)*$BZ$60*1/$C5)+IF(FB5=0,0,($CD5-$CE5-$CF5)*$CD$60*1/$C5)+IF(FC5=0,0,($CH5-$CI5-$CJ5)*$CH$60*1/$C5)+IF(FD5=0,0,($CL5-$CM5-$CN5)*$CL$60*1/$C5) -> 0
A2: LÍNEA DE NEGOCIO | B2: CUENTAS | C2: Vida útil estándar | D2: t<2001 | G2: 2002 | K2: 2003 | O2: 2004 | S2: 2005 | W2: 2006 | AA2: 2007 | AE2: 2008 | AI2: 2009 | AM2: 2010 | AQ2: 2011 | AU2: 2012 | AY2: 2013 | BC2: 2014 | BG2: 2014.5 | BJ2: 2015 | BN2: 2016 | BR2: 2017 | BV2: 2018 | BZ2: 2019 | CD2: 2020 | CH2: 2021 | CL2: 2022 | CP2: =CL2+1 -> 2023 | CT2: =CP2+1 -> 2024 | CX2: =CT2+1 -> 2025 | EC2: =CX2+0.5 -> 2025.5 | EI2: 2002 | EJ2: =EI2+1 -> 2003 | EK2: =EJ2+1 -> 2004 | EL2: 2005 | EM2: 2006 | EN2: 2007 | EO2: 2008 | EP2: 2009 | EQ2: 2010 | ER2: 2011 | ES2: 2012 | ET2: 2013 | EU2: =EV2 -> 2014 | EV2: =ET2+1 -> 2014 | EW2: 2015 | EX2: 2016 | EY2: 2017 | EZ2: 2018 | FA2: 2019 | FB2: 2020 | FC2: 2021 | FD2: 2022 | FE2: =FD2+1 -> 2023 | FF2: =FE2+1 -> 2024 | FG2: 2025 | FH2: =EC2+1 -> 2026.5 | FJ2: 2002 | FK2: =FJ2+1 -> 2003 | FL2: =FK2+1 -> 2004 | FM2: 2005 | FN2: 2006 | FO2: 2007 | FP2: 2008 | FQ2: 2009 | FR2: 2010 | FS2: 2011 | FT2: 2012 | FU2: 2013 | FV2: =FW2 -> 2014 | FW2: =FU2+1 -> 2014 | FX2: 2015 | FY2: 2016 | FZ2: 2017 | GA2: 2018 | GB2: 2019 | GC2: 2020 | GD2: 2021 | GE2: =FD2 -> 2022 | GF2: =FE2 -> 2023 | GG2: 2024 | GH2: 2025 | GI2: =FH2+1 -> 2027.5 | GK2: 2002 | GL2: =GK2+1 -> 2003 | GM2: =GL2+1 -> 2004 | GN2: 2005 | GO2: 2006 | GP2: 2007 | GQ2: 2008 | GR2: 2009 | GS2: 2010 | GT2: 2011 | GU2: 2012 | GV2: 2013 | GW2: =GX2 -> 2014 | GX2: =GV2+1 -> 2014 | GY2: 2015 | GZ2: 2016 | HA2: 2017 | HB2: 2018 | HC2: 2019 | HD2: 2020 | HE2: 2021 | HF2: =GE2 -> 2022 | HG2: =GF2 -> 2023 | HH2: 2024 | HI2: 2025 | HJ2: =GI2+1 -> 2028.5 | HL2: 2002 | HM2: =HL2+1 -> 2003 | HN2: =HM2+1 -> 2004 | HO2: 2005 | HP2: 2006 | HQ2: 2007 | HR2: 2008 | HS2: 2009 | HT2: 2010 | HU2: 2011 | HV2: 2012 | HW2: 2013 | HX2: =HY2 -> 2014 | HY2: =HW2+1 -> 2014 | HZ2: 2015 | IA2: 2016 | IB2: 2017 | IC2: 2018 | ID2: 2019 | IE2: 2020 | IF2: 2021 | IG2: =HF2 -> 2022 | IH2: =HG2 -> 2023 | II2: 2024 | IJ2: 2025 | IK2: =HJ2+1 -> 2029.5
D3: BC BRUTA 31/12/01 | E3: RETIROS ACUMUL | F3: BC NETA 31/12/01 | G3: ADICIONES | H3: ATR | I3: RETIROS ACUMUL | J3: ATR Retiros acumul | K3: ADICIONES | L3: ATR | M3: RETIROS ACUMUL | N3: ATR Retiros acumul | O3: ADICIONES | P3: ATR | Q3: RETIROS ACUMUL | R3: ATR Retiros acumul | S3: ADICIONES | T3: ATR | U3: RETIROS ACUMUL | V3: ATR Retiros acumul | W3: ADICIONES | X3: ATR | Y3: RETIROS ACUMUL | Z3: ATR Retiros acumul | AA3: ADICIONES | AB3: ATR | AC3: RETIROS ACUMUL | AD3: ATR Retiros acumul | AE3: ADICIONES | AF3: ATR | AG3: RETIROS ACUMUL | AH3: ATR Retiros acumul | AI3: ADICIONES | AJ3: ATR | AK3: RETIROS ACUMUL | AL3: ATR Retiros acumul | AM3: ADICIONES | AN3: ATR | AO3: RETIROS ACUMUL | AP3: Depr RETIROS ACUMUL | AQ3: ADICIONES | AR3: ATR | AS3: RETIROS ACUMUL | AT3: Depr RETIROS ACUMUL | AU3: ADICIONES | AV3: ATR | AW3: RETIROS ACUMUL | AX3: Depr RETIROS ACUMUL | AY3: ADICIONES | AZ3: ATR | BA3: RETIROS ACUMUL | BB3: Depr RETIROS ACUMUL | BC3: ADICIONES | BD3: ATR | BE3: RETIROS ACUMUL | BF3: Depr RETIROS ACUMUL | BG3: BC BRUTA Changuinola | BH3: OER | BI3: BC NETA Changuinola | BJ3: ADICIONES | BK3: ATR | BL3: RETIROS ACUMUL | BM3: Depr RETIROS ACUMUL | BN3: ADICIONES | BO3: ATR | BP3: RETIROS ACUMUL | BQ3: Depr RETIROS ACUMUL | BR3: ADICIONES | BS3: ATR | BT3: RETIROS ACUMUL | BU3: Depr RETIROS ACUMUL | BV3: ADICIONES | BW3: ATR | BX3: RETIROS ACUMUL | BY3: Depr RETIROS ACUMUL | BZ3: ADICIONES | CA3: ATR | CB3: RETIROS ACUMUL | CC3: Depr RETIROS ACUMUL | CD3: ADICIONES | CE3: ATR | CF3: RETIROS ACUMUL | CG3: Depr RETIROS ACUMUL | CH3: ADICIONES | CI3: ATR | CJ3: RETIROS ACUMUL | CK3: Depr RETIROS ACUMUL | CL3: ADICIONES | CM3: ATR | CN3: RETIROS ACUMUL | CO3: Depr RETIROS ACUMUL | CP3: ADICIONES | CQ3: ATR | CR3: RETIROS ACUMUL | CS3: Depr RETIROS ACUMUL | CT3: ADICIONES | CU3: ATR | CV3: RETIROS ACUMUL | CW3: Depr RETIROS ACUMUL | CX3: ADICIONES | CY3: ATR | CZ3: RETIROS ACUMUL | DA3: Depr RETIROS ACUMUL | DB3: Año de alta activos < 2005 | DC3: Vida activos < 2001 | DD3: Vida activos 2002 | DE3: Vida activos 2003 | DF3: Vida activos 2004 | DG3: Vida activos 2005 | DH3: Vida activos 2006 | DI3: Vida activos 2007 | DJ3: Vida activos 2008 | DK3: Vida activos 2009 | DL3: Vida activos 2010 | DM3: Vida activos 2011 | DN3: Vida activos 2012 | DO3: Vida activos 2013 | DP3: Vida activos 2014 | DQ3: Vida activos Changi | DR3: Vida activos 2015 | DS3: Vida activos 2016 | DT3: Vida activos 2017 | DU3: Vida activos 2018 | DV3: Vida activos 2019 | DW3: Vida activos 2020 | DX3: Vida activos 2021 | DY3: Vida activos 2022 | DZ3: Vida activos 2023 | EA3: Vida activos 2024 | EB3: Vida activos 2025 | EC3: Depreciación | ED3: BC BRUTA 30/06 | EE3: BC BRUTA tdep 30/06 | EF3: BC NETA 30/06 | EG3: Depreciación | EH3: Vida activos < 2001 | EI3: Vida activos 2002 | EJ3: Vida activos 2003 | EK3: Vida activos 2004 | EL3: Vida activos 2005 | EM3: Vida activos 2006 | EN3: Vida activos 2007 | EO3: Vida activos 2008 | EP3: Vida activos 2009 | EQ3: Vida activos 2010 | ER3: Vida activos 2011 | ES3: Vida activos 2012 | ET3: Vida activos 2013 | EU3: Vida activos Changi | EV3: Vida activos 2014 | EW3: Vida activos 2015 | EX3: Vida activos 2016 | EY3: Vida activos 2017 | EZ3: Vida activos 2018 | FA3: Vida activos 2019 | FB3: Vida activos 2020 | FC3: Vida activos 2021 | FD3: =DY3 -> Vida activos 2022 | FE3: =DZ3 -> Vida activos 2023 | FF3: Vida activos 2024 | FG3: Vida activos 2025 | FH3: Depreciación | FI3: Vida activos < 2001 | FJ3: Vida activos 2002 | FK3: Vida activos 2003 | FL3: Vida activos 2004 | FM3: Vida activos 2005 | FN3: Vida activos 2006 | FO3: Vida activos 2007 | FP3: Vida activos 2008 | FQ3: Vida activos 2009 | FR3: Vida activos 2010 | FS3: Vida activos 2011 | FT3: Vida activos 2012 | FU3: Vida activos 2013 | FV3: Vida activos Changi | FW3: Vida activos 2014 | FX3: Vida activos 2015 | FY3: Vida activos 2016 | FZ3: Vida activos 2017 | GA3: Vida activos 2018 | GB3: Vida activos 2019 | GC3: Vida activos 2020 | GD3: Vida activos 2021 | GE3: =FD3 -> Vida activos 2022 | GF3: Vida activos 2023 | GG3: Vida activos 2024 | GH3: Vida activos 2025 | GI3: Depreciación | GJ3: Vida activos < 2001 | GK3: Vida activos 2002 | GL3: Vida activos 2003 | GM3: Vida activos 2004 | GN3: Vida activos 2005 | GO3: Vida activos 2006 | GP3: Vida activos 2007 | GQ3: Vida activos 2008 | GR3: Vida activos 2009 | GS3: Vida activos 2010 | GT3: Vida activos 2011 | GU3: Vida activos 2012 | GV3: Vida activos 2013 | GW3: Vida activos Changi | GX3: Vida activos 2014 | GY3: Vida activos 2015 | GZ3: Vida activos 2016 | HA3: Vida activos 2017 | HB3: Vida activos 2018 | HC3: Vida activos 2019 | HD3: Vida activos 2020 | HE3: Vida activos 2021 | HF3: =GE3 -> Vida activos 2022 | HG3: Vida activos 2023 | HH3: Vida activos 2024 | HI3: Vida activos 2025 | HJ3: Depreciación | HK3: Vida activos < 2001 | HL3: Vida activos 2002 | HM3: Vida activos 2003 | HN3: Vida activos 2004 | HO3: Vida activos 2005 | HP3: Vida activos 2006 | HQ3: Vida activos 2007 | HR3: Vida activos 2008 | HS3: Vida activos 2009 | HT3: Vida activos 2010 | HU3: Vida activos 2011 | HV3: Vida activos 2012 | HW3: Vida activos 2013 | HX3: Vida activos Changi | HY3: Vida activos 2014 | HZ3: Vida activos 2015 | IA3: Vida activos 2016 | IB3: Vida activos 2017 | IC3: Vida activos 2018 | ID3: Vida activos 2019 | IE3: Vida activos 2020 | IF3: Vida activos 2021 | IG3: =HF3 -> Vida activos 2022 | IH3: Vida activos 2023 | II3: Vida activos 2024 | IJ3: Vida activos 2025 | IK3: Depreciación
GE4: 0 | GF4: 0 | GG4: 0 | GH4: 0 | HF4: 0 | HG4: 0 | HH4: 0 | HI4: 0 | IG4: 0 | IH4: 0 | II4: 0 | IJ4: 0
A5: PROPIEDADES Y PLANTA | B5: Planta Intangible | C5: 4 | D5: 2192460.658 | E5: 0 | F5: 1449825.55 | G5: 167256.039 | H5: 0 | I5: 0 | J5: 0 | K5: 48031.15 | L5: 0 | M5: 0 | N5: 0 | O5: 65709.412 | P5: 0 | Q5: 0 | R5: 0 | S5: 62165.65 | T5: 0 | U5: 0 | V5: 0 | W5: 90684.24 | X5: 0 | Y5: 0 | Z5: 0 | AA5: 32408.87 | AB5: 0 | AC5: 0 | AD5: 0 | AE5: 97632.98 | AF5: 0 | AG5: 0 | AH5: 0 | AI5: 249294.0639 | AJ5: 0 | AK5: 0 | AL5: 0 | AM5: 61005.71 | AN5: 0 | AO5: 0 | AP5: 0 | AQ5: 121471.92 | AR5: 0 | AS5: 0 | AT5: 0 | AU5: 0 | AV5: 0 | AW5: 0 | AX5: 0 | AY5: 12228.08 | AZ5: 0 | BA5: 0 | BB5: 0 | BC5: 78776.69 | BD5: 0 | BE5: 0 | BF5: 0 | BG5: 0 | BH5: 0 | BI5: 0 | BJ5: 602994.76 | BK5: 0 | BL5: 0 | BM5: 0 | BN5: 934571.95 | BO5: 0 | BP5: 0 | BQ5: 0 | BR5: 677544.22 | BS5: 0 | BT5: 0 | BU5: 0 | BV5: 952951.57 | BW5: 0 | BX5: 0 | BY5: 0 | BZ5: 3343099.25 | CA5: 0 | CB5: 0 | CC5: 0 | CD5: 448163.8 | CE5: 0 | CF5: 0 | CG5: 0 | CH5: 461340.96 | CI5: 0 | CJ5: 0 | CK5: 0 | CL5: 954542.1 | CP5: 323521.71 | CT5: 212819 | CX5: 124661 | CY5: =IFERROR(IF((CM5+CQ5+CU5)/(CL5+CP5+CT5)>0,((CM5+CQ5+CU5)/(CL5+CP5+CT5))*CX5,0),0) -> 0 | DB5: =IF(D5=0,0,2001-(D5-F5)*C5/D5) -> 1999.645111 | DC5: =IF((1-($EC$2-$DB5)/$C5)>0,(1-($EC$2-$DB5)/$C5),0) -> 0 | DD5: =IF((1-($EC$2-G$2)/$C5)>0,(1-($EC$2-G$2)/$C5),0) -> 0 | DE5: =IF((1-($EC$2-K$2)/$C5)>0,(1-($EC$2-K$2)/$C5),0) -> 0 | DF5: =IF((1-($EC$2-O$2)/$C5)>0,(1-($EC$2-O$2)/$C5),0) -> 0 | DG5: =IF((1-($EC$2-S$2)/$C5)>0,(1-($EC$2-S$2)/$C5),0) -> 0 | DH5: =IF((1-($EC$2-W$2)/$C5)>0,(1-($EC$2-W$2)/$C5),0) -> 0 | DI5: =IF((1-($EC$2-AA$2)/$C5)>0,(1-($EC$2-AA$2)/$C5),0) -> 0 | DJ5: =IF((1-($EC$2-AE$2)/$C5)>0,(1-($EC$2-AE$2)/$C5),0) -> 0 | DK5: =IF((1-($EC$2-AI$2)/$C5)>0,(1-($EC$2-AI$2)/$C5),0) -> 0 | DL5: =IF((1-($EC$2-AM$2)/$C5)>0,(1-($EC$2-AM$2)/$C5),0) -> 0 | DM5: =IF((1-($EC$2-AQ$2)/$C5)>0,(1-($EC$2-AQ$2)/$C5),0) -> 0 | DN5: =IF((1-($EC$2-AU$2)/$C5)>0,(1-($EC$2-AU$2)/$C5),0) -> 0 | DO5: =IF((1-($EC$2-AY$2)/$C5)>0,(1-($EC$2-AY$2)/$C5),0) -> 0 | DP5: =IF((1-($EC$2-BC$2)/$C5)>0,(1-($EC$2-BC$2)/$C5),0) -> 0 | DQ5: =IF(BG5=0,0,1-($EC$2-(2014.5-(BG5-BI5)*C5/BG5))/C5) -> 0 | DR5: =IF((1-($EC$2-BJ$2)/$C5)>0,(1-($EC$2-BJ$2)/$C5),0) -> 0 | DS5: =IF((1-($EC$2-BN$2)/$C5)>0,(1-($EC$2-BN$2)/$C5),0) -> 0 | DT5: =IF((1-($EC$2-BR$2)/$C5)>0,(1-($EC$2-BR$2)/$C5),0) -> 0 | DU5: =IF((1-($EC$2-BV$2)/$C5)>0,(1-($EC$2-BV$2)/$C5),0) -> 0 | DV5: =IF((1-($EC$2-BZ$2)/$C5)>0,(1-($EC$2-BZ$2)/$C5),0) -> 0 | DW5: =IF((1-($EC$2-CD$2)/$C5)>0,(1-($EC$2-CD$2)/$C5),0) -> 0 | DX5: =IF((1-($EC$2-CH$2)/$C5)>0,(1-($EC$2-CH$2)/$C5),0) -> 0 | DY5: =IF((1-($EC$2-CL$2)/$C5)>0,(1-($EC$2-CL$2)/$C5),0) -> 0.125 | DZ5: =IF((1-($EC$2-CP$2)/$C5)>0,(1-($EC$2-CP$2)/$C5),0) -> 0.375 | EA5: =IF((1-($EC$2-CT$2)/$C5)>0,(1-($EC$2-CT$2)/$C5),0) -> 0.625 | EB5: =IF((1-($EC$2-CX$2)/$C5)>0,(1-($EC$2-CX$2)/$C5),0) -> 0.875 | EC5: =IF(DC5=0,0,($D5-$E5)*1/$C5)+IF(DD5=0,0,($G5-$H5-$I5)*$G$60*1/$C5)+IF(DE5=0,0,($K5-$L5-$M5)*$K$60*1/$C5)+IF(DF5=0,0,($O5-$P5-$Q5)*$O$60*1/$C5)+IF(DG5=0,0,($S5-$T5-$U5)*$S$60*1/$C5)+IF(DH5=0,0,($W5-$X5-$Y5)*$W$60*1/$C5)+IF(DI5=0,0,($AA5-$AB5-$AC5)*$AA$60*1/$C5)+IF(DJ5=0,0,($AE5-$AF5-$AG5)*$AE$60*1/$C5)+IF(DK5=0,0,($AI5-$AJ5-$AK5)*$AI$60*1/$C5)+IF(DL5=0,0,($AM5-$AN5-$AO5)*$AM$60*1/$C5)+IF(DM5=0,0,($AQ5-$AR5-$AS5)*$AQ$60*1/$C5)+IF(DN5=0,0,($AU5-$V5-$AW5)*$AU$60*1/$C5)+IF(DO5=0,0,($AY5-$AZ5-$BA5)*$AY$60*1/$C5)+IF(DP5=0,0,($BC5-$BD5-$BE5)*$BC$60*1/$C5)+IF(DQ5=0,0,$BG5*1/$C5)+IF(DR5=0,0,($BJ5-$BK5-$BL5)*$BJ$60*1/$C5)+IF(DS5=0,0,($BN5-$BO5-$BP5)*$BN$60*1/$C5)+IF(DT5=0,0,($BR5-$BS5-$BT5)*$BR$60*1/$C5)+IF(DU5=0,0,($BV5-$BW5-$BX5)*$BV$60*1/$C5)+IF(DV5=0,0,($BZ5-$CA5-$CB5)*$BZ$60*1/$C5)+IF(DW5=0,0,($CD5-$CE5-$CF5)*$CD$60*1/$C5)+IF(DX5=0,0,($CH5-$CI5-$CJ5)*$CH$60*1/$C5)+IF(DY5=0,0,($CL5-$CM5-$CN5)*$CL$60*1/$C5)+IF(DZ5=0,0,($CP5-$CQ5-$CR5)*$CP$60*1/$C5)+IF(EA5=0,0,($CT5-$CU5-$CV5)*$CT$60*1/$C5)+IF(EB5=0,0,($CX5-$CY5-$CZ5)*$CX$60*1/$C5) -> 363497.3573 | ED5: =D5-E5+(G5-H5-I5)*G$60+(K5-L5-M5)*K$60+(O5-P5-Q5)*O$60+(S5-T5-U5)*S$60+(W5-X5-Y5)*W$60+(AA5-AB5-AC5)*AA$60+(AE5-AF5-AG5)*AE$60+(AI5-AJ5-AK5)*AI$60+(AM5-AN5-AO5)*AM$60+(AQ5-AR5-AS5)*$AQ$60+(AU5-AV5-AW5)*$AU$60+(AY5-AZ5-BA5)*$AY$60+(BC5-BD5-BE5)*$BC$60+BG5+(BJ5-BK5-BL5)*$BJ$60+(BN5-BO5-BP5)*$BN$60+(BR5-BS5-BT5)*$BR$60+(BV5-BW5-BX5)*$BV$60+(BZ5-CA5-CB5)*$BZ$60+(CD5-CE5-CF5)*$CD$60+(CH5-CI5-CJ5)*$CH$60+(CL5-CM5-CN5)*$CL$60+(CP5-CQ5-CR5)*$CP$60+(CT5-CU5-CV5)*$CT$60+(CX5-CY5-CZ5)*$CX$60 -> 11204813.49 | EE5: =IF(DC5=0,D5-E5,0)+IF(DD5=0,(G5-H5-I5)*G$60,0)+IF(DE5=0,(K5-L5-M5)*K$60,0)+IF(DF5=0,(O5-P5-Q5)*O$60,0)+IF(DG5=0,(S5-T5-U5)*S$60,0)+IF(DH5=0,(W5-X5-Y5)*W$60,0)+IF(DI5=0,(AA5-AB5-AC5)*AA$60,0)+IF(DJ5=0,(AE5-AF5-AG5)*AE$60,0)+IF(DK5=0,(AI5-AJ5-AK5)*AI$60,0)+IF(DL5=0,(AM5-AN5-AO5)*AM$60,0)+IF(DM5=0,(AQ5-AR5-AS5)*$AQ$60,0)+IF(DN5=0,(AU5-AV5-AW5)*$AU$60,0)+IF(DO5=0,(AY5-AZ5-BA5)*$AY$60,0)++IF(DP5=0,(BC5-BD5-BE5)*$BC$60,0)+IF(DQ5=0,BG5,0)+IF(DR5=0,(BJ5-BK5-BL5)*$BJ$60,0)+IF(DS5=0,(BN5-BO5-BP5)*$BN$60,0)+IF(DT5=0,(BR5-BS5-BT5)*$BR$60,0)+IF(DU5=0,(BV5-BW5-BX5)*$BV$60,0)+IF(DV5=0,(BZ5-CA5-CB5)*$BZ$60,0)+IF(DW5=0,(CD5-CE5-CF5)*$CD$60,0)+IF(DX5=0,(CH5-CI5-CJ5)*$CH$60,0)+IF(DY5=0,(CL5-CM5-CN5)*$CL$60,0)+IF(DZ5=0,(CP5-CQ5-CR5)*$CP$60,0)+IF(EA5=0,(CT5-CU5-CV5)*$CT$60,0)+IF(EB5=0,(CX5-CY5-CZ5)*$CX$60,0) -> 9750824.061 | EF5: =(D5-E5)*DC5+((G5-H5-(I5-J5))*G$60)*DD5+((K5-L5-(M5-N5))*K$60)*DE5+((O5-P5-(Q5-R5))*O$60)*DF5+((S5-T5-(U5-V5))*S$60)*DG5+((W5-X5-(Y5-Z5))*W$60)*DH5+((AA5-AB5-(AC5-AD5))*AA$60)*DI5+((AE5-AF5-(AG5-AH5))*AE$60)*DJ5+((AI5-AJ5-(AK5-AL5))*AI$60)*DK5+((AM5-AN5-(AO5-AP5))*$AM$60)*DL5+((AQ5-AR5-(AS5-AT5))*$AQ$60)*DM5+((AU5-AV5-(AW5-AX5))*$AU$60)*DN5+((AY5-AZ5-(BA5-BB5))*$AY$60)*DO5+((BC5-BD5-(BE5-BF5))*$BC$60)*DP5+((BJ5-BK5-(BL5-BM5))*$BJ$60)*DR5+(BG5-BH5)*DQ5+((BN5-BO5-(BP5-BQ5))*$BN$60)*DS5+((BR5-BS5-(BT5-BU5))*$BR$60)*DT5+((BV5-BW5-(BX5-BY5))*$BV$60)*DU5+((BZ5-CA5-(CB5-CC5))*$BZ$60)*DV5+((CD5-CE5-(CF5-CG5))*$CD$60)*DW5+((CH5-CI5-(CJ5-CK5))*$CH$60)*DX5+((CL5-CM5-(CN5-CO5))*$CL$60)*DY5+((CP5-CQ5-(CR5-CS5))*$CP$60)*DZ5+((CT5-CU5-(CV5-CW5))*$CT$60)*EA5+((CX5-CY5-(CZ5-DA5))*$CX$60)*EB5 -> 434455.7884 | EG5: =(ED5-EE5)*1/C5 -> 363497.3573 | EH5: =IF((1-($FH$2-$DB5)/$C5)>0,(1-($FH$2-$DB5)/$C5),0) -> 0 | EI5: =IF((1-($FH$2-EI$2)/$C5)>0,(1-($FH$2-EI$2)/$C5),0) -> 0 | EJ5: 0 | EK5: 0 | EL5: 0 | EM5: 0 | EN5: 0 | EO5: 0 | EP5: 0 | EQ5: 0 | ER5: 0 | ES5: =IF((1-($FH$2-ES$2)/$C5)>0,(1-($FH$2-ES$2)/$C5),0) -> 0 | ET5: 0 | EU5: 0 | EV5: 0 | EW5: 0 | EX5: 0 | EY5: 0 | EZ5: 0 | FA5: 0 | FB5: 0 | FC5: 0 | FD5: 0 | FE5: =IF((1-($FH$2-FE$2)/$C5)>0,(1-($FH$2-FE$2)/$C5),0) -> 0.125 | FF5: 0.375 | FG5: 0.625 | FH5: =IF(EH5=0,0,($D5-$E5)*1/$C5)+IF(EI5=0,0,($G5-$H5-$I5)*$G$60*1/$C5)+IF(EJ5=0,0,($K5-$L5-$M5)*$K$60*1/$C5)+IF(EK5=0,0,($O5-$P5-$Q5)*$O$60*1/$C5)+IF(EL5=0,0,($S5-$T5-$U5)*$S$60*1/$C5)+IF(EM5=0,0,($W5-$X5-$Y5)*$W$60*1/$C5)+IF(EN5=0,0,($AA5-$AB5-$AC5)*$AA$60*1/$C5)+IF(EO5=0,0,($AE5-$AF5-$AG5)*$AE$60*1/$C5)+IF(EP5=0,0,($AI5-$AJ5-$AK5)*$AI$60*1/$C5)+IF(EQ5=0,0,($AM5-$AN5-$AO5)*$AM$60*1/$C5)+IF(ER5=0,0,($AQ5-$AR5-$AS5)*$AQ$60*1/$C5)+IF(ES5=0,0,($AU5-$V5-$AW5)*$AU$60*1/$C5)+IF(ET5=0,0,($AY5-$AZ5-$BA5)*$AY$60*1/$C5)+IF(EU5=0,0,($BC5-$BD5-$BE5)*$BC$60*1/$C5)+IF(EV5=0,0,$BG5*1/$C5)+IF(EW5=0,0,($BJ5-$BK5-$BL5)*$BJ$60*1/$C5)+IF(EX5=0,0,($BN5-$BO5-$BP5)*$BN$60*1/$C5)+IF(EY5=0,0,($BR5-$BS5-$BT5)*$BR$60*1/$C5)+IF(EZ5=0,0,($BV5-$BW5-$BX5)*$BV$60*1/$C5)+IF(FA5=0,0,($BZ5-$CA5-$CB5)*$BZ$60*1/$C5)+IF(FB5=0,0,($CD5-$CE5-$CF5)*$CD$60*1/$C5)+IF(FC5=0,0,($CH5-$CI5-$CJ5)*$CH$60*1/$C5)+IF(FD5=0,0,($CL5-$CM5-$CN5)*$CL$60*1/$C5)+IF(FE5=0,0,($CP5-$CQ5-$CR5)*$CP$60*1/$C5)+IF(FF5=0,0,($CT5-$CU5-$CV5)*$CT$60*1/$C5)+IF(FG5=0,0,($CX5-$CY5-$CZ5)*$CX$60*1/$C5) -> 148725.3847 | FI5: =IF((1-($GI$2-$DB5)/$C5)>0,(1-($GI$2-$DB5)/$C5),0) -> 0 | FJ5: =IF((1-($GI$2-FJ$2)/$C5)>0,(1-($GI$2-FJ$2)/$C5),0) -> 0 | FK5: 0 | FL5: 0 | FM5: 0 | FN5: 0 | FO5: 0 | FP5: 0 | FQ5: 0 | FR5: 0 | FS5: 0 | FT5: =IF((1-($GI$2-FT$2)/$C5)>0,(1-($GI$2-FT$2)/$C5),0) -> 0 | FU5: 0 | FV5: 0 | FW5: 0 | FX5: 0 | FY5: 0 | FZ5: 0 | GA5: 0 | GB5: 0 | GC5: 0 | GD5: 0 | GE5: 0 | GF5: =IF((1-($GI$2-GF$2)/$C5)>0,(1-($GI$2-GF$2)/$C5),0) -> 0 | GG5: 0.125 | GH5: 0.375 | GI5: =IF(FI5=0,0,($D5-$E5)*1/$C5)+IF(FJ5=0,0,($G5-$H5-$I5)*$G$60*1/$C5)+IF(FK5=0,0,($K5-$L5-$M5)*$K$60*1/$C5)+IF(FL5=0,0,($O5-$P5-$Q5)*$O$60*1/$C5)+IF(FM5=0,0,($S5-$T5-$U5)*$S$60*1/$C5)+IF(FN5=0,0,($W5-$X5-$Y5)*$W$60*1/$C5)+IF(FO5=0,0,($AA5-$AB5-$AC5)*$AA$60*1/$C5)+IF(FP5=0,0,($AE5-$AF5-$AG5)*$AE$60*1/$C5)+IF(FQ5=0,0,($AI5-$AJ5-$AK5)*$AI$60*1/$C5)+IF(FR5=0,0,($AM5-$AN5-$AO5)*$AM$60*1/$C5)+IF(FS5=0,0,($AQ5-$AR5-$AS5)*$AQ$60*1/$C5)+IF(FT5=0,0,($AU5-$V5-$AW5)*$AU$60*1/$C5)+IF(FU5=0,0,($AY5-$AZ5-$BA5)*$AY$60*1/$C5)+IF(FV5=0,0,($BC5-$BD5-$BE5)*$BC$60*1/$C5)+IF(FW5=0,0,$BG5*1/$C5)+IF(FX5=0,0,($BJ5-$BK5-$BL5)*$BJ$60*1/$C5)+IF(FY5=0,0,($BN5-$BO5-$BP5)*$BN$60*1/$C5)+IF(FZ5=0,0,($BR5-$BS5-$BT5)*$BR$60*1/$C5)+IF(GA5=0,0,($BV5-$BW5-$BX5)*$BV$60*1/$C5)+IF(GB5=0,0,($BZ5-$CA5-$CB5)*$BZ$60*1/$C5)+IF(GC5=0,0,($CD5-$CE5-$CF5)*$CD$60*1/$C5)+IF(GD5=0,0,($CH5-$CI5-$CJ5)*$CH$60*1/$C5)+IF(GE5=0,0,($CL5-$CM5-$CN5)*$CL$60*1/$C5)+IF(GF5=0,0,($CP5-$CQ5-$CR5)*$CP$60*1/$C5)+IF(GG5=0,0,($CT5-$CU5-$CV5)*$CT$60*1/$C5)+IF(GH5=0,0,($CX5-$CY5-$CZ5)*$CX$60*1/$C5) -> 75933 | GJ5: =IF((1-($HJ$2-$DB5)/$C5)>0,(1-($HJ$2-$DB5)/$C5),0) -> 0 | GK5: =IF((1-($HJ$2-GK$2)/$C5)>0,(1-($HJ$2-GK$2)/$C5),0) -> 0 | GL5: 0 | GM5: 0 | GN5: 0 | GO5: 0 | GP5: 0 | GQ5: 0 | GR5: 0 | GS5: 0 | GT5: 0 | GU5: =IF((1-($HJ$2-GU$2)/$C5)>0,(1-($HJ$2-GU$2)/$C5),0) -> 0 | GV5: 0 | GW5: 0 | GX5: 0 | GY5: 0 | GZ5: 0 | HA5: 0 | HB5: 0 | HC5: 0 | HD5: 0 | HE5: 0 | HF5: 0 | HG5: =IF((1-($HJ$2-HG$2)/$C5)>0,(1-($HJ$2-HG$2)/$C5),0) -> 0 | HH5: 0 | HI5: 0.125 | HJ5: =IF(GJ5=0,0,($D5-$E5)*1/$C5)+IF(GK5=0,0,($G5-$H5-$I5)*$G$60*1/$C5)+IF(GL5=0,0,($K5-$L5-$M5)*$K$60*1/$C5)+IF(GM5=0,0,($O5-$P5-$Q5)*$O$60*1/$C5)+IF(GN5=0,0,($S5-$T5-$U5)*$S$60*1/$C5)+IF(GO5=0,0,($W5-$X5-$Y5)*$W$60*1/$C5)+IF(GP5=0,0,($AA5-$AB5-$AC5)*$AA$60*1/$C5)+IF(GQ5=0,0,($AE5-$AF5-$AG5)*$AE$60*1/$C5)+IF(GR5=0,0,($AI5-$AJ5-$AK5)*$AI$60*1/$C5)+IF(GS5=0,0,($AM5-$AN5-$AO5)*$AM$60*1/$C5)+IF(GT5=0,0,($AQ5-$AR5-$AS5)*$AQ$60*1/$C5)+IF(GU5=0,0,($AU5-$V5-$AW5)*$AU$60*1/$C5)+IF(GV5=0,0,($AY5-$AZ5-$BA5)*$AY$60*1/$C5)+IF(GW5=0,0,($BC5-$BD5-$BE5)*$BC$60*1/$C5)+IF(GX5=0,0,$BG5*1/$C5)+IF(GY5=0,0,($BJ5-$BK5-$BL5)*$BJ$60*1/$C5)+IF(GZ5=0,0,($BN5-$BO5-$BP5)*$BN$60*1/$C5)+IF(HA5=0,0,($BR5-$BS5-$BT5)*$BR$60*1/$C5)+IF(HB5=0,0,($BV5-$BW5-$BX5)*$BV$60*1/$C5)+IF(HC5=0,0,($BZ5-$CA5-$CB5)*$BZ$60*1/$C5)+IF(HD5=0,0,($CD5-$CE5-$CF5)*$CD$60*1/$C5)+IF(HE5=0,0,($CH5-$CI5-$CJ5)*$CH$60*1/$C5)+IF(HF5=0,0,($CL5-$CM5-$CN5)*$CL$60*1/$C5)+IF(HG5=0,0,($CP5-$CQ5-$CR5)*$CP$60*1/$C5)+IF(HH5=0,0,($CT5-$CU5-$CV5)*$CT$60*1/$C5)+IF(HI5=0,0,($CX5-$CY5-$CZ5)*$CX$60*1/$C5) -> 28048.725 | HK5: =IF((1-($IK$2-$DB5)/$C5)>0,(1-($IK$2-$DB5)/$C5),0) -> 0 | HL5: =IF((1-($IK$2-HL$2)/$C5)>0,(1-($IK$2-HL$2)/$C5),0) -> 0 | HM5: 0 | HN5: 0 | HO5: 0 | HP5: 0 | HQ5: 0 | HR5: 0 | HS5: 0 | HT5: 0 | HU5: 0 | HV5: =IF((1-($IK$2-HV$2)/$C5)>0,(1-($IK$2-HV$2)/$C5),0) -> 0 | HW5: 0 | HX5: 0 | HY5: 0 | HZ5: 0 | IA5: 0 | IB5: 0 | IC5: 0 | ID5: 0 | IE5: 0 | IF5: 0 | IG5: 0 | IH5: =IF((1-($IK$2-IH$2)/$C5)>0,(1-($IK$2-IH$2)/$C5),0) -> 0 | II5: 0 | IJ5: 0 | IK5: =IF(HK5=0,0,($D5-$E5)*1/$C5)+IF(HL5=0,0,($G5-$H5-$I5)*$G$60*1/$C5)+IF(HM5=0,0,($K5-$L5-$M5)*$K$60*1/$C5)+IF(HN5=0,0,($O5-$P5-$Q5)*$O$60*1/$C5)+IF(HO5=0,0,($S5-$T5-$U5)*$S$60*1/$C5)+IF(HP5=0,0,($W5-$X5-$Y5)*$W$60*1/$C5)+IF(HQ5=0,0,($AA5-$AB5-$AC5)*$AA$60*1/$C5)+IF(HR5=0,0,($AE5-$AF5-$AG5)*$AE$60*1/$C5)+IF(HS5=0,0,($AI5-$AJ5-$AK5)*$AI$60*1/$C5)+IF(HT5=0,0,($AM5-$AN5-$AO5)*$AM$60*1/$C5)+IF(HU5=0,0,($AQ5-$AR5-$AS5)*$AQ$60*1/$C5)+IF(HV5=0,0,($AU5-$V5-$AW5)*$AU$60*1/$C5)+IF(HW5=0,0,($AY5-$AZ5-$BA5)*$AY$60*1/$C5)+IF(HX5=0,0,($BC5-$BD5-$BE5)*$BC$60*1/$C5)+IF(HY5=0,0,$BG5*1/$C5)+IF(HZ5=0,0,($BJ5-$BK5-$BL5)*$BJ$60*1/$C5)+IF(IA5=0,0,($BN5-$BO5-$BP5)*$BN$60*1/$C5)+IF(IB5=0,0,($BR5-$BS5-$BT5)*$BR$60*1/$C5)+IF(IC5=0,0,($BV5-$BW5-$BX5)*$BV$60*1/$C5)+IF(ID5=0,0,($BZ5-$CA5-$CB5)*$BZ$60*1/$C5)+IF(IE5=0,0,($CD5-$CE5-$CF5)*$CD$60*1/$C5)+IF(IF5=0,0,($CH5-$CI5-$CJ5)*$CH$60*1/$C5)+IF(IG5=0,0,($CL5-$CM5-$CN5)*$CL$60*1/$C5)+IF(IH5=0,0,($CP5-$CQ5-$CR5)*$CP$60*1/$C5)+IF(II5=0,0,($CT5-$CU5-$CV5)*$CT$60*1/$C5)+IF(IJ5=0,0,($CX5-$CY5-$CZ5)*$CX$60*1/$C5) -> 0
B6: Terrenos | C6: 1000 | D6: 103551.785 | E6: 0 | F6: 103551.785 | G6: 3081.72 | H6: 0 | I6: 0 | J6: 0 | K6: 0 | L6: 0 | M6: 0 | N6: 0 | O6: 0 | P6: 0 | Q6: 0 | R6: 0 | S6: 0 | T6: 0 | U6: 0 | V6: 0 | W6: 0 | X6: 0 | Y6: 0 | Z6: 0 | AA6: 0 | AB6: 0 | AC6: 0 | AD6: 0 | AE6: 0 | AF6: 0 | AG6: 0 | AH6: 0 | AI6: 0 | AJ6: 0 | AK6: 0 | AL6: 0 | AM6: 0 | AN6: 0 | AO6: 0 | AP6: 0 | AQ6: 0 | AR6: 0 | AS6: 0 | AT6: 0 | AU6: 0 | AV6: 0 | AW6: 0 | AX6: 0 | AY6: 0 | AZ6: 0 | BA6: 0 | BB6: 0 | BC6: 215517.81 | BD6: 0 | BE6: 0 | BF6: 0 | BG6: 690000 | BH6: 0 | BI6: 690000 | BJ6: 0 | BK6: 0 | BL6: 0 | BM6: 0 | BN6: 0 | BO6: 0 | BP6: 0 | BQ6: 0 | BR6: 348000 | BS6: 0 | BT6: 0 | BU6: 0 | BV6: 0 | BW6: 0 | BX6: 0 | BY6: 0 | BZ6: 0 | CA6: 0 | CB6: 0 | CC6: 0 | CD6: 0 | CE6: 0 | CF6: 0 | CG6: 0 | CH6: 0 | CI6: 0 | CJ6: 0 | CK6: 0 | CL6: 0 | CP6: 0 | CT6: 0 | CX6: 0 | CY6: =IFERROR(IF((CM6+CQ6+CU6)/(CL6+CP6+CT6)>0,((CM6+CQ6+CU6)/(CL6+CP6+CT6))*CX6,0),0) -> 0 | DB6: 2001 | DC6: 0.9755 | DD6: 0.9765 | DE6: 0.9775 | DF6: 0.9785 | DG6: 0.9795 | DH6: 0.9805 | DI6: 0.9815 | DJ6: 0.9825 | DK6: 0.9835 | DL6: 0.9845 | DM6: 0.9855 | DN6: 0.9865 | DO6: 0.9875 | DP6: 0.9885 | DQ6: 0.989 | DR6: 0.9895 | DS6: 0.9905 | DT6: 0.9915 | DU6: 0.9925 | DV6: 0.9935 | DW6: 0.9945 | DX6: 0.9955 | DY6: =IF((1-($EC$2-CL$2)/$C6)>0,(1-($EC$2-CL$2)/$C6),0) -> 0.9965 | DZ6: =IF((1-($EC$2-CP$2)/$C6)>0,(1-($EC$2-CP$2)/$C6),0) -> 0.9975 | EA6: =IF((1-($EC$2-CT$2)/$C6)>0,(1-($EC$2-CT$2)/$C6),0) -> 0.9985 | EB6: =IF((1-($EC$2-CX$2)/$C6)>0,(1-($EC$2-CX$2)/$C6),0) -> 0.9995 | EC6: =IF(DC6=0,0,($D6-$E6)*1/$C6)+IF(DD6=0,0,($G6-$H6-$I6)*$G$60*1/$C6)+IF(DE6=0,0,($K6-$L6-$M6)*$K$60*1/$C6)+IF(DF6=0,0,($O6-$P6-$Q6)*$O$60*1/$C6)+IF(DG6=0,0,($S6-$T6-$U6)*$S$60*1/$C6)+IF(DH6=0,0,($W6-$X6-$Y6)*$W$60*1/$C6)+IF(DI6=0,0,($AA6-$AB6-$AC6)*$AA$60*1/$C6)+IF(DJ6=0,0,($AE6-$AF6-$AG6)*$AE$60*1/$C6)+IF(DK6=0,0,($AI6-$AJ6-$AK6)*$AI$60*1/$C6)+IF(DL6=0,0,($AM6-$AN6-$AO6)*$AM$60*1/$C6)+IF(DM6=0,0,($AQ6-$AR6-$AS6)*$AQ$60*1/$C6)+IF(DN6=0,0,($AU6-$V6-$AW6)*$AU$60*1/$C6)+IF(DO6=0,0,($AY6-$AZ6-$BA6)*$AY$60*1/$C6)+IF(DP6=0,0,($BC6-$BD6-$BE6)*$BC$60*1/$C6)+IF(DQ6=0,0,$BG6*1/$C6)+IF(DR6=0,0,($BJ6-$BK6-$BL6)*$BJ$60*1/$C6)+IF(DS6=0,0,($BN6-$BO6-$BP6)*$BN$60*1/$C6)+IF(DT6=0,0,($BR6-$BS6-$BT6)*$BR$60*1/$C6)+IF(DU6=0,0,($BV6-$BW6-$BX6)*$BV$60*1/$C6)+IF(DV6=0,0,($BZ6-$CA6-$CB6)*$BZ$60*1/$C6)+IF(DW6=0,0,($CD6-$CE6-$CF6)*$CD$60*1/$C6)+IF(DX6=0,0,($CH6-$CI6-$CJ6)*$CH$60*1/$C6)+IF(DY6=0,0,($CL6-$CM6-$CN6)*$CL$60*1/$C6)+IF(DZ6=0,0,($CP6-$CQ6-$CR6)*$CP$60*1/$C6)+IF(EA6=0,0,($CT6-$CU6-$CV6)*$CT$60*1/$C6)+IF(EB6=0,0,($CX6-$CY6-$CZ6)*$CX$60*1/$C6) -> 1314.125085 | ED6: 1314125.085 | EE6: 0 | EF6: 1298956.875 | EG6: =(ED6-EE6)*1/C6 -> 1314.125085 | EH6: 0.9745 | EI6: 0.9755 | EJ6: 0.9765 | EK6: 0.9775 | EL6: 0.9785 | EM6: 0.9795 | EN6: 0.9805 | EO6: 0.9815 | EP6: 0.9825 | EQ6: 0.9835 | ER6: 0.9845 | ES6: 0.9855 | ET6: 0.9865 | EU6: 0.9875 | EV6: 0.9875 | EW6: 0.9885 | EX6: 0.9895 | EY6: 0.9905 | EZ6: 0.9915 | FA6: 0.9925 | FB6: 0.9935 | FC6: 0.9945 | FD6: 0.9955 | FE6: 0.9965 | FF6: 0.9975 | FG6: =IF((1-($FH$2-FG$2)/$C6)>0,(1-($FH$2-FG$2)/$C6),0) -> 0.9985 | FH6: =IF(EH6=0,0,($D6-$E6)*1/$C6)+IF(EI6=0,0,($G6-$H6-$I6)*$G$60*1/$C6)+IF(EJ6=0,0,($K6-$L6-$M6)*$K$60*1/$C6)+IF(EK6=0,0,($O6-$P6-$Q6)*$O$60*1/$C6)+IF(EL6=0,0,($S6-$T6-$U6)*$S$60*1/$C6)+IF(EM6=0,0,($W6-$X6-$Y6)*$W$60*1/$C6)+IF(EN6=0,0,($AA6-$AB6-$AC6)*$AA$60*1/$C6)+IF(EO6=0,0,($AE6-$AF6-$AG6)*$AE$60*1/$C6)+IF(EP6=0,0,($AI6-$AJ6-$AK6)*$AI$60*1/$C6)+IF(EQ6=0,0,($AM6-$AN6-$AO6)*$AM$60*1/$C6)+IF(ER6=0,0,($AQ6-$AR6-$AS6)*$AQ$60*1/$C6)+IF(ES6=0,0,($AU6-$V6-$AW6)*$AU$60*1/$C6)+IF(ET6=0,0,($AY6-$AZ6-$BA6)*$AY$60*1/$C6)+IF(EU6=0,0,($BC6-$BD6-$BE6)*$BC$60*1/$C6)+IF(EV6=0,0,$BG6*1/$C6)+IF(EW6=0,0,($BJ6-$BK6-$BL6)*$BJ$60*1/$C6)+IF(EX6=0,0,($BN6-$BO6-$BP6)*$BN$60*1/$C6)+IF(EY6=0,0,($BR6-$BS6-$BT6)*$BR$60*1/$C6)+IF(EZ6=0,0,($BV6-$BW6-$BX6)*$BV$60*1/$C6)+IF(FA6=0,0,($BZ6-$CA6-$CB6)*$BZ$60*1/$C6)+IF(FB6=0,0,($CD6-$CE6-$CF6)*$CD$60*1/$C6)+IF(FC6=0,0,($CH6-$CI6-$CJ6)*$CH$60*1/$C6)+IF(FD6=0,0,($CL6-$CM6-$CN6)*$CL$60*1/$C6)+IF(FE6=0,0,($CP6-$CQ6-$CR6)*$CP$60*1/$C6)+IF(FF6=0,0,($CT6-$CU6-$CV6)*$CT$60*1/$C6)+IF(FG6=0,0,($CX6-$CY6-$CZ6)*$CX$60*1/$C6) -> 1314.125085 | FI6: 0.9735 | FJ6: 0.9745 | FK6: 0.9755 | FL6: 0.9765 | FM6: 0.9775 | FN6: 0.9785 | FO6: 0.9795 | FP6: 0.9805 | FQ6: 0.9815 | FR6: 0.9825 | FS6: 0.9835 | FT6: 0.9845 | FU6: 0.9855 | FV6: 0.9865 | FW6: 0.9865 | FX6: 0.9875 | FY6: 0.9885 | FZ6: 0.9895 | GA6: 0.9905 | GB6: 0.9915 | GC6: 0.9925 | GD6: 0.9935 | GE6: 0.9945 | GF6: 0.9955 | GG6: 0.9965 | GH6: 0.9975 | GI6: =IF(FI6=0,0,($D6-$E6)*1/$C6)+IF(FJ6=0,0,($G6-$H6-$I6)*$G$60*1/$C6)+IF(FK6=0,0,($K6-$L6-$M6)*$K$60*1/$C6)+IF(FL6=0,0,($O6-$P6-$Q6)*$O$60*1/$C6)+IF(FM6=0,0,($S6-$T6-$U6)*$S$60*1/$C6)+IF(FN6=0,0,($W6-$X6-$Y6)*$W$60*1/$C6)+IF(FO6=0,0,($AA6-$AB6-$AC6)*$AA$60*1/$C6)+IF(FP6=0,0,($AE6-$AF6-$AG6)*$AE$60*1/$C6)+IF(FQ6=0,0,($AI6-$AJ6-$AK6)*$AI$60*1/$C6)+IF(FR6=0,0,($AM6-$AN6-$AO6)*$AM$60*1/$C6)+IF(FS6=0,0,($AQ6-$AR6-$AS6)*$AQ$60*1/$C6)+IF(FT6=0,0,($AU6-$V6-$AW6)*$AU$60*1/$C6)+IF(FU6=0,0,($AY6-$AZ6-$BA6)*$AY$60*1/$C6)+IF(FV6=0,0,($BC6-$BD6-$BE6)*$BC$60*1/$C6)+IF(FW6=0,0,$BG6*1/$C6)+IF(FX6=0,0,($BJ6-$BK6-$BL6)*$BJ$60*1/$C6)+IF(FY6=0,0,($BN6-$BO6-$BP6)*$BN$60*1/$C6)+IF(FZ6=0,0,($BR6-$BS6-$BT6)*$BR$60*1/$C6)+IF(GA6=0,0,($BV6-$BW6-$BX6)*$BV$60*1/$C6)+IF(GB6=0,0,($BZ6-$CA6-$CB6)*$BZ$60*1/$C6)+IF(GC6=0,0,($CD6-$CE6-$CF6)*$CD$60*1/$C6)+IF(GD6=0,0,($CH6-$CI6-$CJ6)*$CH$60*1/$C6)+IF(GE6=0,0,($CL6-$CM6-$CN6)*$CL$60*1/$C6)+IF(GF6=0,0,($CP6-$CQ6-$CR6)*$CP$60*1/$C6)+IF(GG6=0,0,($CT6-$CU6-$CV6)*$CT$60*1/$C6)+IF(GH6=0,0,($CX6-$CY6-$CZ6)*$CX$60*1/$C6) -> 1314.125085 | GJ6: 0.9725 | GK6: 0.9735 | GL6: 0.9745 | GM6: 0.9755 | GN6: 0.9765 | GO6: 0.9775 | GP6: 0.9785 | GQ6: 0.9795 | GR6: 0.9805 | GS6: 0.9815 | GT6: 0.9825 | GU6: 0.9835 | GV6: 0.9845 | GW6: 0.9855 | GX6: 0.9855 | GY6: 0.9865 | GZ6: 0.9875 | HA6: 0.9885 | HB6: 0.9895 | HC6: 0.9905 | HD6: 0.9915 | HE6: 0.9925 | HF6: 0.9935 | HG6: 0.9945 | HH6: 0.9955 | HI6: 0.9965 | HJ6: =IF(GJ6=0,0,($D6-$E6)*1/$C6)+IF(GK6=0,0,($G6-$H6-$I6)*$G$60*1/$C6)+IF(GL6=0,0,($K6-$L6-$M6)*$K$60*1/$C6)+IF(GM6=0,0,($O6-$P6-$Q6)*$O$60*1/$C6)+IF(GN6=0,0,($S6-$T6-$U6)*$S$60*1/$C6)+IF(GO6=0,0,($W6-$X6-$Y6)*$W$60*1/$C6)+IF(GP6=0,0,($AA6-$AB6-$AC6)*$AA$60*1/$C6)+IF(GQ6=0,0,($AE6-$AF6-$AG6)*$AE$60*1/$C6)+IF(GR6=0,0,($AI6-$AJ6-$AK6)*$AI$60*1/$C6)+IF(GS6=0,0,($AM6-$AN6-$AO6)*$AM$60*1/$C6)+IF(GT6=0,0,($AQ6-$AR6-$AS6)*$AQ$60*1/$C6)+IF(GU6=0,0,($AU6-$V6-$AW6)*$AU$60*1/$C6)+IF(GV6=0,0,($AY6-$AZ6-$BA6)*$AY$60*1/$C6)+IF(GW6=0,0,($BC6-$BD6-$BE6)*$BC$60*1/$C6)+IF(GX6=0,0,$BG6*1/$C6)+IF(GY6=0,0,($BJ6-$BK6-$BL6)*$BJ$60*1/$C6)+IF(GZ6=0,0,($BN6-$BO6-$BP6)*$BN$60*1/$C6)+IF(HA6=0,0,($BR6-$BS6-$BT6)*$BR$60*1/$C6)+IF(HB6=0,0,($BV6-$BW6-$BX6)*$BV$60*1/$C6)+IF(HC6=0,0,($BZ6-$CA6-$CB6)*$BZ$60*1/$C6)+IF(HD6=0,0,($CD6-$CE6-$CF6)*$CD$60*1/$C6)+IF(HE6=0,0,($CH6-$CI6-$CJ6)*$CH$60*1/$C6)+IF(HF6=0,0,($CL6-$CM6-$CN6)*$CL$60*1/$C6)+IF(HG6=0,0,($CP6-$CQ6-$CR6)*$CP$60*1/$C6)+IF(HH6=0,0,($CT6-$CU6-$CV6)*$CT$60*1/$C6)+IF(HI6=0,0,($CX6-$CY6-$CZ6)*$CX$60*1/$C6) -> 1314.125085 | HK6: 0.9715 | HL6: 0.9725 | HM6: 0.9735 | HN6: 0.9745 | HO6: 0.9755 | HP6: 0.9765 | HQ6: 0.9775 | HR6: 0.9785 | HS6: 0.9795 | HT6: 0.9805 | HU6: 0.9815 | HV6: 0.9825 | HW6: 0.9835 | HX6: 0.9845 | HY6: 0.9845 | HZ6: 0.9855 | IA6: 0.9865 | IB6: 0.9875 | IC6: 0.9885 | ID6: 0.9895 | IE6: 0.9905 | IF6: 0.9915 | IG6: 0.9925 | IH6: 0.9935 | II6: 0.9945 | IJ6: 0.9955 | IK6: =IF(HK6=0,0,($D6-$E6)*1/$C6)+IF(HL6=0,0,($G6-$H6-$I6)*$G$60*1/$C6)+IF(HM6=0,0,($K6-$L6-$M6)*$K$60*1/$C6)+IF(HN6=0,0,($O6-$P6-$Q6)*$O$60*1/$C6)+IF(HO6=0,0,($S6-$T6-$U6)*$S$60*1/$C6)+IF(HP6=0,0,($W6-$X6-$Y6)*$W$60*1/$C6)+IF(HQ6=0,0,($AA6-$AB6-$AC6)*$AA$60*1/$C6)+IF(HR6=0,0,($AE6-$AF6-$AG6)*$AE$60*1/$C6)+IF(HS6=0,0,($AI6-$AJ6-$AK6)*$AI$60*1/$C6)+IF(HT6=0,0,($AM6-$AN6-$AO6)*$AM$60*1/$C6)+IF(HU6=0,0,($AQ6-$AR6-$AS6)*$AQ$60*1/$C6)+IF(HV6=0,0,($AU6-$V6-$AW6)*$AU$60*1/$C6)+IF(HW6=0,0,($AY6-$AZ6-$BA6)*$AY$60*1/$C6)+IF(HX6=0,0,($BC6-$BD6-$BE6)*$BC$60*1/$C6)+IF(HY6=0,0,$BG6*1/$C6)+IF(HZ6=0,0,($BJ6-$BK6-$BL6)*$BJ$60*1/$C6)+IF(IA6=0,0,($BN6-$BO6-$BP6)*$BN$60*1/$C6)+IF(IB6=0,0,($BR6-$BS6-$BT6)*$BR$60*1/$C6)+IF(IC6=0,0,($BV6-$BW6-$BX6)*$BV$60*1/$C6)+IF(ID6=0,0,($BZ6-$CA6-$CB6)*$BZ$60*1/$C6)+IF(IE6=0,0,($CD6-$CE6-$CF6)*$CD$60*1/$C6)+IF(IF6=0,0,($CH6-$CI6-$CJ6)*$CH$60*1/$C6)+IF(IG6=0,0,($CL6-$CM6-$CN6)*$CL$60*1/$C6)+IF(IH6=0,0,($CP6-$CQ6-$CR6)*$CP$60*1/$C6)+IF(II6=0,0,($CT6-$CU6-$CV6)*$CT$60*1/$C6)+IF(IJ6=0,0,($CX6-$CY6-$CZ6)*$CX$60*1/$C6) -> 1314.125085
B7: Edificios y mejoras | C7: 40 | D7: 1140916.486 | E7: 0 | F7: 709242.317 | G7: 4550.21 | H7: 0 | I7: 0 | J7: 0 | K7: 8402.57 | L7: 0 | M7: 0 | N7: 0 | O7: 0 | P7: 0 | Q7: 0 | R7: 0 | S7: 38527 | T7: 0 | U7: 0 | V7: 0 | W7: 34301.56 | X7: 0 | Y7: 0 | Z7: 0 | AA7: 58280.87 | AB7: 0 | AC7: 0 | AD7: 0 | AE7: 2487.96 | AF7: 0 | AG7: 0 | AH7: 0 | AI7: 0 | AJ7: 0 | AK7: 0 | AL7: 0 | AM7: 0 | AN7: 0 | AO7: 0 | AP7: 0 | AQ7: 7039.45 | AR7: 0 | AS7: 0 | AT7: 0 | AU7: 0 | AV7: 0 | AW7: 0 | AX7: 0 | AY7: 0 | AZ7: 0 | BA7: 0 | BB7: 0 | BC7: 8855.2 | BD7: 0 | BE7: 0 | BF7: 0 | BG7: 250000 | BH7: 0 | BI7: 250000 | BJ7: 132639.19 | BK7: 0 | BL7: 0 | BM7: 0 | BN7: 0 | BO7: 0 | BP7: 0 | BQ7: 0 | BR7: 0 | BS7: 0 | BT7: 0 | BU7: 0 | BV7: 0 | BW7: 0 | BX7: 0 | BY7: 0 | BZ7: 35998.43 | CA7: 0 | CB7: 0 | CC7: 0 | CD7: 0 | CE7: 0 | CF7: 0 | CG7: 0 | CH7: 224894.89 | CI7: 0 | CJ7: 0 | CK7: 0 | CL7: 102170.87 | CP7: 24833 | CT7: 130007 | CX7: 64918.77 | CY7: 0 | DB7: 1985.865705 | DC7: 0.009142623184 | DD7: 0.4125 | DE7: 0.4375 | DF7: 0.4625 | DG7: 0.4875 | DH7: 0.5125 | DI7: 0.5375 | DJ7: 0.5625 | DK7: 0.5875 | DL7: 0.6125 | DM7: 0.6375 | DN7: 0.6625 | DO7: 0.6875 | DP7: 0.7125 | DQ7: 0.725 | DR7: 0.7375 | DS7: 0.7625 | DT7: 0.7875 | DU7: 0.8125 | DV7: 0.8375 | DW7: 0.8625 | DX7: 0.8875 | DY7: 0.9125 | DZ7: 0.9375 | EA7: 0.9625 | EB7: 0.9875 | EC7: 53775.0794 | ED7: 2151003.176 | EE7: 0 | EF7: 820500.2958 | EG7: 53775.0794 | EH7: 0 | EI7: 0.3875 | EJ7: 0.4125 | EK7: 0.4375 | EL7: 0.4625 | EM7: 0.4875 | EN7: 0.5125 | EO7: 0.5375 | EP7: 0.5625 | EQ7: 0.5875 | ER7: 0.6125 | ES7: 0.6375 | ET7: 0.6625 | EU7: 0.6875 | EV7: 0.6875 | EW7: 0.7125 | EX7: 0.7375 | EY7: 0.7625 | EZ7: 0.7875 | FA7: 0.8125 | FB7: 0.8375 | FC7: 0.8625 | FD7: 0.8875 | FE7: 0.9125 | FF7: 0.9375 | FG7: 0.9625 | FH7: 25252.16726 | FI7: 0 | FJ7: 0.3625 | FK7: 0.3875 | FL7: 0.4125 | FM7: 0.4375 | FN7: 0.4625 | FO7: 0.4875 | FP7: 0.5125 | FQ7: 0.5375 | FR7: 0.5625 | FS7: 0.5875 | FT7: 0.6125 | FU7: 0.6375 | FV7: 0.6625 | FW7: 0.6625 | FX7: 0.6875 | FY7: 0.7125 | FZ7: 0.7375 | GA7: 0.7625 | GB7: 0.7875 | GC7: 0.8125 | GD7: 0.8375 | GE7: 0.8625 | GF7: 0.8875 | GG7: 0.9125 | GH7: 0.9375 | GI7: 25252.16726 | GJ7: 0 | GK7: 0.3375 | GL7: 0.3625 | GM7: 0.3875 | GN7: 0.4125 | GO7: 0.4375 | GP7: 0.4625 | GQ7: 0.4875 | GR7: 0.5125 | GS7: 0.5375 | GT7: 0.5625 | GU7: 0.5875 | GV7: 0.6125 | GW7: 0.6375 | GX7: 0.6375 | GY7: 0.6625 | GZ7: 0.6875 | HA7: 0.7125 | HB7: 0.7375 | HC7: 0.7625 | HD7: 0.7875 | HE7: 0.8125 | HF7: 0.8375 | HG7: 0.8625 | HH7: 0.8875 | HI7: 0.9125 | HJ7: 25252.16726 | HK7: 0 | HL7: 0.3125 | HM7: 0.3375 | HN7: 0.3625 | HO7: 0.3875 | HP7: 0.4125 | HQ7: 0.4375 | HR7: 0.4625 | HS7: 0.4875 | HT7: 0.5125 | HU7: 0.5375 | HV7: 0.5625 | HW7: 0.5875 | HX7: 0.6125 | HY7: 0.6125 | HZ7: 0.6375 | IA7: 0.6625 | IB7: 0.6875 | IC7: 0.7125 | ID7: 0.7375 | IE7: 0.7625 | IF7: 0.7875 | IG7: 0.8125 | IH7: 0.8375 | II7: 0.8625 | IJ7: 0.8875 | IK7: 25252.16726
B8: Mobiliario y equipo de oficina | C8: 7 | D8: 945208.5289 | E8: 0 | F8: 67667.06938 | G8: 7357.58 | H8: 0 | I8: 0 | J8: 0 | K8: 6582.56 | L8: 0 | M8: 0 | N8: 0 | O8: 282.37 | P8: 0 | Q8: 0 | R8: 0 | S8: 0 | T8: 0 | U8: 0 | V8: 0 | W8: 17809.37 | X8: 0 | Y8: 0 | Z8: 0 | AA8: 5325 | AB8: 0 | AC8: 0 | AD8: 0 | AE8: 5151 | AF8: 0 | AG8: 0 | AH8: 0 | AI8: 7295 | AJ8: 0 | AK8: 0 | AL8: 0 | AM8: 0 | AN8: 0 | AO8: 0 | AP8: 0 | AQ8: 8381.86 | AR8: 0 | AS8: 0 | AT8: 0 | AU8: 0 | AV8: 0 | AW8: 0 | AX8: 0 | AY8: 22739 | AZ8: 0 | BA8: 0 | BB8: 0 | BC8: 0 | BD8: 0 | BE8: 0 | BF8: 0 | BG8: 0 | BH8: 0 | BI8: 0 | BJ8: 0 | BK8: 0 | BL8: 0 | BM8: 0 | BN8: 18775.16 | BO8: 0 | BP8: 0 | BQ8: 0 | BR8: 10893.75 | BS8: 0 | BT8: 0 | BU8: 0 | BV8: 0 | BW8: 0 | BX8: 0 | BY8: 0 | BZ8: 9185.51 | CA8: 0 | CB8: 0 | CC8: 0 | CD8: 0 | CE8: 0 | CF8: 0 | CG8: 0 | CH8: 3954.7 | CI8: 0 | CJ8: 0 | CK8: 0 | CL8: 0 | CP8: 0 | CT8: 0 | CX8: 2550.25 | CY8: 0 | DB8: 1994.501127 | DC8: 0 | DD8: 0 | DE8: 0 | DF8: 0 | DG8: 0 | DH8: 0 | DI8: 0 | DJ8: 0 | DK8: 0 | DL8: 0 | DM8: 0 | DN8: 0 | DO8: 0 | DP8: 0 | DQ8: 0 | DR8: 0 | DS8: 0 | DT8: 0 | DU8: 0 | DV8: 0.07142857143 | DW8: 0.2142857143 | DX8: 0.3571428571 | DY8: 0.5 | DZ8: 0.6428571429 | EA8: 0.7857142857 | EB8: 0.9285714286 | EC8: 2012.260774 | ED8: 1058377.695 | EE8: 1044291.87 | EF8: 3980.220791 | EG8: 2012.260774 | EH8: 0 | EI8: 0 | EJ8: 0 | EK8: 0 | EL8: 0 | EM8: 0 | EN8: 0 | EO8: 0 | EP8: 0 | EQ8: 0 | ER8: 0 | ES8: 0 | ET8: 0 | EU8: 0 | EV8: 0 | EW8: 0 | EX8: 0 | EY8: 0 | EZ8: 0 | FA8: 0 | FB8: 0.07142857143 | FC8: 0.2142857143 | FD8: 0.3571428571 | FE8: 0.5 | FF8: 0.6428571429 | FG8: 0.7857142857 | FH8: 831.2666308 | FI8: 0 | FJ8: 0 | FK8: 0 | FL8: 0 | FM8: 0 | FN8: 0 | FO8: 0 | FP8: 0 | FQ8: 0 | FR8: 0 | FS8: 0 | FT8: 0 | FU8: 0 | FV8: 0 | FW8: 0 | FX8: 0 | FY8: 0 | FZ8: 0 | GA8: 0 | GB8: 0 | GC8: 0 | GD8: 0.07142857143 | GE8: 0.2142857143 | GF8: 0.3571428571 | GG8: 0.5 | GH8: 0.6428571429 | GI8: 831.2666308 | GJ8: 0 | GK8: 0 | GL8: 0 | GM8: 0 | GN8: 0 | GO8: 0 | GP8: 0 | GQ8: 0 | GR8: 0 | GS8: 0 | GT8: 0 | GU8: 0 | GV8: 0 | GW8: 0 | GX8: 0 | GY8: 0 | GZ8: 0 | HA8: 0 | HB8: 0 | HC8: 0 | HD8: 0 | HE8: 0 | HF8: 0.07142857143 | HG8: 0.2142857143 | HH8: 0.3571428571 | HI8: 0.5 | HJ8: 327.8892857 | HK8: 0 | HL8: 0 | HM8: 0 | HN8: 0 | HO8: 0 | HP8: 0 | HQ8: 0 | HR8: 0 | HS8: 0 | HT8: 0 | HU8: 0 | HV8: 0 | HW8: 0 | HX8: 0 | HY8: 0 | HZ8: 0 | IA8: 0 | IB8: 0 | IC8: 0 | ID8: 0 | IE8: 0 | IF8: 0 | IG8: 0 | IH8: 0.07142857143 | II8: 0.2142857143 | IJ8: 0.3571428571 | IK8: 327.8892857
B9: Equipo de computación | C9: 4 | D9: 626223.1565 | E9: 0 | F9: 147123.0751 | G9: 22741.82 | H9: 0 | I9: 0 | J9: 0 | K9: 15401.33 | L9: 0 | M9: 0 | N9: 0 | O9: 44549.32 | P9: 0 | Q9: 0 | R9: 0 | S9: 11154.82 | T9: 0 | U9: 0 | V9: 0 | W9: 87253.48 | X9: 0 | Y9: 0 | Z9: 0 | AA9: 38353.98 | AB9: 0 | AC9: 0 | AD9: 0 | AE9: 0 | AF9: 0 | AG9: 0 | AH9: 0 | AI9: 51587.42 | AJ9: 0 | AK9: 0 | AL9: 0 | AM9: 20997.82 | AN9: 0 | AO9: 0 | AP9: 0 | AQ9: 2369.5 | AR9: 0 | AS9: 0 | AT9: 0 | AU9: 0 | AV9: 0 | AW9: 0 | AX9: 0 | AY9: 4786.7 | AZ9: 0 | BA9: 0 | BB9: 0 | BC9: 931198.84 | BD9: 0 | BE9: 0 | BF9: 0 | BG9: 0 | BH9: 0 | BI9: 0 | BJ9: 0 | BK9: 0 | BL9: 0 | BM9: 0 | BN9: 2422.05 | BO9: 0 | BP9: 0 | BQ9: 0 | BR9: 66017.9 | BS9: 0 | BT9: 0 | BU9: 0 | BV9: 167121.66 | BW9: 0 | BX9: 0 | BY9: 0 | BZ9: 151080.45 | CA9: 0 | CB9: 0 | CC9: 0 | CD9: 132749.3 | CE9: 0 | CF9: 0 | CG9: 0 | CH9: 150207.27 | CI9: 0 | CJ9: 0 | CK9: 0 | CL9: 196952.84 | CP9: 695929 | CT9: 372310 | CX9: 1199453 | CY9: 0 | DB9: 1997.939749 | DC9: 0 | DD9: 0 | DE9: 0 | DF9: 0 | DG9: 0 | DH9: 0 | DI9: 0 | DJ9: 0 | DK9: 0 | DL9: 0 | DM9: 0 | DN9: 0 | DO9: 0 | DP9: 0 | DQ9: 0 | DR9: 0 | DS9: 0 | DT9: 0 | DU9: 0 | DV9: 0 | DW9: 0 | DX9: 0 | DY9: 0.125 | DZ9: 0.375 | EA9: 0.625 | EB9: 0.875 | EC9: 554545.089 | ED9: 4538764.699 | EE9: 2320584.343 | EF9: 1411026.844 | EG9: 554545.089 | EH9: 0 | EI9: 0 | EJ9: 0 | EK9: 0 | EL9: 0 | EM9: 0 | EN9: 0 | EO9: 0 | EP9: 0 | EQ9: 0 | ER9: 0 | ES9: 0 | ET9: 0 | EU9: 0 | EV9: 0 | EW9: 0 | EX9: 0 | EY9: 0 | EZ9: 0 | FA9: 0 | FB9: 0 | FC9: 0 | FD9: 0 | FE9: 0.125 | FF9: 0.375 | FG9: 0.625 | FH9: 510230.7 | FI9: 0 | FJ9: 0 | FK9: 0 | FL9: 0 | FM9: 0 | FN9: 0 | FO9: 0 | FP9: 0 | FQ9: 0 | FR9: 0 | FS9: 0 | FT9: 0 | FU9: 0 | FV9: 0 | FW9: 0 | FX9: 0 | FY9: 0 | FZ9: 0 | GA9: 0 | GB9: 0 | GC9: 0 | GD9: 0 | GE9: 0 | GF9: 0 | GG9: 0.125 | GH9: 0.375 | GI9: 353646.675 | GJ9: 0 | GK9: 0 | GL9: 0 | GM9: 0 | GN9: 0 | GO9: 0 | GP9: 0 | GQ9: 0 | GR9: 0 | GS9: 0 | GT9: 0 | GU9: 0 | GV9: 0 | GW9: 0 | GX9: 0 | GY9: 0 | GZ9: 0 | HA9: 0 | HB9: 0 | HC9: 0 | HD9: 0 | HE9: 0 | HF9: 0 | HG9: 0 | HH9: 0 | HI9: 0.125 | HJ9: 269876.925 | HK9: 0 | HL9: 0 | HM9: 0 | HN9: 0 | HO9: 0 | HP9: 0 | HQ9: 0 | HR9: 0 | HS9: 0 | HT9: 0 | HU9: 0 | HV9: 0 | HW9: 0 | HX9: 0 | HY9: 0 | HZ9: 0 | IA9: 0 | IB9: 0 | IC9: 0 | ID9: 0 | IE9: 0 | IF9: 0 | IG9: 0 | IH9: 0 | II9: 0 | IJ9: 0 | IK9: 0
B10: Equipos de transporte y carga | C10: 5 | D10: 1564545.631 | E10: 0 | F10: 275838.4037 | G10: 0 | H10: 0 | I10: 0 | J10: 0 | K10: 0 | L10: 0 | M10: 0 | N10: 0 | O10: 0 | P10: 0 | Q10: 0 | R10: 0 | S10: 0 | T10: 0 | U10: 0 | V10: 0 | W10: 74281.9 | X10: 0 | Y10: 0 | Z10: 0 | AA10: 0 | AB10: 0 | AC10: 0 | AD10: 0 | AE10: 0 | AF10: 0 | AG10: 0 | AH10: 0 | AI10: 0 | AJ10: 0 | AK10: 0 | AL10: 0 | AM10: 0 | AN10: 0 | AO10: 0 | AP10: 0 | AQ10: 94920 | AR10: 0 | AS10: 0 | AT10: 0 | AU10: 0 | AV10: 0 | AW10: 0 | AX10: 0 | AY10: 16667 | AZ10: 0 | BA10: 0 | BB10: 0 | BC10: 0 | BD10: 0 | BE10: 0 | BF10: 0 | BG10: 0 | BH10: 0 | BI10: 0 | BJ10: 113500 | BK10: 0 | BL10: 0 | BM10: 0 | BN10: 149806.51 | BO10: 0 | BP10: 0 | BQ10: 0 | BR10: 0 | BS10: 0 | BT10: 0 | BU10: 0 | BV10: 0 | BW10: 0 | BX10: 0 | BY10: 0 | BZ10: 47200 | CA10: 0 | CB10: 0 | CC10: 0 | CD10: 108975 | CE10: 0 | CF10: 0 | CG10: 0 | CH10: 0 | CI10: 0 | CJ10: 0 | CK10: 0 | CL10: 0 | CP10: 0 | CT10: 0 | CX10: 0 | CY10: 0 | DB10: 1996.881529 | DC10: 0 | DD10: 0 | DE10: 0 | DF10: 0 | DG10: 0 | DH10: 0 | DI10: 0 | DJ10: 0 | DK10: 0 | DL10: 0 | DM10: 0 | DN10: 0 | DO10: 0 | DP10: 0 | DQ10: 0 | DR10: 0 | DS10: 0 | DT10: 0 | DU10: 0 | DV10: 0 | DW10: 0 | DX10: 0.1 | DY10: 0.3 | DZ10: 0.5 | EA10: 0.7 | EB10: 0.9 | EC10: 0 | ED10: 2106488.179 | EE10: 2106488.179 | EF10: 0 | EG10: 0 | EH10: 0 | EI10: 0 | EJ10: 0 | EK10: 0 | EL10: 0 | EM10: 0 | EN10: 0 | EO10: 0 | EP10: 0 | EQ10: 0 | ER10: 0 | ES10: 0 | ET10: 0 | EU10: 0 | EV10: 0 | EW10: 0 | EX10: 0 | EY10: 0 | EZ10: 0 | FA10: 0 | FB10: 0 | FC10: 0 | FD10: 0.1 | FE10: 0.3 | FF10: 0.5 | FG10: 0.7 | FH10: 0 | FI10: 0 | FJ10: 0 | FK10: 0 | FL10: 0 | FM10: 0 | FN10: 0 | FO10: 0 | FP10: 0 | FQ10: 0 | FR10: 0 | FS10: 0 | FT10: 0 | FU10: 0 | FV10: 0 | FW10: 0 | FX10: 0 | FY10: 0 | FZ10: 0 | GA10: 0 | GB10: 0 | GC10: 0 | GD10: 0 | GE10: 0 | GF10: 0.1 | GG10: 0.3 | GH10: 0.5 | GI10: 0 | GJ10: 0 | GK10: 0 | GL10: 0 | GM10: 0 | GN10: 0 | GO10: 0 | GP10: 0 | GQ10: 0 | GR10: 0 | GS10: 0 | GT10: 0 | GU10: 0 | GV10: 0 | GW10: 0 | GX10: 0 | GY10: 0 | GZ10: 0 | HA10: 0 | HB10: 0 | HC10: 0 | HD10: 0 | HE10: 0 | HF10: 0 | HG10: 0 | HH10: 0.1 | HI10: 0.3 | HJ10: 0 | HK10: 0 | HL10: 0 | HM10: 0 | HN10: 0 | HO10: 0 | HP10: 0 | HQ10: 0 | HR10: 0 | HS10: 0 | HT10: 0 | HU10: 0 | HV10: 0 | HW10: 0 | HX10: 0 | HY10: 0 | HZ10: 0 | IA10: 0 | IB10: 0 | IC10: 0 | ID10: 0 | IE10: 0 | IF10: 0 | IG10: 0 | IH10: 0 | II10: 0 | IJ10: 0.1 | IK10: 0
B11: Equipos de comunicaciones | C11: 8 | D11: 0 | E11: 0 | F11: 0 | G11: 51708.17999 | H11: 0 | I11: 0 | J11: 0 | K11: 4151.08 | L11: 0 | M11: 0 | N11: 0 | O11: 30862.35906 | P11: 0 | Q11: 0 | R11: 0 | S11: 0 | T11: 0 | U11: 0 | V11: 0 | W11: 0 | X11: 0 | Y11: 0 | Z11: 0 | AA11: 0 | AB11: 0 | AC11: 0 | AD11: 0 | AE11: 0 | AF11: 0 | AG11: 0 | AH11: 0 | AI11: 14365.63 | AJ11: 0 | AK11: 0 | AL11: 0 | AM11: 9332.4 | AN11: 0 | AO11: 0 | AP11: 0 | AQ11: 9332 | AR11: 0 | AS11: 0 | AT11: 0 | AU11: 0 | AV11: 0 | AW11: 0 | AX11: 0 | AY11: 0 | AZ11: 0 | BA11: 0 | BB11: 0 | BC11: 41463 | BD11: 0 | BE11: 0 | BF11: 0 | BG11: 0 | BH11: 0 | BI11: 0 | BJ11: 31935.4 | BK11: 0 | BL11: 0 | BM11: 0 | BN11: 0 | BO11: 0 | BP11: 0 | BQ11: 0 | BR11: 0 | BS11: 0 | BT11: 0 | BU11: 0 | BV11: 0 | BW11: 0 | BX11: 0 | BY11: 0 | BZ11: 0 | CA11: 0 | CB11: 0 | CC11: 0 | CD11: 0 | CE11: 0 | CF11: 0 | CG11: 0 | CH11: 0 | CI11: 0 | CJ11: 0 | CK11: 0 | CL11: 0 | CP11: 0 | CT11: 0 | CX11: 0 | CY11: 0 | DB11: 0 | DC11: 0 | DD11: 0 | DE11: 0 | DF11: 0 | DG11: 0 | DH11: 0 | DI11: 0 | DJ11: 0 | DK11: 0 | DL11: 0 | DM11: 0 | DN11: 0 | DO11: 0 | DP11: 0 | DQ11: 0 | DR11: 0 | DS11: 0 | DT11: 0 | DU11: 0.0625 | DV11: 0.1875 | DW11: 0.3125 | DX11: 0.4375 | DY11: 0.5625 | DZ11: 0.6875 | EA11: 0.8125 | EB11: 0.9375 | EC11: 0 | ED11: 160060.3876 | EE11: 160060.3876 | EF11: 0 | EG11: 0 | EH11: 0 | EI11: 0 | EJ11: 0 | EK11: 0 | EL11: 0 | EM11: 0 | EN11: 0 | EO11: 0 | EP11: 0 | EQ11: 0 | ER11: 0 | ES11: 0 | ET11: 0 | EU11: 0 | EV11: 0 | EW11: 0 | EX11: 0 | EY11: 0 | EZ11: 0 | FA11: 0.0625 | FB11: 0.1875 | FC11: 0.3125 | FD11: 0.4375 | FE11: 0.5625 | FF11: 0.6875 | FG11: 0.8125 | FH11: 0 | FI11: 0 | FJ11: 0 | FK11: 0 | FL11: 0 | FM11: 0 | FN11: 0 | FO11: 0 | FP11: 0 | FQ11: 0 | FR11: 0 | FS11: 0 | FT11: 0 | FU11: 0 | FV11: 0 | FW11: 0 | FX11: 0 | FY11: 0 | FZ11: 0 | GA11: 0 | GB11: 0 | GC11: 0.0625 | GD11: 0.1875 | GE11: 0.3125 | GF11: 0.4375 | GG11: 0.5625 | GH11: 0.6875 | GI11: 0 | GJ11: 0 | GK11: 0 | GL11: 0 | GM11: 0 | GN11: 0 | GO11: 0 | GP11: 0 | GQ11: 0 | GR11: 0 | GS11: 0 | GT11: 0 | GU11: 0 | GV11: 0 | GW11: 0 | GX11: 0 | GY11: 0 | GZ11: 0 | HA11: 0 | HB11: 0 | HC11: 0 | HD11: 0 | HE11: 0.0625 | HF11: 0.1875 | HG11: 0.3125 | HH11: 0.4375 | HI11: 0.5625 | HJ11: 0 | HK11: 0 | HL11: 0 | HM11: 0 | HN11: 0 | HO11: 0 | HP11: 0 | HQ11: 0 | HR11: 0 | HS11: 0 | HT11: 0 | HU11: 0 | HV11: 0 | HW11: 0 | HX11: 0 | HY11: 0 | HZ11: 0 | IA11: 0 | IB11: 0 | IC11: 0 | ID11: 0 | IE11: 0 | IF11: 0 | IG11: 0.0625 | IH11: 0.1875 | II11: 0.3125 | IJ11: 0.4375 | IK11: 0
B12: Otros equipos de uso general | C12: 17 | D12: 793536.7408 | E12: 0 | F12: 403574.9418 | G12: 9410.98 | H12: 0 | I12: 0 | J12: 0 | K12: 24691.65 | L12: 0 | M12: 0 | N12: 0 | O12: 28613.58 | P12: 0 | Q12: 0 | R12: 0 | S12: 29705.16 | T12: 0 | U12: 0 | V12: 0 | W12: 29915.59 | X12: 0 | Y12: 0 | Z12: 0 | AA12: 33499.41 | AB12: 0 | AC12: 0 | AD12: 0 | AE12: 27239.34 | AF12: 0 | AG12: 0 | AH12: 0 | AI12: 771.99 | AJ12: 0 | AK12: 0 | AL12: 0 | AM12: 0 | AN12: 0 | AO12: 0 | AP12: 0 | AQ12: 0 | AR12: 0 | AS12: 0 | AT12: 0 | AU12: 0 | AV12: 0 | AW12: 0 | AX12: 0 | AY12: 0 | AZ12: 0 | BA12: 0 | BB12: 0 | BC12: 0 | BD12: 0 | BE12: 0 | BF12: 0 | BG12: 0 | BH12: 0 | BI12: 0 | BJ12: 36106.51 | BK12: 0 | BL12: 0 | BM12: 0 | BN12: 0 | BO12: 0 | BP12: 0 | BQ12: 0 | BR12: 0 | BS12: 0 | BT12: 0 | BU12: 0 | BV12: 0 | BW12: 0 | BX12: 0 | BY12: 0 | BZ12: 0 | CA12: 0 | CB12: 0 | CC12: 0 | CD12: 0 | CE12: 0 | CF12: 0 | CG12: 0 | CH12: 41291.91 | CI12: 0 | CJ12: 0 | CK12: 0 | CL12: 0 | CP12: 27275.83 | CT12: 188440.37 | CX12: 195140.74 | CY12: 0 | DB12: 1992.645818 | DC12: 0 | DD12: 0 | DE12: 0 | DF12: 0 | DG12: 0 | DH12: 0 | DI12: 0 | DJ12: 0 | DK12: 0.02941176471 | DL12: 0.08823529412 | DM12: 0.1470588235 | DN12: 0.2058823529 | DO12: 0.2647058824 | DP12: 0.3235294118 | DQ12: 0 | DR12: 0.3823529412 | DS12: 0.4411764706 | DT12: 0.5 | DU12: 0.5588235294 | DV12: 0.6176470588 | DW12: 0.6764705882 | DX12: 0.7352941176 | DY12: 0.7941176471 | DZ12: 0.8529411765 | EA12: 0.9117647059 | EB12: 0.9705882353 | EC12: 25699.04482 | ED12: 1373857.934 | EE12: 936974.1718 | EF12: 384442.7748 | EG12: 25699.04482 | EH12: 0 | EI12: 0 | EJ12: 0 | EK12: 0 | EL12: 0 | EM12: 0 | EN12: 0 | EO12: 0 | EP12: 0 | EQ12: 0.02941176471 | ER12: 0.08823529412 | ES12: 0.1470588235 | ET12: 0.2058823529 | EU12: 0.2647058824 | EV12: 0.2647058824 | EW12: 0.3235294118 | EX12: 0.3823529412 | EY12: 0.4411764706 | EZ12: 0.5 | FA12: 0.5588235294 | FB12: 0.6176470588 | FC12: 0.6764705882 | FD12: 0.7352941176 | FE12: 0.7941176471 | FF12: 0.8529411765 | FG12: 0.9117647059 | FH12: 25659.98896 | FI12: 0 | FJ12: 0 | FK12: 0 | FL12: 0 | FM12: 0 | FN12: 0 | FO12: 0 | FP12: 0 | FQ12: 0 | FR12: 0 | FS12: 0.02941176471 | FT12: 0.08823529412 | FU12: 0.1470588235 | FV12: 0.2058823529 | FW12: 0.2058823529 | FX12: 0.2647058824 | FY12: 0.3235294118 | FZ12: 0.3823529412 | GA12: 0.4411764706 | GB12: 0.5 | GC12: 0.5588235294 | GD12: 0.6176470588 | GE12: 0.6764705882 | GF12: 0.7352941176 | GG12: 0.7941176471 | GH12: 0.8529411765 | GI12: 25659.98896 | GJ12: 0 | GK12: 0 | GL12: 0 | GM12: 0 | GN12: 0 | GO12: 0 | GP12: 0 | GQ12: 0 | GR12: 0 | GS12: 0 | GT12: 0 | GU12: 0.02941176471 | GV12: 0.08823529412 | GW12: 0.1470588235 | GX12: 0.1470588235 | GY12: 0.2058823529 | GZ12: 0.2647058824 | HA12: 0.3235294118 | HB12: 0.3823529412 | HC12: 0.4411764706 | HD12: 0.5 | HE12: 0.5588235294 | HF12: 0.6176470588 | HG12: 0.6764705882 | HH12: 0.7352941176 | HI12: 0.7941176471 | HJ12: 25659.98896 | HK12: 0 | HL12: 0 | HM12: 0 | HN12: 0 | HO12: 0 | HP12: 0 | HQ12: 0 | HR12: 0 | HS12: 0 | HT12: 0 | HU12: 0 | HV12: 0 | HW12: 0.02941176471 | HX12: 0.08823529412 | HY12: 0.08823529412 | HZ12: 0.1470588235 | IA12: 0.2058823529 | IB12: 0.2647058824 | IC12: 0.3235294118 | ID12: 0.3823529412 | IE12: 0.4411764706 | IF12: 0.5 | IG12: 0.5588235294 | IH12: 0.6176470588 | II12: 0.6764705882 | IJ12: 0.7352941176 | IK12: 25659.98896
B13: TOTAL PROPIEDADES Y PLANTA | D13: =SUM(D5:D12) -> 7366442.985 | E13: =SUM(E5:E12) -> 0 | F13: 3156823.141 | G13: =SUM(G5:G12) -> 266106.529 | H13: =SUM(H5:H12) -> 0 | I13: 0 | J13: 0 | K13: =SUM(K5:K12) -> 107260.34 | L13: =SUM(L5:L12) -> 0 | M13: =SUM(M5:M12) -> 0 | N13: =SUM(N5:N12) -> 0 | O13: =SUM(O5:O12) -> 170017.0411 | P13: =SUM(P5:P12) -> 0 | Q13: =SUM(Q5:Q12) -> 0 | R13: =SUM(R5:R12) -> 0 | S13: =SUM(S5:S12) -> 141552.63 | T13: =SUM(T5:T12) -> 0 | U13: =SUM(U5:U12) -> 0 | V13: =SUM(V5:V12) -> 0 | W13: =SUM(W5:W12) -> 334246.14 | X13: =SUM(X5:X12) -> 0 | Y13: =SUM(Y5:Y12) -> 0 | Z13: =SUM(Z5:Z12) -> 0 | AA13: =SUM(AA5:AA12) -> 167868.13 | AB13: =SUM(AB5:AB12) -> 0 | AC13: =SUM(AC5:AC12) -> 0 | AD13: =SUM(AD5:AD12) -> 0 | AE13: =SUM(AE5:AE12) -> 132511.28 | AF13: =SUM(AF5:AF12) -> 0 | AG13: =SUM(AG5:AG12) -> 0 | AH13: =SUM(AH5:AH12) -> 0 | AI13: =SUM(AI5:AI12) -> 323314.1039 | AJ13: =SUM(AJ5:AJ12) -> 0 | AK13: =SUM(AK5:AK12) -> 0 | AL13: =SUM(AL5:AL12) -> 0 | AM13: =SUM(AM5:AM12) -> 91335.93 | AN13: =SUM(AN5:AN12) -> 0 | AO13: =SUM(AO5:AO12) -> 0 | AP13: =SUM(AP5:AP12) -> 0 | AQ13: =SUM(AQ5:AQ12) -> 243514.73 | AR13: =SUM(AR5:AR12) -> 0 | AS13: =SUM(AS5:AS12) -> 0 | AT13: =SUM(AT5:AT12) -> 0 | AU13: =SUM(AU5:AU12) -> 0 | AV13: =SUM(AV5:AV12) -> 0 | AW13: =SUM(AW5:AW12) -> 0 | AX13: =SUM(AX5:AX12) -> 0 | AY13: =SUM(AY5:AY12) -> 56420.78 | AZ13: =SUM(AZ5:AZ12) -> 0 | BA13: =SUM(BA5:BA12) -> 0 | BB13: =SUM(BB5:BB12) -> 0 | BC13: =SUM(BC5:BC12) -> 1275811.54 | BD13: =SUM(BD5:BD12) -> 0 | BE13: =SUM(BE5:BE12) -> 0 | BF13: =SUM(BF5:BF12) -> 0 | BG13: =SUM(BG5:BG12) -> 940000 | BH13: =SUM(BH5:BH12) -> 0 | BI13: =SUM(BI5:BI12) -> 940000 | BJ13: =SUM(BJ5:BJ12) -> 917175.86 | BK13: =SUM(BK5:BK12) -> 0 | BL13: =SUM(BL5:BL12) -> 0 | BM13: =SUM(BM5:BM12) -> 0 | BN13: =SUM(BN5:BN12) -> 1105575.67 | BO13: =SUM(BO5:BO12) -> 0 | BP13: =SUM(BP5:BP12) -> 0 | BQ13: =SUM(BQ5:BQ12) -> 0 | BR13: =SUM(BR5:BR12) -> 1102455.87 | BS13: =SUM(BS5:BS12) -> 0 | BT13: =SUM(BT5:BT12) -> 0 | BU13: =SUM(BU5:BU12) -> 0 | BV13: =SUM(BV5:BV12) -> 1120073.23 | BW13: =SUM(BW5:BW12) -> 0 | BX13: =SUM(BX5:BX12) -> 0 | BY13: =SUM(BY5:BY12) -> 0 | BZ13: =SUM(BZ5:BZ12) -> 3586563.64 | CA13: =SUM(CA5:CA12) -> 0 | CB13: =SUM(CB5:CB12) -> 0 | CC13: =SUM(CC5:CC12) -> 0 | CD13: =SUM(CD5:CD12) -> 689888.1 | CE13: =SUM(CE5:CE12) -> 0 | CF13: =SUM(CF5:CF12) -> 0 | CG13: =SUM(CG5:CG12) -> 0 | CH13: =SUM(CH5:CH12) -> 881689.73 | CI13: =SUM(CI5:CI12) -> 0 | CJ13: =SUM(CJ5:CJ12) -> 0 | CK13: =SUM(CK5:CK12) -> 0 | CL13: 1253665.81 | CM13: 0 | CN13: 0 | CO13: 0 | CP13: 1071559.54 | CQ13: 0 | CR13: 0 | CS13: 0 | CT13: 903576.37 | CU13: 0 | CV13: 0 | CW13: 0 | CX13: =SUM(CX5:CX12) -> 1586723.76 | CY13: 0 | CZ13: 0 | DA13: 0 | EC13: =SUM(EC5:EC12) -> 1000842.956 | ED13: =SUM(ED5:ED12) -> 23907490.65 | EE13: =SUM(EE5:EE12) -> 16319223.01 | EF13: =SUM(EF5:EF12) -> 4353362.799 | EG13: =SUM(EG5:EG12) -> 1000842.956 | FH13: =SUM(FH5:FH12) -> 712013.6327 | GI13: =SUM(GI5:GI12) -> 482637.2229 | HJ13: =SUM(HJ5:HJ12) -> 350479.8206 | IK13: =SUM(IK5:IK12) -> 52554.17059
B14: Alta tensión AT (230 y 115 Kv) | D14: 0 | E14: 0 | F14: 0 | G14: 0 | H14: 0 | I14: 0 | J14: 0 | K14: 0 | L14: 0 | M14: 0 | N14: 0 | O14: 0 | P14: 0 | Q14: 0 | R14: 0 | S14: 0 | T14: 0 | U14: 0 | V14: 0 | W14: 0 | X14: 0 | Y14: 0 | Z14: 0 | AA14: 0 | AB14: 0 | AC14: 0 | AD14: 0 | AE14: 0 | AF14: 0 | AG14: 0 | AH14: 0 | AI14: 0 | AJ14: 0 | AK14: 0 | AL14: 0 | AM14: 0 | AN14: 0 | AO14: 0 | AP14: 0 | AQ14: 0 | AR14: 0 | AS14: 0 | AT14: 0 | AU14: 0 | AV14: 0 | AW14: 0 | AX14: 0 | AY14: 0 | AZ14: 0 | BA14: 0 | BB14: 0 | BC14: 0 | BD14: 0 | BE14: 0 | BF14: 0 | BG14: 0 | BH14: 0 | BI14: 0 | BJ14: 0 | BK14: 0 | BL14: 0 | BM14: 0 | BN14: 0 | BO14: 0 | BP14: 0 | BQ14: 0 | BR14: 0 | BS14: 0 | BT14: 0 | BU14: 0 | BV14: 0 | BW14: 0 | BX14: 0 | BY14: 0 | BZ14: 0 | CA14: 0 | CB14: 0 | CC14: 0 | CD14: 0 | CE14: 0 | CF14: 0 | CG14: 0 | CH14: 0 | CI14: 0 | CJ14: 0 | CK14: 0
B15: Líneas aéreas AT | C15: 30 | D15: 0 | E15: 0 | F15: 0 | G15: 0 | H15: 0 | I15: 0 | J15: 0 | K15: 0 | L15: 0 | M15: 0 | N15: 0 | O15: 0 | P15: 0 | Q15: 0 | R15: 0 | S15: 0 | T15: 0 | U15: 0 | V15: 0 | W15: 0 | X15: 0 | Y15: 0 | Z15: 0 | AA15: 0 | AB15: 0 | AC15: 0 | AD15: 0 | AE15: 0 | AF15: 0 | AG15: 0 | AH15: 0 | AI15: 0 | AJ15: 0 | AK15: 0 | AL15: 0 | AM15: 0 | AN15: 0 | AO15: 0 | AP15: 0 | AQ15: 0 | AR15: 0 | AS15: 0 | AT15: 0 | AU15: 0 | AV15: 0 | AW15: 0 | AX15: 0 | AY15: 0 | AZ15: 0 | BA15: 0 | BB15: 0 | BC15: 0 | BD15: 0 | BE15: 0 | BF15: 0 | BG15: 0 | BH15: 0 | BI15: 0 | BJ15: 0 | BK15: 0 | BL15: 0 | BM15: 0 | BN15: 2482078.35 | BO15: 0 | BP15: 0 | BQ15: 0 | BR15: 0 | BS15: 0 | BT15: 0 | BU15: 0 | BV15: 0 | BW15: 0 | BX15: 0 | BY15: 0 | BZ15: 0 | CA15: 0 | CB15: 0 | CC15: 0 | CD15: 0 | CE15: 0 | CF15: 0 | CG15: 0 | CH15: 0 | CI15: 0 | CJ15: 0 | CK15: 0 | CL15: 0 | CP15: 0 | CT15: 0 | CX15: 0 | CY15: =IFERROR(IF((CM15+CQ15+CU15)/(CL15+CP15+CT15)>0,((CM15+CQ15+CU15)/(CL15+CP15+CT15))*CX15,0),0) -> 0 | DB15: =IF(D15=0,0,2001-(D15-F15)*C15/D15) -> 0 | DC15: =IF((1-($EC$2-$DB15)/$C15)>0,(1-($EC$2-$DB15)/$C15),0) -> 0 | DD15: =IF((1-($EC$2-G$2)/$C15)>0,(1-($EC$2-G$2)/$C15),0) -> 0.2166666667 | DE15: =IF((1-($EC$2-K$2)/$C15)>0,(1-($EC$2-K$2)/$C15),0) -> 0.25 | DF15: =IF((1-($EC$2-O$2)/$C15)>0,(1-($EC$2-O$2)/$C15),0) -> 0.2833333333 | DG15: =IF((1-($EC$2-S$2)/$C15)>0,(1-($EC$2-S$2)/$C15),0) -> 0.3166666667 | DH15: =IF((1-($EC$2-W$2)/$C15)>0,(1-($EC$2-W$2)/$C15),0) -> 0.35 | DI15: =IF((1-($EC$2-AA$2)/$C15)>0,(1-($EC$2-AA$2)/$C15),0) -> 0.3833333333 | DJ15: =IF((1-($EC$2-AE$2)/$C15)>0,(1-($EC$2-AE$2)/$C15),0) -> 0.4166666667 | DK15: =IF((1-($EC$2-AI$2)/$C15)>0,(1-($EC$2-AI$2)/$C15),0) -> 0.45 | DL15: =IF((1-($EC$2-AM$2)/$C15)>0,(1-($EC$2-AM$2)/$C15),0) -> 0.4833333333 | DM15: =IF((1-($EC$2-AQ$2)/$C15)>0,(1-($EC$2-AQ$2)/$C15),0) -> 0.5166666667 | DN15: =IF((1-($EC$2-AU$2)/$C15)>0,(1-($EC$2-AU$2)/$C15),0) -> 0.55 | DO15: =IF((1-($EC$2-AY$2)/$C15)>0,(1-($EC$2-AY$2)/$C15),0) -> 0.5833333333 | DP15: =IF((1-($EC$2-BC$2)/$C15)>0,(1-($EC$2-BC$2)/$C15),0) -> 0.6166666667 | DQ15: =IF(BG15=0,0,1-($EC$2-(2014.5-(BG15-BI15)*C15/BG15))/C15) -> 0 | DR15: =IF((1-($EC$2-BJ$2)/$C15)>0,(1-($EC$2-BJ$2)/$C15),0) -> 0.65 | DS15: =IF((1-($EC$2-BN$2)/$C15)>0,(1-($EC$2-BN$2)/$C15),0) -> 0.6833333333 | DT15: =IF((1-($EC$2-BR$2)/$C15)>0,(1-($EC$2-BR$2)/$C15),0) -> 0.7166666667 | DU15: =IF((1-($EC$2-BV$2)/$C15)>0,(1-($EC$2-BV$2)/$C15),0) -> 0.75 | DV15: =IF((1-($EC$2-BZ$2)/$C15)>0,(1-($EC$2-BZ$2)/$C15),0) -> 0.7833333333 | DW15: =IF((1-($EC$2-CD$2)/$C15)>0,(1-($EC$2-CD$2)/$C15),0) -> 0.8166666667 | DX15: =IF((1-($EC$2-CH$2)/$C15)>0,(1-($EC$2-CH$2)/$C15),0) -> 0.85 | DY15: =IF((1-($EC$2-CL$2)/$C15)>0,(1-($EC$2-CL$2)/$C15),0) -> 0.8833333333 | DZ15: =IF((1-($EC$2-CP$2)/$C15)>0,(1-($EC$2-CP$2)/$C15),0) -> 0.9166666667 | EA15: =IF((1-($EC$2-CT$2)/$C15)>0,(1-($EC$2-CT$2)/$C15),0) -> 0.95 | EB15: =IF((1-($EC$2-CX$2)/$C15)>0,(1-($EC$2-CX$2)/$C15),0) -> 0.9833333333 | EC15: =IF(DC15=0,0,($D15-$E15)*1/$C15)+IF(DD15=0,0,($G15-$H15-$I15)*$G$61*1/$C15)+IF(DE15=0,0,($K15-$L15-$M15)*$K$61*1/$C15)+IF(DF15=0,0,($O15-$P15-$Q15)*$O$61*1/$C15)+IF(DG15=0,0,($S15-$T15-$U15)*$S$61*1/$C15)+IF(DH15=0,0,($W15-$X15-$Y15)*$W$61*1/$C15)+IF(DI15=0,0,($AA15-$AB15-$AC15)*$AA$61*1/$C15)+IF(DJ15=0,0,($AE15-$AF15-$AG15)*$AE$61*1/$C15)+IF(DK15=0,0,($AI15-$AJ15-$AK15)*$AI$61*1/$C15)+IF(DL15=0,0,($AM15-$AN15-$AO15)*$AM$61*1/$C15)+IF(DM15=0,0,($AQ15-$AR15-$AS15)*$AQ$61*1/$C15)+IF(DN15=0,0,($AU15-$V15-$AW15)*$AU$61*1/$C15)+IF(DO15=0,0,($AY15-$AZ15-$BA15)*$AY$61*1/$C15)+IF(DP15=0,0,($BC15-$BD15-$BE15)*$BC$61*1/$C15)+IF(DQ15=0,0,$BG15*1/$C15)+IF(DR15=0,0,($BJ15-$BK15-$BL15)*$BJ$61*1/$C15)+IF(DS15=0,0,($BN15-$BO15-$BP15)*$BN$61*1/$C15)+IF(DT15=0,0,($BR15-$BS15-$BT15)*$BR$61*1/$C15)+IF(DU15=0,0,($BV15-$BW15-$BX15)*$BV$61*1/$C15)+IF(DV15=0,0,($BZ15-$CA15-$CB15)*$BZ$61*1/$C15)+IF(DW15=0,0,($CD15-$CE15-$CF15)*$CD$61*1/$C15)+IF(DX15=0,0,($CH15-$CI15-$CJ15)*$CH$61*1/$C15)+IF(DY15=0,0,($CL15-$CM15-$CN15)*$CL$61*1/$C15)+IF(DZ15=0,0,($CP15-$CQ15-$CR15)*$CP$61*1/$C15)+IF(EA15=0,0,($CT15-$CU15-$CV15)*$CT$61*1/$C15)+IF(EB15=0,0,($CX15-$CY15-$CZ15)*$CX$61*1/$C15) -> 72345.59936 | ED15: =D15-E15+(G15-H15-I15)*G$61+(K15-L15-M15)*K$61+(O15-P15-Q15)*O$61+(S15-T15-U15)*S$61+(W15-X15-Y15)*W$61+(AA15-AB15-AC15)*AA$61+(AE15-AF15-AG15)*AE$61+(AI15-AJ15-AK15)*AI$61+(AM15-AN15-AO15)*AM$61+(AQ15-AR15-AS15)*$AQ$61+(AU15-AV15-AW15)*$AU$61+(AY15-AZ15-BA15)*$AY$61+(BC15-BD15-BE15)*$BC$61+BG15+(BJ15-BK15-BL15)*$BJ$61+(BN15-BO15-BP15)*$BN$61+(BR15-BS15-BT15)*$BR$61+(BV15-BW15-BX15)*$BV$61+(BZ15-CA15-CB15)*$BZ$61+(CD15-CE15-CF15)*$CD$61+(CH15-CI15-CJ15)*$CH$61+(CL15-CM15-CN15)*$CL$61+(CP15-CQ15-CR15)*$CP$61+(CT15-CU15-CV15)*$CT$61+(CX15-CY15-CZ15)*$CX$61 -> 2170367.981 | EE15: =IF(DC15=0,D15-E15,0)+IF(DD15=0,(G15-H15-I15)*G$61,0)+IF(DE15=0,(K15-L15-M15)*K$61,0)+IF(DF15=0,(O15-P15-Q15)*O$61,0)+IF(DG15=0,(S15-T15-U15)*S$61,0)+IF(DH15=0,(W15-X15-Y15)*W$61,0)+IF(DI15=0,(AA15-AB15-AC15)*AA$61,0)+IF(DJ15=0,(AE15-AF15-AG15)*AE$61,0)+IF(DK15=0,(AI15-AJ15-AK15)*AI$61,0)+IF(DL15=0,(AM15-AN15-AO15)*AM$61,0)+IF(DM15=0,(AQ15-AR15-AS15)*$AQ$61,0)+IF(DN15=0,(AU15-AV15-AW15)*$AU$61,0)+IF(DO15=0,(AY15-AZ15-BA15)*$AY$61,0)++IF(DP15=0,(BC15-BD15-BE15)*$BC$61,0)+IF(DQ15=0,BG15,0)+IF(DR15=0,(BJ15-BK15-BL15)*$BJ$61,0)+IF(DS15=0,(BN15-BO15-BP15)*$BN$61,0)+IF(DT15=0,(BR15-BS15-BT15)*$BR$61,0)+IF(DU15=0,(BV15-BW15-BX15)*$BV$61,0)+IF(DV15=0,(BZ15-CA15-CB15)*$BZ$61,0)+IF(DW15=0,(CD15-CE15-CF15)*$CD$61,0)+IF(DX15=0,(CH15-CI15-CJ15)*$CH$61,0)+IF(DY15=0,(CL15-CM15-CN15)*$CL$61,0)+IF(DZ15=0,(CP15-CQ15-CR15)*$CP$61,0)+IF(EA15=0,(CT15-CU15-CV15)*$CT$61,0)+IF(EB15=0,(CX15-CY15-CZ15)*$CX$61,0) -> 0 | EF15: =(D15-E15)*DC15+((G15-H15-(I15-J15))*G$61)*DD15+((K15-L15-(M15-N15))*K$61)*DE15+((O15-P15-(Q15-R15))*O$61)*DF15+((S15-T15-(U15-V15))*S$61)*DG15+((W15-X15-(Y15-Z15))*W$61)*DH15+((AA15-AB15-(AC15-AD15))*AA$61)*DI15+((AE15-AF15-(AG15-AH15))*AE$61)*DJ15+((AI15-AJ15-(AK15-AL15))*AI$61)*DK15+((AM15-AN15-(AO15-AP15))*$AM$61)*DL15+((AQ15-AR15-(AS15-AT15))*$AQ$61)*DM15+((AU15-AV15-(AW15-AX15))*$AU$61)*DN15+((AY15-AZ15-(BA15-BB15))*$AY$61)*DO15+((BC15-BD15-(BE15-BF15))*$BC$61)*DP15+((BJ15-BK15-(BL15-BM15))*$BJ$61)*DR15+(BG15-BH15)*DQ15+((BN15-BO15-(BP15-BQ15))*$BN$61)*DS15+((BR15-BS15-(BT15-BU15))*$BR$61)*DT15+((BV15-BW15-(BX15-BY15))*$BV$61)*DU15+((BZ15-CA15-(CB15-CC15))*$BZ$61)*DV15+((CD15-CE15-(CF15-CG15))*$CD$61)*DW15+((CH15-CI15-(CJ15-CK15))*$CH$61)*DX15+((CL15-CM15-(CN15-CO15))*$CL$61)*DY15+((CP15-CQ15-(CR15-CS15))*$CP$61)*DZ15+((CT15-CU15-(CV15-CW15))*$CT$61)*EA15+((CX15-CY15-(CZ15-DA15))*$CX$61)*EB15 -> 1483084.787 | EG15: =(ED15-EE15)*1/C15 -> 72345.59936 | EH15: =IF((1-($FH$2-$DB15)/$C15)>0,(1-($FH$2-$DB15)/$C15),0) -> 0 | EI15: =IF((1-($FH$2-EI$2)/$C15)>0,(1-($FH$2-EI$2)/$C15),0) -> 0.1833333333 | EJ15: 0.2166666667 | EK15: 0.25 | EL15: 0.2833333333 | EM15: 0.3166666667 | EN15: 0.35 | EO15: 0.3833333333 | EP15: 0.4166666667 | EQ15: 0.45 | ER15: 0.4833333333 | ES15: =IF((1-($FH$2-ES$2)/$C15)>0,(1-($FH$2-ES$2)/$C15),0) -> 0.5166666667 | ET15: 0.55 | EU15: 0.5833333333 | EV15: 0.5833333333 | EW15: 0.6166666667 | EX15: 0.65 | EY15: 0.6833333333 | EZ15: 0.7166666667 | FA15: 0.75 | FB15: 0.7833333333 | FC15: 0.8166666667 | FD15: 0.85 | FE15: =IF((1-($FH$2-FE$2)/$C15)>0,(1-($FH$2-FE$2)/$C15),0) -> 0.8833333333 | FF15: 0.9166666667 | FG15: 0.95 | FH15: =IF(EH15=0,0,($D15-$E15)*1/$C15)+IF(EI15=0,0,($G15-$H15-$I15)*$G$61*1/$C15)+IF(EJ15=0,0,($K15-$L15-$M15)*$K$61*1/$C15)+IF(EK15=0,0,($O15-$P15-$Q15)*$O$61*1/$C15)+IF(EL15=0,0,($S15-$T15-$U15)*$S$61*1/$C15)+IF(EM15=0,0,($W15-$X15-$Y15)*$W$61*1/$C15)+IF(EN15=0,0,($AA15-$AB15-$AC15)*$AA$61*1/$C15)+IF(EO15=0,0,($AE15-$AF15-$AG15)*$AE$61*1/$C15)+IF(EP15=0,0,($AI15-$AJ15-$AK15)*$AI$61*1/$C15)+IF(EQ15=0,0,($AM15-$AN15-$AO15)*$AM$61*1/$C15)+IF(ER15=0,0,($AQ15-$AR15-$AS15)*$AQ$61*1/$C15)+IF(ES15=0,0,($AU15-$V15-$AW15)*$AU$61*1/$C15)+IF(ET15=0,0,($AY15-$AZ15-$BA15)*$AY$61*1/$C15)+IF(EU15=0,0,($BC15-$BD15-$BE15)*$BC$61*1/$C15)+IF(EV15=0,0,$BG15*1/$C15)+IF(EW15=0,0,($BJ15-$BK15-$BL15)*$BJ$61*1/$C15)+IF(EX15=0,0,($BN15-$BO15-$BP15)*$BN$61*1/$C15)+IF(EY15=0,0,($BR15-$BS15-$BT15)*$BR$61*1/$C15)+IF(EZ15=0,0,($BV15-$BW15-$BX15)*$BV$61*1/$C15)+IF(FA15=0,0,($BZ15-$CA15-$CB15)*$BZ$61*1/$C15)+IF(FB15=0,0,($CD15-$CE15-$CF15)*$CD$61*1/$C15)+IF(FC15=0,0,($CH15-$CI15-$CJ15)*$CH$61*1/$C15)+IF(FD15=0,0,($CL15-$CM15-$CN15)*$CL$61*1/$C15)+IF(FE15=0,0,($CP15-$CQ15-$CR15)*$CP$61*1/$C15)+IF(FF15=0,0,($CT15-$CU15-$CV15)*$CT$61*1/$C15)+IF(FG15=0,0,($CX15-$CY15-$CZ15)*$CX$61*1/$C15) -> 72345.59936 | FI15: =IF((1-($GI$2-$DB15)/$C15)>0,(1-($GI$2-$DB15)/$C15),0) -> 0 | FJ15: =IF((1-($GI$2-FJ$2)/$C15)>0,(1-($GI$2-FJ$2)/$C15),0) -> 0.15 | FK15: 0.1833333333 | FL15: 0.2166666667 | FM15: 0.25 | FN15: 0.2833333333 | FO15: 0.3166666667 | FP15: 0.35 | FQ15: 0.3833333333 | FR15: 0.4166666667 | FS15: 0.45 | FT15: =IF((1-($GI$2-FT$2)/$C15)>0,(1-($GI$2-FT$2)/$C15),0) -> 0.4833333333 | FU15: 0.5166666667 | FV15: 0.55 | FW15: 0.55 | FX15: 0.5833333333 | FY15: 0.6166666667 | FZ15: 0.65 | GA15: 0.6833333333 | GB15: 0.7166666667 | GC15: 0.75 | GD15: 0.7833333333 | GE15: 0.8166666667 | GF15: =IF((1-($GI$2-GF$2)/$C15)>0,(1-($GI$2-GF$2)/$C15),0) -> 0.85 | GG15: 0.8833333333 | GH15: 0.9166666667 | GI15: =IF(FI15=0,0,($D15-$E15)*1/$C15)+IF(FJ15=0,0,($G15-$H15-$I15)*$G$61*1/$C15)+IF(FK15=0,0,($K15-$L15-$M15)*$K$61*1/$C15)+IF(FL15=0,0,($O15-$P15-$Q15)*$O$61*1/$C15)+IF(FM15=0,0,($S15-$T15-$U15)*$S$61*1/$C15)+IF(FN15=0,0,($W15-$X15-$Y15)*$W$61*1/$C15)+IF(FO15=0,0,($AA15-$AB15-$AC15)*$AA$61*1/$C15)+IF(FP15=0,0,($AE15-$AF15-$AG15)*$AE$61*1/$C15)+IF(FQ15=0,0,($AI15-$AJ15-$AK15)*$AI$61*1/$C15)+IF(FR15=0,0,($AM15-$AN15-$AO15)*$AM$61*1/$C15)+IF(FS15=0,0,($AQ15-$AR15-$AS15)*$AQ$61*1/$C15)+IF(FT15=0,0,($AU15-$V15-$AW15)*$AU$61*1/$C15)+IF(FU15=0,0,($AY15-$AZ15-$BA15)*$AY$61*1/$C15)+IF(FV15=0,0,($BC15-$BD15-$BE15)*$BC$61*1/$C15)+IF(FW15=0,0,$BG15*1/$C15)+IF(FX15=0,0,($BJ15-$BK15-$BL15)*$BJ$61*1/$C15)+IF(FY15=0,0,($BN15-$BO15-$BP15)*$BN$61*1/$C15)+IF(FZ15=0,0,($BR15-$BS15-$BT15)*$BR$61*1/$C15)+IF(GA15=0,0,($BV15-$BW15-$BX15)*$BV$61*1/$C15)+IF(GB15=0,0,($BZ15-$CA15-$CB15)*$BZ$61*1/$C15)+IF(GC15=0,0,($CD15-$CE15-$CF15)*$CD$61*1/$C15)+IF(GD15=0,0,($CH15-$CI15-$CJ15)*$CH$61*1/$C15)+IF(GE15=0,0,($CL15-$CM15-$CN15)*$CL$61*1/$C15)+IF(GF15=0,0,($CP15-$CQ15-$CR15)*$CP$61*1/$C15)+IF(GG15=0,0,($CT15-$CU15-$CV15)*$CT$61*1/$C15)+IF(GH15=0,0,($CX15-$CY15-$CZ15)*$CX$61*1/$C15) -> 72345.59936 | GJ15: =IF((1-($HJ$2-$DB15)/$C15)>0,(1-($HJ$2-$DB15)/$C15),0) -> 0 | GK15: =IF((1-($HJ$2-GK$2)/$C15)>0,(1-($HJ$2-GK$2)/$C15),0) -> 0.1166666667 | GL15: 0.15 | GM15: 0.1833333333 | GN15: 0.2166666667 | GO15: 0.25 | GP15: 0.2833333333 | GQ15: 0.3166666667 | GR15: 0.35 | GS15: 0.3833333333 | GT15: 0.4166666667 | GU15: =IF((1-($HJ$2-GU$2)/$C15)>0,(1-($HJ$2-GU$2)/$C15),0) -> 0.45 | GV15: 0.4833333333 | GW15: 0.5166666667 | GX15: 0.5166666667 | GY15: 0.55 | GZ15: 0.5833333333 | HA15: 0.6166666667 | HB15: 0.65 | HC15: 0.6833333333 | HD15: 0.7166666667 | HE15: 0.75 | HF15: 0.7833333333 | HG15: =IF((1-($HJ$2-HG$2)/$C15)>0,(1-($HJ$2-HG$2)/$C15),0) -> 0.8166666667 | HH15: 0.85 | HI15: 0.8833333333 | HJ15: =IF(GJ15=0,0,($D15-$E15)*1/$C15)+IF(GK15=0,0,($G15-$H15-$I15)*$G$61*1/$C15)+IF(GL15=0,0,($K15-$L15-$M15)*$K$61*1/$C15)+IF(GM15=0,0,($O15-$P15-$Q15)*$O$61*1/$C15)+IF(GN15=0,0,($S15-$T15-$U15)*$S$61*1/$C15)+IF(GO15=0,0,($W15-$X15-$Y15)*$W$61*1/$C15)+IF(GP15=0,0,($AA15-$AB15-$AC15)*$AA$61*1/$C15)+IF(GQ15=0,0,($AE15-$AF15-$AG15)*$AE$61*1/$C15)+IF(GR15=0,0,($AI15-$AJ15-$AK15)*$AI$61*1/$C15)+IF(GS15=0,0,($AM15-$AN15-$AO15)*$AM$61*1/$C15)+IF(GT15=0,0,($AQ15-$AR15-$AS15)*$AQ$61*1/$C15)+IF(GU15=0,0,($AU15-$V15-$AW15)*$AU$61*1/$C15)+IF(GV15=0,0,($AY15-$AZ15-$BA15)*$AY$61*1/$C15)+IF(GW15=0,0,($BC15-$BD15-$BE15)*$BC$61*1/$C15)+IF(GX15=0,0,$BG15*1/$C15)+IF(GY15=0,0,($BJ15-$BK15-$BL15)*$BJ$61*1/$C15)+IF(GZ15=0,0,($BN15-$BO15-$BP15)*$BN$61*1/$C15)+IF(HA15=0,0,($BR15-$BS15-$BT15)*$BR$61*1/$C15)+IF(HB15=0,0,($BV15-$BW15-$BX15)*$BV$61*1/$C15)+IF(HC15=0,0,($BZ15-$CA15-$CB15)*$BZ$61*1/$C15)+IF(HD15=0,0,($CD15-$CE15-$CF15)*$CD$61*1/$C15)+IF(HE15=0,0,($CH15-$CI15-$CJ15)*$CH$61*1/$C15)+IF(HF15=0,0,($CL15-$CM15-$CN15)*$CL$61*1/$C15)+IF(HG15=0,0,($CP15-$CQ15-$CR15)*$CP$61*1/$C15)+IF(HH15=0,0,($CT15-$CU15-$CV15)*$CT$61*1/$C15)+IF(HI15=0,0,($CX15-$CY15-$CZ15)*$CX$61*1/$C15) -> 72345.59936 | HK15: =IF((1-($IK$2-$DB15)/$C15)>0,(1-($IK$2-$DB15)/$C15),0) -> 0 | HL15: =IF((1-($IK$2-HL$2)/$C15)>0,(1-($IK$2-HL$2)/$C15),0) -> 0.08333333333 | HM15: 0.1166666667 | HN15: 0.15 | HO15: 0.1833333333 | HP15: 0.2166666667 | HQ15: 0.25 | HR15: 0.2833333333 | HS15: 0.3166666667 | HT15: 0.35 | HU15: 0.3833333333 | HV15: =IF((1-($IK$2-HV$2)/$C15)>0,(1-($IK$2-HV$2)/$C15),0) -> 0.4166666667 | HW15: 0.45 | HX15: 0.4833333333 | HY15: 0.4833333333 | HZ15: 0.5166666667 | IA15: 0.55 | IB15: 0.5833333333 | IC15: 0.6166666667 | ID15: 0.65 | IE15: 0.6833333333 | IF15: 0.7166666667 | IG15: 0.75 | IH15: =IF((1-($IK$2-IH$2)/$C15)>0,(1-($IK$2-IH$2)/$C15),0) -> 0.7833333333 | II15: 0.8166666667 | IJ15: 0.85 | IK15: =IF(HK15=0,0,($D15-$E15)*1/$C15)+IF(HL15=0,0,($G15-$H15-$I15)*$G$61*1/$C15)+IF(HM15=0,0,($K15-$L15-$M15)*$K$61*1/$C15)+IF(HN15=0,0,($O15-$P15-$Q15)*$O$61*1/$C15)+IF(HO15=0,0,($S15-$T15-$U15)*$S$61*1/$C15)+IF(HP15=0,0,($W15-$X15-$Y15)*$W$61*1/$C15)+IF(HQ15=0,0,($AA15-$AB15-$AC15)*$AA$61*1/$C15)+IF(HR15=0,0,($AE15-$AF15-$AG15)*$AE$61*1/$C15)+IF(HS15=0,0,($AI15-$AJ15-$AK15)*$AI$61*1/$C15)+IF(HT15=0,0,($AM15-$AN15-$AO15)*$AM$61*1/$C15)+IF(HU15=0,0,($AQ15-$AR15-$AS15)*$AQ$61*1/$C15)+IF(HV15=0,0,($AU15-$V15-$AW15)*$AU$61*1/$C15)+IF(HW15=0,0,($AY15-$AZ15-$BA15)*$AY$61*1/$C15)+IF(HX15=0,0,($BC15-$BD15-$BE15)*$BC$61*1/$C15)+IF(HY15=0,0,$BG15*1/$C15)+IF(HZ15=0,0,($BJ15-$BK15-$BL15)*$BJ$61*1/$C15)+IF(IA15=0,0,($BN15-$BO15-$BP15)*$BN$61*1/$C15)+IF(IB15=0,0,($BR15-$BS15-$BT15)*$BR$61*1/$C15)+IF(IC15=0,0,($BV15-$BW15-$BX15)*$BV$61*1/$C15)+IF(ID15=0,0,($BZ15-$CA15-$CB15)*$BZ$61*1/$C15)+IF(IE15=0,0,($CD15-$CE15-$CF15)*$CD$61*1/$C15)+IF(IF15=0,0,($CH15-$CI15-$CJ15)*$CH$61*1/$C15)+IF(IG15=0,0,($CL15-$CM15-$CN15)*$CL$61*1/$C15)+IF(IH15=0,0,($CP15-$CQ15-$CR15)*$CP$61*1/$C15)+IF(II15=0,0,($CT15-$CU15-$CV15)*$CT$61*1/$C15)+IF(IJ15=0,0,($CX15-$CY15-$CZ15)*$CX$61*1/$C15) -> 72345.59936
B16: Líneas subterráneas AT | C16: 30 | D16: 0 | E16: 0 | F16: 0 | G16: 0 | H16: 0 | I16: 0 | J16: 0 | K16: 0 | L16: 0 | M16: 0 | N16: 0 | O16: 0 | P16: 0 | Q16: 0 | R16: 0 | S16: 0 | T16: 0 | U16: 0 | V16: 0 | W16: 0 | X16: 0 | Y16: 0 | Z16: 0 | AA16: 0 | AB16: 0 | AC16: 0 | AD16: 0 | AE16: 0 | AF16: 0 | AG16: 0 | AH16: 0 | AI16: 0 | AJ16: 0 | AK16: 0 | AL16: 0 | AM16: 0 | AN16: 0 | AO16: 0 | AP16: 0 | AQ16: 0 | AR16: 0 | AS16: 0 | AT16: 0 | AU16: 0 | AV16: 0 | AW16: 0 | AX16: 0 | AY16: 0 | AZ16: 0 | BA16: 0 | BB16: 0 | BC16: 0 | BD16: 0 | BE16: 0 | BF16: 0 | BG16: 0 | BH16: 0 | BI16: 0 | BJ16: 0 | BK16: 0 | BL16: 0 | BM16: 0 | BN16: 2388601.21 | BO16: 0 | BP16: 0 | BQ16: 0 | BR16: 0 | BS16: 0 | BT16: 0 | BU16: 0 | BV16: 0 | BW16: 0 | BX16: 0 | BY16: 0 | BZ16: 0 | CA16: 0 | CB16: 0 | CC16: 0 | CD16: 0 | CE16: 0 | CF16: 0 | CG16: 0 | CH16: 0 | CI16: 0 | CJ16: 0 | CK16: 0 | CL16: 0 | CP16: 0 | CT16: 0 | CX16: 0 | CY16: 0 | DB16: =IF(D16=0,0,2001-(D16-F16)*C16/D16) -> 0 | DC16: =IF((1-($EC$2-$DB16)/$C16)>0,(1-($EC$2-$DB16)/$C16),0) -> 0 | DD16: =IF((1-($EC$2-G$2)/$C16)>0,(1-($EC$2-G$2)/$C16),0) -> 0.2166666667 | DE16: =IF((1-($EC$2-K$2)/$C16)>0,(1-($EC$2-K$2)/$C16),0) -> 0.25 | DF16: =IF((1-($EC$2-O$2)/$C16)>0,(1-($EC$2-O$2)/$C16),0) -> 0.2833333333 | DG16: =IF((1-($EC$2-S$2)/$C16)>0,(1-($EC$2-S$2)/$C16),0) -> 0.3166666667 | DH16: =IF((1-($EC$2-W$2)/$C16)>0,(1-($EC$2-W$2)/$C16),0) -> 0.35 | DI16: =IF((1-($EC$2-AA$2)/$C16)>0,(1-($EC$2-AA$2)/$C16),0) -> 0.3833333333 | DJ16: =IF((1-($EC$2-AE$2)/$C16)>0,(1-($EC$2-AE$2)/$C16),0) -> 0.4166666667 | DK16: =IF((1-($EC$2-AI$2)/$C16)>0,(1-($EC$2-AI$2)/$C16),0) -> 0.45 | DL16: =IF((1-($EC$2-AM$2)/$C16)>0,(1-($EC$2-AM$2)/$C16),0) -> 0.4833333333 | DM16: =IF((1-($EC$2-AQ$2)/$C16)>0,(1-($EC$2-AQ$2)/$C16),0) -> 0.5166666667 | DN16: =IF((1-($EC$2-AU$2)/$C16)>0,(1-($EC$2-AU$2)/$C16),0) -> 0.55 | DO16: =IF((1-($EC$2-AY$2)/$C16)>0,(1-($EC$2-AY$2)/$C16),0) -> 0.5833333333 | DP16: =IF((1-($EC$2-BC$2)/$C16)>0,(1-($EC$2-BC$2)/$C16),0) -> 0.6166666667 | DQ16: =IF(BG16=0,0,1-($EC$2-(2014.5-(BG16-BI16)*C16/BG16))/C16) -> 0 | DR16: =IF((1-($EC$2-BJ$2)/$C16)>0,(1-($EC$2-BJ$2)/$C16),0) -> 0.65 | DS16: =IF((1-($EC$2-BN$2)/$C16)>0,(1-($EC$2-BN$2)/$C16),0) -> 0.6833333333 | DT16: =IF((1-($EC$2-BR$2)/$C16)>0,(1-($EC$2-BR$2)/$C16),0) -> 0.7166666667 | DU16: =IF((1-($EC$2-BV$2)/$C16)>0,(1-($EC$2-BV$2)/$C16),0) -> 0.75 | DV16: =IF((1-($EC$2-BZ$2)/$C16)>0,(1-($EC$2-BZ$2)/$C16),0) -> 0.7833333333 | DW16: =IF((1-($EC$2-CD$2)/$C16)>0,(1-($EC$2-CD$2)/$C16),0) -> 0.8166666667 | DX16: =IF((1-($EC$2-CH$2)/$C16)>0,(1-($EC$2-CH$2)/$C16),0) -> 0.85 | DY16: 0.8833333333 | DZ16: 0.9166666667 | EA16: 0.95 | EB16: 0.9833333333 | EC16: =IF(DC16=0,0,($D16-$E16)*1/$C16)+IF(DD16=0,0,($G16-$H16-$I16)*$G$61*1/$C16)+IF(DE16=0,0,($K16-$L16-$M16)*$K$61*1/$C16)+IF(DF16=0,0,($O16-$P16-$Q16)*$O$61*1/$C16)+IF(DG16=0,0,($S16-$T16-$U16)*$S$61*1/$C16)+IF(DH16=0,0,($W16-$X16-$Y16)*$W$61*1/$C16)+IF(DI16=0,0,($AA16-$AB16-$AC16)*$AA$61*1/$C16)+IF(DJ16=0,0,($AE16-$AF16-$AG16)*$AE$61*1/$C16)+IF(DK16=0,0,($AI16-$AJ16-$AK16)*$AI$61*1/$C16)+IF(DL16=0,0,($AM16-$AN16-$AO16)*$AM$61*1/$C16)+IF(DM16=0,0,($AQ16-$AR16-$AS16)*$AQ$61*1/$C16)+IF(DN16=0,0,($AU16-$V16-$AW16)*$AU$61*1/$C16)+IF(DO16=0,0,($AY16-$AZ16-$BA16)*$AY$61*1/$C16)+IF(DP16=0,0,($BC16-$BD16-$BE16)*$BC$61*1/$C16)+IF(DQ16=0,0,$BG16*1/$C16)+IF(DR16=0,0,($BJ16-$BK16-$BL16)*$BJ$61*1/$C16)+IF(DS16=0,0,($BN16-$BO16-$BP16)*$BN$61*1/$C16)+IF(DT16=0,0,($BR16-$BS16-$BT16)*$BR$61*1/$C16)+IF(DU16=0,0,($BV16-$BW16-$BX16)*$BV$61*1/$C16)+IF(DV16=0,0,($BZ16-$CA16-$CB16)*$BZ$61*1/$C16)+IF(DW16=0,0,($CD16-$CE16-$CF16)*$CD$61*1/$C16)+IF(DX16=0,0,($CH16-$CI16-$CJ16)*$CH$61*1/$C16)+IF(DY16=0,0,($CL16-$CM16-$CN16)*$CL$61*1/$C16)+IF(DZ16=0,0,($CP16-$CQ16-$CR16)*$CP$61*1/$C16)+IF(EA16=0,0,($CT16-$CU16-$CV16)*$CT$61*1/$C16)+IF(EB16=0,0,($CX16-$CY16-$CZ16)*$CX$61*1/$C16) -> 69621.00377 | ED16: =D16-E16+(G16-H16-I16)*G$61+(K16-L16-M16)*K$61+(O16-P16-Q16)*O$61+(S16-T16-U16)*S$61+(W16-X16-Y16)*W$61+(AA16-AB16-AC16)*AA$61+(AE16-AF16-AG16)*AE$61+(AI16-AJ16-AK16)*AI$61+(AM16-AN16-AO16)*AM$61+(AQ16-AR16-AS16)*$AQ$61+(AU16-AV16-AW16)*$AU$61+(AY16-AZ16-BA16)*$AY$61+(BC16-BD16-BE16)*$BC$61+BG16+(BJ16-BK16-BL16)*$BJ$61+(BN16-BO16-BP16)*$BN$61+(BR16-BS16-BT16)*$BR$61+(BV16-BW16-BX16)*$BV$61+(BZ16-CA16-CB16)*$BZ$61+(CD16-CE16-CF16)*$CD$61+(CH16-CI16-CJ16)*$CH$61+(CL16-CM16-CN16)*$CL$61+(CP16-CQ16-CR16)*$CP$61+(CT16-CU16-CV16)*$CT$61+(CX16-CY16-CZ16)*$CX$61 -> 2088630.113 | EE16: =IF(DC16=0,D16-E16,0)+IF(DD16=0,(G16-H16-I16)*G$61,0)+IF(DE16=0,(K16-L16-M16)*K$61,0)+IF(DF16=0,(O16-P16-Q16)*O$61,0)+IF(DG16=0,(S16-T16-U16)*S$61,0)+IF(DH16=0,(W16-X16-Y16)*W$61,0)+IF(DI16=0,(AA16-AB16-AC16)*AA$61,0)+IF(DJ16=0,(AE16-AF16-AG16)*AE$61,0)+IF(DK16=0,(AI16-AJ16-AK16)*AI$61,0)+IF(DL16=0,(AM16-AN16-AO16)*AM$61,0)+IF(DM16=0,(AQ16-AR16-AS16)*$AQ$61,0)+IF(DN16=0,(AU16-AV16-AW16)*$AU$61,0)+IF(DO16=0,(AY16-AZ16-BA16)*$AY$61,0)++IF(DP16=0,(BC16-BD16-BE16)*$BC$61,0)+IF(DQ16=0,BG16,0)+IF(DR16=0,(BJ16-BK16-BL16)*$BJ$61,0)+IF(DS16=0,(BN16-BO16-BP16)*$BN$61,0)+IF(DT16=0,(BR16-BS16-BT16)*$BR$61,0)+IF(DU16=0,(BV16-BW16-BX16)*$BV$61,0)+IF(DV16=0,(BZ16-CA16-CB16)*$BZ$61,0)+IF(DW16=0,(CD16-CE16-CF16)*$CD$61,0)+IF(DX16=0,(CH16-CI16-CJ16)*$CH$61,0)+IF(DY16=0,(CL16-CM16-CN16)*$CL$61,0)+IF(DZ16=0,(CP16-CQ16-CR16)*$CP$61,0)+IF(EA16=0,(CT16-CU16-CV16)*$CT$61,0)+IF(EB16=0,(CX16-CY16-CZ16)*$CX$61,0) -> 0 | EF16: =(D16-E16)*DC16+((G16-H16-(I16-J16))*G$61)*DD16+((K16-L16-(M16-N16))*K$61)*DE16+((O16-P16-(Q16-R16))*O$61)*DF16+((S16-T16-(U16-V16))*S$61)*DG16+((W16-X16-(Y16-Z16))*W$61)*DH16+((AA16-AB16-(AC16-AD16))*AA$61)*DI16+((AE16-AF16-(AG16-AH16))*AE$61)*DJ16+((AI16-AJ16-(AK16-AL16))*AI$61)*DK16+((AM16-AN16-(AO16-AP16))*$AM$61)*DL16+((AQ16-AR16-(AS16-AT16))*$AQ$61)*DM16+((AU16-AV16-(AW16-AX16))*$AU$61)*DN16+((AY16-AZ16-(BA16-BB16))*$AY$61)*DO16+((BC16-BD16-(BE16-BF16))*$BC$61)*DP16+((BJ16-BK16-(BL16-BM16))*$BJ$61)*DR16+(BG16-BH16)*DQ16+((BN16-BO16-(BP16-BQ16))*$BN$61)*DS16+((BR16-BS16-(BT16-BU16))*$BR$61)*DT16+((BV16-BW16-(BX16-BY16))*$BV$61)*DU16+((BZ16-CA16-(CB16-CC16))*$BZ$61)*DV16+((CD16-CE16-(CF16-CG16))*$CD$61)*DW16+((CH16-CI16-(CJ16-CK16))*$CH$61)*DX16+((CL16-CM16-(CN16-CO16))*$CL$61)*DY16+((CP16-CQ16-(CR16-CS16))*$CP$61)*DZ16+((CT16-CU16-(CV16-CW16))*$CT$61)*EA16+((CX16-CY16-(CZ16-DA16))*$CX$61)*EB16 -> 1427230.577 | EG16: 69621.00377 | EH16: =IF((1-($FH$2-$DB16)/$C16)>0,(1-($FH$2-$DB16)/$C16),0) -> 0 | EI16: 0.1833333333 | EJ16: 0.2166666667 | EK16: 0.25 | EL16: 0.2833333333 | EM16: 0.3166666667 | EN16: 0.35 | EO16: 0.3833333333 | EP16: 0.4166666667 | EQ16: 0.45 | ER16: 0.4833333333 | ES16: 0.5166666667 | ET16: 0.55 | EU16: 0.5833333333 | EV16: 0.5833333333 | EW16: 0.6166666667 | EX16: 0.65 | EY16: 0.6833333333 | EZ16: 0.7166666667 | FA16: 0.75 | FB16: 0.7833333333 | FC16: 0.8166666667 | FD16: 0.85 | FE16: 0.8833333333 | FF16: 0.9166666667 | FG16: 0.95 | FH16: 69621.00377 | FI16: =IF((1-($GI$2-$DB16)/$C16)>0,(1-($GI$2-$DB16)/$C16),0) -> 0 | FJ16: 0.15 | FK16: 0.1833333333 | FL16: 0.2166666667 | FM16: 0.25 | FN16: 0.2833333333 | FO16: 0.3166666667 | FP16: 0.35 | FQ16: 0.3833333333 | FR16: 0.4166666667 | FS16: 0.45 | FT16: 0.4833333333 | FU16: 0.5166666667 | FV16: 0.55 | FW16: 0.55 | FX16: 0.5833333333 | FY16: 0.6166666667 | FZ16: 0.65 | GA16: 0.6833333333 | GB16: 0.7166666667 | GC16: 0.75 | GD16: 0.7833333333 | GE16: 0.8166666667 | GF16: 0.85 | GG16: 0.8833333333 | GH16: 0.9166666667 | GI16: 69621.00377 | GJ16: =IF((1-($HJ$2-$DB16)/$C16)>0,(1-($HJ$2-$DB16)/$C16),0) -> 0 | GK16: 0.1166666667 | GL16: 0.15 | GM16: 0.1833333333 | GN16: 0.2166666667 | GO16: 0.25 | GP16: 0.2833333333 | GQ16: 0.3166666667 | GR16: 0.35 | GS16: 0.3833333333 | GT16: 0.4166666667 | GU16: 0.45 | GV16: 0.4833333333 | GW16: 0.5166666667 | GX16: 0.5166666667 | GY16: 0.55 | GZ16: 0.5833333333 | HA16: 0.6166666667 | HB16: 0.65 | HC16: 0.6833333333 | HD16: 0.7166666667 | HE16: 0.75 | HF16: 0.7833333333 | HG16: 0.8166666667 | HH16: 0.85 | HI16: 0.8833333333 | HJ16: 69621.00377 | HK16: =IF((1-($IK$2-$DB16)/$C16)>0,(1-($IK$2-$DB16)/$C16),0) -> 0 | HL16: 0.08333333333 | HM16: 0.1166666667 | HN16: 0.15 | HO16: 0.1833333333 | HP16: 0.2166666667 | HQ16: 0.25 | HR16: 0.2833333333 | HS16: 0.3166666667 | HT16: 0.35 | HU16: 0.3833333333 | HV16: 0.4166666667 | HW16: 0.45 | HX16: 0.4833333333 | HY16: 0.4833333333 | HZ16: 0.5166666667 | IA16: 0.55 | IB16: 0.5833333333 | IC16: 0.6166666667 | ID16: 0.65 | IE16: 0.6833333333 | IF16: 0.7166666667 | IG16: 0.75 | IH16: 0.7833333333 | II16: 0.8166666667 | IJ16: 0.85 | IK16: 69621.00377
B17: Subestaciones AT / MT | C17: 30 | D17: 0 | E17: 0 | F17: 0 | G17: 0 | H17: 0 | I17: 0 | J17: 0 | K17: 0 | L17: 0 | M17: 0 | N17: 0 | O17: 0 | P17: 0 | Q17: 0 | R17: 0 | S17: 0 | T17: 0 | U17: 0 | V17: 0 | W17: 0 | X17: 0 | Y17: 0 | Z17: 0 | AA17: 0 | AB17: 0 | AC17: 0 | AD17: 0 | AE17: 0 | AF17: 0 | AG17: 0 | AH17: 0 | AI17: 0 | AJ17: 0 | AK17: 0 | AL17: 0 | AM17: 0 | AN17: 0 | AO17: 0 | AP17: 0 | AQ17: 0 | AR17: 0 | AS17: 0 | AT17: 0 | AU17: 0 | AV17: 0 | AW17: 0 | AX17: 0 | AY17: 0 | AZ17: 0 | BA17: 0 | BB17: 0 | BC17: 882092.27 | BD17: 0 | BE17: 0 | BF17: 0 | BG17: 0 | BH17: 0 | BI17: 0 | BJ17: 0 | BK17: 0 | BL17: 0 | BM17: 0 | BN17: 5584871.63 | BO17: 0 | BP17: 0 | BQ17: 0 | BR17: 1844000 | BS17: 0 | BT17: 0 | BU17: 0 | BV17: 0 | BW17: 0 | BX17: 0 | BY17: 0 | BZ17: 0 | CA17: 0 | CB17: 0 | CC17: 0 | CD17: 0 | CE17: 0 | CF17: 0 | CG17: 0 | CH17: 0 | CI17: 0 | CJ17: 0 | CK17: 0 | CL17: 0 | CP17: 0 | CT17: 0 | CX17: 0 | CY17: 0 | DB17: =IF(D17=0,0,2001-(D17-F17)*C17/D17) -> 0 | DC17: =IF((1-($EC$2-$DB17)/$C17)>0,(1-($EC$2-$DB17)/$C17),0) -> 0 | DD17: =IF((1-($EC$2-G$2)/$C17)>0,(1-($EC$2-G$2)/$C17),0) -> 0.2166666667 | DE17: =IF((1-($EC$2-K$2)/$C17)>0,(1-($EC$2-K$2)/$C17),0) -> 0.25 | DF17: =IF((1-($EC$2-O$2)/$C17)>0,(1-($EC$2-O$2)/$C17),0) -> 0.2833333333 | DG17: =IF((1-($EC$2-S$2)/$C17)>0,(1-($EC$2-S$2)/$C17),0) -> 0.3166666667 | DH17: =IF((1-($EC$2-W$2)/$C17)>0,(1-($EC$2-W$2)/$C17),0) -> 0.35 | DI17: =IF((1-($EC$2-AA$2)/$C17)>0,(1-($EC$2-AA$2)/$C17),0) -> 0.3833333333 | DJ17: =IF((1-($EC$2-AE$2)/$C17)>0,(1-($EC$2-AE$2)/$C17),0) -> 0.4166666667 | DK17: =IF((1-($EC$2-AI$2)/$C17)>0,(1-($EC$2-AI$2)/$C17),0) -> 0.45 | DL17: =IF((1-($EC$2-AM$2)/$C17)>0,(1-($EC$2-AM$2)/$C17),0) -> 0.4833333333 | DM17: =IF((1-($EC$2-AQ$2)/$C17)>0,(1-($EC$2-AQ$2)/$C17),0) -> 0.5166666667 | DN17: =IF((1-($EC$2-AU$2)/$C17)>0,(1-($EC$2-AU$2)/$C17),0) -> 0.55 | DO17: =IF((1-($EC$2-AY$2)/$C17)>0,(1-($EC$2-AY$2)/$C17),0) -> 0.5833333333 | DP17: =IF((1-($EC$2-BC$2)/$C17)>0,(1-($EC$2-BC$2)/$C17),0) -> 0.6166666667 | DQ17: =IF(BG17=0,0,1-($EC$2-(2014.5-(BG17-BI17)*C17/BG17))/C17) -> 0 | DR17: =IF((1-($EC$2-BJ$2)/$C17)>0,(1-($EC$2-BJ$2)/$C17),0) -> 0.65 | DS17: =IF((1-($EC$2-BN$2)/$C17)>0,(1-($EC$2-BN$2)/$C17),0) -> 0.6833333333 | DT17: =IF((1-($EC$2-BR$2)/$C17)>0,(1-($EC$2-BR$2)/$C17),0) -> 0.7166666667 | DU17: =IF((1-($EC$2-BV$2)/$C17)>0,(1-($EC$2-BV$2)/$C17),0) -> 0.75 | DV17: =IF((1-($EC$2-BZ$2)/$C17)>0,(1-($EC$2-BZ$2)/$C17),0) -> 0.7833333333 | DW17: =IF((1-($EC$2-CD$2)/$C17)>0,(1-($EC$2-CD$2)/$C17),0) -> 0.8166666667 | DX17: =IF((1-($EC$2-CH$2)/$C17)>0,(1-($EC$2-CH$2)/$C17),0) -> 0.85 | DY17: 0.8833333333 | DZ17: 0.9166666667 | EA17: 0.95 | EB17: 0.9833333333 | EC17: =IF(DC17=0,0,($D17-$E17)*1/$C17)+IF(DD17=0,0,($G17-$H17-$I17)*$G$61*1/$C17)+IF(DE17=0,0,($K17-$L17-$M17)*$K$61*1/$C17)+IF(DF17=0,0,($O17-$P17-$Q17)*$O$61*1/$C17)+IF(DG17=0,0,($S17-$T17-$U17)*$S$61*1/$C17)+IF(DH17=0,0,($W17-$X17-$Y17)*$W$61*1/$C17)+IF(DI17=0,0,($AA17-$AB17-$AC17)*$AA$61*1/$C17)+IF(DJ17=0,0,($AE17-$AF17-$AG17)*$AE$61*1/$C17)+IF(DK17=0,0,($AI17-$AJ17-$AK17)*$AI$61*1/$C17)+IF(DL17=0,0,($AM17-$AN17-$AO17)*$AM$61*1/$C17)+IF(DM17=0,0,($AQ17-$AR17-$AS17)*$AQ$61*1/$C17)+IF(DN17=0,0,($AU17-$V17-$AW17)*$AU$61*1/$C17)+IF(DO17=0,0,($AY17-$AZ17-$BA17)*$AY$61*1/$C17)+IF(DP17=0,0,($BC17-$BD17-$BE17)*$BC$61*1/$C17)+IF(DQ17=0,0,$BG17*1/$C17)+IF(DR17=0,0,($BJ17-$BK17-$BL17)*$BJ$61*1/$C17)+IF(DS17=0,0,($BN17-$BO17-$BP17)*$BN$61*1/$C17)+IF(DT17=0,0,($BR17-$BS17-$BT17)*$BR$61*1/$C17)+IF(DU17=0,0,($BV17-$BW17-$BX17)*$BV$61*1/$C17)+IF(DV17=0,0,($BZ17-$CA17-$CB17)*$BZ$61*1/$C17)+IF(DW17=0,0,($CD17-$CE17-$CF17)*$CD$61*1/$C17)+IF(DX17=0,0,($CH17-$CI17-$CJ17)*$CH$61*1/$C17)+IF(DY17=0,0,($CL17-$CM17-$CN17)*$CL$61*1/$C17)+IF(DZ17=0,0,($CP17-$CQ17-$CR17)*$CP$61*1/$C17)+IF(EA17=0,0,($CT17-$CU17-$CV17)*$CT$61*1/$C17)+IF(EB17=0,0,($CX17-$CY17-$CZ17)*$CX$61*1/$C17) -> 240980.4796 | ED17: =D17-E17+(G17-H17-I17)*G$61+(K17-L17-M17)*K$61+(O17-P17-Q17)*O$61+(S17-T17-U17)*S$61+(W17-X17-Y17)*W$61+(AA17-AB17-AC17)*AA$61+(AE17-AF17-AG17)*AE$61+(AI17-AJ17-AK17)*AI$61+(AM17-AN17-AO17)*AM$61+(AQ17-AR17-AS17)*$AQ$61+(AU17-AV17-AW17)*$AU$61+(AY17-AZ17-BA17)*$AY$61+(BC17-BD17-BE17)*$BC$61+BG17+(BJ17-BK17-BL17)*$BJ$61+(BN17-BO17-BP17)*$BN$61+(BR17-BS17-BT17)*$BR$61+(BV17-BW17-BX17)*$BV$61+(BZ17-CA17-CB17)*$BZ$61+(CD17-CE17-CF17)*$CD$61+(CH17-CI17-CJ17)*$CH$61+(CL17-CM17-CN17)*$CL$61+(CP17-CQ17-CR17)*$CP$61+(CT17-CU17-CV17)*$CT$61+(CX17-CY17-CZ17)*$CX$61 -> 7229414.387 | EE17: =IF(DC17=0,D17-E17,0)+IF(DD17=0,(G17-H17-I17)*G$61,0)+IF(DE17=0,(K17-L17-M17)*K$61,0)+IF(DF17=0,(O17-P17-Q17)*O$61,0)+IF(DG17=0,(S17-T17-U17)*S$61,0)+IF(DH17=0,(W17-X17-Y17)*W$61,0)+IF(DI17=0,(AA17-AB17-AC17)*AA$61,0)+IF(DJ17=0,(AE17-AF17-AG17)*AE$61,0)+IF(DK17=0,(AI17-AJ17-AK17)*AI$61,0)+IF(DL17=0,(AM17-AN17-AO17)*AM$61,0)+IF(DM17=0,(AQ17-AR17-AS17)*$AQ$61,0)+IF(DN17=0,(AU17-AV17-AW17)*$AU$61,0)+IF(DO17=0,(AY17-AZ17-BA17)*$AY$61,0)++IF(DP17=0,(BC17-BD17-BE17)*$BC$61,0)+IF(DQ17=0,BG17,0)+IF(DR17=0,(BJ17-BK17-BL17)*$BJ$61,0)+IF(DS17=0,(BN17-BO17-BP17)*$BN$61,0)+IF(DT17=0,(BR17-BS17-BT17)*$BR$61,0)+IF(DU17=0,(BV17-BW17-BX17)*$BV$61,0)+IF(DV17=0,(BZ17-CA17-CB17)*$BZ$61,0)+IF(DW17=0,(CD17-CE17-CF17)*$CD$61,0)+IF(DX17=0,(CH17-CI17-CJ17)*$CH$61,0)+IF(DY17=0,(CL17-CM17-CN17)*$CL$61,0)+IF(DZ17=0,(CP17-CQ17-CR17)*$CP$61,0)+IF(EA17=0,(CT17-CU17-CV17)*$CT$61,0)+IF(EB17=0,(CX17-CY17-CZ17)*$CX$61,0) -> 0 | EF17: =(D17-E17)*DC17+((G17-H17-(I17-J17))*G$61)*DD17+((K17-L17-(M17-N17))*K$61)*DE17+((O17-P17-(Q17-R17))*O$61)*DF17+((S17-T17-(U17-V17))*S$61)*DG17+((W17-X17-(Y17-Z17))*W$61)*DH17+((AA17-AB17-(AC17-AD17))*AA$61)*DI17+((AE17-AF17-(AG17-AH17))*AE$61)*DJ17+((AI17-AJ17-(AK17-AL17))*AI$61)*DK17+((AM17-AN17-(AO17-AP17))*$AM$61)*DL17+((AQ17-AR17-(AS17-AT17))*$AQ$61)*DM17+((AU17-AV17-(AW17-AX17))*$AU$61)*DN17+((AY17-AZ17-(BA17-BB17))*$AY$61)*DO17+((BC17-BD17-(BE17-BF17))*$BC$61)*DP17+((BJ17-BK17-(BL17-BM17))*$BJ$61)*DR17+(BG17-BH17)*DQ17+((BN17-BO17-(BP17-BQ17))*$BN$61)*DS17+((BR17-BS17-(BT17-BU17))*$BR$61)*DT17+((BV17-BW17-(BX17-BY17))*$BV$61)*DU17+((BZ17-CA17-(CB17-CC17))*$BZ$61)*DV17+((CD17-CE17-(CF17-CG17))*$CD$61)*DW17+((CH17-CI17-(CJ17-CK17))*$CH$61)*DX17+((CL17-CM17-(CN17-CO17))*$CL$61)*DY17+((CP17-CQ17-(CR17-CS17))*$CP$61)*DZ17+((CT17-CU17-(CV17-CW17))*$CT$61)*EA17+((CX17-CY17-(CZ17-DA17))*$CX$61)*EB17 -> 4945357.436 | EG17: 240980.4796 | EH17: =IF((1-($FH$2-$DB17)/$C17)>0,(1-($FH$2-$DB17)/$C17),0) -> 0 | EI17: 0.1833333333 | EJ17: 0.2166666667 | EK17: 0.25 | EL17: 0.2833333333 | EM17: 0.3166666667 | EN17: 0.35 | EO17: 0.3833333333 | EP17: 0.4166666667 | EQ17: 0.45 | ER17: 0.4833333333 | ES17: 0.5166666667 | ET17: 0.55 | EU17: 0.5833333333 | EV17: 0.5833333333 | EW17: 0.6166666667 | EX17: 0.65 | EY17: 0.6833333333 | EZ17: 0.7166666667 | FA17: 0.75 | FB17: 0.7833333333 | FC17: 0.8166666667 | FD17: 0.85 | FE17: 0.8833333333 | FF17: 0.9166666667 | FG17: 0.95 | FH17: 240980.4796 | FI17: =IF((1-($GI$2-$DB17)/$C17)>0,(1-($GI$2-$DB17)/$C17),0) -> 0 | FJ17: 0.15 | FK17: 0.1833333333 | FL17: 0.2166666667 | FM17: 0.25 | FN17: 0.2833333333 | FO17: 0.3166666667 | FP17: 0.35 | FQ17: 0.3833333333 | FR17: 0.4166666667 | FS17: 0.45 | FT17: 0.4833333333 | FU17: 0.5166666667 | FV17: 0.55 | FW17: 0.55 | FX17: 0.5833333333 | FY17: 0.6166666667 | FZ17: 0.65 | GA17: 0.6833333333 | GB17: 0.7166666667 | GC17: 0.75 | GD17: 0.7833333333 | GE17: 0.8166666667 | GF17: 0.85 | GG17: 0.8833333333 | GH17: 0.9166666667 | GI17: 240980.4796 | GJ17: =IF((1-($HJ$2-$DB17)/$C17)>0,(1-($HJ$2-$DB17)/$C17),0) -> 0 | GK17: 0.1166666667 | GL17: 0.15 | GM17: 0.1833333333 | GN17: 0.2166666667 | GO17: 0.25 | GP17: 0.2833333333 | GQ17: 0.3166666667 | GR17: 0.35 | GS17: 0.3833333333 | GT17: 0.4166666667 | GU17: 0.45 | GV17: 0.4833333333 | GW17: 0.5166666667 | GX17: 0.5166666667 | GY17: 0.55 | GZ17: 0.5833333333 | HA17: 0.6166666667 | HB17: 0.65 | HC17: 0.6833333333 | HD17: 0.7166666667 | HE17: 0.75 | HF17: 0.7833333333 | HG17: 0.8166666667 | HH17: 0.85 | HI17: 0.8833333333 | HJ17: 240980.4796 | HK17: =IF((1-($IK$2-$DB17)/$C17)>0,(1-($IK$2-$DB17)/$C17),0) -> 0 | HL17: 0.08333333333 | HM17: 0.1166666667 | HN17: 0.15 | HO17: 0.1833333333 | HP17: 0.2166666667 | HQ17: 0.25 | HR17: 0.2833333333 | HS17: 0.3166666667 | HT17: 0.35 | HU17: 0.3833333333 | HV17: 0.4166666667 | HW17: 0.45 | HX17: 0.4833333333 | HY17: 0.4833333333 | HZ17: 0.5166666667 | IA17: 0.55 | IB17: 0.5833333333 | IC17: 0.6166666667 | ID17: 0.65 | IE17: 0.6833333333 | IF17: 0.7166666667 | IG17: 0.75 | IH17: 0.7833333333 | II17: 0.8166666667 | IJ17: 0.85 | IK17: 240980.4796
B18: Media tensión MT | D18: 0 | E18: 0 | F18: 0 | G18: 0 | H18: 0 | I18: 0 | J18: 0 | K18: 0 | L18: 0 | M18: 0 | N18: 0 | O18: 0 | P18: 0 | Q18: 0 | R18: 0 | S18: 0 | T18: 0 | U18: 0 | V18: 0 | W18: 0 | X18: 0 | Y18: 0 | Z18: 0 | AA18: 0 | AB18: 0 | AC18: 0 | AD18: 0 | AE18: 0 | AF18: 0 | AG18: 0 | AH18: 0 | AI18: 0 | AJ18: 0 | AK18: 0 | AL18: 0 | AM18: 0 | AN18: 0 | AO18: 0 | AP18: 0 | AQ18: 0 | AR18: 0 | AS18: 0 | AT18: 0 | AU18: 0 | AV18: 0 | AW18: 0 | AX18: 0 | AY18: 0 | AZ18: 0 | BA18: 0 | BB18: 0 | BC18: 0 | BD18: 0 | BE18: 0 | BF18: 0 | BG18: 0 | BH18: 0 | BI18: 0 | BJ18: 0 | BK18: 0 | BL18: 0 | BM18: 0 | BN18: 0 | BO18: 0 | BP18: 0 | BQ18: 0 | BR18: 0 | BS18: 0 | BT18: 0 | BU18: 0 | BV18: 0 | BW18: 0 | BX18: 0 | BY18: 0 | BZ18: 0 | CA18: 0 | CB18: 0 | CC18: 0 | CD18: 0 | CE18: 0 | CF18: 0 | CG18: 0 | CH18: 0 | CI18: 0 | CJ18: 0 | CK18: 0 | CL18: 0 | CP18: 0 | CT18: 0 | CX18: 0 | CY18: 0 | FH18: 0 | GI18: 0 | HJ18: 0 | IK18: 0
B19: Líneas aéreas de 34,5 kV | C19: 30 | D19: 20631115.42 | E19: 0 | F19: 11427451.6 | G19: 275088 | H19: 0 | I19: 0 | J19: 0 | K19: 838585.51 | L19: 252735 | M19: 0 | N19: 0 | O19: 682132.64 | P19: 0 | Q19: 0 | R19: 0 | S19: 853048 | T19: 0 | U19: 0 | V19: 0 | W19: 1150963.24 | X19: 0 | Y19: 0 | Z19: 0 | AA19: 1286599.07 | AB19: 255770.07 | AC19: 0 | AD19: 0 | AE19: 1756704.5 | AF19: 0 | AG19: 0 | AH19: 0 | AI19: 3549323.01 | AJ19: 0 | AK19: 0 | AL19: 0 | AM19: 1341910.89 | AN19: 0 | AO19: 0 | AP19: 0 | AQ19: 1605662.65 | AR19: 0 | AS19: 0 | AT19: 0 | AU19: 974437.2 | AV19: 0 | AW19: 0 | AX19: 0 | AY19: 2945753.83 | AZ19: 0 | BA19: 0 | BB19: 0 | BC19: 1470098.08 | BD19: 0 | BE19: 0 | BF19: 0 | BG19: 2828060.858 | BH19: 2101741.018 | BI19: 1899712.11 | BJ19: 1038342.72 | BK19: 0 | BL19: 0 | BM19: 0 | BN19: 2936315.89 | BO19: 0 | BP19: 0 | BQ19: 0 | BR19: 1953432.8 | BS19: 38757.64 | BT19: 0 | BU19: 0 | BV19: 2287189.82 | BW19: 865477.9172 | BX19: 0 | BY19: 0 | BZ19: 2203740.96 | CA19: 757653.046 | CB19: 0 | CC19: 0 | CD19: 2834231.97 | CE19: 0 | CF19: 0 | CG19: 0 | CH19: 1243715.88 | CI19: 34705.04995 | CJ19: 0 | CK19: 0 | CL19: 3004303.8 | CP19: 7357711.6 | CQ19: 97723.59 | CT19: 7174924.18 | CU19: 869316.76 | CX19: 6262924.64 | CY19: 345356.7715 | DB19: =IF(D19=0,0,2001-(D19-F19)*C19/D19) -> 1987.616821 | DC19: =IF((1-($EC$2-$DB19)/$C19)>0,(1-($EC$2-$DB19)/$C19),0) -> 0 | DD19: =IF((1-($EC$2-G$2)/$C19)>0,(1-($EC$2-G$2)/$C19),0) -> 0.2166666667 | DE19: =IF((1-($EC$2-K$2)/$C19)>0,(1-($EC$2-K$2)/$C19),0) -> 0.25 | DF19: =IF((1-($EC$2-O$2)/$C19)>0,(1-($EC$2-O$2)/$C19),0) -> 0.2833333333 | DG19: =IF((1-($EC$2-S$2)/$C19)>0,(1-($EC$2-S$2)/$C19),0) -> 0.3166666667 | DH19: =IF((1-($EC$2-W$2)/$C19)>0,(1-($EC$2-W$2)/$C19),0) -> 0.35 | DI19: =IF((1-($EC$2-AA$2)/$C19)>0,(1-($EC$2-AA$2)/$C19),0) -> 0.3833333333 | DJ19: =IF((1-($EC$2-AE$2)/$C19)>0,(1-($EC$2-AE$2)/$C19),0) -> 0.4166666667 | DK19: =IF((1-($EC$2-AI$2)/$C19)>0,(1-($EC$2-AI$2)/$C19),0) -> 0.45 | DL19: =IF((1-($EC$2-AM$2)/$C19)>0,(1-($EC$2-AM$2)/$C19),0) -> 0.4833333333 | DM19: =IF((1-($EC$2-AQ$2)/$C19)>0,(1-($EC$2-AQ$2)/$C19),0) -> 0.5166666667 | DN19: =IF((1-($EC$2-AU$2)/$C19)>0,(1-($EC$2-AU$2)/$C19),0) -> 0.55 | DO19: =IF((1-($EC$2-AY$2)/$C19)>0,(1-($EC$2-AY$2)/$C19),0) -> 0.5833333333 | DP19: =IF((1-($EC$2-BC$2)/$C19)>0,(1-($EC$2-BC$2)/$C19),0) -> 0.6166666667 | DQ19: =IF(BG19=0,0,1-($EC$2-(2014.5-(BG19-BI19)*C19/BG19))/C19) -> 0.3050699774 | DR19: =IF((1-($EC$2-BJ$2)/$C19)>0,(1-($EC$2-BJ$2)/$C19),0) -> 0.65 | DS19: =IF((1-($EC$2-BN$2)/$C19)>0,(1-($EC$2-BN$2)/$C19),0) -> 0.6833333333 | DT19: =IF((1-($EC$2-BR$2)/$C19)>0,(1-($EC$2-BR$2)/$C19),0) -> 0.7166666667 | DU19: =IF((1-($EC$2-BV$2)/$C19)>0,(1-($EC$2-BV$2)/$C19),0) -> 0.75 | DV19: =IF((1-($EC$2-BZ$2)/$C19)>0,(1-($EC$2-BZ$2)/$C19),0) -> 0.7833333333 | DW19: =IF((1-($EC$2-CD$2)/$C19)>0,(1-($EC$2-CD$2)/$C19),0) -> 0.8166666667 | DX19: =IF((1-($EC$2-CH$2)/$C19)>0,(1-($EC$2-CH$2)/$C19),0) -> 0.85 | DY19: =IF((1-($EC$2-CL$2)/$C19)>0,(1-($EC$2-CL$2)/$C19),0) -> 0.8833333333 | DZ19: =IF((1-($EC$2-CP$2)/$C19)>0,(1-($EC$2-CP$2)/$C19),0) -> 0.9166666667 | EA19: =IF((1-($EC$2-CT$2)/$C19)>0,(1-($EC$2-CT$2)/$C19),0) -> 0.95 | EB19: =IF((1-($EC$2-CX$2)/$C19)>0,(1-($EC$2-CX$2)/$C19),0) -> 0.9833333333 | EC19: =IF(DC19=0,0,($D19-$E19)*1/$C19)+IF(DD19=0,0,($G19-$H19-$I19)*$G$61*1/$C19)+IF(DE19=0,0,($K19-$L19-$M19)*$K$61*1/$C19)+IF(DF19=0,0,($O19-$P19-$Q19)*$O$61*1/$C19)+IF(DG19=0,0,($S19-$T19-$U19)*$S$61*1/$C19)+IF(DH19=0,0,($W19-$X19-$Y19)*$W$61*1/$C19)+IF(DI19=0,0,($AA19-$AB19-$AC19)*$AA$61*1/$C19)+IF(DJ19=0,0,($AE19-$AF19-$AG19)*$AE$61*1/$C19)+IF(DK19=0,0,($AI19-$AJ19-$AK19)*$AI$61*1/$C19)+IF(DL19=0,0,($AM19-$AN19-$AO19)*$AM$61*1/$C19)+IF(DM19=0,0,($AQ19-$AR19-$AS19)*$AQ$61*1/$C19)+IF(DN19=0,0,($AU19-$V19-$AW19)*$AU$61*1/$C19)+IF(DO19=0,0,($AY19-$AZ19-$BA19)*$AY$61*1/$C19)+IF(DP19=0,0,($BC19-$BD19-$BE19)*$BC$61*1/$C19)+IF(DQ19=0,0,$BG19*1/$C19)+IF(DR19=0,0,($BJ19-$BK19-$BL19)*$BJ$61*1/$C19)+IF(DS19=0,0,($BN19-$BO19-$BP19)*$BN$61*1/$C19)+IF(DT19=0,0,($BR19-$BS19-$BT19)*$BR$61*1/$C19)+IF(DU19=0,0,($BV19-$BW19-$BX19)*$BV$61*1/$C19)+IF(DV19=0,0,($BZ19-$CA19-$CB19)*$BZ$61*1/$C19)+IF(DW19=0,0,($CD19-$CE19-$CF19)*$CD$61*1/$C19)+IF(DX19=0,0,($CH19-$CI19-$CJ19)*$CH$61*1/$C19)+IF(DY19=0,0,($CL19-$CM19-$CN19)*$CL$61*1/$C19)+IF(DZ19=0,0,($CP19-$CQ19-$CR19)*$CP$61*1/$C19)+IF(EA19=0,0,($CT19-$CU19-$CV19)*$CT$61*1/$C19)+IF(EB19=0,0,($CX19-$CY19-$CZ19)*$CX$61*1/$C19) -> 1497534.751 | ED19: =D19-E19+(G19-H19-I19)*G$61+(K19-L19-M19)*K$61+(O19-P19-Q19)*O$61+(S19-T19-U19)*S$61+(W19-X19-Y19)*W$61+(AA19-AB19-AC19)*AA$61+(AE19-AF19-AG19)*AE$61+(AI19-AJ19-AK19)*AI$61+(AM19-AN19-AO19)*AM$61+(AQ19-AR19-AS19)*$AQ$61+(AU19-AV19-AW19)*$AU$61+(AY19-AZ19-BA19)*$AY$61+(BC19-BD19-BE19)*$BC$61+BG19+(BJ19-BK19-BL19)*$BJ$61+(BN19-BO19-BP19)*$BN$61+(BR19-BS19-BT19)*$BR$61+(BV19-BW19-BX19)*$BV$61+(BZ19-CA19-CB19)*$BZ$61+(CD19-CE19-CF19)*$CD$61+(CH19-CI19-CJ19)*$CH$61+(CL19-CM19-CN19)*$CL$61+(CP19-CQ19-CR19)*$CP$61+(CT19-CU19-CV19)*$CT$61+(CX19-CY19-CZ19)*$CX$61 -> 65557157.95 | EE19: =IF(DC19=0,D19-E19,0)+IF(DD19=0,(G19-H19-I19)*G$61,0)+IF(DE19=0,(K19-L19-M19)*K$61,0)+IF(DF19=0,(O19-P19-Q19)*O$61,0)+IF(DG19=0,(S19-T19-U19)*S$61,0)+IF(DH19=0,(W19-X19-Y19)*W$61,0)+IF(DI19=0,(AA19-AB19-AC19)*AA$61,0)+IF(DJ19=0,(AE19-AF19-AG19)*AE$61,0)+IF(DK19=0,(AI19-AJ19-AK19)*AI$61,0)+IF(DL19=0,(AM19-AN19-AO19)*AM$61,0)+IF(DM19=0,(AQ19-AR19-AS19)*$AQ$61,0)+IF(DN19=0,(AU19-AV19-AW19)*$AU$61,0)+IF(DO19=0,(AY19-AZ19-BA19)*$AY$61,0)++IF(DP19=0,(BC19-BD19-BE19)*$BC$61,0)+IF(DQ19=0,BG19,0)+IF(DR19=0,(BJ19-BK19-BL19)*$BJ$61,0)+IF(DS19=0,(BN19-BO19-BP19)*$BN$61,0)+IF(DT19=0,(BR19-BS19-BT19)*$BR$61,0)+IF(DU19=0,(BV19-BW19-BX19)*$BV$61,0)+IF(DV19=0,(BZ19-CA19-CB19)*$BZ$61,0)+IF(DW19=0,(CD19-CE19-CF19)*$CD$61,0)+IF(DX19=0,(CH19-CI19-CJ19)*$CH$61,0)+IF(DY19=0,(CL19-CM19-CN19)*$CL$61,0)+IF(DZ19=0,(CP19-CQ19-CR19)*$CP$61,0)+IF(EA19=0,(CT19-CU19-CV19)*$CT$61,0)+IF(EB19=0,(CX19-CY19-CZ19)*$CX$61,0) -> 20631115.42 | EF19: =(D19-E19)*DC19+((G19-H19-(I19-J19))*G$61)*DD19+((K19-L19-(M19-N19))*K$61)*DE19+((O19-P19-(Q19-R19))*O$61)*DF19+((S19-T19-(U19-V19))*S$61)*DG19+((W19-X19-(Y19-Z19))*W$61)*DH19+((AA19-AB19-(AC19-AD19))*AA$61)*DI19+((AE19-AF19-(AG19-AH19))*AE$61)*DJ19+((AI19-AJ19-(AK19-AL19))*AI$61)*DK19+((AM19-AN19-(AO19-AP19))*$AM$61)*DL19+((AQ19-AR19-(AS19-AT19))*$AQ$61)*DM19+((AU19-AV19-(AW19-AX19))*$AU$61)*DN19+((AY19-AZ19-(BA19-BB19))*$AY$61)*DO19+((BC19-BD19-(BE19-BF19))*$BC$61)*DP19+((BJ19-BK19-(BL19-BM19))*$BJ$61)*DR19+(BG19-BH19)*DQ19+((BN19-BO19-(BP19-BQ19))*$BN$61)*DS19+((BR19-BS19-(BT19-BU19))*$BR$61)*DT19+((BV19-BW19-(BX19-BY19))*$BV$61)*DU19+((BZ19-CA19-(CB19-CC19))*$BZ$61)*DV19+((CD19-CE19-(CF19-CG19))*$CD$61)*DW19+((CH19-CI19-(CJ19-CK19))*$CH$61)*DX19+((CL19-CM19-(CN19-CO19))*$CL$61)*DY19+((CP19-CQ19-(CR19-CS19))*$CP$61)*DZ19+((CT19-CU19-(CV19-CW19))*$CT$61)*EA19+((CX19-CY19-(CZ19-DA19))*$CX$61)*EB19 -> 30681209.57 | EG19: 1497534.751 | EH19: =IF((1-($FH$2-$DB19)/$C19)>0,(1-($FH$2-$DB19)/$C19),0) -> 0 | EI19: =IF((1-($FH$2-EI$2)/$C19)>0,(1-($FH$2-EI$2)/$C19),0) -> 0.1833333333 | EJ19: 0.2166666667 | EK19: 0.25 | EL19: 0.2833333333 | EM19: 0.3166666667 | EN19: 0.35 | EO19: 0.3833333333 | EP19: 0.4166666667 | EQ19: 0.45 | ER19: 0.4833333333 | ES19: =IF((1-($FH$2-ES$2)/$C19)>0,(1-($FH$2-ES$2)/$C19),0) -> 0.5166666667 | ET19: 0.55 | EU19: 0.5833333333 | EV19: 0.5833333333 | EW19: 0.6166666667 | EX19: 0.65 | EY19: 0.6833333333 | EZ19: 0.7166666667 | FA19: 0.75 | FB19: 0.7833333333 | FC19: 0.8166666667 | FD19: 0.85 | FE19: =IF((1-($FH$2-FE$2)/$C19)>0,(1-($FH$2-FE$2)/$C19),0) -> 0.8833333333 | FF19: 0.9166666667 | FG19: 0.95 | FH19: 1497534.751 | FI19: =IF((1-($GI$2-$DB19)/$C19)>0,(1-($GI$2-$DB19)/$C19),0) -> 0 | FJ19: =IF((1-($GI$2-FJ$2)/$C19)>0,(1-($GI$2-FJ$2)/$C19),0) -> 0.15 | FK19: 0.1833333333 | FL19: 0.2166666667 | FM19: 0.25 | FN19: 0.2833333333 | FO19: 0.3166666667 | FP19: 0.35 | FQ19: 0.3833333333 | FR19: 0.4166666667 | FS19: 0.45 | FT19: =IF((1-($GI$2-FT$2)/$C19)>0,(1-($GI$2-FT$2)/$C19),0) -> 0.4833333333 | FU19: 0.5166666667 | FV19: 0.55 | FW19: 0.55 | FX19: 0.5833333333 | FY19: 0.6166666667 | FZ19: 0.65 | GA19: 0.6833333333 | GB19: 0.7166666667 | GC19: 0.75 | GD19: 0.7833333333 | GE19: 0.8166666667 | GF19: =IF((1-($GI$2-GF$2)/$C19)>0,(1-($GI$2-GF$2)/$C19),0) -> 0.85 | GG19: 0.8833333333 | GH19: 0.9166666667 | GI19: 1497534.751 | GJ19: =IF((1-($HJ$2-$DB19)/$C19)>0,(1-($HJ$2-$DB19)/$C19),0) -> 0 | GK19: =IF((1-($HJ$2-GK$2)/$C19)>0,(1-($HJ$2-GK$2)/$C19),0) -> 0.1166666667 | GL19: 0.15 | GM19: 0.1833333333 | GN19: 0.2166666667 | GO19: 0.25 | GP19: 0.2833333333 | GQ19: 0.3166666667 | GR19: 0.35 | GS19: 0.3833333333 | GT19: 0.4166666667 | GU19: =IF((1-($HJ$2-GU$2)/$C19)>0,(1-($HJ$2-GU$2)/$C19),0) -> 0.45 | GV19: 0.4833333333 | GW19: 0.5166666667 | GX19: 0.5166666667 | GY19: 0.55 | GZ19: 0.5833333333 | HA19: 0.6166666667 | HB19: 0.65 | HC19: 0.6833333333 | HD19: 0.7166666667 | HE19: 0.75 | HF19: 0.7833333333 | HG19: =IF((1-($HJ$2-HG$2)/$C19)>0,(1-($HJ$2-HG$2)/$C19),0) -> 0.8166666667 | HH19: 0.85 | HI19: 0.8833333333 | HJ19: 1497534.751 | HK19: =IF((1-($IK$2-$DB19)/$C19)>0,(1-($IK$2-$DB19)/$C19),0) -> 0 | HL19: =IF((1-($IK$2-HL$2)/$C19)>0,(1-($IK$2-HL$2)/$C19),0) -> 0.08333333333 | HM19: 0.1166666667 | HN19: 0.15 | HO19: 0.1833333333 | HP19: 0.2166666667 | HQ19: 0.25 | HR19: 0.2833333333 | HS19: 0.3166666667 | HT19: 0.35 | HU19: 0.3833333333 | HV19: =IF((1-($IK$2-HV$2)/$C19)>0,(1-($IK$2-HV$2)/$C19),0) -> 0.4166666667 | HW19: 0.45 | HX19: 0.4833333333 | HY19: 0.4833333333 | HZ19: 0.5166666667 | IA19: 0.55 | IB19: 0.5833333333 | IC19: 0.6166666667 | ID19: 0.65 | IE19: 0.6833333333 | IF19: 0.7166666667 | IG19: 0.75 | IH19: =IF((1-($IK$2-IH$2)/$C19)>0,(1-($IK$2-IH$2)/$C19),0) -> 0.7833333333 | II19: 0.8166666667 | IJ19: 0.85 | IK19: 1497534.751
A20: SISTEMA DE | B20: Líneas aéreas de 13,8 kV | C20: 30 | D20: 20319163.89 | E20: 0 | F20: 11254485.31 | G20: 81953.0618 | H20: 0 | I20: 0 | J20: 0 | K20: 480527.24 | L20: 0 | M20: 0 | N20: 0 | O20: 359813.26 | P20: 0 | Q20: 0 | R20: 0 | S20: 329504 | T20: 0 | U20: 0 | V20: 0 | W20: 210021.38 | X20: 0 | Y20: 0 | Z20: 0 | AA20: 443891 | AB20: 0 | AC20: 0 | AD20: 0 | AE20: 422858.36 | AF20: 0 | AG20: 0 | AH20: 0 | AI20: 219533.05 | AJ20: 0 | AK20: 0 | AL20: 0 | AM20: 325380.68 | AN20: 0 | AO20: 0 | AP20: 0 | AQ20: 361263.11 | AR20: 0 | AS20: 0 | AT20: 0 | AU20: 277474.01 | AV20: 0 | AW20: 0 | AX20: 0 | AY20: 696693.83 | AZ20: 0 | BA20: 0 | BB20: 0 | BC20: 871356.46 | BD20: 0 | BE20: 0 | BF20: 0 | BG20: 0 | BH20: 0 | BI20: 0 | BJ20: 1635346.59 | BK20: 0 | BL20: 0 | BM20: 0 | BN20: 1677625.98 | BO20: 0 | BP20: 0 | BQ20: 0 | BR20: 1230182.02 | BS20: 11995.82 | BT20: 0 | BU20: 0 | BV20: 1817111.38 | BW20: 550888.3149 | BX20: 0 | BY20: 0 | BZ20: 1820535.21 | CA20: 796621.1311 | CB20: 0 | CC20: 0 | CD20: 1856379.56 | CE20: 356732.3681 | CF20: 0 | CG20: 0 | CH20: 1453339.28 | CI20: 27821.31184 | CJ20: 0 | CK20: 0 | CL20: 1233452.23 | CP20: 1726610.34 | CT20: 2337956.87 | CU20: 4989.49 | CX20: 1672446.15 | CY20: 1575.051476 | DB20: 1987.616558 | DC20: 0 | DD20: 0.2166666667 | DE20: 0.25 | DF20: 0.2833333333 | DG20: 0.3166666667 | DH20: 0.35 | DI20: 0.3833333333 | DJ20: 0.4166666667 | DK20: 0.45 | DL20: 0.4833333333 | DM20: 0.5166666667 | DN20: 0.55 | DO20: 0.5833333333 | DP20: 0.6166666667 | DQ20: 0 | DR20: 0.65 | DS20: 0.6833333333 | DT20: 0.7166666667 | DU20: 0.75 | DV20: 0.7833333333 | DW20: 0.8166666667 | DX20: 0.85 | DY20: 0.8833333333 | DZ20: 0.9166666667 | EA20: 0.95 | EB20: 0.9833333333 | EC20: 585086.9689 | ED20: 37871772.96 | EE20: 20319163.89 | EF20: 12844592.31 | EG20: 585086.9689 | EH20: 0 | EI20: 0.1833333333 | EJ20: 0.2166666667 | EK20: 0.25 | EL20: 0.2833333333 | EM20: 0.3166666667 | EN20: 0.35 | EO20: 0.3833333333 | EP20: 0.4166666667 | EQ20: 0.45 | ER20: 0.4833333333 | ES20: 0.5166666667 | ET20: 0.55 | EU20: 0.5833333333 | EV20: 0.5833333333 | EW20: 0.6166666667 | EX20: 0.65 | EY20: 0.6833333333 | EZ20: 0.7166666667 | FA20: 0.75 | FB20: 0.7833333333 | FC20: 0.8166666667 | FD20: 0.85 | FE20: 0.8833333333 | FF20: 0.9166666667 | FG20: 0.95 | FH20: 585086.9689 | FI20: 0 | FJ20: 0.15 | FK20: 0.1833333333 | FL20: 0.2166666667 | FM20: 0.25 | FN20: 0.2833333333 | FO20: 0.3166666667 | FP20: 0.35 | FQ20: 0.3833333333 | FR20: 0.4166666667 | FS20: 0.45 | FT20: 0.4833333333 | FU20: 0.5166666667 | FV20: 0.55 | FW20: 0.55 | FX20: 0.5833333333 | FY20: 0.6166666667 | FZ20: 0.65 | GA20: 0.6833333333 | GB20: 0.7166666667 | GC20: 0.75 | GD20: 0.7833333333 | GE20: 0.8166666667 | GF20: 0.85 | GG20: 0.8833333333 | GH20: 0.9166666667 | GI20: 585086.9689 | GJ20: 0 | GK20: 0.1166666667 | GL20: 0.15 | GM20: 0.1833333333 | GN20: 0.2166666667 | GO20: 0.25 | GP20: 0.2833333333 | GQ20: 0.3166666667 | GR20: 0.35 | GS20: 0.3833333333 | GT20: 0.4166666667 | GU20: 0.45 | GV20: 0.4833333333 | GW20: 0.5166666667 | GX20: 0.5166666667 | GY20: 0.55 | GZ20: 0.5833333333 | HA20: 0.6166666667 | HB20: 0.65 | HC20: 0.6833333333 | HD20: 0.7166666667 | HE20: 0.75 | HF20: 0.7833333333 | HG20: 0.8166666667 | HH20: 0.85 | HI20: 0.8833333333 | HJ20: 585086.9689 | HK20: 0 | HL20: 0.08333333333 | HM20: 0.1166666667 | HN20: 0.15 | HO20: 0.1833333333 | HP20: 0.2166666667 | HQ20: 0.25 | HR20: 0.2833333333 | HS20: 0.3166666667 | HT20: 0.35 | HU20: 0.3833333333 | HV20: 0.4166666667 | HW20: 0.45 | HX20: 0.4833333333 | HY20: 0.4833333333 | HZ20: 0.5166666667 | IA20: 0.55 | IB20: 0.5833333333 | IC20: 0.6166666667 | ID20: 0.65 | IE20: 0.6833333333 | IF20: 0.7166666667 | IG20: 0.75 | IH20: 0.7833333333 | II20: 0.8166666667 | IJ20: 0.85 | IK20: 585086.9689
A21: DISTRIBUCION | B21: Líneas aéreas de otras tensiones | C21: 30 | D21: 149580.827 | E21: 0 | F21: 82851.68652 | G21: 0 | H21: 0 | I21: 0 | J21: 0 | K21: 0 | L21: 0 | M21: 0 | N21: 0 | O21: 0 | P21: 0 | Q21: 0 | R21: 0 | S21: 0 | T21: 0 | U21: 0 | V21: 0 | W21: 0 | X21: 0 | Y21: 0 | Z21: 0 | AA21: 133700 | AB21: 133700 | AC21: 0 | AD21: 0 | AE21: 0 | AF21: 0 | AG21: 0 | AH21: 0 | AI21: 0 | AJ21: 0 | AK21: 0 | AL21: 0 | AM21: 0 | AN21: 0 | AO21: 0 | AP21: 0 | AQ21: 0 | AR21: 0 | AS21: 0 | AT21: 0 | AU21: 0 | AV21: 0 | AW21: 0 | AX21: 0 | AY21: 0 | AZ21: 0 | BA21: 0 | BB21: 0 | BC21: 0 | BD21: 0 | BE21: 0 | BF21: 0 | BG21: 70991.85 | BH21: 0 | BI21: 49694.3 | BJ21: 0 | BK21: 0 | BL21: 0 | BM21: 0 | BN21: 0 | BO21: 0 | BP21: 0 | BQ21: 0 | BR21: 0 | BS21: 0 | BT21: 0 | BU21: 0 | BV21: 0 | BW21: 0 | BX21: 0 | BY21: 0 | BZ21: 0 | CA21: 0 | CB21: 0 | CC21: 0 | CD21: 0 | CE21: 0 | CF21: 0 | CG21: 0 | CH21: 0 | CI21: 0 | CJ21: 0 | CK21: 0 | CL21: 0 | CP21: 0 | CT21: 0 | CX21: 0 | CY21: 0 | DB21: 1987.616773 | DC21: 0 | DD21: 0.2166666667 | DE21: 0.25 | DF21: 0.2833333333 | DG21: 0.3166666667 | DH21: 0.35 | DI21: 0.3833333333 | DJ21: 0.4166666667 | DK21: 0.45 | DL21: 0.4833333333 | DM21: 0.5166666667 | DN21: 0.55 | DO21: 0.5833333333 | DP21: 0.6166666667 | DQ21: 0.3333334038 | DR21: 0.65 | DS21: 0.6833333333 | DT21: 0.7166666667 | DU21: 0.75 | DV21: 0.7833333333 | DW21: 0.8166666667 | DX21: 0.85 | DY21: 0.8833333333 | DZ21: 0.9166666667 | EA21: 0.95 | EB21: 0.9833333333 | EC21: 2366.395 | ED21: 220572.677 | EE21: 149580.827 | EF21: 23663.955 | EG21: 2366.395 | EH21: 0 | EI21: 0.1833333333 | EJ21: 0.2166666667 | EK21: 0.25 | EL21: 0.2833333333 | EM21: 0.3166666667 | EN21: 0.35 | EO21: 0.3833333333 | EP21: 0.4166666667 | EQ21: 0.45 | ER21: 0.4833333333 | ES21: 0.5166666667 | ET21: 0.55 | EU21: 0.5833333333 | EV21: 0.5833333333 | EW21: 0.6166666667 | EX21: 0.65 | EY21: 0.6833333333 | EZ21: 0.7166666667 | FA21: 0.75 | FB21: 0.7833333333 | FC21: 0.8166666667 | FD21: 0.85 | FE21: 0.8833333333 | FF21: 0.9166666667 | FG21: 0.95 | FH21: 2366.395 | FI21: 0 | FJ21: 0.15 | FK21: 0.1833333333 | FL21: 0.2166666667 | FM21: 0.25 | FN21: 0.2833333333 | FO21: 0.3166666667 | FP21: 0.35 | FQ21: 0.3833333333 | FR21: 0.4166666667 | FS21: 0.45 | FT21: 0.4833333333 | FU21: 0.5166666667 | FV21: 0.55 | FW21: 0.55 | FX21: 0.5833333333 | FY21: 0.6166666667 | FZ21: 0.65 | GA21: 0.6833333333 | GB21: 0.7166666667 | GC21: 0.75 | GD21: 0.7833333333 | GE21: 0.8166666667 | GF21: 0.85 | GG21: 0.8833333333 | GH21: 0.9166666667 | GI21: 2366.395 | GJ21: 0 | GK21: 0.1166666667 | GL21: 0.15 | GM21: 0.1833333333 | GN21: 0.2166666667 | GO21: 0.25 | GP21: 0.2833333333 | GQ21: 0.3166666667 | GR21: 0.35 | GS21: 0.3833333333 | GT21: 0.4166666667 | GU21: 0.45 | GV21: 0.4833333333 | GW21: 0.5166666667 | GX21: 0.5166666667 | GY21: 0.55 | GZ21: 0.5833333333 | HA21: 0.6166666667 | HB21: 0.65 | HC21: 0.6833333333 | HD21: 0.7166666667 | HE21: 0.75 | HF21: 0.7833333333 | HG21: 0.8166666667 | HH21: 0.85 | HI21: 0.8833333333 | HJ21: 2366.395 | HK21: 0 | HL21: 0.08333333333 | HM21: 0.1166666667 | HN21: 0.15 | HO21: 0.1833333333 | HP21: 0.2166666667 | HQ21: 0.25 | HR21: 0.2833333333 | HS21: 0.3166666667 | HT21: 0.35 | HU21: 0.3833333333 | HV21: 0.4166666667 | HW21: 0.45 | HX21: 0.4833333333 | HY21: 0.4833333333 | HZ21: 0.5166666667 | IA21: 0.55 | IB21: 0.5833333333 | IC21: 0.6166666667 | ID21: 0.65 | IE21: 0.6833333333 | IF21: 0.7166666667 | IG21: 0.75 | IH21: 0.7833333333 | II21: 0.8166666667 | IJ21: 0.85 | IK21: 2366.395
B22: Líneas subterráneas de 34,5 kV | C22: 30 | D22: 0 | E22: 0 | F22: 0 | G22: 0 | H22: 0 | I22: 0 | J22: 0 | K22: 7945 | L22: 0 | M22: 0 | N22: 0 | O22: 11509.8 | P22: 0 | Q22: 0 | R22: 0 | S22: 67325 | T22: 0 | U22: 0 | V22: 0 | W22: 56607.36 | X22: 0 | Y22: 0 | Z22: 0 | AA22: 26335 | AB22: 0 | AC22: 0 | AD22: 0 | AE22: 117016 | AF22: 0 | AG22: 0 | AH22: 0 | AI22: 177430.08 | AJ22: 0 | AK22: 0 | AL22: 0 | AM22: 419033.792 | AN22: 0 | AO22: 0 | AP22: 0 | AQ22: 15078.51 | AR22: 0 | AS22: 0 | AT22: 0 | AU22: 12954.53 | AV22: 0 | AW22: 0 | AX22: 0 | AY22: 358492.62 | AZ22: 0 | BA22: 0 | BB22: 0 | BC22: 169979.93 | BD22: 0 | BE22: 0 | BF22: 0 | BG22: 0 | BH22: 0 | BI22: 0 | BJ22: 60736.35 | BK22: 0 | BL22: 0 | BM22: 0 | BN22: 71213.52 | BO22: 0 | BP22: 0 | BQ22: 0 | BR22: 486356.02 | BS22: 0 | BT22: 0 | BU22: 0 | BV22: 1535224.09 | BW22: 0 | BX22: 0 | BY22: 0 | BZ22: 657739.25 | CA22: 3997.977344 | CB22: 0 | CC22: 0 | CD22: 271235.15 | CE22: 0 | CF22: 0 | CG22: 0 | CH22: 651665.85 | CI22: 4568.116034 | CJ22: 0 | CK22: 0 | CL22: 121215.21 | CP22: 17110513.98 | CT22: 1072951.01 | CU22: 277047.57 | CX22: 4286967.86 | CY22: 64884.71884 | DB22: 0 | DC22: 0 | DD22: 0.2166666667 | DE22: 0.25 | DF22: 0.2833333333 | DG22: 0.3166666667 | DH22: 0.35 | DI22: 0.3833333333 | DJ22: 0.4166666667 | DK22: 0.45 | DL22: 0.4833333333 | DM22: 0.5166666667 | DN22: 0.55 | DO22: 0.5833333333 | DP22: 0.6166666667 | DQ22: 0 | DR22: 0.65 | DS22: 0.6833333333 | DT22: 0.7166666667 | DU22: 0.75 | DV22: 0.7833333333 | DW22: 0.8166666667 | DX22: 0.85 | DY22: 0.8833333333 | DZ22: 0.9166666667 | EA22: 0.95 | EB22: 0.9833333333 | EC22: 735080.1462 | ED22: 22052404.39 | EE22: 0 | EF22: 19504864.67 | EG22: 735080.1462 | EH22: 0 | EI22: 0.1833333333 | EJ22: 0.2166666667 | EK22: 0.25 | EL22: 0.2833333333 | EM22: 0.3166666667 | EN22: 0.35 | EO22: 0.3833333333 | EP22: 0.4166666667 | EQ22: 0.45 | ER22: 0.4833333333 | ES22: 0.5166666667 | ET22: 0.55 | EU22: 0.5833333333 | EV22: 0.5833333333 | EW22: 0.6166666667 | EX22: 0.65 | EY22: 0.6833333333 | EZ22: 0.7166666667 | FA22: 0.75 | FB22: 0.7833333333 | FC22: 0.8166666667 | FD22: 0.85 | FE22: 0.8833333333 | FF22: 0.9166666667 | FG22: 0.95 | FH22: 735080.1462 | FI22: 0 | FJ22: 0.15 | FK22: 0.1833333333 | FL22: 0.2166666667 | FM22: 0.25 | FN22: 0.2833333333 | FO22: 0.3166666667 | FP22: 0.35 | FQ22: 0.3833333333 | FR22: 0.4166666667 | FS22: 0.45 | FT22: 0.4833333333 | FU22: 0.5166666667 | FV22: 0.55 | FW22: 0.55 | FX22: 0.5833333333 | FY22: 0.6166666667 | FZ22: 0.65 | GA22: 0.6833333333 | GB22: 0.7166666667 | GC22: 0.75 | GD22: 0.7833333333 | GE22: 0.8166666667 | GF22: 0.85 | GG22: 0.8833333333 | GH22: 0.9166666667 | GI22: 735080.1462 | GJ22: 0 | GK22: 0.1166666667 | GL22: 0.15 | GM22: 0.1833333333 | GN22: 0.2166666667 | GO22: 0.25 | GP22: 0.2833333333 | GQ22: 0.3166666667 | GR22: 0.35 | GS22: 0.3833333333 | GT22: 0.4166666667 | GU22: 0.45 | GV22: 0.4833333333 | GW22: 0.5166666667 | GX22: 0.5166666667 | GY22: 0.55 | GZ22: 0.5833333333 | HA22: 0.6166666667 | HB22: 0.65 | HC22: 0.6833333333 | HD22: 0.7166666667 | HE22: 0.75 | HF22: 0.7833333333 | HG22: 0.8166666667 | HH22: 0.85 | HI22: 0.8833333333 | HJ22: 735080.1462 | HK22: 0 | HL22: 0.08333333333 | HM22: 0.1166666667 | HN22: 0.15 | HO22: 0.1833333333 | HP22: 0.2166666667 | HQ22: 0.25 | HR22: 0.2833333333 | HS22: 0.3166666667 | HT22: 0.35 | HU22: 0.3833333333 | HV22: 0.4166666667 | HW22: 0.45 | HX22: 0.4833333333 | HY22: 0.4833333333 | HZ22: 0.5166666667 | IA22: 0.55 | IB22: 0.5833333333 | IC22: 0.6166666667 | ID22: 0.65 | IE22: 0.6833333333 | IF22: 0.7166666667 | IG22: 0.75 | IH22: 0.7833333333 | II22: 0.8166666667 | IJ22: 0.85 | IK22: 735080.1462
B23: Líneas subterráneas de 13,8 kV | C23: 30 | D23: 0 | E23: 0 | F23: 0 | G23: 441.38 | H23: 0 | I23: 0 | J23: 0 | K23: 2038.59 | L23: 0 | M23: 0 | N23: 0 | O23: 30511.68 | P23: 0 | Q23: 0 | R23: 0 | S23: 47275 | T23: 0 | U23: 0 | V23: 0 | W23: 29162 | X23: 0 | Y23: 0 | Z23: 0 | AA23: 227643 | AB23: 0 | AC23: 0 | AD23: 0 | AE23: 30843 | AF23: 0 | AG23: 0 | AH23: 0 | AI23: 13617.82 | AJ23: 0 | AK23: 0 | AL23: 0 | AM23: 558680.16 | AN23: 0 | AO23: 0 | AP23: 0 | AQ23: 84681.96 | AR23: 0 | AS23: 0 | AT23: 0 | AU23: 36276.96 | AV23: 0 | AW23: 0 | AX23: 0 | AY23: 29336.3 | AZ23: 0 | BA23: 0 | BB23: 0 | BC23: 67647.91 | BD23: 0 | BE23: 0 | BF23: 0 | BG23: 0 | BH23: 0 | BI23: 0 | BJ23: 510773.58 | BK23: 0 | BL23: 0 | BM23: 0 | BN23: 394867.46 | BO23: 0 | BP23: 0 | BQ23: 0 | BR23: 262682.09 | BS23: 0 | BT23: 0 | BU23: 0 | BV23: 210714.28 | BW23: 0 | BX23: 0 | BY23: 0 | BZ23: 1975553.65 | CA23: 20974.37756 | CB23: 0 | CC23: 0 | CD23: 141470.44 | CE23: 1272.156951 | CF23: 0 | CG23: 0 | CH23: 228894.65 | CI23: 0 | CJ23: 0 | CK23: 0 | CL23: 429753.96 | CP23: 613343.15 | CT23: 96864.66 | CU23: 5774.91 | CX23: 396456.96 | CY23: 2008.403547 | DB23: 0 | DC23: 0 | DD23: 0.2166666667 | DE23: 0.25 | DF23: 0.2833333333 | DG23: 0.3166666667 | DH23: 0.35 | DI23: 0.3833333333 | DJ23: 0.4166666667 | DK23: 0.45 | DL23: 0.4833333333 | DM23: 0.5166666667 | DN23: 0.55 | DO23: 0.5833333333 | DP23: 0.6166666667 | DQ23: 0 | DR23: 0.65 | DS23: 0.6833333333 | DT23: 0.7166666667 | DU23: 0.75 | DV23: 0.7833333333 | DW23: 0.8166666667 | DX23: 0.85 | DY23: 0.8833333333 | DZ23: 0.9166666667 | EA23: 0.95 | EB23: 0.9833333333 | EC23: 172983.0282 | ED23: 5189490.845 | EE23: 0 | EF23: 3838141.862 | EG23: 172983.0282 | EH23: 0 | EI23: 0.1833333333 | EJ23: 0.2166666667 | EK23: 0.25 | EL23: 0.2833333333 | EM23: 0.3166666667 | EN23: 0.35 | EO23: 0.3833333333 | EP23: 0.4166666667 | EQ23: 0.45 | ER23: 0.4833333333 | ES23: 0.5166666667 | ET23: 0.55 | EU23: 0.5833333333 | EV23: 0.5833333333 | EW23: 0.6166666667 | EX23: 0.65 | EY23: 0.6833333333 | EZ23: 0.7166666667 | FA23: 0.75 | FB23: 0.7833333333 | FC23: 0.8166666667 | FD23: 0.85 | FE23: 0.8833333333 | FF23: 0.9166666667 | FG23: 0.95 | FH23: 172983.0282 | FI23: 0 | FJ23: 0.15 | FK23: 0.1833333333 | FL23: 0.2166666667 | FM23: 0.25 | FN23: 0.2833333333 | FO23: 0.3166666667 | FP23: 0.35 | FQ23: 0.3833333333 | FR23: 0.4166666667 | FS23: 0.45 | FT23: 0.4833333333 | FU23: 0.5166666667 | FV23: 0.55 | FW23: 0.55 | FX23: 0.5833333333 | FY23: 0.6166666667 | FZ23: 0.65 | GA23: 0.6833333333 | GB23: 0.7166666667 | GC23: 0.75 | GD23: 0.7833333333 | GE23: 0.8166666667 | GF23: 0.85 | GG23: 0.8833333333 | GH23: 0.9166666667 | GI23: 172983.0282 | GJ23: 0 | GK23: 0.1166666667 | GL23: 0.15 | GM23: 0.1833333333 | GN23: 0.2166666667 | GO23: 0.25 | GP23: 0.2833333333 | GQ23: 0.3166666667 | GR23: 0.35 | GS23: 0.3833333333 | GT23: 0.4166666667 | GU23: 0.45 | GV23: 0.4833333333 | GW23: 0.5166666667 | GX23: 0.5166666667 | GY23: 0.55 | GZ23: 0.5833333333 | HA23: 0.6166666667 | HB23: 0.65 | HC23: 0.6833333333 | HD23: 0.7166666667 | HE23: 0.75 | HF23: 0.7833333333 | HG23: 0.8166666667 | HH23: 0.85 | HI23: 0.8833333333 | HJ23: 172983.0282 | HK23: 0 | HL23: 0.08333333333 | HM23: 0.1166666667 | HN23: 0.15 | HO23: 0.1833333333 | HP23: 0.2166666667 | HQ23: 0.25 | HR23: 0.2833333333 | HS23: 0.3166666667 | HT23: 0.35 | HU23: 0.3833333333 | HV23: 0.4166666667 | HW23: 0.45 | HX23: 0.4833333333 | HY23: 0.4833333333 | HZ23: 0.5166666667 | IA23: 0.55 | IB23: 0.5833333333 | IC23: 0.6166666667 | ID23: 0.65 | IE23: 0.6833333333 | IF23: 0.7166666667 | IG23: 0.75 | IH23: 0.7833333333 | II23: 0.8166666667 | IJ23: 0.85 | IK23: 172983.0282
B24: Líneas subterráneas de otras tensiones | C24: 30 | D24: 0 | E24: 0 | F24: 0 | G24: 0 | H24: 0 | I24: 0 | J24: 0 | K24: 0 | L24: 0 | M24: 0 | N24: 0 | O24: 0 | P24: 0 | Q24: 0 | R24: 0 | S24: 0 | T24: 0 | U24: 0 | V24: 0 | W24: 0 | X24: 0 | Y24: 0 | Z24: 0 | AA24: 0 | AB24: 0 | AC24: 0 | AD24: 0 | AE24: 0 | AF24: 0 | AG24: 0 | AH24: 0 | AI24: 0 | AJ24: 0 | AK24: 0 | AL24: 0 | AM24: 0 | AN24: 0 | AO24: 0 | AP24: 0 | AQ24: 0 | AR24: 0 | AS24: 0 | AT24: 0 | AU24: 0 | AV24: 0 | AW24: 0 | AX24: 0 | AY24: 0 | AZ24: 0 | BA24: 0 | BB24: 0 | BC24: 0 | BD24: 0 | BE24: 0 | BF24: 0 | BG24: 0 | BH24: 0 | BI24: 0 | BJ24: 0 | BK24: 0 | BL24: 0 | BM24: 0 | BN24: 0 | BO24: 0 | BP24: 0 | BQ24: 0 | BR24: 0 | BS24: 0 | BT24: 0 | BU24: 0 | BV24: 0 | BW24: 0 | BX24: 0 | BY24: 0 | BZ24: 0 | CA24: 0 | CB24: 0 | CC24: 0 | CD24: 0 | CE24: 0 | CF24: 0 | CG24: 0 | CH24: 0 | CI24: 0 | CJ24: 0 | CK24: 0 | CL24: 0 | CP24: 0 | CT24: 0 | CX24: 0 | CY24: 0 | DB24: 0 | DC24: 0 | DD24: 0.2166666667 | DE24: 0.25 | DF24: 0.2833333333 | DG24: 0.3166666667 | DH24: 0.35 | DI24: 0.3833333333 | DJ24: 0.4166666667 | DK24: 0.45 | DL24: 0.4833333333 | DM24: 0.5166666667 | DN24: 0.55 | DO24: 0.5833333333 | DP24: 0.6166666667 | DQ24: 0 | DR24: 0.65 | DS24: 0.6833333333 | DT24: 0.7166666667 | DU24: 0.75 | DV24: 0.7833333333 | DW24: 0.8166666667 | DX24: 0.85 | DY24: 0.8833333333 | DZ24: 0.9166666667 | EA24: 0.95 | EB24: 0.9833333333 | EC24: 0 | ED24: 0 | EE24: 0 | EF24: 0 | EG24: 0 | EH24: 0 | EI24: 0.1833333333 | EJ24: 0.2166666667 | EK24: 0.25 | EL24: 0.2833333333 | EM24: 0.3166666667 | EN24: 0.35 | EO24: 0.3833333333 | EP24: 0.4166666667 | EQ24: 0.45 | ER24: 0.4833333333 | ES24: 0.5166666667 | ET24: 0.55 | EU24: 0.5833333333 | EV24: 0.5833333333 | EW24: 0.6166666667 | EX24: 0.65 | EY24: 0.6833333333 | EZ24: 0.7166666667 | FA24: 0.75 | FB24: 0.7833333333 | FC24: 0.8166666667 | FD24: 0.85 | FE24: 0.8833333333 | FF24: 0.9166666667 | FG24: 0.95 | FH24: 0 | FI24: 0 | FJ24: 0.15 | FK24: 0.1833333333 | FL24: 0.2166666667 | FM24: 0.25 | FN24: 0.2833333333 | FO24: 0.3166666667 | FP24: 0.35 | FQ24: 0.3833333333 | FR24: 0.4166666667 | FS24: 0.45 | FT24: 0.4833333333 | FU24: 0.5166666667 | FV24: 0.55 | FW24: 0.55 | FX24: 0.5833333333 | FY24: 0.6166666667 | FZ24: 0.65 | GA24: 0.6833333333 | GB24: 0.7166666667 | GC24: 0.75 | GD24: 0.7833333333 | GE24: 0.8166666667 | GF24: 0.85 | GG24: 0.8833333333 | GH24: 0.9166666667 | GI24: 0 | GJ24: 0 | GK24: 0.1166666667 | GL24: 0.15 | GM24: 0.1833333333 | GN24: 0.2166666667 | GO24: 0.25 | GP24: 0.2833333333 | GQ24: 0.3166666667 | GR24: 0.35 | GS24: 0.3833333333 | GT24: 0.4166666667 | GU24: 0.45 | GV24: 0.4833333333 | GW24: 0.5166666667 | GX24: 0.5166666667 | GY24: 0.55 | GZ24: 0.5833333333 | HA24: 0.6166666667 | HB24: 0.65 | HC24: 0.6833333333 | HD24: 0.7166666667 | HE24: 0.75 | HF24: 0.7833333333 | HG24: 0.8166666667 | HH24: 0.85 | HI24: 0.8833333333 | HJ24: 0 | HK24: 0 | HL24: 0.08333333333 | HM24: 0.1166666667 | HN24: 0.15 | HO24: 0.1833333333 | HP24: 0.2166666667 | HQ24: 0.25 | HR24: 0.2833333333 | HS24: 0.3166666667 | HT24: 0.35 | HU24: 0.3833333333 | HV24: 0.4166666667 | HW24: 0.45 | HX24: 0.4833333333 | HY24: 0.4833333333 | HZ24: 0.5166666667 | IA24: 0.55 | IB24: 0.5833333333 | IC24: 0.6166666667 | ID24: 0.65 | IE24: 0.6833333333 | IF24: 0.7166666667 | IG24: 0.75 | IH24: 0.7833333333 | II24: 0.8166666667 | IJ24: 0.85 | IK24: 0
B25: Subestaciones 34,5 kV / MT | C25: 30 | D25: 5501374.344 | E25: 0 | F25: 2211179.196 | G25: 246248.65 | H25: 0 | I25: 0 | J25: 0 | K25: 0 | L25: 0 | M25: 0 | N25: 0 | O25: 73556.03 | P25: 0 | Q25: 0 | R25: 0 | S25: 34597 | T25: 0 | U25: 0 | V25: 0 | W25: 13668.23 | X25: 0 | Y25: 0 | Z25: 0 | AA25: 92007 | AB25: 0 | AC25: 0 | AD25: 0 | AE25: 14698 | AF25: 0 | AG25: 0 | AH25: 0 | AI25: 1190332.12 | AJ25: 0 | AK25: 0 | AL25: 0 | AM25: 61476 | AN25: 0 | AO25: 0 | AP25: 0 | AQ25: 736704.62 | AR25: 0 | AS25: 0 | AT25: 0 | AU25: 142747 | AV25: 0 | AW25: 0 | AX25: 0 | AY25: 72665.05 | AZ25: 0 | BA25: 0 | BB25: 0 | BC25: 78936.5 | BD25: 0 | BE25: 0 | BF25: 0 | BG25: 407143.2646 | BH25: 36932.26456 | BI25: 224917.18 | BJ25: 52811.26 | BK25: 0 | BL25: 0 | BM25: 0 | BN25: 0 | BO25: 0 | BP25: 0 | BQ25: 0 | BR25: 1977175 | BS25: 0 | BT25: 0 | BU25: 0 | BV25: 40622.42 | BW25: 0 | BX25: 0 | BY25: 0 | BZ25: 80702.34 | CA25: 0 | CB25: 0 | CC25: 0 | CD25: 30490.8 | CE25: 0 | CF25: 0 | CG25: 0 | CH25: 0 | CI25: 0 | CJ25: 0 | CK25: 0 | CL25: 76613.4 | CP25: 5879472.13 | CT25: 0 | CX25: 1005572.69 | CY25: 0 | DB25: 1983.057964 | DC25: 0 | DD25: 0.2166666667 | DE25: 0.25 | DF25: 0.2833333333 | DG25: 0.3166666667 | DH25: 0.35 | DI25: 0.3833333333 | DJ25: 0.4166666667 | DK25: 0.45 | DL25: 0.4833333333 | DM25: 0.5166666667 | DN25: 0.55 | DO25: 0.5833333333 | DP25: 0.6166666667 | DQ25: 0.1857609419 | DR25: 0.65 | DS25: 0.6833333333 | DT25: 0.7166666667 | DU25: 0.75 | DV25: 0.7833333333 | DW25: 0.8166666667 | DX25: 0.85 | DY25: 0.8833333333 | DZ25: 0.9166666667 | EA25: 0.95 | EB25: 0.9833333333 | EC25: 340214.3308 | ED25: 15707804.27 | EE25: 5501374.344 | EF25: 7645657.22 | EG25: 340214.3308 | EH25: 0 | EI25: 0.1833333333 | EJ25: 0.2166666667 | EK25: 0.25 | EL25: 0.2833333333 | EM25: 0.3166666667 | EN25: 0.35 | EO25: 0.3833333333 | EP25: 0.4166666667 | EQ25: 0.45 | ER25: 0.4833333333 | ES25: 0.5166666667 | ET25: 0.55 | EU25: 0.5833333333 | EV25: 0.5833333333 | EW25: 0.6166666667 | EX25: 0.65 | EY25: 0.6833333333 | EZ25: 0.7166666667 | FA25: 0.75 | FB25: 0.7833333333 | FC25: 0.8166666667 | FD25: 0.85 | FE25: 0.8833333333 | FF25: 0.9166666667 | FG25: 0.95 | FH25: 340214.3308 | FI25: 0 | FJ25: 0.15 | FK25: 0.1833333333 | FL25: 0.2166666667 | FM25: 0.25 | FN25: 0.2833333333 | FO25: 0.3166666667 | FP25: 0.35 | FQ25: 0.3833333333 | FR25: 0.4166666667 | FS25: 0.45 | FT25: 0.4833333333 | FU25: 0.5166666667 | FV25: 0.55 | FW25: 0.55 | FX25: 0.5833333333 | FY25: 0.6166666667 | FZ25: 0.65 | GA25: 0.6833333333 | GB25: 0.7166666667 | GC25: 0.75 | GD25: 0.7833333333 | GE25: 0.8166666667 | GF25: 0.85 | GG25: 0.8833333333 | GH25: 0.9166666667 | GI25: 340214.3308 | GJ25: 0 | GK25: 0.1166666667 | GL25: 0.15 | GM25: 0.1833333333 | GN25: 0.2166666667 | GO25: 0.25 | GP25: 0.2833333333 | GQ25: 0.3166666667 | GR25: 0.35 | GS25: 0.3833333333 | GT25: 0.4166666667 | GU25: 0.45 | GV25: 0.4833333333 | GW25: 0.5166666667 | GX25: 0.5166666667 | GY25: 0.55 | GZ25: 0.5833333333 | HA25: 0.6166666667 | HB25: 0.65 | HC25: 0.6833333333 | HD25: 0.7166666667 | HE25: 0.75 | HF25: 0.7833333333 | HG25: 0.8166666667 | HH25: 0.85 | HI25: 0.8833333333 | HJ25: 340214.3308 | HK25: 0 | HL25: 0.08333333333 | HM25: 0.1166666667 | HN25: 0.15 | HO25: 0.1833333333 | HP25: 0.2166666667 | HQ25: 0.25 | HR25: 0.2833333333 | HS25: 0.3166666667 | HT25: 0.35 | HU25: 0.3833333333 | HV25: 0.4166666667 | HW25: 0.45 | HX25: 0.4833333333 | HY25: 0.4833333333 | HZ25: 0.5166666667 | IA25: 0.55 | IB25: 0.5833333333 | IC25: 0.6166666667 | ID25: 0.65 | IE25: 0.6833333333 | IF25: 0.7166666667 | IG25: 0.75 | IH25: 0.7833333333 | II25: 0.8166666667 | IJ25: 0.85 | IK25: 340214.3308
B26: Subestaciones 13,8 kV / MT | C26: 30 | D26: 0 | E26: 0 | F26: 0 | G26: 0 | H26: 0 | I26: 0 | J26: 0 | K26: 0 | L26: 0 | M26: 0 | N26: 0 | O26: 0 | P26: 0 | Q26: 0 | R26: 0 | S26: 0 | T26: 0 | U26: 0 | V26: 0 | W26: 0 | X26: 0 | Y26: 0 | Z26: 0 | AA26: 0 | AB26: 0 | AC26: 0 | AD26: 0 | AE26: 0 | AF26: 0 | AG26: 0 | AH26: 0 | AI26: 0 | AJ26: 0 | AK26: 0 | AL26: 0 | AM26: 0 | AN26: 0 | AO26: 0 | AP26: 0 | AQ26: 0 | AR26: 0 | AS26: 0 | AT26: 0 | AU26: 0 | AV26: 0 | AW26: 0 | AX26: 0 | AY26: 0 | AZ26: 0 | BA26: 0 | BB26: 0 | BC26: 0 | BD26: 0 | BE26: 0 | BF26: 0 | BG26: 2503042.526 | BH26: 2503042.526 | BI26: 1887604.64 | BJ26: 0 | BK26: 0 | BL26: 0 | BM26: 0 | BN26: 0 | BO26: 0 | BP26: 0 | BQ26: 0 | BR26: 0 | BS26: 0 | BT26: 0 | BU26: 0 | BV26: 0 | BW26: 0 | BX26: 0 | BY26: 0 | BZ26: 0 | CA26: 0 | CB26: 0 | CC26: 0 | CD26: 0 | CE26: 0 | CF26: 0 | CG26: 0 | CH26: 0 | CI26: 0 | CJ26: 0 | CK26: 0 | CL26: 0 | CP26: 0 | CT26: 0 | CX26: 0 | CY26: 0 | DB26: 0 | DC26: 0 | DD26: 0.2166666667 | DE26: 0.25 | DF26: 0.2833333333 | DG26: 0.3166666667 | DH26: 0.35 | DI26: 0.3833333333 | DJ26: 0.4166666667 | DK26: 0.45 | DL26: 0.4833333333 | DM26: 0.5166666667 | DN26: 0.55 | DO26: 0.5833333333 | DP26: 0.6166666667 | DQ26: 0.3874574125 | DR26: 0.65 | DS26: 0.6833333333 | DT26: 0.7166666667 | DU26: 0.75 | DV26: 0.7833333333 | DW26: 0.8166666667 | DX26: 0.85 | DY26: 0.8833333333 | DZ26: 0.9166666667 | EA26: 0.95 | EB26: 0.9833333333 | EC26: 83434.75087 | ED26: 2503042.526 | EE26: 0 | EF26: 0 | EG26: 83434.75087 | EH26: 0 | EI26: 0.1833333333 | EJ26: 0.2166666667 | EK26: 0.25 | EL26: 0.2833333333 | EM26: 0.3166666667 | EN26: 0.35 | EO26: 0.3833333333 | EP26: 0.4166666667 | EQ26: 0.45 | ER26: 0.4833333333 | ES26: 0.5166666667 | ET26: 0.55 | EU26: 0.5833333333 | EV26: 0.5833333333 | EW26: 0.6166666667 | EX26: 0.65 | EY26: 0.6833333333 | EZ26: 0.7166666667 | FA26: 0.75 | FB26: 0.7833333333 | FC26: 0.8166666667 | FD26: 0.85 | FE26: 0.8833333333 | FF26: 0.9166666667 | FG26: 0.95 | FH26: 83434.75087 | FI26: 0 | FJ26: 0.15 | FK26: 0.1833333333 | FL26: 0.2166666667 | FM26: 0.25 | FN26: 0.2833333333 | FO26: 0.3166666667 | FP26: 0.35 | FQ26: 0.3833333333 | FR26: 0.4166666667 | FS26: 0.45 | FT26: 0.4833333333 | FU26: 0.5166666667 | FV26: 0.55 | FW26: 0.55 | FX26: 0.5833333333 | FY26: 0.6166666667 | FZ26: 0.65 | GA26: 0.6833333333 | GB26: 0.7166666667 | GC26: 0.75 | GD26: 0.7833333333 | GE26: 0.8166666667 | GF26: 0.85 | GG26: 0.8833333333 | GH26: 0.9166666667 | GI26: 83434.75087 | GJ26: 0 | GK26: 0.1166666667 | GL26: 0.15 | GM26: 0.1833333333 | GN26: 0.2166666667 | GO26: 0.25 | GP26: 0.2833333333 | GQ26: 0.3166666667 | GR26: 0.35 | GS26: 0.3833333333 | GT26: 0.4166666667 | GU26: 0.45 | GV26: 0.4833333333 | GW26: 0.5166666667 | GX26: 0.5166666667 | GY26: 0.55 | GZ26: 0.5833333333 | HA26: 0.6166666667 | HB26: 0.65 | HC26: 0.6833333333 | HD26: 0.7166666667 | HE26: 0.75 | HF26: 0.7833333333 | HG26: 0.8166666667 | HH26: 0.85 | HI26: 0.8833333333 | HJ26: 83434.75087 | HK26: 0 | HL26: 0.08333333333 | HM26: 0.1166666667 | HN26: 0.15 | HO26: 0.1833333333 | HP26: 0.2166666667 | HQ26: 0.25 | HR26: 0.2833333333 | HS26: 0.3166666667 | HT26: 0.35 | HU26: 0.3833333333 | HV26: 0.4166666667 | HW26: 0.45 | HX26: 0.4833333333 | HY26: 0.4833333333 | HZ26: 0.5166666667 | IA26: 0.55 | IB26: 0.5833333333 | IC26: 0.6166666667 | ID26: 0.65 | IE26: 0.6833333333 | IF26: 0.7166666667 | IG26: 0.75 | IH26: 0.7833333333 | II26: 0.8166666667 | IJ26: 0.85 | IK26: 83434.75087
B27: Otras subestaciones MT/MT | C27: 30 | D27: 0 | E27: 0 | F27: 0 | G27: 0 | H27: 0 | I27: 0 | J27: 0 | K27: 0 | L27: 0 | M27: 0 | N27: 0 | O27: 0 | P27: 0 | Q27: 0 | R27: 0 | S27: 0 | T27: 0 | U27: 0 | V27: 0 | W27: 0 | X27: 0 | Y27: 0 | Z27: 0 | AA27: 0 | AB27: 0 | AC27: 0 | AD27: 0 | AE27: 0 | AF27: 0 | AG27: 0 | AH27: 0 | AI27: 0 | AJ27: 0 | AK27: 0 | AL27: 0 | AM27: 0 | AN27: 0 | AO27: 0 | AP27: 0 | AQ27: 0 | AR27: 0 | AS27: 0 | AT27: 0 | AU27: 0 | AV27: 0 | AW27: 0 | AX27: 0 | AY27: 0 | AZ27: 0 | BA27: 0 | BB27: 0 | BC27: 0 | BD27: 0 | BE27: 0 | BF27: 0 | BG27: 0 | BH27: 0 | BI27: 0 | BJ27: 0 | BK27: 0 | BL27: 0 | BM27: 0 | BN27: 0 | BO27: 0 | BP27: 0 | BQ27: 0 | BR27: 0 | BS27: 0 | BT27: 0 | BU27: 0 | BV27: 0 | BW27: 0 | BX27: 0 | BY27: 0 | BZ27: 0 | CA27: 0 | CB27: 0 | CC27: 0 | CD27: 0 | CE27: 0 | CF27: 0 | CG27: 0 | CH27: 0 | CI27: 0 | CJ27: 0 | CK27: 0 | CL27: 0 | CP27: 0 | CT27: 0 | CX27: 0 | CY27: 0 | DB27: 0 | DC27: 0 | DD27: 0.2166666667 | DE27: 0.25 | DF27: 0.2833333333 | DG27: 0.3166666667 | DH27: 0.35 | DI27: 0.3833333333 | DJ27: 0.4166666667 | DK27: 0.45 | DL27: 0.4833333333 | DM27: 0.5166666667 | DN27: 0.55 | DO27: 0.5833333333 | DP27: 0.6166666667 | DQ27: 0 | DR27: 0.65 | DS27: 0.6833333333 | DT27: 0.7166666667 | DU27: 0.75 | DV27: 0.7833333333 | DW27: 0.8166666667 | DX27: 0.85 | DY27: 0.8833333333 | DZ27: 0.9166666667 | EA27: 0.95 | EB27: 0.9833333333 | EC27: 0 | ED27: 0 | EE27: 0 | EF27: 0 | EG27: 0 | EH27: 0 | EI27: 0.1833333333 | EJ27: 0.2166666667 | EK27: 0.25 | EL27: 0.2833333333 | EM27: 0.3166666667 | EN27: 0.35 | EO27: 0.3833333333 | EP27: 0.4166666667 | EQ27: 0.45 | ER27: 0.4833333333 | ES27: 0.5166666667 | ET27: 0.55 | EU27: 0.5833333333 | EV27: 0.5833333333 | EW27: 0.6166666667 | EX27: 0.65 | EY27: 0.6833333333 | EZ27: 0.7166666667 | FA27: 0.75 | FB27: 0.7833333333 | FC27: 0.8166666667 | FD27: 0.85 | FE27: 0.8833333333 | FF27: 0.9166666667 | FG27: 0.95 | FH27: 0 | FI27: 0 | FJ27: 0.15 | FK27: 0.1833333333 | FL27: 0.2166666667 | FM27: 0.25 | FN27: 0.2833333333 | FO27: 0.3166666667 | FP27: 0.35 | FQ27: 0.3833333333 | FR27: 0.4166666667 | FS27: 0.45 | FT27: 0.4833333333 | FU27: 0.5166666667 | FV27: 0.55 | FW27: 0.55 | FX27: 0.5833333333 | FY27: 0.6166666667 | FZ27: 0.65 | GA27: 0.6833333333 | GB27: 0.7166666667 | GC27: 0.75 | GD27: 0.7833333333 | GE27: 0.8166666667 | GF27: 0.85 | GG27: 0.8833333333 | GH27: 0.9166666667 | GI27: 0 | GJ27: 0 | GK27: 0.1166666667 | GL27: 0.15 | GM27: 0.1833333333 | GN27: 0.2166666667 | GO27: 0.25 | GP27: 0.2833333333 | GQ27: 0.3166666667 | GR27: 0.35 | GS27: 0.3833333333 | GT27: 0.4166666667 | GU27: 0.45 | GV27: 0.4833333333 | GW27: 0.5166666667 | GX27: 0.5166666667 | GY27: 0.55 | GZ27: 0.5833333333 | HA27: 0.6166666667 | HB27: 0.65 | HC27: 0.6833333333 | HD27: 0.7166666667 | HE27: 0.75 | HF27: 0.7833333333 | HG27: 0.8166666667 | HH27: 0.85 | HI27: 0.8833333333 | HJ27: 0 | HK27: 0 | HL27: 0.08333333333 | HM27: 0.1166666667 | HN27: 0.15 | HO27: 0.1833333333 | HP27: 0.2166666667 | HQ27: 0.25 | HR27: 0.2833333333 | HS27: 0.3166666667 | HT27: 0.35 | HU27: 0.3833333333 | HV27: 0.4166666667 | HW27: 0.45 | HX27: 0.4833333333 | HY27: 0.4833333333 | HZ27: 0.5166666667 | IA27: 0.55 | IB27: 0.5833333333 | IC27: 0.6166666667 | ID27: 0.65 | IE27: 0.6833333333 | IF27: 0.7166666667 | IG27: 0.75 | IH27: 0.7833333333 | II27: 0.8166666667 | IJ27: 0.85 | IK27: 0
B28: Centros de reflexión MT | C28: 30 | D28: 0 | E28: 0 | F28: 0 | G28: 0 | H28: 0 | I28: 0 | J28: 0 | K28: 0 | L28: 0 | M28: 0 | N28: 0 | O28: 0 | P28: 0 | Q28: 0 | R28: 0 | S28: 0 | T28: 0 | U28: 0 | V28: 0 | W28: 0 | X28: 0 | Y28: 0 | Z28: 0 | AA28: 0 | AB28: 0 | AC28: 0 | AD28: 0 | AE28: 0 | AF28: 0 | AG28: 0 | AH28: 0 | AI28: 0 | AJ28: 0 | AK28: 0 | AL28: 0 | AM28: 0 | AN28: 0 | AO28: 0 | AP28: 0 | AQ28: 0 | AR28: 0 | AS28: 0 | AT28: 0 | AU28: 0 | AV28: 0 | AW28: 0 | AX28: 0 | AY28: 21877.608 | AZ28: 0 | BA28: 0 | BB28: 0 | BC28: 0 | BD28: 0 | BE28: 0 | BF28: 0 | BG28: 0 | BH28: 0 | BI28: 0 | BJ28: 0 | BK28: 0 | BL28: 0 | BM28: 0 | BN28: 0 | BO28: 0 | BP28: 0 | BQ28: 0 | BR28: 0 | BS28: 0 | BT28: 0 | BU28: 0 | BV28: 0 | BW28: 0 | BX28: 0 | BY28: 0 | BZ28: 0 | CA28: 0 | CB28: 0 | CC28: 0 | CD28: 0 | CE28: 0 | CF28: 0 | CG28: 0 | CH28: 0 | CI28: 0 | CJ28: 0 | CK28: 0 | CL28: 0 | CP28: 0 | CT28: 0 | CX28: 0 | CY28: 0 | DB28: 0 | DC28: 0 | DD28: 0.2166666667 | DE28: 0.25 | DF28: 0.2833333333 | DG28: 0.3166666667 | DH28: 0.35 | DI28: 0.3833333333 | DJ28: 0.4166666667 | DK28: 0.45 | DL28: 0.4833333333 | DM28: 0.5166666667 | DN28: 0.55 | DO28: 0.5833333333 | DP28: 0.6166666667 | DQ28: 0 | DR28: 0.65 | DS28: 0.6833333333 | DT28: 0.7166666667 | DU28: 0.75 | DV28: 0.7833333333 | DW28: 0.8166666667 | DX28: 0.85 | DY28: 0.8833333333 | DZ28: 0.9166666667 | EA28: 0.95 | EB28: 0.9833333333 | EC28: 420.3515362 | ED28: 12610.54609 | EE28: 0 | EF28: 7356.151884 | EG28: 420.3515362 | EH28: 0 | EI28: 0.1833333333 | EJ28: 0.2166666667 | EK28: 0.25 | EL28: 0.2833333333 | EM28: 0.3166666667 | EN28: 0.35 | EO28: 0.3833333333 | EP28: 0.4166666667 | EQ28: 0.45 | ER28: 0.4833333333 | ES28: 0.5166666667 | ET28: 0.55 | EU28: 0.5833333333 | EV28: 0.5833333333 | EW28: 0.6166666667 | EX28: 0.65 | EY28: 0.6833333333 | EZ28: 0.7166666667 | FA28: 0.75 | FB28: 0.7833333333 | FC28: 0.8166666667 | FD28: 0.85 | FE28: 0.8833333333 | FF28: 0.9166666667 | FG28: 0.95 | FH28: 420.3515362 | FI28: 0 | FJ28: 0.15 | FK28: 0.1833333333 | FL28: 0.2166666667 | FM28: 0.25 | FN28: 0.2833333333 | FO28: 0.3166666667 | FP28: 0.35 | FQ28: 0.3833333333 | FR28: 0.4166666667 | FS28: 0.45 | FT28: 0.4833333333 | FU28: 0.5166666667 | FV28: 0.55 | FW28: 0.55 | FX28: 0.5833333333 | FY28: 0.6166666667 | FZ28: 0.65 | GA28: 0.6833333333 | GB28: 0.7166666667 | GC28: 0.75 | GD28: 0.7833333333 | GE28: 0.8166666667 | GF28: 0.85 | GG28: 0.8833333333 | GH28: 0.9166666667 | GI28: 420.3515362 | GJ28: 0 | GK28: 0.1166666667 | GL28: 0.15 | GM28: 0.1833333333 | GN28: 0.2166666667 | GO28: 0.25 | GP28: 0.2833333333 | GQ28: 0.3166666667 | GR28: 0.35 | GS28: 0.3833333333 | GT28: 0.4166666667 | GU28: 0.45 | GV28: 0.4833333333 | GW28: 0.5166666667 | GX28: 0.5166666667 | GY28: 0.55 | GZ28: 0.5833333333 | HA28: 0.6166666667 | HB28: 0.65 | HC28: 0.6833333333 | HD28: 0.7166666667 | HE28: 0.75 | HF28: 0.7833333333 | HG28: 0.8166666667 | HH28: 0.85 | HI28: 0.8833333333 | HJ28: 420.3515362 | HK28: 0 | HL28: 0.08333333333 | HM28: 0.1166666667 | HN28: 0.15 | HO28: 0.1833333333 | HP28: 0.2166666667 | HQ28: 0.25 | HR28: 0.2833333333 | HS28: 0.3166666667 | HT28: 0.35 | HU28: 0.3833333333 | HV28: 0.4166666667 | HW28: 0.45 | HX28: 0.4833333333 | HY28: 0.4833333333 | HZ28: 0.5166666667 | IA28: 0.55 | IB28: 0.5833333333 | IC28: 0.6166666667 | ID28: 0.65 | IE28: 0.6833333333 | IF28: 0.7166666667 | IG28: 0.75 | IH28: 0.7833333333 | II28: 0.8166666667 | IJ28: 0.85 | IK28: 420.3515362
B29: Centro de transformación 34,5 kV / BT | C29: 30 | D29: 3799108.646 | E29: 0 | F29: 2411549.813 | G29: 47185.65 | H29: 0 | I29: 0 | J29: 0 | K29: 121565.18 | L29: 42230 | M29: 0 | N29: 0 | O29: 114271.2609 | P29: 0 | Q29: 0 | R29: 0 | S29: 315516 | T29: 0 | U29: 0 | V29: 0 | W29: 246969.46 | X29: 0 | Y29: 0 | Z29: 0 | AA29: 746934.4 | AB29: 111277 | AC29: 0 | AD29: 0 | AE29: 819508.73 | AF29: 0 | AG29: 0 | AH29: 0 | AI29: 396123.05 | AJ29: 0 | AK29: 0 | AL29: 0 | AM29: 616394.63 | AN29: 0 | AO29: 0 | AP29: 0 | AQ29: 924534.36 | AR29: 0 | AS29: 0 | AT29: 0 | AU29: 984613.1 | AV29: 0 | AW29: 0 | AX29: 0 | AY29: 1229523.27 | AZ29: 0 | BA29: 0 | BB29: 0 | BC29: 1413716.54 | BD29: 0 | BE29: 0 | BF29: 0 | BG29: 687191.7425 | BH29: 687191.7425 | BI29: 518227.84 | BJ29: 1731874.77 | BK29: 0 | BL29: 0 | BM29: 0 | BN29: 2005725.52 | BO29: 0 | BP29: 0 | BQ29: 0 | BR29: 2393365.61 | BS29: 0 | BT29: 0 | BU29: 0 | BV29: 3086448.4 | BW29: 148123.1941 | BX29: 0 | BY29: 0 | BZ29: 3181093.57 | CA29: 196686.0675 | CB29: 0 | CC29: 0 | CD29: 2797232.49 | CE29: 0 | CF29: 0 | CG29: 0 | CH29: 2447494.73 | CI29: 9332.339997 | CJ29: 0 | CK29: 0 | CL29: 2423874.18 | CP29: 1323873.8 | CQ29: 9996.47 | CT29: 2685218.95 | CU29: 327952.12 | CX29: 2525544.62 | CY29: 132676.6098 | DB29: 1990.043018 | DC29: 0 | DD29: 0.2166666667 | DE29: 0.25 | DF29: 0.2833333333 | DG29: 0.3166666667 | DH29: 0.35 | DI29: 0.3833333333 | DJ29: 0.4166666667 | DK29: 0.45 | DL29: 0.4833333333 | DM29: 0.5166666667 | DN29: 0.55 | DO29: 0.5833333333 | DP29: 0.6166666667 | DQ29: 0.3874574125 | DR29: 0.65 | DS29: 0.6833333333 | DT29: 0.7166666667 | DU29: 0.75 | DV29: 0.7833333333 | DW29: 0.8166666667 | DX29: 0.85 | DY29: 0.8833333333 | DZ29: 0.9166666667 | EA29: 0.95 | EB29: 0.9833333333 | EC29: 925360.5663 | ED29: 31559925.64 | EE29: 3799108.646 | EF29: 19987382.81 | EG29: 925360.5663 | EH29: 0 | EI29: 0.1833333333 | EJ29: 0.2166666667 | EK29: 0.25 | EL29: 0.2833333333 | EM29: 0.3166666667 | EN29: 0.35 | EO29: 0.3833333333 | EP29: 0.4166666667 | EQ29: 0.45 | ER29: 0.4833333333 | ES29: 0.5166666667 | ET29: 0.55 | EU29: 0.5833333333 | EV29: 0.5833333333 | EW29: 0.6166666667 | EX29: 0.65 | EY29: 0.6833333333 | EZ29: 0.7166666667 | FA29: 0.75 | FB29: 0.7833333333 | FC29: 0.8166666667 | FD29: 0.85 | FE29: 0.8833333333 | FF29: 0.9166666667 | FG29: 0.95 | FH29: 925360.5663 | FI29: 0 | FJ29: 0.15 | FK29: 0.1833333333 | FL29: 0.2166666667 | FM29: 0.25 | FN29: 0.2833333333 | FO29: 0.3166666667 | FP29: 0.35 | FQ29: 0.3833333333 | FR29: 0.4166666667 | FS29: 0.45 | FT29: 0.4833333333 | FU29: 0.5166666667 | FV29: 0.55 | FW29: 0.55 | FX29: 0.5833333333 | FY29: 0.6166666667 | FZ29: 0.65 | GA29: 0.6833333333 | GB29: 0.7166666667 | GC29: 0.75 | GD29: 0.7833333333 | GE29: 0.8166666667 | GF29: 0.85 | GG29: 0.8833333333 | GH29: 0.9166666667 | GI29: 925360.5663 | GJ29: 0 | GK29: 0.1166666667 | GL29: 0.15 | GM29: 0.1833333333 | GN29: 0.2166666667 | GO29: 0.25 | GP29: 0.2833333333 | GQ29: 0.3166666667 | GR29: 0.35 | GS29: 0.3833333333 | GT29: 0.4166666667 | GU29: 0.45 | GV29: 0.4833333333 | GW29: 0.5166666667 | GX29: 0.5166666667 | GY29: 0.55 | GZ29: 0.5833333333 | HA29: 0.6166666667 | HB29: 0.65 | HC29: 0.6833333333 | HD29: 0.7166666667 | HE29: 0.75 | HF29: 0.7833333333 | HG29: 0.8166666667 | HH29: 0.85 | HI29: 0.8833333333 | HJ29: 925360.5663 | HK29: 0 | HL29: 0.08333333333 | HM29: 0.1166666667 | HN29: 0.15 | HO29: 0.1833333333 | HP29: 0.2166666667 | HQ29: 0.25 | HR29: 0.2833333333 | HS29: 0.3166666667 | HT29: 0.35 | HU29: 0.3833333333 | HV29: 0.4166666667 | HW29: 0.45 | HX29: 0.4833333333 | HY29: 0.4833333333 | HZ29: 0.5166666667 | IA29: 0.55 | IB29: 0.5833333333 | IC29: 0.6166666667 | ID29: 0.65 | IE29: 0.6833333333 | IF29: 0.7166666667 | IG29: 0.75 | IH29: 0.7833333333 | II29: 0.8166666667 | IJ29: 0.85 | IK29: 925360.5663
B30: Centro de transformación 13,8 kV / BT | C30: 30 | D30: 3801860.646 | E30: 0 | F30: 2413152.22 | G30: 86766.888 | H30: 0 | I30: 0 | J30: 0 | K30: 135558.5451 | L30: 0 | M30: 0 | N30: 0 | O30: 115214.1791 | P30: 0 | Q30: 0 | R30: 0 | S30: 115420 | T30: 0 | U30: 0 | V30: 0 | W30: 129961 | X30: 0 | Y30: 0 | Z30: 0 | AA30: 333192 | AB30: 0 | AC30: 0 | AD30: 0 | AE30: 515266.79 | AF30: 0 | AG30: 0 | AH30: 0 | AI30: 330540.91 | AJ30: 0 | AK30: 0 | AL30: 0 | AM30: 462363.19 | AN30: 0 | AO30: 0 | AP30: 0 | AQ30: 804704.22 | AR30: 0 | AS30: 0 | AT30: 0 | AU30: 708124.14 | AV30: 0 | AW30: 0 | AX30: 0 | AY30: 950598.13 | AZ30: 0 | BA30: 0 | BB30: 0 | BC30: 542518.82 | BD30: 0 | BE30: 0 | BF30: 0 | BG30: 0 | BH30: 0 | BI30: 0 | BJ30: 1106379.05 | BK30: 0 | BL30: 0 | BM30: 0 | BN30: 992356.56 | BO30: 0 | BP30: 0 | BQ30: 0 | BR30: 1164492.07 | BS30: 0 | BT30: 0 | BU30: 0 | BV30: 1581532.51 | BW30: 26773.80564 | BX30: 0 | BY30: 0 | BZ30: 1439721.7 | CA30: 116331.6453 | CB30: 0 | CC30: 0 | CD30: 1833762.23 | CE30: 28741.73735 | CF30: 0 | CG30: 0 | CH30: 1270655.66 | CI30: 21137.23675 | CJ30: 0 | CK30: 0 | CL30: 1640369.19 | CP30: 558797.26 | CT30: 828077.88 | CU30: 6128.38 | CX30: 1278320.66 | CY30: 2587.843567 | DB30: 1990.041878 | DC30: 0 | DD30: 0.2166666667 | DE30: 0.25 | DF30: 0.2833333333 | DG30: 0.3166666667 | DH30: 0.35 | DI30: 0.3833333333 | DJ30: 0.4166666667 | DK30: 0.45 | DL30: 0.4833333333 | DM30: 0.5166666667 | DN30: 0.55 | DO30: 0.5833333333 | DP30: 0.6166666667 | DQ30: 0 | DR30: 0.65 | DS30: 0.6833333333 | DT30: 0.7166666667 | DU30: 0.75 | DV30: 0.7833333333 | DW30: 0.8166666667 | DX30: 0.85 | DY30: 0.8833333333 | DZ30: 0.9166666667 | EA30: 0.95 | EB30: 0.9833333333 | EC30: 498922.8353 | ED30: 18769545.71 | EE30: 3801860.646 | EF30: 10753192.54 | EG30: 498922.8353 | EH30: 0 | EI30: 0.1833333333 | EJ30: 0.2166666667 | EK30: 0.25 | EL30: 0.2833333333 | EM30: 0.3166666667 | EN30: 0.35 | EO30: 0.3833333333 | EP30: 0.4166666667 | EQ30: 0.45 | ER30: 0.4833333333 | ES30: 0.5166666667 | ET30: 0.55 | EU30: 0.5833333333 | EV30: 0.5833333333 | EW30: 0.6166666667 | EX30: 0.65 | EY30: 0.6833333333 | EZ30: 0.7166666667 | FA30: 0.75 | FB30: 0.7833333333 | FC30: 0.8166666667 | FD30: 0.85 | FE30: 0.8833333333 | FF30: 0.9166666667 | FG30: 0.95 | FH30: 498922.8353 | FI30: 0 | FJ30: 0.15 | FK30: 0.1833333333 | FL30: 0.2166666667 | FM30: 0.25 | FN30: 0.2833333333 | FO30: 0.3166666667 | FP30: 0.35 | FQ30: 0.3833333333 | FR30: 0.4166666667 | FS30: 0.45 | FT30: 0.4833333333 | FU30: 0.5166666667 | FV30: 0.55 | FW30: 0.55 | FX30: 0.5833333333 | FY30: 0.6166666667 | FZ30: 0.65 | GA30: 0.6833333333 | GB30: 0.7166666667 | GC30: 0.75 | GD30: 0.7833333333 | GE30: 0.8166666667 | GF30: 0.85 | GG30: 0.8833333333 | GH30: 0.9166666667 | GI30: 498922.8353 | GJ30: 0 | GK30: 0.1166666667 | GL30: 0.15 | GM30: 0.1833333333 | GN30: 0.2166666667 | GO30: 0.25 | GP30: 0.2833333333 | GQ30: 0.3166666667 | GR30: 0.35 | GS30: 0.3833333333 | GT30: 0.4166666667 | GU30: 0.45 | GV30: 0.4833333333 | GW30: 0.5166666667 | GX30: 0.5166666667 | GY30: 0.55 | GZ30: 0.5833333333 | HA30: 0.6166666667 | HB30: 0.65 | HC30: 0.6833333333 | HD30: 0.7166666667 | HE30: 0.75 | HF30: 0.7833333333 | HG30: 0.8166666667 | HH30: 0.85 | HI30: 0.8833333333 | HJ30: 498922.8353 | HK30: 0 | HL30: 0.08333333333 | HM30: 0.1166666667 | HN30: 0.15 | HO30: 0.1833333333 | HP30: 0.2166666667 | HQ30: 0.25 | HR30: 0.2833333333 | HS30: 0.3166666667 | HT30: 0.35 | HU30: 0.3833333333 | HV30: 0.4166666667 | HW30: 0.45 | HX30: 0.4833333333 | HY30: 0.4833333333 | HZ30: 0.5166666667 | IA30: 0.55 | IB30: 0.5833333333 | IC30: 0.6166666667 | ID30: 0.65 | IE30: 0.6833333333 | IF30: 0.7166666667 | IG30: 0.75 | IH30: 0.7833333333 | II30: 0.8166666667 | IJ30: 0.85 | IK30: 498922.8353
B31: Otros centros de transformación MT/BT | C31: 30 | D31: 0 | E31: 0 | F31: 0 | G31: 0 | H31: 0 | I31: 0 | J31: 0 | K31: 0 | L31: 0 | M31: 0 | N31: 0 | O31: 0 | P31: 0 | Q31: 0 | R31: 0 | S31: 0 | T31: 0 | U31: 0 | V31: 0 | W31: 0 | X31: 0 | Y31: 0 | Z31: 0 | AA31: 0 | AB31: 0 | AC31: 0 | AD31: 0 | AE31: 0 | AF31: 0 | AG31: 0 | AH31: 0 | AI31: 0 | AJ31: 0 | AK31: 0 | AL31: 0 | AM31: 0 | AN31: 0 | AO31: 0 | AP31: 0 | AQ31: 0 | AR31: 0 | AS31: 0 | AT31: 0 | AU31: 0 | AV31: 0 | AW31: 0 | AX31: 0 | AY31: 0 | AZ31: 0 | BA31: 0 | BB31: 0 | BC31: 103431.25 | BD31: 0 | BE31: 0 | BF31: 0 | BG31: 0 | BH31: 0 | BI31: 0 | BJ31: 200492.76 | BK31: 0 | BL31: 0 | BM31: 0 | BN31: 245725.63 | BO31: 0 | BP31: 0 | BQ31: 0 | BR31: 204223.87 | BS31: 0 | BT31: 0 | BU31: 0 | BV31: 258262.68 | BW31: 40764.15972 | BX31: 0 | BY31: 0 | BZ31: 252698.08 | CA31: 12196.21812 | CB31: 0 | CC31: 0 | CD31: 487786.05 | CE31: 0 | CF31: 0 | CG31: 0 | CH31: 226390.16 | CI31: 0 | CJ31: 0 | CK31: 0 | CL31: 367558.94 | CP31: 338991.51 | CT31: 300152.33 | CX31: 0 | CY31: 0 | DB31: 0 | DC31: 0 | DD31: 0.2166666667 | DE31: 0.25 | DF31: 0.2833333333 | DG31: 0.3166666667 | DH31: 0.35 | DI31: 0.3833333333 | DJ31: 0.4166666667 | DK31: 0.45 | DL31: 0.4833333333 | DM31: 0.5166666667 | DN31: 0.55 | DO31: 0.5833333333 | DP31: 0.6166666667 | DQ31: 0 | DR31: 0.65 | DS31: 0.6833333333 | DT31: 0.7166666667 | DU31: 0.75 | DV31: 0.7833333333 | DW31: 0.8166666667 | DX31: 0.85 | DY31: 0.8833333333 | DZ31: 0.9166666667 | EA31: 0.95 | EB31: 0.9833333333 | EC31: 79277.38236 | ED31: 2378321.471 | EE31: 0 | EF31: 1909395.146 | EG31: 79277.38236 | EH31: 0 | EI31: 0.1833333333 | EJ31: 0.2166666667 | EK31: 0.25 | EL31: 0.2833333333 | EM31: 0.3166666667 | EN31: 0.35 | EO31: 0.3833333333 | EP31: 0.4166666667 | EQ31: 0.45 | ER31: 0.4833333333 | ES31: 0.5166666667 | ET31: 0.55 | EU31: 0.5833333333 | EV31: 0.5833333333 | EW31: 0.6166666667 | EX31: 0.65 | EY31: 0.6833333333 | EZ31: 0.7166666667 | FA31: 0.75 | FB31: 0.7833333333 | FC31: 0.8166666667 | FD31: 0.85 | FE31: 0.8833333333 | FF31: 0.9166666667 | FG31: 0.95 | FH31: 79277.38236 | FI31: 0 | FJ31: 0.15 | FK31: 0.1833333333 | FL31: 0.2166666667 | FM31: 0.25 | FN31: 0.2833333333 | FO31: 0.3166666667 | FP31: 0.35 | FQ31: 0.3833333333 | FR31: 0.4166666667 | FS31: 0.45 | FT31: 0.4833333333 | FU31: 0.5166666667 | FV31: 0.55 | FW31: 0.55 | FX31: 0.5833333333 | FY31: 0.6166666667 | FZ31: 0.65 | GA31: 0.6833333333 | GB31: 0.7166666667 | GC31: 0.75 | GD31: 0.7833333333 | GE31: 0.8166666667 | GF31: 0.85 | GG31: 0.8833333333 | GH31: 0.9166666667 | GI31: 79277.38236 | GJ31: 0 | GK31: 0.1166666667 | GL31: 0.15 | GM31: 0.1833333333 | GN31: 0.2166666667 | GO31: 0.25 | GP31: 0.2833333333 | GQ31: 0.3166666667 | GR31: 0.35 | GS31: 0.3833333333 | GT31: 0.4166666667 | GU31: 0.45 | GV31: 0.4833333333 | GW31: 0.5166666667 | GX31: 0.5166666667 | GY31: 0.55 | GZ31: 0.5833333333 | HA31: 0.6166666667 | HB31: 0.65 | HC31: 0.6833333333 | HD31: 0.7166666667 | HE31: 0.75 | HF31: 0.7833333333 | HG31: 0.8166666667 | HH31: 0.85 | HI31: 0.8833333333 | HJ31: 79277.38236 | HK31: 0 | HL31: 0.08333333333 | HM31: 0.1166666667 | HN31: 0.15 | HO31: 0.1833333333 | HP31: 0.2166666667 | HQ31: 0.25 | HR31: 0.2833333333 | HS31: 0.3166666667 | HT31: 0.35 | HU31: 0.3833333333 | HV31: 0.4166666667 | HW31: 0.45 | HX31: 0.4833333333 | HY31: 0.4833333333 | HZ31: 0.5166666667 | IA31: 0.55 | IB31: 0.5833333333 | IC31: 0.6166666667 | ID31: 0.65 | IE31: 0.6833333333 | IF31: 0.7166666667 | IG31: 0.75 | IH31: 0.7833333333 | II31: 0.8166666667 | IJ31: 0.85 | IK31: 79277.38236
B32: Baja tensión BT (<600V) | D32: 0 | E32: 0 | F32: 0 | G32: 0 | H32: 0 | I32: 0 | J32: 0 | K32: 0 | L32: 0 | M32: 0 | N32: 0 | O32: 0 | P32: 0 | Q32: 0 | R32: 0 | S32: 0 | T32: 0 | U32: 0 | V32: 0 | W32: 0 | X32: 0 | Y32: 0 | Z32: 0 | AA32: 0 | AB32: 0 | AC32: 0 | AD32: 0 | AE32: 0 | AF32: 0 | AG32: 0 | AH32: 0 | AI32: 0 | AJ32: 0 | AK32: 0 | AL32: 0 | AM32: 0 | AN32: 0 | AO32: 0 | AP32: 0 | AQ32: 0 | AR32: 0 | AS32: 0 | AT32: 0 | AU32: 0 | AV32: 0 | AW32: 0 | AX32: 0 | AY32: 0 | AZ32: 0 | BA32: 0 | BB32: 0 | BC32: 0 | BD32: 0 | BE32: 0 | BF32: 0 | BG32: 0 | BH32: 0 | BI32: 0 | BJ32: 0 | BK32: 0 | BL32: 0 | BM32: 0 | BN32: 0 | BO32: 0 | BP32: 0 | BQ32: 0 | BR32: 0 | BS32: 0 | BT32: 0 | BU32: 0 | BV32: 0 | BW32: 0 | BX32: 0 | BY32: 0 | BZ32: 0 | CA32: 0 | CB32: 0 | CC32: 0 | CD32: 0 | CE32: 0 | CF32: 0 | CG32: 0 | CH32: 0 | CI32: 0 | CJ32: 0 | CK32: 0 | CL32: 0 | CP32: 0 | CT32: 0 | CX32: 0 | CY32: 0 | FH32: 0 | GI32: 0 | HJ32: 0 | IK32: 0
B33: Líneas aéreas BT | C33: 30 | D33: 0 | E33: 0 | F33: 0 | G33: 357372.88 | H33: 0 | I33: 0 | J33: 0 | K33: 543253.56 | L33: 0 | M33: 0 | N33: 0 | O33: 737930 | P33: 0 | Q33: 0 | R33: 0 | S33: 616404 | T33: 0 | U33: 0 | V33: 0 | W33: 908729 | X33: 0 | Y33: 0 | Z33: 0 | AA33: 1034380.58 | AB33: 55639 | AC33: 0 | AD33: 0 | AE33: 1297534 | AF33: 0 | AG33: 0 | AH33: 0 | AI33: 1402601.7 | AJ33: 0 | AK33: 0 | AL33: 0 | AM33: 1130909.52 | AN33: 0 | AO33: 0 | AP33: 0 | AQ33: 1272704.24 | AR33: 0 | AS33: 0 | AT33: 0 | AU33: 1171006 | AV33: 0 | AW33: 0 | AX33: 0 | AY33: 1787672.04 | AZ33: 0 | BA33: 0 | BB33: 0 | BC33: 1674946.82 | BD33: 0 | BE33: 0 | BF33: 0 | BG33: 260770.204 | BH33: 260770.204 | BI33: 196653.09 | BJ33: 2241612.76 | BK33: 0 | BL33: 0 | BM33: 0 | BN33: 2116636.46 | BO33: 0 | BP33: 0 | BQ33: 0 | BR33: 2073343.05 | BS33: 7541.66 | BT33: 0 | BU33: 0 | BV33: 2675996.07 | BW33: 492379.496 | BX33: 0 | BY33: 0 | BZ33: 3711583.07 | CA33: 748219.6784 | CB33: 0 | CC33: 0 | CD33: 3527616.56 | CE33: 133227.4047 | CF33: 0 | CG33: 0 | CH33: 3914894.23 | CI33: 35647.34703 | CJ33: 0 | CK33: 0 | CL33: 4296729.32 | CP33: 4006016.34 | CQ33: 38812.34 | CT33: 5248523.86 | CU33: 412781.24 | CX33: 5023319.14 | CY33: 167401.1922 | DB33: =IF(D33=0,0,2001-(D33-F33)*C33/D33) -> 0 | DC33: =IF((1-($EC$2-$DB33)/$C33)>0,(1-($EC$2-$DB33)/$C33),0) -> 0 | DD33: =IF((1-($EC$2-G$2)/$C33)>0,(1-($EC$2-G$2)/$C33),0) -> 0.2166666667 | DE33: =IF((1-($EC$2-K$2)/$C33)>0,(1-($EC$2-K$2)/$C33),0) -> 0.25 | DF33: =IF((1-($EC$2-O$2)/$C33)>0,(1-($EC$2-O$2)/$C33),0) -> 0.2833333333 | DG33: =IF((1-($EC$2-S$2)/$C33)>0,(1-($EC$2-S$2)/$C33),0) -> 0.3166666667 | DH33: =IF((1-($EC$2-W$2)/$C33)>0,(1-($EC$2-W$2)/$C33),0) -> 0.35 | DI33: =IF((1-($EC$2-AA$2)/$C33)>0,(1-($EC$2-AA$2)/$C33),0) -> 0.3833333333 | DJ33: =IF((1-($EC$2-AE$2)/$C33)>0,(1-($EC$2-AE$2)/$C33),0) -> 0.4166666667 | DK33: =IF((1-($EC$2-AI$2)/$C33)>0,(1-($EC$2-AI$2)/$C33),0) -> 0.45 | DL33: =IF((1-($EC$2-AM$2)/$C33)>0,(1-($EC$2-AM$2)/$C33),0) -> 0.4833333333 | DM33: =IF((1-($EC$2-AQ$2)/$C33)>0,(1-($EC$2-AQ$2)/$C33),0) -> 0.5166666667 | DN33: =IF((1-($EC$2-AU$2)/$C33)>0,(1-($EC$2-AU$2)/$C33),0) -> 0.55 | DO33: =IF((1-($EC$2-AY$2)/$C33)>0,(1-($EC$2-AY$2)/$C33),0) -> 0.5833333333 | DP33: =IF((1-($EC$2-BC$2)/$C33)>0,(1-($EC$2-BC$2)/$C33),0) -> 0.6166666667 | DQ33: =IF(BG33=0,0,1-($EC$2-(2014.5-(BG33-BI33)*C33/BG33))/C33) -> 0.3874574125 | DR33: =IF((1-($EC$2-BJ$2)/$C33)>0,(1-($EC$2-BJ$2)/$C33),0) -> 0.65 | DS33: =IF((1-($EC$2-BN$2)/$C33)>0,(1-($EC$2-BN$2)/$C33),0) -> 0.6833333333 | DT33: =IF((1-($EC$2-BR$2)/$C33)>0,(1-($EC$2-BR$2)/$C33),0) -> 0.7166666667 | DU33: =IF((1-($EC$2-BV$2)/$C33)>0,(1-($EC$2-BV$2)/$C33),0) -> 0.75 | DV33: =IF((1-($EC$2-BZ$2)/$C33)>0,(1-($EC$2-BZ$2)/$C33),0) -> 0.7833333333 | DW33: =IF((1-($EC$2-CD$2)/$C33)>0,(1-($EC$2-CD$2)/$C33),0) -> 0.8166666667 | DX33: =IF((1-($EC$2-CH$2)/$C33)>0,(1-($EC$2-CH$2)/$C33),0) -> 0.85 | DY33: =IF((1-($EC$2-CL$2)/$C33)>0,(1-($EC$2-CL$2)/$C33),0) -> 0.8833333333 | DZ33: =IF((1-($EC$2-CP$2)/$C33)>0,(1-($EC$2-CP$2)/$C33),0) -> 0.9166666667 | EA33: =IF((1-($EC$2-CT$2)/$C33)>0,(1-($EC$2-CT$2)/$C33),0) -> 0.95 | EB33: =IF((1-($EC$2-CX$2)/$C33)>0,(1-($EC$2-CX$2)/$C33),0) -> 0.9833333333 | EC33: =IF(DC33=0,0,($D33-$E33)*1/$C33)+IF(DD33=0,0,($G33-$H33-$I33)*$G$61*1/$C33)+IF(DE33=0,0,($K33-$L33-$M33)*$K$61*1/$C33)+IF(DF33=0,0,($O33-$P33-$Q33)*$O$61*1/$C33)+IF(DG33=0,0,($S33-$T33-$U33)*$S$61*1/$C33)+IF(DH33=0,0,($W33-$X33-$Y33)*$W$61*1/$C33)+IF(DI33=0,0,($AA33-$AB33-$AC33)*$AA$61*1/$C33)+IF(DJ33=0,0,($AE33-$AF33-$AG33)*$AE$61*1/$C33)+IF(DK33=0,0,($AI33-$AJ33-$AK33)*$AI$61*1/$C33)+IF(DL33=0,0,($AM33-$AN33-$AO33)*$AM$61*1/$C33)+IF(DM33=0,0,($AQ33-$AR33-$AS33)*$AQ$61*1/$C33)+IF(DN33=0,0,($AU33-$V33-$AW33)*$AU$61*1/$C33)+IF(DO33=0,0,($AY33-$AZ33-$BA33)*$AY$61*1/$C33)+IF(DP33=0,0,($BC33-$BD33-$BE33)*$BC$61*1/$C33)+IF(DQ33=0,0,$BG33*1/$C33)+IF(DR33=0,0,($BJ33-$BK33-$BL33)*$BJ$61*1/$C33)+IF(DS33=0,0,($BN33-$BO33-$BP33)*$BN$61*1/$C33)+IF(DT33=0,0,($BR33-$BS33-$BT33)*$BR$61*1/$C33)+IF(DU33=0,0,($BV33-$BW33-$BX33)*$BV$61*1/$C33)+IF(DV33=0,0,($BZ33-$CA33-$CB33)*$BZ$61*1/$C33)+IF(DW33=0,0,($CD33-$CE33-$CF33)*$CD$61*1/$C33)+IF(DX33=0,0,($CH33-$CI33-$CJ33)*$CH$61*1/$C33)+IF(DY33=0,0,($CL33-$CM33-$CN33)*$CL$61*1/$C33)+IF(DZ33=0,0,($CP33-$CQ33-$CR33)*$CP$61*1/$C33)+IF(EA33=0,0,($CT33-$CU33-$CV33)*$CT$61*1/$C33)+IF(EB33=0,0,($CX33-$CY33-$CZ33)*$CX$61*1/$C33) -> 1347809.272 | ED33: =D33-E33+(G33-H33-I33)*G$61+(K33-L33-M33)*K$61+(O33-P33-Q33)*O$61+(S33-T33-U33)*S$61+(W33-X33-Y33)*W$61+(AA33-AB33-AC33)*AA$61+(AE33-AF33-AG33)*AE$61+(AI33-AJ33-AK33)*AI$61+(AM33-AN33-AO33)*AM$61+(AQ33-AR33-AS33)*$AQ$61+(AU33-AV33-AW33)*$AU$61+(AY33-AZ33-BA33)*$AY$61+(BC33-BD33-BE33)*$BC$61+BG33+(BJ33-BK33-BL33)*$BJ$61+(BN33-BO33-BP33)*$BN$61+(BR33-BS33-BT33)*$BR$61+(BV33-BW33-BX33)*$BV$61+(BZ33-CA33-CB33)*$BZ$61+(CD33-CE33-CF33)*$CD$61+(CH33-CI33-CJ33)*$CH$61+(CL33-CM33-CN33)*$CL$61+(CP33-CQ33-CR33)*$CP$61+(CT33-CU33-CV33)*$CT$61+(CX33-CY33-CZ33)*$CX$61 -> 40434278.16 | EE33: =IF(DC33=0,D33-E33,0)+IF(DD33=0,(G33-H33-I33)*G$61,0)+IF(DE33=0,(K33-L33-M33)*K$61,0)+IF(DF33=0,(O33-P33-Q33)*O$61,0)+IF(DG33=0,(S33-T33-U33)*S$61,0)+IF(DH33=0,(W33-X33-Y33)*W$61,0)+IF(DI33=0,(AA33-AB33-AC33)*AA$61,0)+IF(DJ33=0,(AE33-AF33-AG33)*AE$61,0)+IF(DK33=0,(AI33-AJ33-AK33)*AI$61,0)+IF(DL33=0,(AM33-AN33-AO33)*AM$61,0)+IF(DM33=0,(AQ33-AR33-AS33)*$AQ$61,0)+IF(DN33=0,(AU33-AV33-AW33)*$AU$61,0)+IF(DO33=0,(AY33-AZ33-BA33)*$AY$61,0)++IF(DP33=0,(BC33-BD33-BE33)*$BC$61,0)+IF(DQ33=0,BG33,0)+IF(DR33=0,(BJ33-BK33-BL33)*$BJ$61,0)+IF(DS33=0,(BN33-BO33-BP33)*$BN$61,0)+IF(DT33=0,(BR33-BS33-BT33)*$BR$61,0)+IF(DU33=0,(BV33-BW33-BX33)*$BV$61,0)+IF(DV33=0,(BZ33-CA33-CB33)*$BZ$61,0)+IF(DW33=0,(CD33-CE33-CF33)*$CD$61,0)+IF(DX33=0,(CH33-CI33-CJ33)*$CH$61,0)+IF(DY33=0,(CL33-CM33-CN33)*$CL$61,0)+IF(DZ33=0,(CP33-CQ33-CR33)*$CP$61,0)+IF(EA33=0,(CT33-CU33-CV33)*$CT$61,0)+IF(EB33=0,(CX33-CY33-CZ33)*$CX$61,0) -> 0 | EF33: =(D33-E33)*DC33+((G33-H33-(I33-J33))*G$61)*DD33+((K33-L33-(M33-N33))*K$61)*DE33+((O33-P33-(Q33-R33))*O$61)*DF33+((S33-T33-(U33-V33))*S$61)*DG33+((W33-X33-(Y33-Z33))*W$61)*DH33+((AA33-AB33-(AC33-AD33))*AA$61)*DI33+((AE33-AF33-(AG33-AH33))*AE$61)*DJ33+((AI33-AJ33-(AK33-AL33))*AI$61)*DK33+((AM33-AN33-(AO33-AP33))*$AM$61)*DL33+((AQ33-AR33-(AS33-AT33))*$AQ$61)*DM33+((AU33-AV33-(AW33-AX33))*$AU$61)*DN33+((AY33-AZ33-(BA33-BB33))*$AY$61)*DO33+((BC33-BD33-(BE33-BF33))*$BC$61)*DP33+((BJ33-BK33-(BL33-BM33))*$BJ$61)*DR33+(BG33-BH33)*DQ33+((BN33-BO33-(BP33-BQ33))*$BN$61)*DS33+((BR33-BS33-(BT33-BU33))*$BR$61)*DT33+((BV33-BW33-(BX33-BY33))*$BV$61)*DU33+((BZ33-CA33-(CB33-CC33))*$BZ$61)*DV33+((CD33-CE33-(CF33-CG33))*$CD$61)*DW33+((CH33-CI33-(CJ33-CK33))*$CH$61)*DX33+((CL33-CM33-(CN33-CO33))*$CL$61)*DY33+((CP33-CQ33-(CR33-CS33))*$CP$61)*DZ33+((CT33-CU33-(CV33-CW33))*$CT$61)*EA33+((CX33-CY33-(CZ33-DA33))*$CX$61)*EB33 -> 29500605.27 | EG33: 1347809.272 | EH33: =IF((1-($FH$2-$DB33)/$C33)>0,(1-($FH$2-$DB33)/$C33),0) -> 0 | EI33: =IF((1-($FH$2-EI$2)/$C33)>0,(1-($FH$2-EI$2)/$C33),0) -> 0.1833333333 | EJ33: 0.2166666667 | EK33: 0.25 | EL33: 0.2833333333 | EM33: 0.3166666667 | EN33: 0.35 | EO33: 0.3833333333 | EP33: 0.4166666667 | EQ33: 0.45 | ER33: 0.4833333333 | ES33: =IF((1-($FH$2-ES$2)/$C33)>0,(1-($FH$2-ES$2)/$C33),0) -> 0.5166666667 | ET33: 0.55 | EU33: 0.5833333333 | EV33: 0.5833333333 | EW33: 0.6166666667 | EX33: 0.65 | EY33: 0.6833333333 | EZ33: 0.7166666667 | FA33: 0.75 | FB33: 0.7833333333 | FC33: 0.8166666667 | FD33: 0.85 | FE33: =IF((1-($FH$2-FE$2)/$C33)>0,(1-($FH$2-FE$2)/$C33),0) -> 0.8833333333 | FF33: 0.9166666667 | FG33: 0.95 | FH33: 1347809.272 | FI33: =IF((1-($GI$2-$DB33)/$C33)>0,(1-($GI$2-$DB33)/$C33),0) -> 0 | FJ33: =IF((1-($GI$2-FJ$2)/$C33)>0,(1-($GI$2-FJ$2)/$C33),0) -> 0.15 | FK33: 0.1833333333 | FL33: 0.2166666667 | FM33: 0.25 | FN33: 0.2833333333 | FO33: 0.3166666667 | FP33: 0.35 | FQ33: 0.3833333333 | FR33: 0.4166666667 | FS33: 0.45 | FT33: =IF((1-($GI$2-FT$2)/$C33)>0,(1-($GI$2-FT$2)/$C33),0) -> 0.4833333333 | FU33: 0.5166666667 | FV33: 0.55 | FW33: 0.55 | FX33: 0.5833333333 | FY33: 0.6166666667 | FZ33: 0.65 | GA33: 0.6833333333 | GB33: 0.7166666667 | GC33: 0.75 | GD33: 0.7833333333 | GE33: 0.8166666667 | GF33: =IF((1-($GI$2-GF$2)/$C33)>0,(1-($GI$2-GF$2)/$C33),0) -> 0.85 | GG33: 0.8833333333 | GH33: 0.9166666667 | GI33: 1347809.272 | GJ33: =IF((1-($HJ$2-$DB33)/$C33)>0,(1-($HJ$2-$DB33)/$C33),0) -> 0 | GK33: =IF((1-($HJ$2-GK$2)/$C33)>0,(1-($HJ$2-GK$2)/$C33),0) -> 0.1166666667 | GL33: 0.15 | GM33: 0.1833333333 | GN33: 0.2166666667 | GO33: 0.25 | GP33: 0.2833333333 | GQ33: 0.3166666667 | GR33: 0.35 | GS33: 0.3833333333 | GT33: 0.4166666667 | GU33: =IF((1-($HJ$2-GU$2)/$C33)>0,(1-($HJ$2-GU$2)/$C33),0) -> 0.45 | GV33: 0.4833333333 | GW33: 0.5166666667 | GX33: 0.5166666667 | GY33: 0.55 | GZ33: 0.5833333333 | HA33: 0.6166666667 | HB33: 0.65 | HC33: 0.6833333333 | HD33: 0.7166666667 | HE33: 0.75 | HF33: 0.7833333333 | HG33: =IF((1-($HJ$2-HG$2)/$C33)>0,(1-($HJ$2-HG$2)/$C33),0) -> 0.8166666667 | HH33: 0.85 | HI33: 0.8833333333 | HJ33: 1347809.272 | HK33: =IF((1-($IK$2-$DB33)/$C33)>0,(1-($IK$2-$DB33)/$C33),0) -> 0 | HL33: =IF((1-($IK$2-HL$2)/$C33)>0,(1-($IK$2-HL$2)/$C33),0) -> 0.08333333333 | HM33: 0.1166666667 | HN33: 0.15 | HO33: 0.1833333333 | HP33: 0.2166666667 | HQ33: 0.25 | HR33: 0.2833333333 | HS33: 0.3166666667 | HT33: 0.35 | HU33: 0.3833333333 | HV33: =IF((1-($IK$2-HV$2)/$C33)>0,(1-($IK$2-HV$2)/$C33),0) -> 0.4166666667 | HW33: 0.45 | HX33: 0.4833333333 | HY33: 0.4833333333 | HZ33: 0.5166666667 | IA33: 0.55 | IB33: 0.5833333333 | IC33: 0.6166666667 | ID33: 0.65 | IE33: 0.6833333333 | IF33: 0.7166666667 | IG33: 0.75 | IH33: =IF((1-($IK$2-IH$2)/$C33)>0,(1-($IK$2-IH$2)/$C33),0) -> 0.7833333333 | II33: 0.8166666667 | IJ33: 0.85 | IK33: 1347809.272
B34: Líneas subterráneas BT | C34: 30 | D34: 0 | E34: 0 | F34: 0 | G34: 20855.34 | H34: 0 | I34: 0 | J34: 0 | K34: 31716.79 | L34: 0 | M34: 0 | N34: 0 | O34: 45392.1 | P34: 0 | Q34: 0 | R34: 0 | S34: 55532 | T34: 0 | U34: 0 | V34: 0 | W34: 21527.58 | X34: 0 | Y34: 0 | Z34: 0 | AA34: 69879.69 | AB34: 0 | AC34: 0 | AD34: 0 | AE34: 167603.6 | AF34: 0 | AG34: 0 | AH34: 0 | AI34: 114363.29 | AJ34: 0 | AK34: 0 | AL34: 0 | AM34: 128319.81 | AN34: 0 | AO34: 0 | AP34: 0 | AQ34: 45878.89 | AR34: 0 | AS34: 0 | AT34: 0 | AU34: 78988.77 | AV34: 0 | AW34: 0 | AX34: 0 | AY34: 165321.32 | AZ34: 0 | BA34: 0 | BB34: 0 | BC34: 329359.54 | BD34: 0 | BE34: 0 | BF34: 0 | BG34: 0 | BH34: 0 | BI34: 0 | BJ34: 502319.07 | BK34: 0 | BL34: 0 | BM34: 0 | BN34: 584095.52 | BO34: 0 | BP34: 0 | BQ34: 0 | BR34: 1656958.05 | BS34: 7315.61 | BT34: 0 | BU34: 0 | BV34: 3269374.29 | BW34: 2122.376849 | BX34: 0 | BY34: 0 | BZ34: 871104.23 | CA34: 7083.069252 | CB34: 0 | CC34: 0 | CD34: 927944.38 | CE34: 0 | CF34: 0 | CG34: 0 | CH34: 565782.82 | CI34: 10213.72361 | CJ34: 0 | CK34: 0 | CL34: 1055983.78 | CP34: 347804.18 | CT34: 1200533.42 | CU34: 30077.73 | CX34: 1060072.54 | CY34: 12242.94969 | DB34: =IF(D34=0,0,2001-(D34-F34)*C34/D34) -> 0 | DC34: =IF((1-($EC$2-$DB34)/$C34)>0,(1-($EC$2-$DB34)/$C34),0) -> 0 | DD34: =IF((1-($EC$2-G$2)/$C34)>0,(1-($EC$2-G$2)/$C34),0) -> 0.2166666667 | DE34: =IF((1-($EC$2-K$2)/$C34)>0,(1-($EC$2-K$2)/$C34),0) -> 0.25 | DF34: =IF((1-($EC$2-O$2)/$C34)>0,(1-($EC$2-O$2)/$C34),0) -> 0.2833333333 | DG34: =IF((1-($EC$2-S$2)/$C34)>0,(1-($EC$2-S$2)/$C34),0) -> 0.3166666667 | DH34: =IF((1-($EC$2-W$2)/$C34)>0,(1-($EC$2-W$2)/$C34),0) -> 0.35 | DI34: =IF((1-($EC$2-AA$2)/$C34)>0,(1-($EC$2-AA$2)/$C34),0) -> 0.3833333333 | DJ34: =IF((1-($EC$2-AE$2)/$C34)>0,(1-($EC$2-AE$2)/$C34),0) -> 0.4166666667 | DK34: =IF((1-($EC$2-AI$2)/$C34)>0,(1-($EC$2-AI$2)/$C34),0) -> 0.45 | DL34: =IF((1-($EC$2-AM$2)/$C34)>0,(1-($EC$2-AM$2)/$C34),0) -> 0.4833333333 | DM34: =IF((1-($EC$2-AQ$2)/$C34)>0,(1-($EC$2-AQ$2)/$C34),0) -> 0.5166666667 | DN34: =IF((1-($EC$2-AU$2)/$C34)>0,(1-($EC$2-AU$2)/$C34),0) -> 0.55 | DO34: =IF((1-($EC$2-AY$2)/$C34)>0,(1-($EC$2-AY$2)/$C34),0) -> 0.5833333333 | DP34: =IF((1-($EC$2-BC$2)/$C34)>0,(1-($EC$2-BC$2)/$C34),0) -> 0.6166666667 | DQ34: =IF(BG34=0,0,1-($EC$2-(2014.5-(BG34-BI34)*C34/BG34))/C34) -> 0 | DR34: =IF((1-($EC$2-BJ$2)/$C34)>0,(1-($EC$2-BJ$2)/$C34),0) -> 0.65 | DS34: =IF((1-($EC$2-BN$2)/$C34)>0,(1-($EC$2-BN$2)/$C34),0) -> 0.6833333333 | DT34: =IF((1-($EC$2-BR$2)/$C34)>0,(1-($EC$2-BR$2)/$C34),0) -> 0.7166666667 | DU34: =IF((1-($EC$2-BV$2)/$C34)>0,(1-($EC$2-BV$2)/$C34),0) -> 0.75 | DV34: =IF((1-($EC$2-BZ$2)/$C34)>0,(1-($EC$2-BZ$2)/$C34),0) -> 0.7833333333 | DW34: =IF((1-($EC$2-CD$2)/$C34)>0,(1-($EC$2-CD$2)/$C34),0) -> 0.8166666667 | DX34: =IF((1-($EC$2-CH$2)/$C34)>0,(1-($EC$2-CH$2)/$C34),0) -> 0.85 | DY34: 0.8833333333 | DZ34: 0.9166666667 | EA34: 0.95 | EB34: 0.9833333333 | EC34: =IF(DC34=0,0,($D34-$E34)*1/$C34)+IF(DD34=0,0,($G34-$H34-$I34)*$G$61*1/$C34)+IF(DE34=0,0,($K34-$L34-$M34)*$K$61*1/$C34)+IF(DF34=0,0,($O34-$P34-$Q34)*$O$61*1/$C34)+IF(DG34=0,0,($S34-$T34-$U34)*$S$61*1/$C34)+IF(DH34=0,0,($W34-$X34-$Y34)*$W$61*1/$C34)+IF(DI34=0,0,($AA34-$AB34-$AC34)*$AA$61*1/$C34)+IF(DJ34=0,0,($AE34-$AF34-$AG34)*$AE$61*1/$C34)+IF(DK34=0,0,($AI34-$AJ34-$AK34)*$AI$61*1/$C34)+IF(DL34=0,0,($AM34-$AN34-$AO34)*$AM$61*1/$C34)+IF(DM34=0,0,($AQ34-$AR34-$AS34)*$AQ$61*1/$C34)+IF(DN34=0,0,($AU34-$V34-$AW34)*$AU$61*1/$C34)+IF(DO34=0,0,($AY34-$AZ34-$BA34)*$AY$61*1/$C34)+IF(DP34=0,0,($BC34-$BD34-$BE34)*$BC$61*1/$C34)+IF(DQ34=0,0,$BG34*1/$C34)+IF(DR34=0,0,($BJ34-$BK34-$BL34)*$BJ$61*1/$C34)+IF(DS34=0,0,($BN34-$BO34-$BP34)*$BN$61*1/$C34)+IF(DT34=0,0,($BR34-$BS34-$BT34)*$BR$61*1/$C34)+IF(DU34=0,0,($BV34-$BW34-$BX34)*$BV$61*1/$C34)+IF(DV34=0,0,($BZ34-$CA34-$CB34)*$BZ$61*1/$C34)+IF(DW34=0,0,($CD34-$CE34-$CF34)*$CD$61*1/$C34)+IF(DX34=0,0,($CH34-$CI34-$CJ34)*$CH$61*1/$C34)+IF(DY34=0,0,($CL34-$CM34-$CN34)*$CL$61*1/$C34)+IF(DZ34=0,0,($CP34-$CQ34-$CR34)*$CP$61*1/$C34)+IF(EA34=0,0,($CT34-$CU34-$CV34)*$CT$61*1/$C34)+IF(EB34=0,0,($CX34-$CY34-$CZ34)*$CX$61*1/$C34) -> 360625.908 | ED34: =D34-E34+(G34-H34-I34)*G$61+(K34-L34-M34)*K$61+(O34-P34-Q34)*O$61+(S34-T34-U34)*S$61+(W34-X34-Y34)*W$61+(AA34-AB34-AC34)*AA$61+(AE34-AF34-AG34)*AE$61+(AI34-AJ34-AK34)*AI$61+(AM34-AN34-AO34)*AM$61+(AQ34-AR34-AS34)*$AQ$61+(AU34-AV34-AW34)*$AU$61+(AY34-AZ34-BA34)*$AY$61+(BC34-BD34-BE34)*$BC$61+BG34+(BJ34-BK34-BL34)*$BJ$61+(BN34-BO34-BP34)*$BN$61+(BR34-BS34-BT34)*$BR$61+(BV34-BW34-BX34)*$BV$61+(BZ34-CA34-CB34)*$BZ$61+(CD34-CE34-CF34)*$CD$61+(CH34-CI34-CJ34)*$CH$61+(CL34-CM34-CN34)*$CL$61+(CP34-CQ34-CR34)*$CP$61+(CT34-CU34-CV34)*$CT$61+(CX34-CY34-CZ34)*$CX$61 -> 10818777.24 | EE34: =IF(DC34=0,D34-E34,0)+IF(DD34=0,(G34-H34-I34)*G$61,0)+IF(DE34=0,(K34-L34-M34)*K$61,0)+IF(DF34=0,(O34-P34-Q34)*O$61,0)+IF(DG34=0,(S34-T34-U34)*S$61,0)+IF(DH34=0,(W34-X34-Y34)*W$61,0)+IF(DI34=0,(AA34-AB34-AC34)*AA$61,0)+IF(DJ34=0,(AE34-AF34-AG34)*AE$61,0)+IF(DK34=0,(AI34-AJ34-AK34)*AI$61,0)+IF(DL34=0,(AM34-AN34-AO34)*AM$61,0)+IF(DM34=0,(AQ34-AR34-AS34)*$AQ$61,0)+IF(DN34=0,(AU34-AV34-AW34)*$AU$61,0)+IF(DO34=0,(AY34-AZ34-BA34)*$AY$61,0)++IF(DP34=0,(BC34-BD34-BE34)*$BC$61,0)+IF(DQ34=0,BG34,0)+IF(DR34=0,(BJ34-BK34-BL34)*$BJ$61,0)+IF(DS34=0,(BN34-BO34-BP34)*$BN$61,0)+IF(DT34=0,(BR34-BS34-BT34)*$BR$61,0)+IF(DU34=0,(BV34-BW34-BX34)*$BV$61,0)+IF(DV34=0,(BZ34-CA34-CB34)*$BZ$61,0)+IF(DW34=0,(CD34-CE34-CF34)*$CD$61,0)+IF(DX34=0,(CH34-CI34-CJ34)*$CH$61,0)+IF(DY34=0,(CL34-CM34-CN34)*$CL$61,0)+IF(DZ34=0,(CP34-CQ34-CR34)*$CP$61,0)+IF(EA34=0,(CT34-CU34-CV34)*$CT$61,0)+IF(EB34=0,(CX34-CY34-CZ34)*$CX$61,0) -> 0 | EF34: =(D34-E34)*DC34+((G34-H34-(I34-J34))*G$61)*DD34+((K34-L34-(M34-N34))*K$61)*DE34+((O34-P34-(Q34-R34))*O$61)*DF34+((S34-T34-(U34-V34))*S$61)*DG34+((W34-X34-(Y34-Z34))*W$61)*DH34+((AA34-AB34-(AC34-AD34))*AA$61)*DI34+((AE34-AF34-(AG34-AH34))*AE$61)*DJ34+((AI34-AJ34-(AK34-AL34))*AI$61)*DK34+((AM34-AN34-(AO34-AP34))*$AM$61)*DL34+((AQ34-AR34-(AS34-AT34))*$AQ$61)*DM34+((AU34-AV34-(AW34-AX34))*$AU$61)*DN34+((AY34-AZ34-(BA34-BB34))*$AY$61)*DO34+((BC34-BD34-(BE34-BF34))*$BC$61)*DP34+((BJ34-BK34-(BL34-BM34))*$BJ$61)*DR34+(BG34-BH34)*DQ34+((BN34-BO34-(BP34-BQ34))*$BN$61)*DS34+((BR34-BS34-(BT34-BU34))*$BR$61)*DT34+((BV34-BW34-(BX34-BY34))*$BV$61)*DU34+((BZ34-CA34-(CB34-CC34))*$BZ$61)*DV34+((CD34-CE34-(CF34-CG34))*$CD$61)*DW34+((CH34-CI34-(CJ34-CK34))*$CH$61)*DX34+((CL34-CM34-(CN34-CO34))*$CL$61)*DY34+((CP34-CQ34-(CR34-CS34))*$CP$61)*DZ34+((CT34-CU34-(CV34-CW34))*$CT$61)*EA34+((CX34-CY34-(CZ34-DA34))*$CX$61)*EB34 -> 8326951.214 | EG34: 360625.908 | EH34: =IF((1-($FH$2-$DB34)/$C34)>0,(1-($FH$2-$DB34)/$C34),0) -> 0 | EI34: 0.1833333333 | EJ34: 0.2166666667 | EK34: 0.25 | EL34: 0.2833333333 | EM34: 0.3166666667 | EN34: 0.35 | EO34: 0.3833333333 | EP34: 0.4166666667 | EQ34: 0.45 | ER34: 0.4833333333 | ES34: 0.5166666667 | ET34: 0.55 | EU34: 0.5833333333 | EV34: 0.5833333333 | EW34: 0.6166666667 | EX34: 0.65 | EY34: 0.6833333333 | EZ34: 0.7166666667 | FA34: 0.75 | FB34: 0.7833333333 | FC34: 0.8166666667 | FD34: 0.85 | FE34: 0.8833333333 | FF34: 0.9166666667 | FG34: 0.95 | FH34: 360625.908 | FI34: =IF((1-($GI$2-$DB34)/$C34)>0,(1-($GI$2-$DB34)/$C34),0) -> 0 | FJ34: 0.15 | FK34: 0.1833333333 | FL34: 0.2166666667 | FM34: 0.25 | FN34: 0.2833333333 | FO34: 0.3166666667 | FP34: 0.35 | FQ34: 0.3833333333 | FR34: 0.4166666667 | FS34: 0.45 | FT34: 0.4833333333 | FU34: 0.5166666667 | FV34: 0.55 | FW34: 0.55 | FX34: 0.5833333333 | FY34: 0.6166666667 | FZ34: 0.65 | GA34: 0.6833333333 | GB34: 0.7166666667 | GC34: 0.75 | GD34: 0.7833333333 | GE34: 0.8166666667 | GF34: 0.85 | GG34: 0.8833333333 | GH34: 0.9166666667 | GI34: 360625.908 | GJ34: =IF((1-($HJ$2-$DB34)/$C34)>0,(1-($HJ$2-$DB34)/$C34),0) -> 0 | GK34: 0.1166666667 | GL34: 0.15 | GM34: 0.1833333333 | GN34: 0.2166666667 | GO34: 0.25 | GP34: 0.2833333333 | GQ34: 0.3166666667 | GR34: 0.35 | GS34: 0.3833333333 | GT34: 0.4166666667 | GU34: 0.45 | GV34: 0.4833333333 | GW34: 0.5166666667 | GX34: 0.5166666667 | GY34: 0.55 | GZ34: 0.5833333333 | HA34: 0.6166666667 | HB34: 0.65 | HC34: 0.6833333333 | HD34: 0.7166666667 | HE34: 0.75 | HF34: 0.7833333333 | HG34: 0.8166666667 | HH34: 0.85 | HI34: 0.8833333333 | HJ34: 360625.908 | HK34: =IF((1-($IK$2-$DB34)/$C34)>0,(1-($IK$2-$DB34)/$C34),0) -> 0 | HL34: 0.08333333333 | HM34: 0.1166666667 | HN34: 0.15 | HO34: 0.1833333333 | HP34: 0.2166666667 | HQ34: 0.25 | HR34: 0.2833333333 | HS34: 0.3166666667 | HT34: 0.35 | HU34: 0.3833333333 | HV34: 0.4166666667 | HW34: 0.45 | HX34: 0.4833333333 | HY34: 0.4833333333 | HZ34: 0.5166666667 | IA34: 0.55 | IB34: 0.5833333333 | IC34: 0.6166666667 | ID34: 0.65 | IE34: 0.6833333333 | IF34: 0.7166666667 | IG34: 0.75 | IH34: 0.7833333333 | II34: 0.8166666667 | IJ34: 0.85 | IK34: 360625.908
B35: Acometidas BT | C35: 30 | D35: 10109999.27 | E35: 0 | F35: 6944775.122 | G35: 110095.16 | H35: 0 | I35: 0 | J35: 0 | K35: 147527.42 | L35: 20984 | M35: 0 | N35: 0 | O35: 202095.11 | P35: 0 | Q35: 0 | R35: 0 | S35: 159017 | T35: 0 | U35: 0 | V35: 0 | W35: 103233.12 | X35: 0 | Y35: 0 | Z35: 0 | AA35: 228601 | AB35: 0 | AC35: 0 | AD35: 0 | AE35: 200982 | AF35: 0 | AG35: 0 | AH35: 0 | AI35: 317412.79 | AJ35: 0 | AK35: 0 | AL35: 0 | AM35: 385355 | AN35: 0 | AO35: 0 | AP35: 0 | AQ35: 616660.66 | AR35: 0 | AS35: 0 | AT35: 0 | AU35: 343937.52 | AV35: 0 | AW35: 0 | AX35: 0 | AY35: 322760.92 | AZ35: 0 | BA35: 0 | BB35: 0 | BC35: 379311.01 | BD35: 0 | BE35: 0 | BF35: 0 | BG35: 173846.8027 | BH35: 173846.8027 | BI35: 131102.06 | BJ35: 336121.93 | BK35: 0 | BL35: 0 | BM35: 0 | BN35: 292721.17 | BO35: 0 | BP35: 0 | BQ35: 0 | BR35: 265021.26 | BS35: 0 | BT35: 0 | BU35: 0 | BV35: 348152.55 | BW35: 0 | BX35: 0 | BY35: 0 | BZ35: 246813.81 | CA35: 0 | CB35: 0 | CC35: 0 | CD35: 162283.13 | CE35: 0 | CF35: 0 | CG35: 0 | CH35: 295989.72 | CI35: 0 | CJ35: 0 | CK35: 0 | CL35: 277530.6 | CP35: 285580.47 | CT35: 225693.13 | CX35: 238978.52 | CY35: 0 | DB35: =IF(D35=0,0,2001-(D35-F35)*C35/D35) -> 1991.607643 | DC35: =IF((1-($EC$2-$DB35)/$C35)>0,(1-($EC$2-$DB35)/$C35),0) -> 0 | DD35: =IF((1-($EC$2-G$2)/$C35)>0,(1-($EC$2-G$2)/$C35),0) -> 0.2166666667 | DE35: =IF((1-($EC$2-K$2)/$C35)>0,(1-($EC$2-K$2)/$C35),0) -> 0.25 | DF35: =IF((1-($EC$2-O$2)/$C35)>0,(1-($EC$2-O$2)/$C35),0) -> 0.2833333333 | DG35: =IF((1-($EC$2-S$2)/$C35)>0,(1-($EC$2-S$2)/$C35),0) -> 0.3166666667 | DH35: =IF((1-($EC$2-W$2)/$C35)>0,(1-($EC$2-W$2)/$C35),0) -> 0.35 | DI35: =IF((1-($EC$2-AA$2)/$C35)>0,(1-($EC$2-AA$2)/$C35),0) -> 0.3833333333 | DJ35: =IF((1-($EC$2-AE$2)/$C35)>0,(1-($EC$2-AE$2)/$C35),0) -> 0.4166666667 | DK35: =IF((1-($EC$2-AI$2)/$C35)>0,(1-($EC$2-AI$2)/$C35),0) -> 0.45 | DL35: =IF((1-($EC$2-AM$2)/$C35)>0,(1-($EC$2-AM$2)/$C35),0) -> 0.4833333333 | DM35: =IF((1-($EC$2-AQ$2)/$C35)>0,(1-($EC$2-AQ$2)/$C35),0) -> 0.5166666667 | DN35: =IF((1-($EC$2-AU$2)/$C35)>0,(1-($EC$2-AU$2)/$C35),0) -> 0.55 | DO35: =IF((1-($EC$2-AY$2)/$C35)>0,(1-($EC$2-AY$2)/$C35),0) -> 0.5833333333 | DP35: =IF((1-($EC$2-BC$2)/$C35)>0,(1-($EC$2-BC$2)/$C35),0) -> 0.6166666667 | DQ35: =IF(BG35=0,0,1-($EC$2-(2014.5-(BG35-BI35)*C35/BG35))/C35) -> 0.3874574125 | DR35: =IF((1-($EC$2-BJ$2)/$C35)>0,(1-($EC$2-BJ$2)/$C35),0) -> 0.65 | DS35: =IF((1-($EC$2-BN$2)/$C35)>0,(1-($EC$2-BN$2)/$C35),0) -> 0.6833333333 | DT35: =IF((1-($EC$2-BR$2)/$C35)>0,(1-($EC$2-BR$2)/$C35),0) -> 0.7166666667 | DU35: =IF((1-($EC$2-BV$2)/$C35)>0,(1-($EC$2-BV$2)/$C35),0) -> 0.75 | DV35: =IF((1-($EC$2-BZ$2)/$C35)>0,(1-($EC$2-BZ$2)/$C35),0) -> 0.7833333333 | DW35: =IF((1-($EC$2-CD$2)/$C35)>0,(1-($EC$2-CD$2)/$C35),0) -> 0.8166666667 | DX35: =IF((1-($EC$2-CH$2)/$C35)>0,(1-($EC$2-CH$2)/$C35),0) -> 0.85 | DY35: 0.8833333333 | DZ35: 0.9166666667 | EA35: 0.95 | EB35: 0.9833333333 | EC35: =IF(DC35=0,0,($D35-$E35)*1/$C35)+IF(DD35=0,0,($G35-$H35-$I35)*$G$61*1/$C35)+IF(DE35=0,0,($K35-$L35-$M35)*$K$61*1/$C35)+IF(DF35=0,0,($O35-$P35-$Q35)*$O$61*1/$C35)+IF(DG35=0,0,($S35-$T35-$U35)*$S$61*1/$C35)+IF(DH35=0,0,($W35-$X35-$Y35)*$W$61*1/$C35)+IF(DI35=0,0,($AA35-$AB35-$AC35)*$AA$61*1/$C35)+IF(DJ35=0,0,($AE35-$AF35-$AG35)*$AE$61*1/$C35)+IF(DK35=0,0,($AI35-$AJ35-$AK35)*$AI$61*1/$C35)+IF(DL35=0,0,($AM35-$AN35-$AO35)*$AM$61*1/$C35)+IF(DM35=0,0,($AQ35-$AR35-$AS35)*$AQ$61*1/$C35)+IF(DN35=0,0,($AU35-$V35-$AW35)*$AU$61*1/$C35)+IF(DO35=0,0,($AY35-$AZ35-$BA35)*$AY$61*1/$C35)+IF(DP35=0,0,($BC35-$BD35-$BE35)*$BC$61*1/$C35)+IF(DQ35=0,0,$BG35*1/$C35)+IF(DR35=0,0,($BJ35-$BK35-$BL35)*$BJ$61*1/$C35)+IF(DS35=0,0,($BN35-$BO35-$BP35)*$BN$61*1/$C35)+IF(DT35=0,0,($BR35-$BS35-$BT35)*$BR$61*1/$C35)+IF(DU35=0,0,($BV35-$BW35-$BX35)*$BV$61*1/$C35)+IF(DV35=0,0,($BZ35-$CA35-$CB35)*$BZ$61*1/$C35)+IF(DW35=0,0,($CD35-$CE35-$CF35)*$CD$61*1/$C35)+IF(DX35=0,0,($CH35-$CI35-$CJ35)*$CH$61*1/$C35)+IF(DY35=0,0,($CL35-$CM35-$CN35)*$CL$61*1/$C35)+IF(DZ35=0,0,($CP35-$CQ35-$CR35)*$CP$61*1/$C35)+IF(EA35=0,0,($CT35-$CU35-$CV35)*$CT$61*1/$C35)+IF(EB35=0,0,($CX35-$CY35-$CZ35)*$CX$61*1/$C35) -> 179658.7771 | ED35: =D35-E35+(G35-H35-I35)*G$61+(K35-L35-M35)*K$61+(O35-P35-Q35)*O$61+(S35-T35-U35)*S$61+(W35-X35-Y35)*W$61+(AA35-AB35-AC35)*AA$61+(AE35-AF35-AG35)*AE$61+(AI35-AJ35-AK35)*AI$61+(AM35-AN35-AO35)*AM$61+(AQ35-AR35-AS35)*$AQ$61+(AU35-AV35-AW35)*$AU$61+(AY35-AZ35-BA35)*$AY$61+(BC35-BD35-BE35)*$BC$61+BG35+(BJ35-BK35-BL35)*$BJ$61+(BN35-BO35-BP35)*$BN$61+(BR35-BS35-BT35)*$BR$61+(BV35-BW35-BX35)*$BV$61+(BZ35-CA35-CB35)*$BZ$61+(CD35-CE35-CF35)*$CD$61+(CH35-CI35-CJ35)*$CH$61+(CL35-CM35-CN35)*$CL$61+(CP35-CQ35-CR35)*$CP$61+(CT35-CU35-CV35)*$CT$61+(CX35-CY35-CZ35)*$CX$61 -> 15499762.58 | EE35: =IF(DC35=0,D35-E35,0)+IF(DD35=0,(G35-H35-I35)*G$61,0)+IF(DE35=0,(K35-L35-M35)*K$61,0)+IF(DF35=0,(O35-P35-Q35)*O$61,0)+IF(DG35=0,(S35-T35-U35)*S$61,0)+IF(DH35=0,(W35-X35-Y35)*W$61,0)+IF(DI35=0,(AA35-AB35-AC35)*AA$61,0)+IF(DJ35=0,(AE35-AF35-AG35)*AE$61,0)+IF(DK35=0,(AI35-AJ35-AK35)*AI$61,0)+IF(DL35=0,(AM35-AN35-AO35)*AM$61,0)+IF(DM35=0,(AQ35-AR35-AS35)*$AQ$61,0)+IF(DN35=0,(AU35-AV35-AW35)*$AU$61,0)+IF(DO35=0,(AY35-AZ35-BA35)*$AY$61,0)++IF(DP35=0,(BC35-BD35-BE35)*$BC$61,0)+IF(DQ35=0,BG35,0)+IF(DR35=0,(BJ35-BK35-BL35)*$BJ$61,0)+IF(DS35=0,(BN35-BO35-BP35)*$BN$61,0)+IF(DT35=0,(BR35-BS35-BT35)*$BR$61,0)+IF(DU35=0,(BV35-BW35-BX35)*$BV$61,0)+IF(DV35=0,(BZ35-CA35-CB35)*$BZ$61,0)+IF(DW35=0,(CD35-CE35-CF35)*$CD$61,0)+IF(DX35=0,(CH35-CI35-CJ35)*$CH$61,0)+IF(DY35=0,(CL35-CM35-CN35)*$CL$61,0)+IF(DZ35=0,(CP35-CQ35-CR35)*$CP$61,0)+IF(EA35=0,(CT35-CU35-CV35)*$CT$61,0)+IF(EB35=0,(CX35-CY35-CZ35)*$CX$61,0) -> 10109999.27 | EF35: =(D35-E35)*DC35+((G35-H35-(I35-J35))*G$61)*DD35+((K35-L35-(M35-N35))*K$61)*DE35+((O35-P35-(Q35-R35))*O$61)*DF35+((S35-T35-(U35-V35))*S$61)*DG35+((W35-X35-(Y35-Z35))*W$61)*DH35+((AA35-AB35-(AC35-AD35))*AA$61)*DI35+((AE35-AF35-(AG35-AH35))*AE$61)*DJ35+((AI35-AJ35-(AK35-AL35))*AI$61)*DK35+((AM35-AN35-(AO35-AP35))*$AM$61)*DL35+((AQ35-AR35-(AS35-AT35))*$AQ$61)*DM35+((AU35-AV35-(AW35-AX35))*$AU$61)*DN35+((AY35-AZ35-(BA35-BB35))*$AY$61)*DO35+((BC35-BD35-(BE35-BF35))*$BC$61)*DP35+((BJ35-BK35-(BL35-BM35))*$BJ$61)*DR35+(BG35-BH35)*DQ35+((BN35-BO35-(BP35-BQ35))*$BN$61)*DS35+((BR35-BS35-(BT35-BU35))*$BR$61)*DT35+((BV35-BW35-(BX35-BY35))*$BV$61)*DU35+((BZ35-CA35-(CB35-CC35))*$BZ$61)*DV35+((CD35-CE35-(CF35-CG35))*$CD$61)*DW35+((CH35-CI35-(CJ35-CK35))*$CH$61)*DX35+((CL35-CM35-(CN35-CO35))*$CL$61)*DY35+((CP35-CQ35-(CR35-CS35))*$CP$61)*DZ35+((CT35-CU35-(CV35-CW35))*$CT$61)*EA35+((CX35-CY35-(CZ35-DA35))*$CX$61)*EB35 -> 3223452.83 | EG35: 179658.7771 | EH35: =IF((1-($FH$2-$DB35)/$C35)>0,(1-($FH$2-$DB35)/$C35),0) -> 0 | EI35: 0.1833333333 | EJ35: 0.2166666667 | EK35: 0.25 | EL35: 0.2833333333 | EM35: 0.3166666667 | EN35: 0.35 | EO35: 0.3833333333 | EP35: 0.4166666667 | EQ35: 0.45 | ER35: 0.4833333333 | ES35: 0.5166666667 | ET35: 0.55 | EU35: 0.5833333333 | EV35: 0.5833333333 | EW35: 0.6166666667 | EX35: 0.65 | EY35: 0.6833333333 | EZ35: 0.7166666667 | FA35: 0.75 | FB35: 0.7833333333 | FC35: 0.8166666667 | FD35: 0.85 | FE35: 0.8833333333 | FF35: 0.9166666667 | FG35: 0.95 | FH35: 179658.7771 | FI35: =IF((1-($GI$2-$DB35)/$C35)>0,(1-($GI$2-$DB35)/$C35),0) -> 0 | FJ35: 0.15 | FK35: 0.1833333333 | FL35: 0.2166666667 | FM35: 0.25 | FN35: 0.2833333333 | FO35: 0.3166666667 | FP35: 0.35 | FQ35: 0.3833333333 | FR35: 0.4166666667 | FS35: 0.45 | FT35: 0.4833333333 | FU35: 0.5166666667 | FV35: 0.55 | FW35: 0.55 | FX35: 0.5833333333 | FY35: 0.6166666667 | FZ35: 0.65 | GA35: 0.6833333333 | GB35: 0.7166666667 | GC35: 0.75 | GD35: 0.7833333333 | GE35: 0.8166666667 | GF35: 0.85 | GG35: 0.8833333333 | GH35: 0.9166666667 | GI35: 179658.7771 | GJ35: =IF((1-($HJ$2-$DB35)/$C35)>0,(1-($HJ$2-$DB35)/$C35),0) -> 0 | GK35: 0.1166666667 | GL35: 0.15 | GM35: 0.1833333333 | GN35: 0.2166666667 | GO35: 0.25 | GP35: 0.2833333333 | GQ35: 0.3166666667 | GR35: 0.35 | GS35: 0.3833333333 | GT35: 0.4166666667 | GU35: 0.45 | GV35: 0.4833333333 | GW35: 0.5166666667 | GX35: 0.5166666667 | GY35: 0.55 | GZ35: 0.5833333333 | HA35: 0.6166666667 | HB35: 0.65 | HC35: 0.6833333333 | HD35: 0.7166666667 | HE35: 0.75 | HF35: 0.7833333333 | HG35: 0.8166666667 | HH35: 0.85 | HI35: 0.8833333333 | HJ35: 179658.7771 | HK35: =IF((1-($IK$2-$DB35)/$C35)>0,(1-($IK$2-$DB35)/$C35),0) -> 0 | HL35: 0.08333333333 | HM35: 0.1166666667 | HN35: 0.15 | HO35: 0.1833333333 | HP35: 0.2166666667 | HQ35: 0.25 | HR35: 0.2833333333 | HS35: 0.3166666667 | HT35: 0.35 | HU35: 0.3833333333 | HV35: 0.4166666667 | HW35: 0.45 | HX35: 0.4833333333 | HY35: 0.4833333333 | HZ35: 0.5166666667 | IA35: 0.55 | IB35: 0.5833333333 | IC35: 0.6166666667 | ID35: 0.65 | IE35: 0.6833333333 | IF35: 0.7166666667 | IG35: 0.75 | IH35: 0.7833333333 | II35: 0.8166666667 | IJ35: 0.85 | IK35: 179658.7771
B36: Otros equipos del sistema de distribución | D36: 0 | E36: 0 | F36: 0 | G36: 0 | H36: 0 | I36: 0 | J36: 0 | K36: 0 | L36: 0 | M36: 0 | N36: 0 | O36: 0 | P36: 0 | Q36: 0 | R36: 0 | S36: 0 | T36: 0 | U36: 0 | V36: 0 | W36: 0 | X36: 0 | Y36: 0 | Z36: 0 | AA36: 0 | AB36: 0 | AC36: 0 | AD36: 0 | AE36: 0 | AF36: 0 | AG36: 0 | AH36: 0 | AI36: 0 | AJ36: 0 | AK36: 0 | AL36: 0 | AM36: 0 | AN36: 0 | AO36: 0 | AP36: 0 | AQ36: 0 | AR36: 0 | AS36: 0 | AT36: 0 | AU36: 0 | AV36: 0 | AW36: 0 | AX36: 0 | AY36: 0 | AZ36: 0 | BA36: 0 | BB36: 0 | BC36: 0 | BD36: 0 | BE36: 0 | BF36: 0 | BG36: 0 | BH36: 0 | BI36: 0 | BJ36: 0 | BK36: 0 | BL36: 0 | BM36: 0 | BN36: 0 | BO36: 0 | BP36: 0 | BQ36: 0 | BR36: 0 | BS36: 0 | BT36: 0 | BU36: 0 | BV36: 0 | BW36: 0 | BX36: 0 | BY36: 0 | BZ36: 0 | CA36: 0 | CB36: 0 | CC36: 0 | CD36: 0 | CE36: 0 | CF36: 0 | CG36: 0 | CH36: 0 | CI36: 0 | CJ36: 0 | CK36: 0 | CL36: 0 | CP36: 0 | CT36: 0 | CX36: 0 | CY36: 0 | FH36: 0 | GI36: 0 | HJ36: 0 | IK36: 0
B37: Otros equipos del sistema de Distribución | C37: 10 | D37: 0 | E37: 0 | F37: 0 | G37: 0 | H37: 0 | I37: 0 | J37: 0 | K37: 0 | L37: 0 | M37: 0 | N37: 0 | O37: 0 | P37: 0 | Q37: 0 | R37: 0 | S37: 0 | T37: 0 | U37: 0 | V37: 0 | W37: 0 | X37: 0 | Y37: 0 | Z37: 0 | AA37: 0 | AB37: 0 | AC37: 0 | AD37: 0 | AE37: 0 | AF37: 0 | AG37: 0 | AH37: 0 | AI37: 0 | AJ37: 0 | AK37: 0 | AL37: 0 | AM37: 0 | AN37: 0 | AO37: 0 | AP37: 0 | AQ37: 0 | AR37: 0 | AS37: 0 | AT37: 0 | AU37: 0 | AV37: 0 | AW37: 0 | AX37: 0 | AY37: 0 | AZ37: 0 | BA37: 0 | BB37: 0 | BC37: 0 | BD37: 0 | BE37: 0 | BF37: 0 | BG37: 0 | BH37: 0 | BI37: 0 | BJ37: 0 | BK37: 0 | BL37: 0 | BM37: 0 | BN37: 0 | BO37: 0 | BP37: 0 | BQ37: 0 | BR37: 0 | BS37: 0 | BT37: 0 | BU37: 0 | BV37: 0 | BW37: 0 | BX37: 0 | BY37: 0 | BZ37: 0 | CA37: 0 | CB37: 0 | CC37: 0 | CD37: 0 | CE37: 0 | CF37: 0 | CG37: 0 | CH37: 0 | CI37: 0 | CJ37: 0 | CK37: 0 | CL37: 0 | CP37: 0 | CT37: 0 | CX37: 0 | CY37: 0 | DB37: =IF(D37=0,0,2001-(D37-F37)*C37/D37) -> 0 | DC37: =IF((1-($EC$2-$DB37)/$C37)>0,(1-($EC$2-$DB37)/$C37),0) -> 0 | DD37: =IF((1-($EC$2-G$2)/$C37)>0,(1-($EC$2-G$2)/$C37),0) -> 0 | DE37: =IF((1-($EC$2-K$2)/$C37)>0,(1-($EC$2-K$2)/$C37),0) -> 0 | DF37: =IF((1-($EC$2-O$2)/$C37)>0,(1-($EC$2-O$2)/$C37),0) -> 0 | DG37: =IF((1-($EC$2-S$2)/$C37)>0,(1-($EC$2-S$2)/$C37),0) -> 0 | DH37: =IF((1-($EC$2-W$2)/$C37)>0,(1-($EC$2-W$2)/$C37),0) -> 0 | DI37: =IF((1-($EC$2-AA$2)/$C37)>0,(1-($EC$2-AA$2)/$C37),0) -> 0 | DJ37: =IF((1-($EC$2-AE$2)/$C37)>0,(1-($EC$2-AE$2)/$C37),0) -> 0 | DK37: =IF((1-($EC$2-AI$2)/$C37)>0,(1-($EC$2-AI$2)/$C37),0) -> 0 | DL37: =IF((1-($EC$2-AM$2)/$C37)>0,(1-($EC$2-AM$2)/$C37),0) -> 0 | DM37: =IF((1-($EC$2-AQ$2)/$C37)>0,(1-($EC$2-AQ$2)/$C37),0) -> 0 | DN37: =IF((1-($EC$2-AU$2)/$C37)>0,(1-($EC$2-AU$2)/$C37),0) -> 0 | DO37: =IF((1-($EC$2-AY$2)/$C37)>0,(1-($EC$2-AY$2)/$C37),0) -> 0 | DP37: =IF((1-($EC$2-BC$2)/$C37)>0,(1-($EC$2-BC$2)/$C37),0) -> 0 | DQ37: =IF(BG37=0,0,1-($EC$2-(2014.5-(BG37-BI37)*C37/BG37))/C37) -> 0 | DR37: =IF((1-($EC$2-BJ$2)/$C37)>0,(1-($EC$2-BJ$2)/$C37),0) -> 0 | DS37: =IF((1-($EC$2-BN$2)/$C37)>0,(1-($EC$2-BN$2)/$C37),0) -> 0.05 | DT37: =IF((1-($EC$2-BR$2)/$C37)>0,(1-($EC$2-BR$2)/$C37),0) -> 0.15 | DU37: =IF((1-($EC$2-BV$2)/$C37)>0,(1-($EC$2-BV$2)/$C37),0) -> 0.25 | DV37: =IF((1-($EC$2-BZ$2)/$C37)>0,(1-($EC$2-BZ$2)/$C37),0) -> 0.35 | DW37: =IF((1-($EC$2-CD$2)/$C37)>0,(1-($EC$2-CD$2)/$C37),0) -> 0.45 | DX37: =IF((1-($EC$2-CH$2)/$C37)>0,(1-($EC$2-CH$2)/$C37),0) -> 0.55 | DY37: =IF((1-($EC$2-CL$2)/$C37)>0,(1-($EC$2-CL$2)/$C37),0) -> 0.65 | DZ37: =IF((1-($EC$2-CP$2)/$C37)>0,(1-($EC$2-CP$2)/$C37),0) -> 0.75 | EA37: =IF((1-($EC$2-CT$2)/$C37)>0,(1-($EC$2-CT$2)/$C37),0) -> 0.85 | EB37: =IF((1-($EC$2-CX$2)/$C37)>0,(1-($EC$2-CX$2)/$C37),0) -> 0.95 | EC37: =IF(DC37=0,0,($D37-$E37)*1/$C37)+IF(DD37=0,0,($G37-$H37-$I37)*$G$61*1/$C37)+IF(DE37=0,0,($K37-$L37-$M37)*$K$61*1/$C37)+IF(DF37=0,0,($O37-$P37-$Q37)*$O$61*1/$C37)+IF(DG37=0,0,($S37-$T37-$U37)*$S$61*1/$C37)+IF(DH37=0,0,($W37-$X37-$Y37)*$W$61*1/$C37)+IF(DI37=0,0,($AA37-$AB37-$AC37)*$AA$61*1/$C37)+IF(DJ37=0,0,($AE37-$AF37-$AG37)*$AE$61*1/$C37)+IF(DK37=0,0,($AI37-$AJ37-$AK37)*$AI$61*1/$C37)+IF(DL37=0,0,($AM37-$AN37-$AO37)*$AM$61*1/$C37)+IF(DM37=0,0,($AQ37-$AR37-$AS37)*$AQ$61*1/$C37)+IF(DN37=0,0,($AU37-$V37-$AW37)*$AU$61*1/$C37)+IF(DO37=0,0,($AY37-$AZ37-$BA37)*$AY$61*1/$C37)+IF(DP37=0,0,($BC37-$BD37-$BE37)*$BC$61*1/$C37)+IF(DQ37=0,0,$BG37*1/$C37)+IF(DR37=0,0,($BJ37-$BK37-$BL37)*$BJ$61*1/$C37)+IF(DS37=0,0,($BN37-$BO37-$BP37)*$BN$61*1/$C37)+IF(DT37=0,0,($BR37-$BS37-$BT37)*$BR$61*1/$C37)+IF(DU37=0,0,($BV37-$BW37-$BX37)*$BV$61*1/$C37)+IF(DV37=0,0,($BZ37-$CA37-$CB37)*$BZ$61*1/$C37)+IF(DW37=0,0,($CD37-$CE37-$CF37)*$CD$61*1/$C37)+IF(DX37=0,0,($CH37-$CI37-$CJ37)*$CH$61*1/$C37)+IF(DY37=0,0,($CL37-$CM37-$CN37)*$CL$61*1/$C37)+IF(DZ37=0,0,($CP37-$CQ37-$CR37)*$CP$61*1/$C37)+IF(EA37=0,0,($CT37-$CU37-$CV37)*$CT$61*1/$C37)+IF(EB37=0,0,($CX37-$CY37-$CZ37)*$CX$61*1/$C37) -> 0 | ED37: =D37-E37+(G37-H37-I37)*G$61+(K37-L37-M37)*K$61+(O37-P37-Q37)*O$61+(S37-T37-U37)*S$61+(W37-X37-Y37)*W$61+(AA37-AB37-AC37)*AA$61+(AE37-AF37-AG37)*AE$61+(AI37-AJ37-AK37)*AI$61+(AM37-AN37-AO37)*AM$61+(AQ37-AR37-AS37)*$AQ$61+(AU37-AV37-AW37)*$AU$61+(AY37-AZ37-BA37)*$AY$61+(BC37-BD37-BE37)*$BC$61+BG37+(BJ37-BK37-BL37)*$BJ$61+(BN37-BO37-BP37)*$BN$61+(BR37-BS37-BT37)*$BR$61+(BV37-BW37-BX37)*$BV$61+(BZ37-CA37-CB37)*$BZ$61+(CD37-CE37-CF37)*$CD$61+(CH37-CI37-CJ37)*$CH$61+(CL37-CM37-CN37)*$CL$61+(CP37-CQ37-CR37)*$CP$61+(CT37-CU37-CV37)*$CT$61+(CX37-CY37-CZ37)*$CX$61 -> 0 | EE37: =IF(DC37=0,D37-E37,0)+IF(DD37=0,(G37-H37-I37)*G$61,0)+IF(DE37=0,(K37-L37-M37)*K$61,0)+IF(DF37=0,(O37-P37-Q37)*O$61,0)+IF(DG37=0,(S37-T37-U37)*S$61,0)+IF(DH37=0,(W37-X37-Y37)*W$61,0)+IF(DI37=0,(AA37-AB37-AC37)*AA$61,0)+IF(DJ37=0,(AE37-AF37-AG37)*AE$61,0)+IF(DK37=0,(AI37-AJ37-AK37)*AI$61,0)+IF(DL37=0,(AM37-AN37-AO37)*AM$61,0)+IF(DM37=0,(AQ37-AR37-AS37)*$AQ$61,0)+IF(DN37=0,(AU37-AV37-AW37)*$AU$61,0)+IF(DO37=0,(AY37-AZ37-BA37)*$AY$61,0)++IF(DP37=0,(BC37-BD37-BE37)*$BC$61,0)+IF(DQ37=0,BG37,0)+IF(DR37=0,(BJ37-BK37-BL37)*$BJ$61,0)+IF(DS37=0,(BN37-BO37-BP37)*$BN$61,0)+IF(DT37=0,(BR37-BS37-BT37)*$BR$61,0)+IF(DU37=0,(BV37-BW37-BX37)*$BV$61,0)+IF(DV37=0,(BZ37-CA37-CB37)*$BZ$61,0)+IF(DW37=0,(CD37-CE37-CF37)*$CD$61,0)+IF(DX37=0,(CH37-CI37-CJ37)*$CH$61,0)+IF(DY37=0,(CL37-CM37-CN37)*$CL$61,0)+IF(DZ37=0,(CP37-CQ37-CR37)*$CP$61,0)+IF(EA37=0,(CT37-CU37-CV37)*$CT$61,0)+IF(EB37=0,(CX37-CY37-CZ37)*$CX$61,0) -> 0 | EF37: =(D37-E37)*DC37+((G37-H37-(I37-J37))*G$61)*DD37+((K37-L37-(M37-N37))*K$61)*DE37+((O37-P37-(Q37-R37))*O$61)*DF37+((S37-T37-(U37-V37))*S$61)*DG37+((W37-X37-(Y37-Z37))*W$61)*DH37+((AA37-AB37-(AC37-AD37))*AA$61)*DI37+((AE37-AF37-(AG37-AH37))*AE$61)*DJ37+((AI37-AJ37-(AK37-AL37))*AI$61)*DK37+((AM37-AN37-(AO37-AP37))*$AM$61)*DL37+((AQ37-AR37-(AS37-AT37))*$AQ$61)*DM37+((AU37-AV37-(AW37-AX37))*$AU$61)*DN37+((AY37-AZ37-(BA37-BB37))*$AY$61)*DO37+((BC37-BD37-(BE37-BF37))*$BC$61)*DP37+((BJ37-BK37-(BL37-BM37))*$BJ$61)*DR37+(BG37-BH37)*DQ37+((BN37-BO37-(BP37-BQ37))*$BN$61)*DS37+((BR37-BS37-(BT37-BU37))*$BR$61)*DT37+((BV37-BW37-(BX37-BY37))*$BV$61)*DU37+((BZ37-CA37-(CB37-CC37))*$BZ$61)*DV37+((CD37-CE37-(CF37-CG37))*$CD$61)*DW37+((CH37-CI37-(CJ37-CK37))*$CH$61)*DX37+((CL37-CM37-(CN37-CO37))*$CL$61)*DY37+((CP37-CQ37-(CR37-CS37))*$CP$61)*DZ37+((CT37-CU37-(CV37-CW37))*$CT$61)*EA37+((CX37-CY37-(CZ37-DA37))*$CX$61)*EB37 -> 0 | EG37: 0 | EH37: =IF((1-($FH$2-$DB37)/$C37)>0,(1-($FH$2-$DB37)/$C37),0) -> 0 | EI37: =IF((1-($FH$2-EI$2)/$C37)>0,(1-($FH$2-EI$2)/$C37),0) -> 0 | EJ37: 0 | EK37: 0 | EL37: 0 | EM37: 0 | EN37: 0 | EO37: 0 | EP37: 0 | EQ37: 0 | ER37: 0 | ES37: =IF((1-($FH$2-ES$2)/$C37)>0,(1-($FH$2-ES$2)/$C37),0) -> 0 | ET37: 0 | EU37: 0 | EV37: 0 | EW37: 0 | EX37: 0 | EY37: 0.05 | EZ37: 0.15 | FA37: 0.25 | FB37: 0.35 | FC37: 0.45 | FD37: 0.55 | FE37: =IF((1-($FH$2-FE$2)/$C37)>0,(1-($FH$2-FE$2)/$C37),0) -> 0.65 | FF37: 0.75 | FG37: 0.85 | FH37: 0 | FI37: =IF((1-($GI$2-$DB37)/$C37)>0,(1-($GI$2-$DB37)/$C37),0) -> 0 | FJ37: =IF((1-($GI$2-FJ$2)/$C37)>0,(1-($GI$2-FJ$2)/$C37),0) -> 0 | FK37: 0 | FL37: 0 | FM37: 0 | FN37: 0 | FO37: 0 | FP37: 0 | FQ37: 0 | FR37: 0 | FS37: 0 | FT37: =IF((1-($GI$2-FT$2)/$C37)>0,(1-($GI$2-FT$2)/$C37),0) -> 0 | FU37: 0 | FV37: 0 | FW37: 0 | FX37: 0 | FY37: 0 | FZ37: 0 | GA37: 0.05 | GB37: 0.15 | GC37: 0.25 | GD37: 0.35 | GE37: 0.45 | GF37: =IF((1-($GI$2-GF$2)/$C37)>0,(1-($GI$2-GF$2)/$C37),0) -> 0.55 | GG37: 0.65 | GH37: 0.75 | GI37: 0 | GJ37: =IF((1-($HJ$2-$DB37)/$C37)>0,(1-($HJ$2-$DB37)/$C37),0) -> 0 | GK37: =IF((1-($HJ$2-GK$2)/$C37)>0,(1-($HJ$2-GK$2)/$C37),0) -> 0 | GL37: 0 | GM37: 0 | GN37: 0 | GO37: 0 | GP37: 0 | GQ37: 0 | GR37: 0 | GS37: 0 | GT37: 0 | GU37: =IF((1-($HJ$2-GU$2)/$C37)>0,(1-($HJ$2-GU$2)/$C37),0) -> 0 | GV37: 0 | GW37: 0 | GX37: 0 | GY37: 0 | GZ37: 0 | HA37: 0 | HB37: 0 | HC37: 0.05 | HD37: 0.15 | HE37: 0.25 | HF37: 0.35 | HG37: =IF((1-($HJ$2-HG$2)/$C37)>0,(1-($HJ$2-HG$2)/$C37),0) -> 0.45 | HH37: 0.55 | HI37: 0.65 | HJ37: 0 | HK37: =IF((1-($IK$2-$DB37)/$C37)>0,(1-($IK$2-$DB37)/$C37),0) -> 0 | HL37: =IF((1-($IK$2-HL$2)/$C37)>0,(1-($IK$2-HL$2)/$C37),0) -> 0 | HM37: 0 | HN37: 0 | HO37: 0 | HP37: 0 | HQ37: 0 | HR37: 0 | HS37: 0 | HT37: 0 | HU37: 0 | HV37: =IF((1-($IK$2-HV$2)/$C37)>0,(1-($IK$2-HV$2)/$C37),0) -> 0 | HW37: 0 | HX37: 0 | HY37: 0 | HZ37: 0 | IA37: 0 | IB37: 0 | IC37: 0 | ID37: 0 | IE37: 0.05 | IF37: 0.15 | IG37: 0.25 | IH37: =IF((1-($IK$2-IH$2)/$C37)>0,(1-($IK$2-IH$2)/$C37),0) -> 0.35 | II37: 0.45 | IJ37: 0.55 | IK37: 0
B38: Equipos de transporte y carga | C38: 5 | D38: 0 | E38: 0 | F38: 0 | G38: 0 | H38: 0 | I38: 0 | J38: 0 | K38: 0 | L38: 0 | M38: 0 | N38: 0 | O38: 0 | P38: 0 | Q38: 0 | R38: 0 | S38: 0 | T38: 0 | U38: 0 | V38: 0 | W38: 0 | X38: 0 | Y38: 0 | Z38: 0 | AA38: 0 | AB38: 0 | AC38: 0 | AD38: 0 | AE38: 0 | AF38: 0 | AG38: 0 | AH38: 0 | AI38: 0 | AJ38: 0 | AK38: 0 | AL38: 0 | AM38: 0 | AN38: 0 | AO38: 0 | AP38: 0 | AQ38: 0 | AR38: 0 | AS38: 0 | AT38: 0 | AU38: 0 | AV38: 0 | AW38: 0 | AX38: 0 | AY38: 13307.93 | AZ38: 0 | BA38: 0 | BB38: 0 | BC38: 0 | BD38: 0 | BE38: 0 | BF38: 0 | BG38: 0 | BH38: 0 | BI38: 0 | BJ38: 0 | BK38: 0 | BL38: 0 | BM38: 0 | BN38: 0 | BO38: 0 | BP38: 0 | BQ38: 0 | BR38: 0 | BS38: 0 | BT38: 0 | BU38: 0 | BV38: 0 | BW38: 0 | BX38: 0 | BY38: 0 | BZ38: 0 | CA38: 0 | CB38: 0 | CC38: 0 | CD38: 0 | CE38: 0 | CF38: 0 | CG38: 0 | CH38: 0 | CI38: 0 | CJ38: 0 | CK38: 0 | CX38: 0 | CY38: 0 | DB38: 0 | DC38: 0 | DD38: 0 | DE38: 0 | DF38: 0 | DG38: 0 | DH38: 0 | DI38: 0 | DJ38: 0 | DK38: 0 | DL38: 0 | DM38: 0 | DN38: 0 | DO38: 0 | DP38: 0 | DQ38: 0 | DR38: 0 | DS38: 0 | DT38: 0 | DU38: 0 | DV38: 0 | DW38: 0 | DX38: 0.1 | DY38: 0.3 | DZ38: 0.5 | EA38: 0.7 | EB38: 0.9 | EC38: 0 | ED38: 7670.868981 | EE38: 7670.868981 | EF38: 0 | EG38: 0 | EH38: 0 | EI38: 0 | EJ38: 0 | EK38: 0 | EL38: 0 | EM38: 0 | EN38: 0 | EO38: 0 | EP38: 0 | EQ38: 0 | ER38: 0 | ES38: 0 | ET38: 0 | EU38: 0 | EV38: 0 | EW38: 0 | EX38: 0 | EY38: 0 | EZ38: 0 | FA38: 0 | FB38: 0 | FC38: 0 | FD38: 0.1 | FE38: 0.3 | FF38: 0.5 | FG38: 0.7 | FH38: 0 | FI38: 0 | FJ38: 0 | FK38: 0 | FL38: 0 | FM38: 0 | FN38: 0 | FO38: 0 | FP38: 0 | FQ38: 0 | FR38: 0 | FS38: 0 | FT38: 0 | FU38: 0 | FV38: 0 | FW38: 0 | FX38: 0 | FY38: 0 | FZ38: 0 | GA38: 0 | GB38: 0 | GC38: 0 | GD38: 0 | GE38: 0 | GF38: 0.1 | GG38: 0.3 | GH38: 0.5 | GI38: 0 | GJ38: 0 | GK38: 0 | GL38: 0 | GM38: 0 | GN38: 0 | GO38: 0 | GP38: 0 | GQ38: 0 | GR38: 0 | GS38: 0 | GT38: 0 | GU38: 0 | GV38: 0 | GW38: 0 | GX38: 0 | GY38: 0 | GZ38: 0 | HA38: 0 | HB38: 0 | HC38: 0 | HD38: 0 | HE38: 0 | HF38: 0 | HG38: 0 | HH38: 0.1 | HI38: 0.3 | HJ38: 0 | HK38: 0 | HL38: 0 | HM38: 0 | HN38: 0 | HO38: 0 | HP38: 0 | HQ38: 0 | HR38: 0 | HS38: 0 | HT38: 0 | HU38: 0 | HV38: 0 | HW38: 0 | HX38: 0 | HY38: 0 | HZ38: 0 | IA38: 0 | IB38: 0 | IC38: 0 | ID38: 0 | IE38: 0 | IF38: 0 | IG38: 0 | IH38: 0 | II38: 0 | IJ38: 0.1 | IK38: 0
B39: Terrenos | C39: 1000 | D39: 0 | E39: 0 | F39: 0 | G39: 0 | H39: 0 | I39: 0 | J39: 0 | K39: 0 | L39: 0 | M39: 0 | N39: 0 | O39: 0 | P39: 0 | Q39: 0 | R39: 0 | S39: 0 | T39: 0 | U39: 0 | V39: 0 | W39: 0 | X39: 0 | Y39: 0 | Z39: 0 | AA39: 0 | AB39: 0 | AC39: 0 | AD39: 0 | AE39: 0 | AF39: 0 | AG39: 0 | AH39: 0 | AI39: 0 | AJ39: 0 | AK39: 0 | AL39: 0 | AM39: 0 | AN39: 0 | AO39: 0 | AP39: 0 | AQ39: 0 | AR39: 0 | AS39: 0 | AT39: 0 | AU39: 0 | AV39: 0 | AW39: 0 | AX39: 0 | AY39: 0 | AZ39: 0 | BA39: 0 | BB39: 0 | BC39: 0 | BD39: 0 | BE39: 0 | BF39: 0 | BG39: 0 | BH39: 0 | BI39: 0 | BJ39: 0 | BK39: 0 | BL39: 0 | BM39: 0 | BN39: 0 | BO39: 0 | BP39: 0 | BQ39: 0 | BR39: 0 | BS39: 0 | BT39: 0 | BU39: 0 | BV39: 0 | BW39: 0 | BX39: 0 | BY39: 0 | BZ39: 0 | CA39: 0 | CB39: 0 | CC39: 0 | CD39: 0 | CE39: 0 | CF39: 0 | CG39: 0 | CH39: 0 | CI39: 0 | CJ39: 0 | CK39: 0 | CX39: 0 | CY39: 0 | DB39: 0 | DC39: 0 | DD39: 0.9765 | DE39: 0.9775 | DF39: 0.9785 | DG39: 0.9795 | DH39: 0.9805 | DI39: 0.9815 | DJ39: 0.9825 | DK39: 0.9835 | DL39: 0.9845 | DM39: 0.9855 | DN39: 0.9865 | DO39: 0.9875 | DP39: 0.9885 | DQ39: 0 | DR39: 0.9895 | DS39: 0.9905 | DT39: 0.9915 | DU39: 0.9925 | DV39: 0.9935 | DW39: 0.9945 | DX39: 0.9955 | DY39: 0.9965 | DZ39: 0.9975 | EA39: 0.9985 | EB39: 0.9995 | EC39: 0 | ED39: 0 | EE39: 0 | EF39: 0 | EG39: 0 | EH39: 0 | EI39: 0.9755 | EJ39: 0.9765 | EK39: 0.9775 | EL39: 0.9785 | EM39: 0.9795 | EN39: 0.9805 | EO39: 0.9815 | EP39: 0.9825 | EQ39: 0.9835 | ER39: 0.9845 | ES39: 0.9855 | ET39: 0.9865 | EU39: 0.9875 | EV39: 0.9875 | EW39: 0.9885 | EX39: 0.9895 | EY39: 0.9905 | EZ39: 0.9915 | FA39: 0.9925 | FB39: 0.9935 | FC39: 0.9945 | FD39: 0.9955 | FE39: 0.9965 | FF39: 0.9975 | FG39: 0.9985 | FH39: 0 | FI39: 0 | FJ39: 0.9745 | FK39: 0.9755 | FL39: 0.9765 | FM39: 0.9775 | FN39: 0.9785 | FO39: 0.9795 | FP39: 0.9805 | FQ39: 0.9815 | FR39: 0.9825 | FS39: 0.9835 | FT39: 0.9845 | FU39: 0.9855 | FV39: 0.9865 | FW39: 0.9865 | FX39: 0.9875 | FY39: 0.9885 | FZ39: 0.9895 | GA39: 0.9905 | GB39: 0.9915 | GC39: 0.9925 | GD39: 0.9935 | GE39: 0.9945 | GF39: 0.9955 | GG39: 0.9965 | GH39: 0.9975 | GI39: 0 | GJ39: 0 | GK39: 0.9735 | GL39: 0.9745 | GM39: 0.9755 | GN39: 0.9765 | GO39: 0.9775 | GP39: 0.9785 | GQ39: 0.9795 | GR39: 0.9805 | GS39: 0.9815 | GT39: 0.9825 | GU39: 0.9835 | GV39: 0.9845 | GW39: 0.9855 | GX39: 0.9855 | GY39: 0.9865 | GZ39: 0.9875 | HA39: 0.9885 | HB39: 0.9895 | HC39: 0.9905 | HD39: 0.9915 | HE39: 0.9925 | HF39: 0.9935 | HG39: 0.9945 | HH39: 0.9955 | HI39: 0.9965 | HJ39: 0 | HK39: 0 | HL39: 0.9725 | HM39: 0.9735 | HN39: 0.9745 | HO39: 0.9755 | HP39: 0.9765 | HQ39: 0.9775 | HR39: 0.9785 | HS39: 0.9795 | HT39: 0.9805 | HU39: 0.9815 | HV39: 0.9825 | HW39: 0.9835 | HX39: 0.9845 | HY39: 0.9845 | HZ39: 0.9855 | IA39: 0.9865 | IB39: 0.9875 | IC39: 0.9885 | ID39: 0.9895 | IE39: 0.9905 | IF39: 0.9915 | IG39: 0.9925 | IH39: 0.9935 | II39: 0.9945 | IJ39: 0.9955 | IK39: 0
B40: Edificios y mejoras | C40: 40 | D40: 0 | E40: 0 | F40: 0 | G40: 0 | H40: 0 | I40: 0 | J40: 0 | K40: 0 | L40: 0 | M40: 0 | N40: 0 | O40: 0 | P40: 0 | Q40: 0 | R40: 0 | S40: 0 | T40: 0 | U40: 0 | V40: 0 | W40: 0 | X40: 0 | Y40: 0 | Z40: 0 | AA40: 0 | AB40: 0 | AC40: 0 | AD40: 0 | AE40: 0 | AF40: 0 | AG40: 0 | AH40: 0 | AI40: 0 | AJ40: 0 | AK40: 0 | AL40: 0 | AM40: 0 | AN40: 0 | AO40: 0 | AP40: 0 | AQ40: 0 | AR40: 0 | AS40: 0 | AT40: 0 | AU40: 0 | AV40: 0 | AW40: 0 | AX40: 0 | AY40: 0 | AZ40: 0 | BA40: 0 | BB40: 0 | BC40: 0 | BD40: 0 | BE40: 0 | BF40: 0 | BG40: 0 | BH40: 0 | BI40: 0 | BJ40: 0 | BK40: 0 | BL40: 0 | BM40: 0 | BN40: 0 | BO40: 0 | BP40: 0 | BQ40: 0 | BR40: 0 | BS40: 0 | BT40: 0 | BU40: 0 | BV40: 0 | BW40: 0 | BX40: 0 | BY40: 0 | BZ40: 0 | CA40: 0 | CB40: 0 | CC40: 0 | CD40: 0 | CE40: 0 | CF40: 0 | CG40: 0 | CH40: 0 | CI40: 0 | CJ40: 0 | CK40: 0 | CY40: 0 | DB40: 0 | DC40: 0 | DD40: 0.4125 | DE40: 0.4375 | DF40: 0.4625 | DG40: 0.4875 | DH40: 0.5125 | DI40: 0.5375 | DJ40: 0.5625 | DK40: 0.5875 | DL40: 0.6125 | DM40: 0.6375 | DN40: 0.6625 | DO40: 0.6875 | DP40: 0.7125 | DQ40: 0 | DR40: 0.7375 | DS40: 0.7625 | DT40: 0.7875 | DU40: 0.8125 | DV40: 0.8375 | DW40: 0.8625 | DX40: 0.8875 | DY40: 0.9125 | DZ40: 0.9375 | EA40: 0.9625 | EB40: 0.9875 | EC40: 0 | ED40: 0 | EE40: 0 | EF40: 0 | EG40: 0 | EH40: 0 | EI40: 0.3875 | EJ40: 0.4125 | EK40: 0.4375 | EL40: 0.4625 | EM40: 0.4875 | EN40: 0.5125 | EO40: 0.5375 | EP40: 0.5625 | EQ40: 0.5875 | ER40: 0.6125 | ES40: 0.6375 | ET40: 0.6625 | EU40: 0.6875 | EV40: 0.6875 | EW40: 0.7125 | EX40: 0.7375 | EY40: 0.7625 | EZ40: 0.7875 | FA40: 0.8125 | FB40: 0.8375 | FC40: 0.8625 | FD40: 0.8875 | FE40: 0.9125 | FF40: 0.9375 | FG40: 0.9625 | FH40: 0 | FI40: 0 | FJ40: 0.3625 | FK40: 0.3875 | FL40: 0.4125 | FM40: 0.4375 | FN40: 0.4625 | FO40: 0.4875 | FP40: 0.5125 | FQ40: 0.5375 | FR40: 0.5625 | FS40: 0.5875 | FT40: 0.6125 | FU40: 0.6375 | FV40: 0.6625 | FW40: 0.6625 | FX40: 0.6875 | FY40: 0.7125 | FZ40: 0.7375 | GA40: 0.7625 | GB40: 0.7875 | GC40: 0.8125 | GD40: 0.8375 | GE40: 0.8625 | GF40: 0.8875 | GG40: 0.9125 | GH40: 0.9375 | GI40: 0 | GJ40: 0 | GK40: 0.3375 | GL40: 0.3625 | GM40: 0.3875 | GN40: 0.4125 | GO40: 0.4375 | GP40: 0.4625 | GQ40: 0.4875 | GR40: 0.5125 | GS40: 0.5375 | GT40: 0.5625 | GU40: 0.5875 | GV40: 0.6125 | GW40: 0.6375 | GX40: 0.6375 | GY40: 0.6625 | GZ40: 0.6875 | HA40: 0.7125 | HB40: 0.7375 | HC40: 0.7625 | HD40: 0.7875 | HE40: 0.8125 | HF40: 0.8375 | HG40: 0.8625 | HH40: 0.8875 | HI40: 0.9125 | HJ40: 0 | HK40: 0 | HL40: 0.3125 | HM40: 0.3375 | HN40: 0.3625 | HO40: 0.3875 | HP40: 0.4125 | HQ40: 0.4375 | HR40: 0.4625 | HS40: 0.4875 | HT40: 0.5125 | HU40: 0.5375 | HV40: 0.5625 | HW40: 0.5875 | HX40: 0.6125 | HY40: 0.6125 | HZ40: 0.6375 | IA40: 0.6625 | IB40: 0.6875 | IC40: 0.7125 | ID40: 0.7375 | IE40: 0.7625 | IF40: 0.7875 | IG40: 0.8125 | IH40: 0.8375 | II40: 0.8625 | IJ40: 0.8875 | IK40: 0
B41: Despachos de maniobra y SCADA | C41: 10 | D41: 68012.5323 | E41: 0 | F41: 0 | G41: 8156.81 | H41: 0 | I41: 0 | J41: 0 | K41: 72957 | L41: 0 | M41: 0 | N41: 0 | O41: 70981 | P41: 0 | Q41: 0 | R41: 0 | S41: 43325 | T41: 0 | U41: 0 | V41: 0 | W41: 0 | X41: 0 | Y41: 0 | Z41: 0 | AA41: 0 | AB41: 0 | AC41: 0 | AD41: 0 | AE41: 48894 | AF41: 0 | AG41: 0 | AH41: 0 | AI41: 43891.28 | AJ41: 0 | AK41: 0 | AL41: 0 | AM41: 15184 | AN41: 0 | AO41: 0 | AP41: 0 | AQ41: 15539.74 | AR41: 0 | AS41: 0 | AT41: 0 | AU41: 11462.5 | AV41: 0 | AW41: 0 | AX41: 0 | AY41: 13307.93 | AZ41: 0 | BA41: 0 | BB41: 0 | BC41: 326558.83 | BD41: 0 | BE41: 0 | BF41: 0 | BG41: 0 | BH41: 0 | BI41: 0 | BJ41: 848385 | BK41: 0 | BL41: 0 | BM41: 0 | BN41: 1423195.31 | BO41: 0 | BP41: 0 | BQ41: 0 | BR41: 894955.95 | BS41: 0 | BT41: 0 | BU41: 0 | BV41: 463708.7 | BW41: 0 | BX41: 0 | BY41: 0 | BZ41: 751857.28 | CA41: 0 | CB41: 0 | CC41: 0 | CD41: 935191.96 | CE41: 0 | CF41: 0 | CG41: 0 | CH41: 1564664.1 | CI41: 0 | CJ41: 0 | CK41: 0 | CL41: 851576.63 | CP41: 1257071.68 | CT41: 1144191.36 | CX41: 388239.16 | CY41: 0 | DB41: 1991 | DC41: 0 | DD41: 0 | DE41: 0 | DF41: 0 | DG41: 0 | DH41: 0 | DI41: 0 | DJ41: 0 | DK41: 0 | DL41: 0 | DM41: 0 | DN41: 0 | DO41: 0 | DP41: 0 | DQ41: 0 | DR41: 0 | DS41: 0.05 | DT41: 0.15 | DU41: 0.25 | DV41: 0.35 | DW41: 0.45 | DX41: 0.55 | DY41: 0.65 | DZ41: 0.75 | EA41: 0.85 | EB41: 0.95 | EC41: 791127.4026 | ED41: 9240393.17 | EE41: 1329119.144 | EF41: 3700986.519 | EG41: 791127.4026 | EH41: 0 | EI41: 0 | EJ41: 0 | EK41: 0 | EL41: 0 | EM41: 0 | EN41: 0 | EO41: 0 | EP41: 0 | EQ41: 0 | ER41: 0 | ES41: 0 | ET41: 0 | EU41: 0 | EV41: 0 | EW41: 0 | EX41: 0 | EY41: 0.05 | EZ41: 0.15 | FA41: 0.25 | FB41: 0.35 | FC41: 0.45 | FD41: 0.55 | FE41: 0.65 | FF41: 0.75 | FG41: 0.85 | FH41: 666680.9873 | FI41: 0 | FJ41: 0 | FK41: 0 | FL41: 0 | FM41: 0 | FN41: 0 | FO41: 0 | FP41: 0 | FQ41: 0 | FR41: 0 | FS41: 0 | FT41: 0 | FU41: 0 | FV41: 0 | FW41: 0 | FX41: 0 | FY41: 0 | FZ41: 0 | GA41: 0.05 | GB41: 0.15 | GC41: 0.25 | GD41: 0.35 | GE41: 0.45 | GF41: 0.55 | GG41: 0.65 | GH41: 0.75 | GI41: 588225.7806 | GJ41: 0 | GK41: 0 | GL41: 0 | GM41: 0 | GN41: 0 | GO41: 0 | GP41: 0 | GQ41: 0 | GR41: 0 | GS41: 0 | GT41: 0 | GU41: 0 | GV41: 0 | GW41: 0 | GX41: 0 | GY41: 0 | GZ41: 0 | HA41: 0 | HB41: 0 | HC41: 0.05 | HD41: 0.15 | HE41: 0.25 | HF41: 0.35 | HG41: 0.45 | HH41: 0.55 | HI41: 0.65 | HJ41: 547165.0678 | HK41: 0 | HL41: 0 | HM41: 0 | HN41: 0 | HO41: 0 | HP41: 0 | HQ41: 0 | HR41: 0 | HS41: 0 | HT41: 0 | HU41: 0 | HV41: 0 | HW41: 0 | HX41: 0 | HY41: 0 | HZ41: 0 | IA41: 0 | IB41: 0 | IC41: 0 | ID41: 0 | IE41: 0.05 | IF41: 0.15 | IG41: 0.25 | IH41: 0.35 | II41: 0.45 | IJ41: 0.55 | IK41: 482088.7392
B42: Equipos de medición y control de la calidad del suministro | C42: 22 | D42: 0 | E42: 0 | F42: 0 | G42: 0 | H42: 0 | I42: 0 | J42: 0 | K42: 0 | L42: 0 | M42: 0 | N42: 0 | O42: 0 | P42: 0 | Q42: 0 | R42: 0 | S42: 0 | T42: 0 | U42: 0 | V42: 0 | W42: 0 | X42: 0 | Y42: 0 | Z42: 0 | AA42: 0 | AB42: 0 | AC42: 0 | AD42: 0 | AE42: 21889 | AF42: 0 | AG42: 0 | AH42: 0 | AI42: 0 | AJ42: 0 | AK42: 0 | AL42: 0 | AM42: 0 | AN42: 0 | AO42: 0 | AP42: 0 | AQ42: 0 | AR42: 0 | AS42: 0 | AT42: 0 | AU42: 2142 | AV42: 0 | AW42: 0 | AX42: 0 | AY42: 48264.98 | AZ42: 0 | BA42: 0 | BB42: 0 | BC42: 285524.53 | BD42: 0 | BE42: 0 | BF42: 0 | BG42: 0 | BH42: 0 | BI42: 0 | BJ42: 23834.44 | BK42: 0 | BL42: 0 | BM42: 0 | BN42: 77437.19 | BO42: 0 | BP42: 0 | BQ42: 0 | BR42: 167430 | BS42: 0 | BT42: 0 | BU42: 0 | BV42: 0 | BW42: 0 | BX42: 0 | BY42: 0 | BZ42: 10851.34 | CA42: 0 | CB42: 0 | CC42: 0 | CD42: 124090.45 | CE42: 0 | CF42: 0 | CG42: 0 | CH42: 211466.45 | CI42: 0 | CJ42: 0 | CK42: 0 | CL42: 237731.02 | CP42: 215918.29 | CT42: 109224.11 | CX42: 0 | CY42: 0 | DB42: 0 | DC42: 0 | DD42: 0 | DE42: 0 | DF42: 0.02272727273 | DG42: 0.06818181818 | DH42: 0.1136363636 | DI42: 0.1590909091 | DJ42: 0.2045454545 | DK42: 0.25 | DL42: 0.2954545455 | DM42: 0.3409090909 | DN42: 0.3863636364 | DO42: 0.4318181818 | DP42: 0.4772727273 | DQ42: 0 | DR42: 0.5227272727 | DS42: 0.5681818182 | DT42: 0.6136363636 | DU42: 0.6590909091 | DV42: 0.7045454545 | DW42: 0.75 | DX42: 0.7954545455 | DY42: 0.8409090909 | DZ42: 0.8863636364 | EA42: 0.9318181818 | EB42: 0.9772727273 | EC42: 55230.03376 | ED42: 1215060.743 | EE42: 0 | EF42: 849784.1065 | EG42: 55230.03376 | EH42: 0 | EI42: 0 | EJ42: 0 | EK42: 0 | EL42: 0.02272727273 | EM42: 0.06818181818 | EN42: 0.1136363636 | EO42: 0.1590909091 | EP42: 0.2045454545 | EQ42: 0.25 | ER42: 0.2954545455 | ES42: 0.3409090909 | ET42: 0.3863636364 | EU42: 0.4318181818 | EV42: 0.4318181818 | EW42: 0.4772727273 | EX42: 0.5227272727 | EY42: 0.5681818182 | EZ42: 0.6136363636 | FA42: 0.6590909091 | FB42: 0.7045454545 | FC42: 0.75 | FD42: 0.7954545455 | FE42: 0.8409090909 | FF42: 0.8863636364 | FG42: 0.9318181818 | FH42: 55230.03376 | FI42: 0 | FJ42: 0 | FK42: 0 | FL42: 0 | FM42: 0 | FN42: 0.02272727273 | FO42: 0.06818181818 | FP42: 0.1136363636 | FQ42: 0.1590909091 | FR42: 0.2045454545 | FS42: 0.25 | FT42: 0.2954545455 | FU42: 0.3409090909 | FV42: 0.3863636364 | FW42: 0.3863636364 | FX42: 0.4318181818 | FY42: 0.4772727273 | FZ42: 0.5227272727 | GA42: 0.5681818182 | GB42: 0.6136363636 | GC42: 0.6590909091 | GD42: 0.7045454545 | GE42: 0.75 | GF42: 0.7954545455 | GG42: 0.8409090909 | GH42: 0.8863636364 | GI42: 55230.03376 | GJ42: 0 | GK42: 0 | GL42: 0 | GM42: 0 | GN42: 0 | GO42: 0 | GP42: 0.02272727273 | GQ42: 0.06818181818 | GR42: 0.1136363636 | GS42: 0.1590909091 | GT42: 0.2045454545 | GU42: 0.25 | GV42: 0.2954545455 | GW42: 0.3409090909 | GX42: 0.3409090909 | GY42: 0.3863636364 | GZ42: 0.4318181818 | HA42: 0.4772727273 | HB42: 0.5227272727 | HC42: 0.5681818182 | HD42: 0.6136363636 | HE42: 0.6590909091 | HF42: 0.7045454545 | HG42: 0.75 | HH42: 0.7954545455 | HI42: 0.8409090909 | HJ42: 55230.03376 | HK42: 0 | HL42: 0 | HM42: 0 | HN42: 0 | HO42: 0 | HP42: 0 | HQ42: 0 | HR42: 0.02272727273 | HS42: 0.06818181818 | HT42: 0.1136363636 | HU42: 0.1590909091 | HV42: 0.2045454545 | HW42: 0.25 | HX42: 0.2954545455 | HY42: 0.2954545455 | HZ42: 0.3409090909 | IA42: 0.3863636364 | IB42: 0.4318181818 | IC42: 0.4772727273 | ID42: 0.5227272727 | IE42: 0.5681818182 | IF42: 0.6136363636 | IG42: 0.6590909091 | IH42: 0.7045454545 | II42: 0.75 | IJ42: 0.7954545455 | IK42: 55230.03376
B43: Equipos de computación | C43: 4 | D43: 0 | E43: 0 | F43: 0 | G43: 0 | H43: 0 | I43: 0 | J43: 0 | K43: 0 | L43: 0 | M43: 0 | N43: 0 | O43: 0 | P43: 0 | Q43: 0 | R43: 0 | S43: 0 | T43: 0 | U43: 0 | V43: 0 | W43: 0 | X43: 0 | Y43: 0 | Z43: 0 | AA43: 0 | AB43: 0 | AC43: 0 | AD43: 0 | AE43: 0 | AF43: 0 | AG43: 0 | AH43: 0 | AI43: 0 | AJ43: 0 | AK43: 0 | AL43: 0 | AM43: 0 | AN43: 0 | AO43: 0 | AP43: 0 | AQ43: 0 | AR43: 0 | AS43: 0 | AT43: 0 | AU43: 0 | AV43: 0 | AW43: 0 | AX43: 0 | AY43: 0 | AZ43: 0 | BA43: 0 | BB43: 0 | BC43: 0 | BD43: 0 | BE43: 0 | BF43: 0 | BG43: 0 | BH43: 0 | BI43: 0 | BJ43: 0 | BK43: 0 | BL43: 0 | BM43: 0 | BN43: 0 | BO43: 0 | BP43: 0 | BQ43: 0 | BR43: 0 | BS43: 0 | BT43: 0 | BU43: 0 | BV43: 0 | BW43: 0 | BX43: 0 | BY43: 0 | BZ43: 0 | CA43: 0 | CB43: 0 | CC43: 0 | CD43: 0 | CE43: 0 | CF43: 0 | CG43: 0 | CH43: 0 | CI43: 0 | CJ43: 0 | CK43: 0 | CL43: 0 | CP43: 0 | CT43: 0 | CX43: 0 | CY43: 0 | DB43: 0 | DC43: 0 | DD43: 0 | DE43: 0 | DF43: 0 | DG43: 0 | DH43: 0 | DI43: 0 | DJ43: 0 | DK43: 0 | DL43: 0 | DM43: 0 | DN43: 0 | DO43: 0 | DP43: 0 | DQ43: 0 | DR43: 0 | DS43: 0 | DT43: 0 | DU43: 0 | DV43: 0 | DW43: 0 | DX43: 0 | DY43: 0.125 | DZ43: 0.375 | EA43: 0.625 | EB43: 0.875 | EC43: 0 | ED43: 0 | EE43: 0 | EF43: 0 | EG43: 0 | EH43: 0 | EI43: 0 | EJ43: 0 | EK43: 0 | EL43: 0 | EM43: 0 | EN43: 0 | EO43: 0 | EP43: 0 | EQ43: 0 | ER43: 0 | ES43: 0 | ET43: 0 | EU43: 0 | EV43: 0 | EW43: 0 | EX43: 0 | EY43: 0 | EZ43: 0 | FA43: 0 | FB43: 0 | FC43: 0 | FD43: 0 | FE43: 0.125 | FF43: 0.375 | FG43: 0.625 | FH43: 0 | FI43: 0 | FJ43: 0 | FK43: 0 | FL43: 0 | FM43: 0 | FN43: 0 | FO43: 0 | FP43: 0 | FQ43: 0 | FR43: 0 | FS43: 0 | FT43: 0 | FU43: 0 | FV43: 0 | FW43: 0 | FX43: 0 | FY43: 0 | FZ43: 0 | GA43: 0 | GB43: 0 | GC43: 0 | GD43: 0 | GE43: 0 | GF43: 0 | GG43: 0.125 | GH43: 0.375 | GI43: 0 | GJ43: 0 | GK43: 0 | GL43: 0 | GM43: 0 | GN43: 0 | GO43: 0 | GP43: 0 | GQ43: 0 | GR43: 0 | GS43: 0 | GT43: 0 | GU43: 0 | GV43: 0 | GW43: 0 | GX43: 0 | GY43: 0 | GZ43: 0 | HA43: 0 | HB43: 0 | HC43: 0 | HD43: 0 | HE43: 0 | HF43: 0 | HG43: 0 | HH43: 0 | HI43: 0.125 | HJ43: 0 | HK43: 0 | HL43: 0 | HM43: 0 | HN43: 0 | HO43: 0 | HP43: 0 | HQ43: 0 | HR43: 0 | HS43: 0 | HT43: 0 | HU43: 0 | HV43: 0 | HW43: 0 | HX43: 0 | HY43: 0 | HZ43: 0 | IA43: 0 | IB43: 0 | IC43: 0 | ID43: 0 | IE43: 0 | IF43: 0 | IG43: 0 | IH43: 0 | II43: 0 | IJ43: 0 | IK43: 0
B44: Equipos de comunicaciones | C44: 8 | D44: 0 | E44: 0 | F44: 0 | G44: 28201.54 | H44: 0 | I44: 0 | J44: 0 | K44: 40330.74994 | L44: 0 | M44: 0 | N44: 0 | O44: 24699.62 | P44: 0 | Q44: 0 | R44: 0 | S44: 0 | T44: 0 | U44: 0 | V44: 0 | W44: 30771.72 | X44: 0 | Y44: 0 | Z44: 0 | AA44: 26890.07 | AB44: 0 | AC44: 0 | AD44: 0 | AE44: 24056.72 | AF44: 0 | AG44: 0 | AH44: 0 | AI44: 0 | AJ44: 0 | AK44: 0 | AL44: 0 | AM44: 0 | AN44: 0 | AO44: 0 | AP44: 0 | AQ44: 0 | AR44: 0 | AS44: 0 | AT44: 0 | AU44: 0 | AV44: 0 | AW44: 0 | AX44: 0 | AY44: 0 | AZ44: 0 | BA44: 0 | BB44: 0 | BC44: 0 | BD44: 0 | BE44: 0 | BF44: 0 | BG44: 0 | BH44: 0 | BI44: 0 | BJ44: 0 | BK44: 0 | BL44: 0 | BM44: 0 | BN44: 0 | BO44: 0 | BP44: 0 | BQ44: 0 | BR44: 0 | BS44: 0 | BT44: 0 | BU44: 0 | BV44: 0 | BW44: 0 | BX44: 0 | BY44: 0 | BZ44: 0 | CA44: 0 | CB44: 0 | CC44: 0 | CD44: 0 | CE44: 0 | CF44: 0 | CG44: 0 | CH44: 0 | CI44: 0 | CJ44: 0 | CK44: 0 | CY44: 0 | DB44: 0 | DC44: 0 | DD44: 0 | DE44: 0 | DF44: 0 | DG44: 0 | DH44: 0 | DI44: 0 | DJ44: 0 | DK44: 0 | DL44: 0 | DM44: 0 | DN44: 0 | DO44: 0 | DP44: 0 | DQ44: 0 | DR44: 0 | DS44: 0 | DT44: 0 | DU44: 0.0625 | DV44: 0.1875 | DW44: 0.3125 | DX44: 0.4375 | DY44: 0.5625 | DZ44: 0.6875 | EA44: 0.8125 | EB44: 0.9375 | EC44: 0 | ED44: 153091.8133 | EE44: 153091.8133 | EF44: 0 | EG44: 0 | EH44: 0 | EI44: 0 | EJ44: 0 | EK44: 0 | EL44: 0 | EM44: 0 | EN44: 0 | EO44: 0 | EP44: 0 | EQ44: 0 | ER44: 0 | ES44: 0 | ET44: 0 | EU44: 0 | EV44: 0 | EW44: 0 | EX44: 0 | EY44: 0 | EZ44: 0 | FA44: 0.0625 | FB44: 0.1875 | FC44: 0.3125 | FD44: 0.4375 | FE44: 0.5625 | FF44: 0.6875 | FG44: 0.8125 | FH44: 0 | FI44: 0 | FJ44: 0 | FK44: 0 | FL44: 0 | FM44: 0 | FN44: 0 | FO44: 0 | FP44: 0 | FQ44: 0 | FR44: 0 | FS44: 0 | FT44: 0 | FU44: 0 | FV44: 0 | FW44: 0 | FX44: 0 | FY44: 0 | FZ44: 0 | GA44: 0 | GB44: 0 | GC44: 0.0625 | GD44: 0.1875 | GE44: 0.3125 | GF44: 0.4375 | GG44: 0.5625 | GH44: 0.6875 | GI44: 0 | GJ44: 0 | GK44: 0 | GL44: 0 | GM44: 0 | GN44: 0 | GO44: 0 | GP44: 0 | GQ44: 0 | GR44: 0 | GS44: 0 | GT44: 0 | GU44: 0 | GV44: 0 | GW44: 0 | GX44: 0 | GY44: 0 | GZ44: 0 | HA44: 0 | HB44: 0 | HC44: 0 | HD44: 0 | HE44: 0.0625 | HF44: 0.1875 | HG44: 0.3125 | HH44: 0.4375 | HI44: 0.5625 | HJ44: 0 | HK44: 0 | HL44: 0 | HM44: 0 | HN44: 0 | HO44: 0 | HP44: 0 | HQ44: 0 | HR44: 0 | HS44: 0 | HT44: 0 | HU44: 0 | HV44: 0 | HW44: 0 | HX44: 0 | HY44: 0 | HZ44: 0 | IA44: 0 | IB44: 0 | IC44: 0 | ID44: 0 | IE44: 0 | IF44: 0 | IG44: 0.0625 | IH44: 0.1875 | II44: 0.3125 | IJ44: 0.4375 | IK44: 0
B45: TOTAL SISTEMA DE DISTRIBUCIÓN | D45: =SUM(D14:D44) -> 64380215.58 | E45: =SUM(E14:E44) -> 0 | F45: 36745444.95 | G45: =SUM(G14:G44) -> 1262365.36 | H45: =SUM(H14:H44) -> 0 | I45: 0 | J45: 0 | K45: =SUM(K14:K44) -> 2422005.585 | L45: =SUM(L14:L44) -> 315949 | M45: =SUM(M14:M44) -> 0 | N45: =SUM(N14:N44) -> 0 | O45: =SUM(O14:O44) -> 2468106.68 | P45: =SUM(P14:P44) -> 0 | Q45: =SUM(Q14:Q44) -> 0 | R45: =SUM(R14:R44) -> 0 | S45: =SUM(S14:S44) -> 2636963 | T45: =SUM(T14:T44) -> 0 | U45: =SUM(U14:U44) -> 0 | V45: =SUM(V14:V44) -> 0 | W45: =SUM(W14:W44) -> 2901614.09 | X45: =SUM(X14:X44) -> 0 | Y45: =SUM(Y14:Y44) -> 0 | Z45: =SUM(Z14:Z44) -> 0 | AA45: =SUM(AA14:AA44) -> 4650052.81 | AB45: =SUM(AB14:AB44) -> 556386.07 | AC45: =SUM(AC14:AC44) -> 0 | AD45: =SUM(AD14:AD44) -> 0 | AE45: =SUM(AE14:AE44) -> 5437854.7 | AF45: =SUM(AF14:AF44) -> 0 | AG45: =SUM(AG14:AG44) -> 0 | AH45: =SUM(AH14:AH44) -> 0 | AI45: =SUM(AI14:AI44) -> 7755169.1 | AJ45: =SUM(AJ14:AJ44) -> 0 | AK45: =SUM(AK14:AK44) -> 0 | AL45: =SUM(AL14:AL44) -> 0 | AM45: =SUM(AM14:AM44) -> 5445007.672 | AN45: =SUM(AN14:AN44) -> 0 | AO45: =SUM(AO14:AO44) -> 0 | AP45: =SUM(AP14:AP44) -> 0 | AQ45: =SUM(AQ14:AQ44) -> 6483412.96 | AR45: =SUM(AR14:AR44) -> 0 | AS45: =SUM(AS14:AS44) -> 0 | AT45: =SUM(AT14:AT44) -> 0 | AU45: =SUM(AU14:AU44) -> 4744163.73 | AV45: =SUM(AV14:AV44) -> 0 | AW45: =SUM(AW14:AW44) -> 0 | AX45: =SUM(AX14:AX44) -> 0 | AY45: =SUM(AY14:AY44) -> 8655575.758 | AZ45: =SUM(AZ14:AZ44) -> 0 | BA45: =SUM(BA14:BA44) -> 0 | BB45: =SUM(BB14:BB44) -> 0 | BC45: =SUM(BC14:BC44) -> 8595478.49 | BD45: =SUM(BD14:BD44) -> 0 | BE45: =SUM(BE14:BE44) -> 0 | BF45: =SUM(BF14:BF44) -> 0 | BG45: =SUM(BG14:BG44) -> 6931047.248 | BH45: =SUM(BH14:BH44) -> 5763524.558 | BI45: =SUM(BI14:BI44) -> 4907911.22 | BJ45: =SUM(BJ14:BJ44) -> 10289030.28 | BK45: =SUM(BK14:BK44) -> 0 | BL45: =SUM(BL14:BL44) -> 0 | BM45: =SUM(BM14:BM44) -> 0 | BN45: =SUM(BN14:BN44) -> 23273467.4 | BO45: =SUM(BO14:BO44) -> 0 | BP45: =SUM(BP14:BP44) -> 0 | BQ45: =SUM(BQ14:BQ44) -> 0 | BR45: =SUM(BR14:BR44) -> 16573617.79 | BS45: =SUM(BS14:BS44) -> 65610.73 | BT45: =SUM(BT14:BT44) -> 0 | BU45: =SUM(BU14:BU44) -> 0 | BV45: =SUM(BV14:BV44) -> 17574337.19 | BW45: =SUM(BW14:BW44) -> 2126529.264 | BX45: =SUM(BX14:BX44) -> 0 | BY45: =SUM(BY14:BY44) -> 0 | BZ45: =SUM(BZ14:BZ44) -> 17203994.49 | CA45: =SUM(CA14:CA44) -> 2659763.211 | CB45: =SUM(CB14:CB44) -> 0 | CC45: =SUM(CC14:CC44) -> 0 | CD45: =SUM(CD14:CD44) -> 15929715.17 | CE45: =SUM(CE14:CE44) -> 519973.6671 | CF45: =SUM(CF14:CF44) -> 0 | CG45: =SUM(CG14:CG44) -> 0 | CH45: =SUM(CH14:CH44) -> 14074953.53 | CI45: =SUM(CI14:CI44) -> 143425.1252 | CJ45: =SUM(CJ14:CJ44) -> 0 | CK45: =SUM(CK14:CK44) -> 0 | CL45: =SUM(CL14:CL44) -> 16016692.26 | CM45: 0 | CN45: 0 | CO45: 0 | CP45: 41021704.73 | CQ45: 146532.4 | CR45: 0 | CS45: 0 | CT45: 22424311.76 | CU45: 1934068.2 | CV45: 0 | CW45: 0 | CX45: =SUM(CX14:CX44) -> 24138842.94 | CY45: 728733.5407 | CZ45: 0 | DA45: 0 | EC45: =SUM(EC14:EC44) -> 8038079.983 | ED45: =SUM(ED14:ED44) -> 290680096 | EE45: =SUM(EE14:EE44) -> 65802084.87 | EF45: =SUM(EF14:EF44) -> 160652909 | EG45: =SUM(EG14:EG44) -> 8038079.983 | FH45: =SUM(FH14:FH44) -> 7913633.567 | GI45: =SUM(GI14:GI44) -> 7835178.361 | HJ45: =SUM(HJ14:HJ44) -> 7794117.648 | IK45: =SUM(IK14:IK44) -> 7729041.319
A46: ALUMBRADO PÚBLICO | B46: Lámparas, accesorios y postes de alumbrado público | C46: 22 | D46: 2957226.501 | E46: 0 | F46: 1915114.077 | G46: 383603.42 | H46: 0 | I46: 0 | J46: 0 | K46: 723366.95 | L46: 0 | M46: 0 | N46: 0 | O46: 345218.57 | P46: 0 | Q46: 0 | R46: 0 | S46: 343113 | T46: 0 | U46: 0 | V46: 0 | W46: 288347.67 | X46: 0 | Y46: 0 | Z46: 0 | AA46: 301261.25 | AB46: 0 | AC46: 0 | AD46: 0 | AE46: 418664.33 | AF46: 0 | AG46: 0 | AH46: 0 | AI46: 191547.63 | AJ46: 0 | AK46: 0 | AL46: 0 | AM46: 284788.3 | AN46: 0 | AO46: 0 | AP46: 0 | AQ46: 417455.7889 | AR46: 0 | AS46: 0 | AT46: 0 | AU46: 846640.63 | AV46: 0 | AW46: 0 | AX46: 0 | AY46: 696982 | AZ46: 0 | BA46: 0 | BB46: 0 | BC46: 611593.03 | BD46: 0 | BE46: 0 | BF46: 0 | BG46: 0 | BH46: 0 | BI46: 0 | BJ46: 717101.01 | BK46: 0 | BL46: 0 | BM46: 0 | BN46: 778834.53 | BO46: 0 | BP46: 0 | BQ46: 0 | BR46: 1066066.35 | BS46: 0 | BT46: 0 | BU46: 0 | BV46: 715400.34 | BW46: 0 | BX46: 0 | BY46: 0 | BZ46: 305500.91 | CA46: 0 | CB46: 0 | CC46: 0 | CD46: 266268.98 | CE46: 0 | CF46: 0 | CG46: 0 | CH46: 743971.64 | CI46: 0 | CJ46: 0 | CK46: 0 | CL46: 550410.5 | CP46: 816287.5 | CT46: 242212.58 | CX46: 248882.74 | CY46: =IFERROR(IF((CM46+CQ46+CU46)/(CL46+CP46+CT46)>0,((CM46+CQ46+CU46)/(CL46+CP46+CT46))*CX46,0),0) -> 0 | DB46: =IF(D46=0,0,2001-(D46-F46)*C46/D46) -> 1993.247306 | DC46: =IF((1-($EC$2-$DB46)/$C46)>0,(1-($EC$2-$DB46)/$C46),0) -> 0 | DD46: =IF((1-($EC$2-G$2)/$C46)>0,(1-($EC$2-G$2)/$C46),0) -> 0 | DE46: =IF((1-($EC$2-K$2)/$C46)>0,(1-($EC$2-K$2)/$C46),0) -> 0 | DF46: =IF((1-($EC$2-O$2)/$C46)>0,(1-($EC$2-O$2)/$C46),0) -> 0.02272727273 | DG46: =IF((1-($EC$2-S$2)/$C46)>0,(1-($EC$2-S$2)/$C46),0) -> 0.06818181818 | DH46: =IF((1-($EC$2-W$2)/$C46)>0,(1-($EC$2-W$2)/$C46),0) -> 0.1136363636 | DI46: =IF((1-($EC$2-AA$2)/$C46)>0,(1-($EC$2-AA$2)/$C46),0) -> 0.1590909091 | DJ46: =IF((1-($EC$2-AE$2)/$C46)>0,(1-($EC$2-AE$2)/$C46),0) -> 0.2045454545 | DK46: =IF((1-($EC$2-AI$2)/$C46)>0,(1-($EC$2-AI$2)/$C46),0) -> 0.25 | DL46: =IF((1-($EC$2-AM$2)/$C46)>0,(1-($EC$2-AM$2)/$C46),0) -> 0.2954545455 | DM46: =IF((1-($EC$2-AQ$2)/$C46)>0,(1-($EC$2-AQ$2)/$C46),0) -> 0.3409090909 | DN46: =IF((1-($EC$2-AU$2)/$C46)>0,(1-($EC$2-AU$2)/$C46),0) -> 0.3863636364 | DO46: =IF((1-($EC$2-AY$2)/$C46)>0,(1-($EC$2-AY$2)/$C46),0) -> 0.4318181818 | DP46: =IF((1-($EC$2-BC$2)/$C46)>0,(1-($EC$2-BC$2)/$C46),0) -> 0.4772727273 | DQ46: =IF((1-($EC$2-BD$2)/$C46)>0,(1-($EC$2-BD$2)/$C46),0) -> 0 | DR46: =IF((1-($EC$2-BJ$2)/$C46)>0,(1-($EC$2-BJ$2)/$C46),0) -> 0.5227272727 | DS46: =IF((1-($EC$2-BN$2)/$C46)>0,(1-($EC$2-BN$2)/$C46),0) -> 0.5681818182 | DT46: =IF((1-($EC$2-BR$2)/$C46)>0,(1-($EC$2-BR$2)/$C46),0) -> 0.6136363636 | DU46: =IF((1-($EC$2-BV$2)/$C46)>0,(1-($EC$2-BV$2)/$C46),0) -> 0.6590909091 | DV46: =IF((1-($EC$2-BZ$2)/$C46)>0,(1-($EC$2-BZ$2)/$C46),0) -> 0.7045454545 | DW46: =IF((1-($EC$2-CD$2)/$C46)>0,(1-($EC$2-CD$2)/$C46),0) -> 0.75 | DX46: =IF((1-($EC$2-CH$2)/$C46)>0,(1-($EC$2-CH$2)/$C46),0) -> 0.7954545455 | DY46: =IF((1-($EC$2-CL$2)/$C46)>0,(1-($EC$2-CL$2)/$C46),0) -> 0.8409090909 | DZ46: =IF((1-($EC$2-CP$2)/$C46)>0,(1-($EC$2-CP$2)/$C46),0) -> 0.8863636364 | EA46: =IF((1-($EC$2-CT$2)/$C46)>0,(1-($EC$2-CT$2)/$C46),0) -> 0.9318181818 | EB46: =IF((1-($EC$2-CX$2)/$C46)>0,(1-($EC$2-CX$2)/$C46),0) -> 0.9772727273 | EC46: =IF(DC46=0,0,($D46-$E46)*1/$C46)+IF(DD46=0,0,($G46-$H46-$I46)*$G$62*1/$C46)+IF(DE46=0,0,($K46-$L46-$M46)*$K$62*1/$C46)+IF(DF46=0,0,($O46-$P46-$Q46)*$O$62*1/$C46)+IF(DG46=0,0,($S46-$T46-$U46)*$S$62*1/$C46)+IF(DH46=0,0,($W46-$X46-$Y46)*$W$62*1/$C46)+IF(DI46=0,0,($AA46-$AB46-$AC46)*$AA$62*1/$C46)+IF(DJ46=0,0,($AE46-$AF46-$AG46)*$AE$62*1/$C46)+IF(DK46=0,0,($AI46-$AJ46-$AK46)*$AI$62*1/$C46)+IF(DL46=0,0,($AM46-$AN46-$AO46)*$AM$62*1/$C46)+IF(DM46=0,0,($AQ46-$AR46-$AS46)*$AQ$62*1/$C46)+IF(DN46=0,0,($AU46-$V46-$AW46)*$AU$62*1/$C46)+IF(DO46=0,0,($AY46-$AZ46-$BA46)*$AY$62*1/$C46)+IF(DP46=0,0,($BC46-$BD46-$BE46)*$BC$62*1/$C46)+IF(DQ46=0,0,$BG46*1/$C46)+IF(DR46=0,0,($BJ46-$BK46-$BL46)*$BJ$62*1/$C46)+IF(DS46=0,0,($BN46-$BO46-$BP46)*$BN$62*1/$C46)+IF(DT46=0,0,($BR46-$BS46-$BT46)*$BR$62*1/$C46)+IF(DU46=0,0,($BV46-$BW46-$BX46)*$BV$62*1/$C46)+IF(DV46=0,0,($BZ46-$CA46-$CB46)*$BZ$62*1/$C46)+IF(DW46=0,0,($CD46-$CE46-$CF46)*$CD$62*1/$C46)+IF(DX46=0,0,($CH46-$CI46-$CJ46)*$CH$62*1/$C46)+IF(DY46=0,0,($CL46-$CM46-$CN46)*$CL$62*1/$C46)+IF(DZ46=0,0,($CP46-$CQ46-$CR46)*$CP$62*1/$C46)+IF(EA46=0,0,($CT46-$CU46-$CV46)*$CT$62*1/$C46)+IF(EB46=0,0,($CX46-$CY46-$CZ46)*$CX$62*1/$C46) -> 472468.6635 | ED46: =D46-E46+(G46-H46-I46)*G$62+(K46-L46-M46)*K$62+(O46-P46-Q46)*O$62+(S46-T46-U46)*S$62+(W46-X46-Y46)*W$62+(AA46-AB46-AC46)*AA$62+(AE46-AF46-AG46)*AE$62+(AI46-AJ46-AK46)*AI$62+(AM46-AN46-AO46)*AM$62+(AQ46-AR46-AS46)*$AQ$62+(AU46-AV46-AW46)*$AU$62+(AY46-AZ46-BA46)*$AY$62+(BC46-BD46-BE46)*$BC$62+BG46+(BJ46-BK46-BL46)*$BJ$62+(BN46-BO46-BP46)*$BN$62+(BR46-BS46-BT46)*$BR$62+(BV46-BW46-BX46)*$BV$62+(BZ46-CA46-CB46)*$BZ$62+(CD46-CE46-CF46)*$CD$62+(CH46-CI46-CJ46)*$CH$62+(CL46-CM46-CN46)*$CL$62+(CP46-CQ46-CR46)*$CP$62+(CT46-CU46-CV46)*$CT$62+(CX46-CY46-CZ46)*$CX$62 -> 14458507.47 | EE46: =IF(DC46=0,D46-E46,0)+IF(DD46=0,(G46-H46-I46)*G$62,0)+IF(DE46=0,(K46-L46-M46)*K$62,0)+IF(DF46=0,(O46-P46-Q46)*O$62,0)+IF(DG46=0,(S46-T46-U46)*S$62,0)+IF(DH46=0,(W46-X46-Y46)*W$62,0)+IF(DI46=0,(AA46-AB46-AC46)*AA$62,0)+IF(DJ46=0,(AE46-AF46-AG46)*AE$62,0)+IF(DK46=0,(AI46-AJ46-AK46)*AI$62,0)+IF(DL46=0,(AM46-AN46-AO46)*AM$62,0)+IF(DM46=0,(AQ46-AR46-AS46)*$AQ$62,0)+IF(DN46=0,(AU46-AV46-AW46)*$AU$62,0)+IF(DO46=0,(AY46-AZ46-BA46)*$AY$62,0)++IF(DP46=0,(BC46-BD46-BE46)*$BC$62,0)+IF(DQ46=0,BG46,0)+IF(DR46=0,(BJ46-BK46-BL46)*$BJ$62,0)+IF(DS46=0,(BN46-BO46-BP46)*$BN$62,0)+IF(DT46=0,(BR46-BS46-BT46)*$BR$62,0)+IF(DU46=0,(BV46-BW46-BX46)*$BV$62,0)+IF(DV46=0,(BZ46-CA46-CB46)*$BZ$62,0)+IF(DW46=0,(CD46-CE46-CF46)*$CD$62,0)+IF(DX46=0,(CH46-CI46-CJ46)*$CH$62,0)+IF(DY46=0,(CL46-CM46-CN46)*$CL$62,0)+IF(DZ46=0,(CP46-CQ46-CR46)*$CP$62,0)+IF(EA46=0,(CT46-CU46-CV46)*$CT$62,0)+IF(EB46=0,(CX46-CY46-CZ46)*$CX$62,0) -> 4064196.871 | EF46: =(D46-E46)*DC46+((G46-H46-(I46-J46))*G$62)*DD46+((K46-L46-(M46-N46))*K$62)*DE46+((O46-P46-(Q46-R46))*O$62)*DF46+((S46-T46-(U46-V46))*S$62)*DG46+((W46-X46-(Y46-Z46))*W$62)*DH46+((AA46-AB46-(AC46-AD46))*AA$62)*DI46+((AE46-AF46-(AG46-AH46))*AE$62)*DJ46+((AI46-AJ46-(AK46-AL46))*AI$62)*DK46+((AM46-AN46-(AO46-AP46))*$AM$62)*DL46+((AQ46-AR46-(AS46-AT46))*$AQ$62)*DM46+((AU46-AV46-(AW46-AX46))*$AU$62)*DN46+((AY46-AZ46-(BA46-BB46))*$AY$62)*DO46+((BC46-BD46-(BE46-BF46))*$BC$62)*DP46+((BJ46-BK46-(BL46-BM46))*$BJ$62)*DR46+(BG46-BH46)*DQ46+((BN46-BO46-(BP46-BQ46))*$BN$62)*DS46+((BR46-BS46-(BT46-BU46))*$BR$62)*DT46+((BV46-BW46-(BX46-BY46))*$BV$62)*DU46+((BZ46-CA46-(CB46-CC46))*$BZ$62)*DV46+((CD46-CE46-(CF46-CG46))*$CD$62)*DW46+((CH46-CI46-(CJ46-CK46))*$CH$62)*DX46+((CL46-CM46-(CN46-CO46))*$CL$62)*DY46+((CP46-CQ46-(CR46-CS46))*$CP$62)*DZ46+((CT46-CU46-(CV46-CW46))*$CT$62)*EA46+((CX46-CY46-(CZ46-DA46))*$CX$62)*EB46 -> 5490147.513 | EG46: =(ED46-EE46)*1/C46 -> 472468.6635 | EH46: =IF((1-($FH$2-$DB46)/$C46)>0,(1-($FH$2-$DB46)/$C46),0) -> 0 | EI46: =IF((1-($FH$2-EI$2)/$C46)>0,(1-($FH$2-EI$2)/$C46),0) -> 0 | EJ46: 0 | EK46: 0 | EL46: 0.02272727273 | EM46: 0.06818181818 | EN46: 0.1136363636 | EO46: 0.1590909091 | EP46: 0.2045454545 | EQ46: 0.25 | ER46: 0.2954545455 | ES46: 0.3409090909 | ET46: 0.3863636364 | EU46: 0.4318181818 | EV46: 0.4318181818 | EW46: 0.4772727273 | EX46: 0.5227272727 | EY46: 0.5681818182 | EZ46: 0.6136363636 | FA46: 0.6590909091 | FB46: 0.7045454545 | FC46: 0.75 | FD46: 0.7954545455 | FE46: =IF((1-($FH$2-FE$2)/$C46)>0,(1-($FH$2-FE$2)/$C46),0) -> 0.8409090909 | FF46: 0.8863636364 | FG46: 0.9318181818 | FH46: =IF(EH46=0,0,($D46-$E46)*1/$C46)+IF(EI46=0,0,($G46-$H46-$I46)*$G$62*1/$C46)+IF(EJ46=0,0,($K46-$L46-$M46)*$K$62*1/$C46)+IF(EK46=0,0,($O46-$P46-$Q46)*$O$62*1/$C46)+IF(EL46=0,0,($S46-$T46-$U46)*$S$62*1/$C46)+IF(EM46=0,0,($W46-$X46-$Y46)*$W$62*1/$C46)+IF(EN46=0,0,($AA46-$AB46-$AC46)*$AA$62*1/$C46)+IF(EO46=0,0,($AE46-$AF46-$AG46)*$AE$62*1/$C46)+IF(EP46=0,0,($AI46-$AJ46-$AK46)*$AI$62*1/$C46)+IF(EQ46=0,0,($AM46-$AN46-$AO46)*$AM$62*1/$C46)+IF(ER46=0,0,($AQ46-$AR46-$AS46)*$AQ$62*1/$C46)+IF(ES46=0,0,($AU46-$V46-$AW46)*$AU$62*1/$C46)+IF(ET46=0,0,($AY46-$AZ46-$BA46)*$AY$62*1/$C46)+IF(EU46=0,0,($BC46-$BD46-$BE46)*$BC$62*1/$C46)+IF(EV46=0,0,$BG46*1/$C46)+IF(EW46=0,0,($BJ46-$BK46-$BL46)*$BJ$62*1/$C46)+IF(EX46=0,0,($BN46-$BO46-$BP46)*$BN$62*1/$C46)+IF(EY46=0,0,($BR46-$BS46-$BT46)*$BR$62*1/$C46)+IF(EZ46=0,0,($BV46-$BW46-$BX46)*$BV$62*1/$C46)+IF(FA46=0,0,($BZ46-$CA46-$CB46)*$BZ$62*1/$C46)+IF(FB46=0,0,($CD46-$CE46-$CF46)*$CD$62*1/$C46)+IF(FC46=0,0,($CH46-$CI46-$CJ46)*$CH$62*1/$C46)+IF(FD46=0,0,($CL46-$CM46-$CN46)*$CL$62*1/$C46)+IF(FE46=0,0,($CP46-$CQ46-$CR46)*$CP$62*1/$C46)+IF(FF46=0,0,($CT46-$CU46-$CV46)*$CT$62*1/$C46)+IF(FG46=0,0,($CX46-$CY46-$CZ46)*$CX$62*1/$C46) -> 456776.9103 | FI46: =IF((1-($GI$2-$DB46)/$C46)>0,(1-($GI$2-$DB46)/$C46),0) -> 0 | FJ46: =IF((1-($GI$2-FJ$2)/$C46)>0,(1-($GI$2-FJ$2)/$C46),0) -> 0 | FK46: 0 | FL46: 0 | FM46: 0 | FN46: 0.02272727273 | FO46: 0.06818181818 | FP46: 0.1136363636 | FQ46: 0.1590909091 | FR46: 0.2045454545 | FS46: 0.25 | FT46: 0.2954545455 | FU46: 0.3409090909 | FV46: 0.3863636364 | FW46: 0.3863636364 | FX46: 0.4318181818 | FY46: 0.4772727273 | FZ46: 0.5227272727 | GA46: 0.5681818182 | GB46: 0.6136363636 | GC46: 0.6590909091 | GD46: 0.7045454545 | GE46: 0.75 | GF46: =IF((1-($GI$2-GF$2)/$C46)>0,(1-($GI$2-GF$2)/$C46),0) -> 0.7954545455 | GG46: 0.8409090909 | GH46: 0.8863636364 | GI46: =IF(FI46=0,0,($D46-$E46)*1/$C46)+IF(FJ46=0,0,($G46-$H46-$I46)*$G$62*1/$C46)+IF(FK46=0,0,($K46-$L46-$M46)*$K$62*1/$C46)+IF(FL46=0,0,($O46-$P46-$Q46)*$O$62*1/$C46)+IF(FM46=0,0,($S46-$T46-$U46)*$S$62*1/$C46)+IF(FN46=0,0,($W46-$X46-$Y46)*$W$62*1/$C46)+IF(FO46=0,0,($AA46-$AB46-$AC46)*$AA$62*1/$C46)+IF(FP46=0,0,($AE46-$AF46-$AG46)*$AE$62*1/$C46)+IF(FQ46=0,0,($AI46-$AJ46-$AK46)*$AI$62*1/$C46)+IF(FR46=0,0,($AM46-$AN46-$AO46)*$AM$62*1/$C46)+IF(FS46=0,0,($AQ46-$AR46-$AS46)*$AQ$62*1/$C46)+IF(FT46=0,0,($AU46-$V46-$AW46)*$AU$62*1/$C46)+IF(FU46=0,0,($AY46-$AZ46-$BA46)*$AY$62*1/$C46)+IF(FV46=0,0,($BC46-$BD46-$BE46)*$BC$62*1/$C46)+IF(FW46=0,0,$BG46*1/$C46)+IF(FX46=0,0,($BJ46-$BK46-$BL46)*$BJ$62*1/$C46)+IF(FY46=0,0,($BN46-$BO46-$BP46)*$BN$62*1/$C46)+IF(FZ46=0,0,($BR46-$BS46-$BT46)*$BR$62*1/$C46)+IF(GA46=0,0,($BV46-$BW46-$BX46)*$BV$62*1/$C46)+IF(GB46=0,0,($BZ46-$CA46-$CB46)*$BZ$62*1/$C46)+IF(GC46=0,0,($CD46-$CE46-$CF46)*$CD$62*1/$C46)+IF(GD46=0,0,($CH46-$CI46-$CJ46)*$CH$62*1/$C46)+IF(GE46=0,0,($CL46-$CM46-$CN46)*$CL$62*1/$C46)+IF(GF46=0,0,($CP46-$CQ46-$CR46)*$CP$62*1/$C46)+IF(GG46=0,0,($CT46-$CU46-$CV46)*$CT$62*1/$C46)+IF(GH46=0,0,($CX46-$CY46-$CZ46)*$CX$62*1/$C46) -> 441180.8649 | GJ46: =IF((1-($HJ$2-$DB46)/$C46)>0,(1-($HJ$2-$DB46)/$C46),0) -> 0 | GK46: =IF((1-($HJ$2-GK$2)/$C46)>0,(1-($HJ$2-GK$2)/$C46),0) -> 0 | GL46: 0 | GM46: 0 | GN46: 0 | GO46: 0 | GP46: 0.02272727273 | GQ46: 0.06818181818 | GR46: 0.1136363636 | GS46: 0.1590909091 | GT46: 0.2045454545 | GU46: 0.25 | GV46: 0.2954545455 | GW46: 0.3409090909 | GX46: 0.3409090909 | GY46: 0.3863636364 | GZ46: 0.4318181818 | HA46: 0.4772727273 | HB46: 0.5227272727 | HC46: 0.5681818182 | HD46: 0.6136363636 | HE46: 0.6590909091 | HF46: 0.7045454545 | HG46: =IF((1-($HJ$2-HG$2)/$C46)>0,(1-($HJ$2-HG$2)/$C46),0) -> 0.75 | HH46: 0.7954545455 | HI46: 0.8409090909 | HJ46: =IF(GJ46=0,0,($D46-$E46)*1/$C46)+IF(GK46=0,0,($G46-$H46-$I46)*$G$62*1/$C46)+IF(GL46=0,0,($K46-$L46-$M46)*$K$62*1/$C46)+IF(GM46=0,0,($O46-$P46-$Q46)*$O$62*1/$C46)+IF(GN46=0,0,($S46-$T46-$U46)*$S$62*1/$C46)+IF(GO46=0,0,($W46-$X46-$Y46)*$W$62*1/$C46)+IF(GP46=0,0,($AA46-$AB46-$AC46)*$AA$62*1/$C46)+IF(GQ46=0,0,($AE46-$AF46-$AG46)*$AE$62*1/$C46)+IF(GR46=0,0,($AI46-$AJ46-$AK46)*$AI$62*1/$C46)+IF(GS46=0,0,($AM46-$AN46-$AO46)*$AM$62*1/$C46)+IF(GT46=0,0,($AQ46-$AR46-$AS46)*$AQ$62*1/$C46)+IF(GU46=0,0,($AU46-$V46-$AW46)*$AU$62*1/$C46)+IF(GV46=0,0,($AY46-$AZ46-$BA46)*$AY$62*1/$C46)+IF(GW46=0,0,($BC46-$BD46-$BE46)*$BC$62*1/$C46)+IF(GX46=0,0,$BG46*1/$C46)+IF(GY46=0,0,($BJ46-$BK46-$BL46)*$BJ$62*1/$C46)+IF(GZ46=0,0,($BN46-$BO46-$BP46)*$BN$62*1/$C46)+IF(HA46=0,0,($BR46-$BS46-$BT46)*$BR$62*1/$C46)+IF(HB46=0,0,($BV46-$BW46-$BX46)*$BV$62*1/$C46)+IF(HC46=0,0,($BZ46-$CA46-$CB46)*$BZ$62*1/$C46)+IF(HD46=0,0,($CD46-$CE46-$CF46)*$CD$62*1/$C46)+IF(HE46=0,0,($CH46-$CI46-$CJ46)*$CH$62*1/$C46)+IF(HF46=0,0,($CL46-$CM46-$CN46)*$CL$62*1/$C46)+IF(HG46=0,0,($CP46-$CQ46-$CR46)*$CP$62*1/$C46)+IF(HH46=0,0,($CT46-$CU46-$CV46)*$CT$62*1/$C46)+IF(HI46=0,0,($CX46-$CY46-$CZ46)*$CX$62*1/$C46) -> 429122.6896 | HK46: =IF((1-($IK$2-$DB46)/$C46)>0,(1-($IK$2-$DB46)/$C46),0) -> 0 | HL46: =IF((1-($IK$2-HL$2)/$C46)>0,(1-($IK$2-HL$2)/$C46),0) -> 0 | HM46: 0 | HN46: 0 | HO46: 0 | HP46: 0 | HQ46: 0 | HR46: 0.02272727273 | HS46: 0.06818181818 | HT46: 0.1136363636 | HU46: 0.1590909091 | HV46: 0.2045454545 | HW46: 0.25 | HX46: 0.2954545455 | HY46: 0.2954545455 | HZ46: 0.3409090909 | IA46: 0.3863636364 | IB46: 0.4318181818 | IC46: 0.4772727273 | ID46: 0.5227272727 | IE46: 0.5681818182 | IF46: 0.6136363636 | IG46: 0.6590909091 | IH46: =IF((1-($IK$2-IH$2)/$C46)>0,(1-($IK$2-IH$2)/$C46),0) -> 0.7045454545 | II46: 0.75 | IJ46: 0.7954545455 | IK46: =IF(HK46=0,0,($D46-$E46)*1/$C46)+IF(HL46=0,0,($G46-$H46-$I46)*$G$62*1/$C46)+IF(HM46=0,0,($K46-$L46-$M46)*$K$62*1/$C46)+IF(HN46=0,0,($O46-$P46-$Q46)*$O$62*1/$C46)+IF(HO46=0,0,($S46-$T46-$U46)*$S$62*1/$C46)+IF(HP46=0,0,($W46-$X46-$Y46)*$W$62*1/$C46)+IF(HQ46=0,0,($AA46-$AB46-$AC46)*$AA$62*1/$C46)+IF(HR46=0,0,($AE46-$AF46-$AG46)*$AE$62*1/$C46)+IF(HS46=0,0,($AI46-$AJ46-$AK46)*$AI$62*1/$C46)+IF(HT46=0,0,($AM46-$AN46-$AO46)*$AM$62*1/$C46)+IF(HU46=0,0,($AQ46-$AR46-$AS46)*$AQ$62*1/$C46)+IF(HV46=0,0,($AU46-$V46-$AW46)*$AU$62*1/$C46)+IF(HW46=0,0,($AY46-$AZ46-$BA46)*$AY$62*1/$C46)+IF(HX46=0,0,($BC46-$BD46-$BE46)*$BC$62*1/$C46)+IF(HY46=0,0,$BG46*1/$C46)+IF(HZ46=0,0,($BJ46-$BK46-$BL46)*$BJ$62*1/$C46)+IF(IA46=0,0,($BN46-$BO46-$BP46)*$BN$62*1/$C46)+IF(IB46=0,0,($BR46-$BS46-$BT46)*$BR$62*1/$C46)+IF(IC46=0,0,($BV46-$BW46-$BX46)*$BV$62*1/$C46)+IF(ID46=0,0,($BZ46-$CA46-$CB46)*$BZ$62*1/$C46)+IF(IE46=0,0,($CD46-$CE46-$CF46)*$CD$62*1/$C46)+IF(IF46=0,0,($CH46-$CI46-$CJ46)*$CH$62*1/$C46)+IF(IG46=0,0,($CL46-$CM46-$CN46)*$CL$62*1/$C46)+IF(IH46=0,0,($CP46-$CQ46-$CR46)*$CP$62*1/$C46)+IF(II46=0,0,($CT46-$CU46-$CV46)*$CT$62*1/$C46)+IF(IJ46=0,0,($CX46-$CY46-$CZ46)*$CX$62*1/$C46) -> 416524.4919
B47: TOTAL ALUMBRADO PÚBLICO | D47: =D46 -> 2957226.501 | E47: =E46 -> 0 | F47: 1915114.077 | G47: 383603.42 | H47: =H46 -> 0 | I47: 0 | J47: 0 | K47: 723366.95 | L47: =L46 -> 0 | M47: 0 | N47: 0 | O47: 345218.57 | P47: 0 | Q47: 0 | R47: 0 | S47: 343113 | T47: 0 | U47: 0 | V47: 0 | W47: 288347.67 | X47: 0 | Y47: 0 | Z47: 0 | AA47: 301261.25 | AB47: 0 | AC47: 0 | AD47: 0 | AE47: 418664.33 | AF47: 0 | AG47: 0 | AH47: 0 | AI47: 191547.63 | AJ47: 0 | AK47: 0 | AL47: 0 | AM47: 284788.3 | AN47: 0 | AO47: 0 | AP47: 0 | AQ47: 417455.7889 | AR47: 0 | AS47: 0 | AT47: 0 | AU47: 846640.63 | AV47: 0 | AW47: 0 | AX47: 0 | AY47: 696982 | AZ47: 0 | BA47: 0 | BB47: 0 | BC47: 611593.03 | BD47: 0 | BE47: 0 | BF47: 0 | BG47: =BG46 -> 0 | BH47: 0 | BI47: 0 | BJ47: 717101.01 | BK47: 0 | BL47: 0 | BM47: 0 | BN47: 778834.53 | BO47: 0 | BP47: 0 | BQ47: 0 | BR47: 1066066.35 | BS47: 0 | BT47: 0 | BU47: 0 | BV47: 715400.34 | BW47: 0 | BX47: 0 | BY47: 0 | BZ47: 305500.91 | CA47: 0 | CB47: 0 | CC47: 0 | CD47: 266268.98 | CE47: 0 | CF47: 0 | CG47: 0 | CH47: 743971.64 | CI47: 0 | CJ47: 0 | CK47: 0 | CL47: =+CL46 -> 550410.5 | CM47: 0 | CN47: 0 | CO47: 0 | CP47: 816287.5 | CQ47: 0 | CR47: 0 | CS47: 0 | CT47: 242212.58 | CU47: 0 | CV47: 0 | CW47: 0 | CX47: =+CX46 -> 248882.74 | CY47: 0 | CZ47: 0 | DA47: 0 | EC47: =EC46 -> 472468.6635 | ED47: =ED46 -> 14458507.47 | EE47: =EE46 -> 4064196.871 | EF47: =EF46 -> 5490147.513 | EG47: =EG46 -> 472468.6635 | FH47: =FH46 -> 456776.9103 | GI47: =GI46 -> 441180.8649 | HJ47: =HJ46 -> 429122.6896 | IK47: =IK46 -> 416524.4919
A48: COMERCIALIZACIÓN | B48: Activos intangibles (software) | C48: 4 | D48: 0 | E48: 0 | F48: 0 | G48: 0 | H48: 0 | I48: 0 | J48: 0 | K48: 0 | L48: 0 | M48: 0 | N48: 0 | O48: 0 | P48: 0 | Q48: 0 | R48: 0 | S48: 0 | T48: 0 | U48: 0 | V48: 0 | W48: 0 | X48: 0 | Y48: 0 | Z48: 0 | AA48: 0 | AB48: 0 | AC48: 0 | AD48: 0 | AE48: 0 | AF48: 0 | AG48: 0 | AH48: 0 | AI48: 0 | AJ48: 0 | AK48: 0 | AL48: 0 | AM48: 0 | AN48: 0 | AO48: 0 | AP48: 0 | AQ48: 0 | AR48: 0 | AS48: 0 | AT48: 0 | AU48: 0 | AV48: 0 | AW48: 0 | AX48: 0 | AY48: 0 | AZ48: 0 | BA48: 0 | BB48: 0 | BC48: 0 | BD48: 0 | BE48: 0 | BF48: 0 | BG48: 0 | BH48: 0 | BI48: 0 | BJ48: 0 | BK48: 0 | BL48: 0 | BM48: 0 | BN48: 0 | BO48: 0 | BP48: 0 | BQ48: 0 | BR48: 0 | BS48: 0 | BT48: 0 | BU48: 0 | BV48: 0 | BW48: 0 | BX48: 0 | BY48: 0 | BZ48: 0 | CA48: 0 | CB48: 0 | CC48: 0 | CD48: 0 | CE48: 0 | CF48: 0 | CG48: 0 | CH48: 0 | CI48: 0 | CJ48: 0 | CK48: 0 | CY48: =IFERROR(IF((CM48+CQ48+CU48)/(CL48+CP48+CT48)>0,((CM48+CQ48+CU48)/(CL48+CP48+CT48))*CX48,0),0) -> 0 | DB48: =IF(D48=0,0,2001-(D48-F48)*C48/D48) -> 0 | DC48: =IF((1-($EC$2-$DB48)/$C48)>0,(1-($EC$2-$DB48)/$C48),0) -> 0 | DD48: =IF((1-($EC$2-G$2)/$C48)>0,(1-($EC$2-G$2)/$C48),0) -> 0 | DE48: =IF((1-($EC$2-K$2)/$C48)>0,(1-($EC$2-K$2)/$C48),0) -> 0 | DF48: =IF((1-($EC$2-O$2)/$C48)>0,(1-($EC$2-O$2)/$C48),0) -> 0 | DG48: =IF((1-($EC$2-S$2)/$C48)>0,(1-($EC$2-S$2)/$C48),0) -> 0 | DH48: =IF((1-($EC$2-W$2)/$C48)>0,(1-($EC$2-W$2)/$C48),0) -> 0 | DI48: =IF((1-($EC$2-AA$2)/$C48)>0,(1-($EC$2-AA$2)/$C48),0) -> 0 | DJ48: =IF((1-($EC$2-AE$2)/$C48)>0,(1-($EC$2-AE$2)/$C48),0) -> 0 | DK48: =IF((1-($EC$2-AI$2)/$C48)>0,(1-($EC$2-AI$2)/$C48),0) -> 0 | DL48: =IF((1-($EC$2-AM$2)/$C48)>0,(1-($EC$2-AM$2)/$C48),0) -> 0 | DM48: =IF((1-($EC$2-AQ$2)/$C48)>0,(1-($EC$2-AQ$2)/$C48),0) -> 0 | DN48: =IF((1-($EC$2-AU$2)/$C48)>0,(1-($EC$2-AU$2)/$C48),0) -> 0 | DO48: =IF((1-($EC$2-AY$2)/$C48)>0,(1-($EC$2-AY$2)/$C48),0) -> 0 | DP48: =IF((1-($EC$2-BC$2)/$C48)>0,(1-($EC$2-BC$2)/$C48),0) -> 0 | DQ48: =IF(BG48=0,0,1-($EC$2-(2014.5-(BG48-BI48)*C48/BG48))/C48) -> 0 | DR48: =IF((1-($EC$2-BJ$2)/$C48)>0,(1-($EC$2-BJ$2)/$C48),0) -> 0 | DS48: =IF((1-($EC$2-BN$2)/$C48)>0,(1-($EC$2-BN$2)/$C48),0) -> 0 | DT48: =IF((1-($EC$2-BR$2)/$C48)>0,(1-($EC$2-BR$2)/$C48),0) -> 0 | DU48: =IF((1-($EC$2-BV$2)/$C48)>0,(1-($EC$2-BV$2)/$C48),0) -> 0 | DV48: =IF((1-($EC$2-BZ$2)/$C48)>0,(1-($EC$2-BZ$2)/$C48),0) -> 0 | DW48: =IF((1-($EC$2-CD$2)/$C48)>0,(1-($EC$2-CD$2)/$C48),0) -> 0 | DX48: =IF((1-($EC$2-CH$2)/$C48)>0,(1-($EC$2-CH$2)/$C48),0) -> 0 | DY48: =IF((1-($EC$2-CL$2)/$C48)>0,(1-($EC$2-CL$2)/$C48),0) -> 0.125 | DZ48: =IF((1-($EC$2-CP$2)/$C48)>0,(1-($EC$2-CP$2)/$C48),0) -> 0.375 | EA48: =IF((1-($EC$2-CT$2)/$C48)>0,(1-($EC$2-CT$2)/$C48),0) -> 0.625 | EB48: =IF((1-($EC$2-CX$2)/$C48)>0,(1-($EC$2-CX$2)/$C48),0) -> 0.875 | EC48: =IF(DC48=0,0,($D48-$E48)*1/$C48)+IF(DD48=0,0,($G48-$H48-$I48)*$G$63*1/$C48)+IF(DE48=0,0,($K48-$L48-$M48)*$K$63*1/$C48)+IF(DF48=0,0,($O48-$P48-$Q48)*$O$63*1/$C48)+IF(DG48=0,0,($S48-$T48-$U48)*$S$63*1/$C48)+IF(DH48=0,0,($W48-$X48-$Y48)*$W$63*1/$C48)+IF(DI48=0,0,($AA48-$AB48-$AC48)*$AA$63*1/$C48)+IF(DJ48=0,0,($AE48-$AF48-$AG48)*$AE$63*1/$C48)+IF(DK48=0,0,($AI48-$AJ48-$AK48)*$AI$63*1/$C48)+IF(DL48=0,0,($AM48-$AN48-$AO48)*$AM$63*1/$C48)+IF(DM48=0,0,($AQ48-$AR48-$AS48)*$AQ$63*1/$C48)+IF(DN48=0,0,($AU48-$V48-$AW48)*$AU$63*1/$C48)+IF(DO48=0,0,($AY48-$AZ48-$BA48)*$AY$63*1/$C48)+IF(DP48=0,0,($BC48-$BD48-$BE48)*$BC$63*1/$C48)+IF(DQ48=0,0,$BG48*1/$C48)+IF(DR48=0,0,($BJ48-$BK48-$BL48)*$BJ$63*1/$C48)+IF(DS48=0,0,($BN48-$BO48-$BP48)*$BN$63*1/$C48)+IF(DT48=0,0,($BR48-$BS48-$BT48)*$BR$63*1/$C48)+IF(DU48=0,0,($BV48-$BW48-$BX48)*$BV$63*1/$C48)+IF(DV48=0,0,($BZ48-$CA48-$CB48)*$BZ$63*1/$C48)+IF(DW48=0,0,($CD48-$CE48-$CF48)*$CD$63*1/$C48)+IF(DX48=0,0,($CH48-$CI48-$CJ48)*$CH$63*1/$C48)+IF(DY48=0,0,($CL48-$CM48-$CN48)*$CL$63*1/$C48)+IF(DZ48=0,0,($CP48-$CQ48-$CR48)*$CP$63*1/$C48)+IF(EA48=0,0,($CT48-$CU48-$CV48)*$CT$63*1/$C48)+IF(EB48=0,0,($CX48-$CY48-$CZ48)*$CX$63*1/$C48) -> 0 | ED48: =D48-E48+(G48-H48-I48)*G$63+(K48-L48-M48)*K$63+(O48-P48-Q48)*O$63+(S48-T48-U48)*S$63+(W48-X48-Y48)*W$63+(AA48-AB48-AC48)*AA$63+(AE48-AF48-AG48)*AE$63+(AI48-AJ48-AK48)*AI$63+(AM48-AN48-AO48)*AM$63+(AQ48-AR48-AS48)*$AQ$63+(AU48-AV48-AW48)*$AU$63+(AY48-AZ48-BA48)*$AY$63+(BC48-BD48-BE48)*$BC$63+BG48+(BJ48-BK48-BL48)*$BJ$63+(BN48-BO48-BP48)*$BN$63+(BR48-BS48-BT48)*$BR$63+(BV48-BW48-BX48)*$BV$63+(BZ48-CA48-CB48)*$BZ$63+(CD48-CE48-CF48)*$CD$63+(CH48-CI48-CJ48)*$CH$63+(CL48-CM48-CN48)*$CL$63+(CP48-CQ48-CR48)*$CP$63+(CT48-CU48-CV48)*$CT$63+(CX48-CY48-CZ48)*$CX$63 -> 0 | EE48: =IF(DC48=0,D48-E48,0)+IF(DD48=0,(G48-H48-I48)*G$63,0)+IF(DE48=0,(K48-L48-M48)*K$63,0)+IF(DF48=0,(O48-P48-Q48)*O$63,0)+IF(DG48=0,(S48-T48-U48)*S$63,0)+IF(DH48=0,(W48-X48-Y48)*W$63,0)+IF(DI48=0,(AA48-AB48-AC48)*AA$63,0)+IF(DJ48=0,(AE48-AF48-AG48)*AE$63,0)+IF(DK48=0,(AI48-AJ48-AK48)*AI$63,0)+IF(DL48=0,(AM48-AN48-AO48)*AM$63,0)+IF(DM48=0,(AQ48-AR48-AS48)*$AQ$63,0)+IF(DN48=0,(AU48-AV48-AW48)*$AU$63,0)+IF(DO48=0,(AY48-AZ48-BA48)*$AY$63,0)++IF(DP48=0,(BC48-BD48-BE48)*$BC$63,0)+IF(DQ48=0,BG48,0)+IF(DR48=0,(BJ48-BK48-BL48)*$BJ$63,0)+IF(DS48=0,(BN48-BO48-BP48)*$BN$63,0)+IF(DT48=0,(BR48-BS48-BT48)*$BR$63,0)+IF(DU48=0,(BV48-BW48-BX48)*$BV$63,0)+IF(DV48=0,(BZ48-CA48-CB48)*$BZ$63,0)+IF(DW48=0,(CD48-CE48-CF48)*$CD$63,0)+IF(DX48=0,(CH48-CI48-CJ48)*$CH$63,0)+IF(DY48=0,(CL48-CM48-CN48)*$CL$63,0)+IF(DZ48=0,(CP48-CQ48-CR48)*$CP$63,0)+IF(EA48=0,(CT48-CU48-CV48)*$CT$63,0)+IF(EB48=0,(CX48-CY48-CZ48)*$CX$63,0) -> 0 | EF48: =(D48-E48)*DC48+((G48-H48-(I48-J48))*G$63)*DD48+((K48-L48-(M48-N48))*K$63)*DE48+((O48-P48-(Q48-R48))*O$63)*DF48+((S48-T48-(U48-V48))*S$63)*DG48+((W48-X48-(Y48-Z48))*W$63)*DH48+((AA48-AB48-(AC48-AD48))*AA$63)*DI48+((AE48-AF48-(AG48-AH48))*AE$63)*DJ48+((AI48-AJ48-(AK48-AL48))*AI$63)*DK48+((AM48-AN48-(AO48-AP48))*$AM$63)*DL48+((AQ48-AR48-(AS48-AT48))*$AQ$63)*DM48+((AU48-AV48-(AW48-AX48))*$AU$63)*DN48+((AY48-AZ48-(BA48-BB48))*$AY$63)*DO48+((BC48-BD48-(BE48-BF48))*$BC$63)*DP48+((BJ48-BK48-(BL48-BM48))*$BJ$63)*DR48+(BG48-BH48)*DQ48+((BN48-BO48-(BP48-BQ48))*$BN$63)*DS48+((BR48-BS48-(BT48-BU48))*$BR$63)*DT48+((BV48-BW48-(BX48-BY48))*$BV$63)*DU48+((BZ48-CA48-(CB48-CC48))*$BZ$63)*DV48+((CD48-CE48-(CF48-CG48))*$CD$63)*DW48+((CH48-CI48-(CJ48-CK48))*$CH$63)*DX48+((CL48-CM48-(CN48-CO48))*$CL$63)*DY48+((CP48-CQ48-(CR48-CS48))*$CP$63)*DZ48+((CT48-CU48-(CV48-CW48))*$CT$63)*EA48+((CX48-CY48-(CZ48-DA48))*$CX$63)*EB48 -> 0 | EG48: =(ED48-EE48)*1/C48 -> 0 | EH48: =IF((1-($FH$2-$DB48)/$C48)>0,(1-($FH$2-$DB48)/$C48),0) -> 0 | EI48: =IF((1-($FH$2-EI$2)/$C48)>0,(1-($FH$2-EI$2)/$C48),0) -> 0 | EJ48: 0 | EK48: 0 | EL48: 0 | EM48: 0 | EN48: 0 | EO48: 0 | EP48: 0 | EQ48: 0 | ER48: 0 | ES48: =IF((1-($FH$2-ES$2)/$C48)>0,(1-($FH$2-ES$2)/$C48),0) -> 0 | ET48: 0 | EU48: 0 | EV48: 0 | EW48: 0 | EX48: 0 | EY48: 0 | EZ48: 0 | FA48: 0 | FB48: 0 | FC48: 0 | FD48: 0 | FE48: =IF((1-($FH$2-FE$2)/$C48)>0,(1-($FH$2-FE$2)/$C48),0) -> 0.125 | FF48: 0.375 | FG48: 0.625 | FH48: =IF(EH48=0,0,($D48-$E48)*1/$C48)+IF(EI48=0,0,($G48-$H48-$I48)*$G$63*1/$C48)+IF(EJ48=0,0,($K48-$L48-$M48)*$K$63*1/$C48)+IF(EK48=0,0,($O48-$P48-$Q48)*$O$63*1/$C48)+IF(EL48=0,0,($S48-$T48-$U48)*$S$63*1/$C48)+IF(EM48=0,0,($W48-$X48-$Y48)*$W$63*1/$C48)+IF(EN48=0,0,($AA48-$AB48-$AC48)*$AA$63*1/$C48)+IF(EO48=0,0,($AE48-$AF48-$AG48)*$AE$63*1/$C48)+IF(EP48=0,0,($AI48-$AJ48-$AK48)*$AI$63*1/$C48)+IF(EQ48=0,0,($AM48-$AN48-$AO48)*$AM$63*1/$C48)+IF(ER48=0,0,($AQ48-$AR48-$AS48)*$AQ$63*1/$C48)+IF(ES48=0,0,($AU48-$V48-$AW48)*$AU$63*1/$C48)+IF(ET48=0,0,($AY48-$AZ48-$BA48)*$AY$63*1/$C48)+IF(EU48=0,0,($BC48-$BD48-$BE48)*$BC$63*1/$C48)+IF(EV48=0,0,$BG48*1/$C48)+IF(EW48=0,0,($BJ48-$BK48-$BL48)*$BJ$63*1/$C48)+IF(EX48=0,0,($BN48-$BO48-$BP48)*$BN$63*1/$C48)+IF(EY48=0,0,($BR48-$BS48-$BT48)*$BR$63*1/$C48)+IF(EZ48=0,0,($BV48-$BW48-$BX48)*$BV$63*1/$C48)+IF(FA48=0,0,($BZ48-$CA48-$CB48)*$BZ$63*1/$C48)+IF(FB48=0,0,($CD48-$CE48-$CF48)*$CD$63*1/$C48)+IF(FC48=0,0,($CH48-$CI48-$CJ48)*$CH$63*1/$C48)+IF(FD48=0,0,($CL48-$CM48-$CN48)*$CL$63*1/$C48)+IF(FE48=0,0,($CP48-$CQ48-$CR48)*$CP$63*1/$C48)+IF(FF48=0,0,($CT48-$CU48-$CV48)*$CT$63*1/$C48)+IF(FG48=0,0,($CX48-$CY48-$CZ48)*$CX$63*1/$C48) -> 0 | FI48: =IF((1-($GI$2-$DB48)/$C48)>0,(1-($GI$2-$DB48)/$C48),0) -> 0 | FJ48: =IF((1-($GI$2-FJ$2)/$C48)>0,(1-($GI$2-FJ$2)/$C48),0) -> 0 | FK48: 0 | FL48: 0 | FM48: 0 | FN48: 0 | FO48: 0 | FP48: 0 | FQ48: 0 | FR48: 0 | FS48: 0 | FT48: =IF((1-($GI$2-FT$2)/$C48)>0,(1-($GI$2-FT$2)/$C48),0) -> 0 | FU48: 0 | FV48: 0 | FW48: 0 | FX48: 0 | FY48: 0 | FZ48: 0 | GA48: 0 | GB48: 0 | GC48: 0 | GD48: 0 | GE48: 0 | GF48: =IF((1-($GI$2-GF$2)/$C48)>0,(1-($GI$2-GF$2)/$C48),0) -> 0 | GG48: 0.125 | GH48: 0.375 | GI48: =IF(FI48=0,0,($D48-$E48)*1/$C48)+IF(FJ48=0,0,($G48-$H48-$I48)*$G$63*1/$C48)+IF(FK48=0,0,($K48-$L48-$M48)*$K$63*1/$C48)+IF(FL48=0,0,($O48-$P48-$Q48)*$O$63*1/$C48)+IF(FM48=0,0,($S48-$T48-$U48)*$S$63*1/$C48)+IF(FN48=0,0,($W48-$X48-$Y48)*$W$63*1/$C48)+IF(FO48=0,0,($AA48-$AB48-$AC48)*$AA$63*1/$C48)+IF(FP48=0,0,($AE48-$AF48-$AG48)*$AE$63*1/$C48)+IF(FQ48=0,0,($AI48-$AJ48-$AK48)*$AI$63*1/$C48)+IF(FR48=0,0,($AM48-$AN48-$AO48)*$AM$63*1/$C48)+IF(FS48=0,0,($AQ48-$AR48-$AS48)*$AQ$63*1/$C48)+IF(FT48=0,0,($AU48-$V48-$AW48)*$AU$63*1/$C48)+IF(FU48=0,0,($AY48-$AZ48-$BA48)*$AY$63*1/$C48)+IF(FV48=0,0,($BC48-$BD48-$BE48)*$BC$63*1/$C48)+IF(FW48=0,0,$BG48*1/$C48)+IF(FX48=0,0,($BJ48-$BK48-$BL48)*$BJ$63*1/$C48)+IF(FY48=0,0,($BN48-$BO48-$BP48)*$BN$63*1/$C48)+IF(FZ48=0,0,($BR48-$BS48-$BT48)*$BR$63*1/$C48)+IF(GA48=0,0,($BV48-$BW48-$BX48)*$BV$63*1/$C48)+IF(GB48=0,0,($BZ48-$CA48-$CB48)*$BZ$63*1/$C48)+IF(GC48=0,0,($CD48-$CE48-$CF48)*$CD$63*1/$C48)+IF(GD48=0,0,($CH48-$CI48-$CJ48)*$CH$63*1/$C48)+IF(GE48=0,0,($CL48-$CM48-$CN48)*$CL$63*1/$C48)+IF(GF48=0,0,($CP48-$CQ48-$CR48)*$CP$63*1/$C48)+IF(GG48=0,0,($CT48-$CU48-$CV48)*$CT$63*1/$C48)+IF(GH48=0,0,($CX48-$CY48-$CZ48)*$CX$63*1/$C48) -> 0 | GJ48: =IF((1-($HJ$2-$DB48)/$C48)>0,(1-($HJ$2-$DB48)/$C48),0) -> 0 | GK48: =IF((1-($HJ$2-GK$2)/$C48)>0,(1-($HJ$2-GK$2)/$C48),0) -> 0 | GL48: 0 | GM48: 0 | GN48: 0 | GO48: 0 | GP48: 0 | GQ48: 0 | GR48: 0 | GS48: 0 | GT48: 0 | GU48: =IF((1-($HJ$2-GU$2)/$C48)>0,(1-($HJ$2-GU$2)/$C48),0) -> 0 | GV48: 0 | GW48: 0 | GX48: 0 | GY48: 0 | GZ48: 0 | HA48: 0 | HB48: 0 | HC48: 0 | HD48: 0 | HE48: 0 | HF48: 0 | HG48: =IF((1-($HJ$2-HG$2)/$C48)>0,(1-($HJ$2-HG$2)/$C48),0) -> 0 | HH48: 0 | HI48: 0.125 | HJ48: =IF(GJ48=0,0,($D48-$E48)*1/$C48)+IF(GK48=0,0,($G48-$H48-$I48)*$G$63*1/$C48)+IF(GL48=0,0,($K48-$L48-$M48)*$K$63*1/$C48)+IF(GM48=0,0,($O48-$P48-$Q48)*$O$63*1/$C48)+IF(GN48=0,0,($S48-$T48-$U48)*$S$63*1/$C48)+IF(GO48=0,0,($W48-$X48-$Y48)*$W$63*1/$C48)+IF(GP48=0,0,($AA48-$AB48-$AC48)*$AA$63*1/$C48)+IF(GQ48=0,0,($AE48-$AF48-$AG48)*$AE$63*1/$C48)+IF(GR48=0,0,($AI48-$AJ48-$AK48)*$AI$63*1/$C48)+IF(GS48=0,0,($AM48-$AN48-$AO48)*$AM$63*1/$C48)+IF(GT48=0,0,($AQ48-$AR48-$AS48)*$AQ$63*1/$C48)+IF(GU48=0,0,($AU48-$V48-$AW48)*$AU$63*1/$C48)+IF(GV48=0,0,($AY48-$AZ48-$BA48)*$AY$63*1/$C48)+IF(GW48=0,0,($BC48-$BD48-$BE48)*$BC$63*1/$C48)+IF(GX48=0,0,$BG48*1/$C48)+IF(GY48=0,0,($BJ48-$BK48-$BL48)*$BJ$63*1/$C48)+IF(GZ48=0,0,($BN48-$BO48-$BP48)*$BN$63*1/$C48)+IF(HA48=0,0,($BR48-$BS48-$BT48)*$BR$63*1/$C48)+IF(HB48=0,0,($BV48-$BW48-$BX48)*$BV$63*1/$C48)+IF(HC48=0,0,($BZ48-$CA48-$CB48)*$BZ$63*1/$C48)+IF(HD48=0,0,($CD48-$CE48-$CF48)*$CD$63*1/$C48)+IF(HE48=0,0,($CH48-$CI48-$CJ48)*$CH$63*1/$C48)+IF(HF48=0,0,($CL48-$CM48-$CN48)*$CL$63*1/$C48)+IF(HG48=0,0,($CP48-$CQ48-$CR48)*$CP$63*1/$C48)+IF(HH48=0,0,($CT48-$CU48-$CV48)*$CT$63*1/$C48)+IF(HI48=0,0,($CX48-$CY48-$CZ48)*$CX$63*1/$C48) -> 0 | HK48: =IF((1-($IK$2-$DB48)/$C48)>0,(1-($IK$2-$DB48)/$C48),0) -> 0 | HL48: =IF((1-($IK$2-HL$2)/$C48)>0,(1-($IK$2-HL$2)/$C48),0) -> 0 | HM48: 0 | HN48: 0 | HO48: 0 | HP48: 0 | HQ48: 0 | HR48: 0 | HS48: 0 | HT48: 0 | HU48: 0 | HV48: =IF((1-($IK$2-HV$2)/$C48)>0,(1-($IK$2-HV$2)/$C48),0) -> 0 | HW48: 0 | HX48: 0 | HY48: 0 | HZ48: 0 | IA48: 0 | IB48: 0 | IC48: 0 | ID48: 0 | IE48: 0 | IF48: 0 | IG48: 0 | IH48: =IF((1-($IK$2-IH$2)/$C48)>0,(1-($IK$2-IH$2)/$C48),0) -> 0 | II48: 0 | IJ48: 0 | IK48: =IF(HK48=0,0,($D48-$E48)*1/$C48)+IF(HL48=0,0,($G48-$H48-$I48)*$G$63*1/$C48)+IF(HM48=0,0,($K48-$L48-$M48)*$K$63*1/$C48)+IF(HN48=0,0,($O48-$P48-$Q48)*$O$63*1/$C48)+IF(HO48=0,0,($S48-$T48-$U48)*$S$63*1/$C48)+IF(HP48=0,0,($W48-$X48-$Y48)*$W$63*1/$C48)+IF(HQ48=0,0,($AA48-$AB48-$AC48)*$AA$63*1/$C48)+IF(HR48=0,0,($AE48-$AF48-$AG48)*$AE$63*1/$C48)+IF(HS48=0,0,($AI48-$AJ48-$AK48)*$AI$63*1/$C48)+IF(HT48=0,0,($AM48-$AN48-$AO48)*$AM$63*1/$C48)+IF(HU48=0,0,($AQ48-$AR48-$AS48)*$AQ$63*1/$C48)+IF(HV48=0,0,($AU48-$V48-$AW48)*$AU$63*1/$C48)+IF(HW48=0,0,($AY48-$AZ48-$BA48)*$AY$63*1/$C48)+IF(HX48=0,0,($BC48-$BD48-$BE48)*$BC$63*1/$C48)+IF(HY48=0,0,$BG48*1/$C48)+IF(HZ48=0,0,($BJ48-$BK48-$BL48)*$BJ$63*1/$C48)+IF(IA48=0,0,($BN48-$BO48-$BP48)*$BN$63*1/$C48)+IF(IB48=0,0,($BR48-$BS48-$BT48)*$BR$63*1/$C48)+IF(IC48=0,0,($BV48-$BW48-$BX48)*$BV$63*1/$C48)+IF(ID48=0,0,($BZ48-$CA48-$CB48)*$BZ$63*1/$C48)+IF(IE48=0,0,($CD48-$CE48-$CF48)*$CD$63*1/$C48)+IF(IF48=0,0,($CH48-$CI48-$CJ48)*$CH$63*1/$C48)+IF(IG48=0,0,($CL48-$CM48-$CN48)*$CL$63*1/$C48)+IF(IH48=0,0,($CP48-$CQ48-$CR48)*$CP$63*1/$C48)+IF(II48=0,0,($CT48-$CU48-$CV48)*$CT$63*1/$C48)+IF(IJ48=0,0,($CX48-$CY48-$CZ48)*$CX$63*1/$C48) -> 0
B49: Terrenos | C49: 1000 | D49: 0 | E49: 0 | F49: 0 | G49: 0 | H49: 0 | I49: 0 | J49: 0 | K49: 0 | L49: 0 | M49: 0 | N49: 0 | O49: 0 | P49: 0 | Q49: 0 | R49: 0 | S49: 0 | T49: 0 | U49: 0 | V49: 0 | W49: 0 | X49: 0 | Y49: 0 | Z49: 0 | AA49: 0 | AB49: 0 | AC49: 0 | AD49: 0 | AE49: 0 | AF49: 0 | AG49: 0 | AH49: 0 | AI49: 0 | AJ49: 0 | AK49: 0 | AL49: 0 | AM49: 0 | AN49: 0 | AO49: 0 | AP49: 0 | AQ49: 0 | AR49: 0 | AS49: 0 | AT49: 0 | AU49: 0 | AV49: 0 | AW49: 0 | AX49: 0 | AY49: 0 | AZ49: 0 | BA49: 0 | BB49: 0 | BC49: 0 | BD49: 0 | BE49: 0 | BF49: 0 | BG49: 0 | BH49: 0 | BI49: 0 | BJ49: 0 | BK49: 0 | BL49: 0 | BM49: 0 | BN49: 0 | BO49: 0 | BP49: 0 | BQ49: 0 | BR49: 0 | BS49: 0 | BT49: 0 | BU49: 0 | BV49: 0 | BW49: 0 | BX49: 0 | BY49: 0 | BZ49: 0 | CA49: 0 | CB49: 0 | CC49: 0 | CD49: 0 | CE49: 0 | CF49: 0 | CG49: 0 | CH49: 0 | CI49: 0 | CJ49: 0 | CK49: 0 | CY49: 0 | DB49: 0 | DC49: 0 | DD49: 0.9765 | DE49: 0.9775 | DF49: 0.9785 | DG49: 0.9795 | DH49: 0.9805 | DI49: 0.9815 | DJ49: 0.9825 | DK49: 0.9835 | DL49: 0.9845 | DM49: 0.9855 | DN49: 0.9865 | DO49: 0.9875 | DP49: 0.9885 | DQ49: 0 | DR49: 0.9895 | DS49: 0.9905 | DT49: 0.9915 | DU49: 0.9925 | DV49: 0.9935 | DW49: 0.9945 | DX49: 0.9955 | DY49: 0.9965 | DZ49: 0.9975 | EA49: 0.9985 | EB49: 0.9995 | EC49: 0 | ED49: 0 | EE49: 0 | EF49: 0 | EG49: 0 | EH49: 0 | EI49: 0.9755 | EJ49: 0.9765 | EK49: 0.9775 | EL49: 0.9785 | EM49: 0.9795 | EN49: 0.9805 | EO49: 0.9815 | EP49: 0.9825 | EQ49: 0.9835 | ER49: 0.9845 | ES49: 0.9855 | ET49: 0.9865 | EU49: 0.9875 | EV49: 0.9875 | EW49: 0.9885 | EX49: 0.9895 | EY49: 0.9905 | EZ49: 0.9915 | FA49: 0.9925 | FB49: 0.9935 | FC49: 0.9945 | FD49: 0.9955 | FE49: 0.9965 | FF49: 0.9975 | FG49: 0.9985 | FH49: 0 | FI49: 0 | FJ49: 0.9745 | FK49: 0.9755 | FL49: 0.9765 | FM49: 0.9775 | FN49: 0.9785 | FO49: 0.9795 | FP49: 0.9805 | FQ49: 0.9815 | FR49: 0.9825 | FS49: 0.9835 | FT49: 0.9845 | FU49: 0.9855 | FV49: 0.9865 | FW49: 0.9865 | FX49: 0.9875 | FY49: 0.9885 | FZ49: 0.9895 | GA49: 0.9905 | GB49: 0.9915 | GC49: 0.9925 | GD49: 0.9935 | GE49: 0.9945 | GF49: 0.9955 | GG49: 0.9965 | GH49: 0.9975 | GI49: 0 | GJ49: 0 | GK49: 0.9735 | GL49: 0.9745 | GM49: 0.9755 | GN49: 0.9765 | GO49: 0.9775 | GP49: 0.9785 | GQ49: 0.9795 | GR49: 0.9805 | GS49: 0.9815 | GT49: 0.9825 | GU49: 0.9835 | GV49: 0.9845 | GW49: 0.9855 | GX49: 0.9855 | GY49: 0.9865 | GZ49: 0.9875 | HA49: 0.9885 | HB49: 0.9895 | HC49: 0.9905 | HD49: 0.9915 | HE49: 0.9925 | HF49: 0.9935 | HG49: 0.9945 | HH49: 0.9955 | HI49: 0.9965 | HJ49: 0 | HK49: 0 | HL49: 0.9725 | HM49: 0.9735 | HN49: 0.9745 | HO49: 0.9755 | HP49: 0.9765 | HQ49: 0.9775 | HR49: 0.9785 | HS49: 0.9795 | HT49: 0.9805 | HU49: 0.9815 | HV49: 0.9825 | HW49: 0.9835 | HX49: 0.9845 | HY49: 0.9845 | HZ49: 0.9855 | IA49: 0.9865 | IB49: 0.9875 | IC49: 0.9885 | ID49: 0.9895 | IE49: 0.9905 | IF49: 0.9915 | IG49: 0.9925 | IH49: 0.9935 | II49: 0.9945 | IJ49: 0.9955 | IK49: 0
B50: Edificios y mejoras | C50: 40 | D50: 1075230.205 | E50: 0 | F50: 828035.6862 | G50: 0 | H50: 0 | I50: 0 | J50: 0 | K50: 0 | L50: 0 | M50: 0 | N50: 0 | O50: 0 | P50: 0 | Q50: 0 | R50: 0 | S50: 0 | T50: 0 | U50: 0 | V50: 0 | W50: 0 | X50: 0 | Y50: 0 | Z50: 0 | AA50: 26826.64 | AB50: 0 | AC50: 0 | AD50: 0 | AE50: 0 | AF50: 0 | AG50: 0 | AH50: 0 | AI50: 0 | AJ50: 0 | AK50: 0 | AL50: 0 | AM50: 0 | AN50: 0 | AO50: 0 | AP50: 0 | AQ50: 0 | AR50: 0 | AS50: 0 | AT50: 0 | AU50: 0 | AV50: 0 | AW50: 0 | AX50: 0 | AY50: 0 | AZ50: 0 | BA50: 0 | BB50: 0 | BC50: 0 | BD50: 0 | BE50: 0 | BF50: 0 | BG50: 0 | BH50: 0 | BI50: 0 | BJ50: 0 | BK50: 0 | BL50: 0 | BM50: 0 | BN50: 0 | BO50: 0 | BP50: 0 | BQ50: 0 | BR50: 0 | BS50: 0 | BT50: 0 | BU50: 0 | BV50: 0 | BW50: 0 | BX50: 0 | BY50: 0 | BZ50: 0 | CA50: 0 | CB50: 0 | CC50: 0 | CD50: 0 | CE50: 0 | CF50: 0 | CG50: 0 | CH50: 0 | CI50: 0 | CJ50: 0 | CK50: 0 | CY50: 0 | DB50: 1991.804034 | DC50: 0.1576008422 | DD50: 0.4125 | DE50: 0.4375 | DF50: 0.4625 | DG50: 0.4875 | DH50: 0.5125 | DI50: 0.5375 | DJ50: 0.5625 | DK50: 0.5875 | DL50: 0.6125 | DM50: 0.6375 | DN50: 0.6625 | DO50: 0.6875 | DP50: 0.7125 | DQ50: 0 | DR50: 0.7375 | DS50: 0.7625 | DT50: 0.7875 | DU50: 0.8125 | DV50: 0.8375 | DW50: 0.8625 | DX50: 0.8875 | DY50: 0.9125 | DZ50: 0.9375 | EA50: 0.9625 | EB50: 0.9875 | EC50: 27354.04014 | ED50: 1094161.605 | EE50: 0 | EF50: 179632.8137 | EG50: 27354.04014 | EH50: 0.1326008422 | EI50: 0.3875 | EJ50: 0.4125 | EK50: 0.4375 | EL50: 0.4625 | EM50: 0.4875 | EN50: 0.5125 | EO50: 0.5375 | EP50: 0.5625 | EQ50: 0.5875 | ER50: 0.6125 | ES50: 0.6375 | ET50: 0.6625 | EU50: 0.6875 | EV50: 0.6875 | EW50: 0.7125 | EX50: 0.7375 | EY50: 0.7625 | EZ50: 0.7875 | FA50: 0.8125 | FB50: 0.8375 | FC50: 0.8625 | FD50: 0.8875 | FE50: 0.9125 | FF50: 0.9375 | FG50: 0.9625 | FH50: 27354.04014 | FI50: 0.1076008422 | FJ50: 0.3625 | FK50: 0.3875 | FL50: 0.4125 | FM50: 0.4375 | FN50: 0.4625 | FO50: 0.4875 | FP50: 0.5125 | FQ50: 0.5375 | FR50: 0.5625 | FS50: 0.5875 | FT50: 0.6125 | FU50: 0.6375 | FV50: 0.6625 | FW50: 0.6625 | FX50: 0.6875 | FY50: 0.7125 | FZ50: 0.7375 | GA50: 0.7625 | GB50: 0.7875 | GC50: 0.8125 | GD50: 0.8375 | GE50: 0.8625 | GF50: 0.8875 | GG50: 0.9125 | GH50: 0.9375 | GI50: 27354.04014 | GJ50: 0.08260084217 | GK50: 0.3375 | GL50: 0.3625 | GM50: 0.3875 | GN50: 0.4125 | GO50: 0.4375 | GP50: 0.4625 | GQ50: 0.4875 | GR50: 0.5125 | GS50: 0.5375 | GT50: 0.5625 | GU50: 0.5875 | GV50: 0.6125 | GW50: 0.6375 | GX50: 0.6375 | GY50: 0.6625 | GZ50: 0.6875 | HA50: 0.7125 | HB50: 0.7375 | HC50: 0.7625 | HD50: 0.7875 | HE50: 0.8125 | HF50: 0.8375 | HG50: 0.8625 | HH50: 0.8875 | HI50: 0.9125 | HJ50: 27354.04014 | HK50: 0.05760084217 | HL50: 0.3125 | HM50: 0.3375 | HN50: 0.3625 | HO50: 0.3875 | HP50: 0.4125 | HQ50: 0.4375 | HR50: 0.4625 | HS50: 0.4875 | HT50: 0.5125 | HU50: 0.5375 | HV50: 0.5625 | HW50: 0.5875 | HX50: 0.6125 | HY50: 0.6125 | HZ50: 0.6375 | IA50: 0.6625 | IB50: 0.6875 | IC50: 0.7125 | ID50: 0.7375 | IE50: 0.7625 | IF50: 0.7875 | IG50: 0.8125 | IH50: 0.8375 | II50: 0.8625 | IJ50: 0.8875 | IK50: 27354.04014
B51: Sistema de medidores y accesorios | C51: 22 | D51: 4570414.922 | E51: 0 | F51: 3249798.253 | G51: 385845.48 | H51: 0 | I51: 0 | J51: 0 | K51: 452747.86 | L51: 0 | M51: 0 | N51: 0 | O51: 370817.32 | P51: 0 | Q51: 0 | R51: 0 | S51: 396757.73 | T51: 0 | U51: 0 | V51: 0 | W51: 291785.67 | X51: 0 | Y51: 0 | Z51: 0 | AA51: 444306.6 | AB51: 0 | AC51: 0 | AD51: 0 | AE51: 641039 | AF51: 0 | AG51: 0 | AH51: 0 | AI51: 528906.63 | AJ51: 0 | AK51: 0 | AL51: 0 | AM51: 421950.03 | AN51: 0 | AO51: 0 | AP51: 0 | AQ51: 401723.83 | AR51: 0 | AS51: 0 | AT51: 0 | AU51: 401731.13 | AV51: 0 | AW51: 0 | AX51: 0 | AY51: 555885.0532 | AZ51: 0 | BA51: 0 | BB51: 0 | BC51: 660890.25 | BD51: 0 | BE51: 0 | BF51: 0 | BG51: 265555 | BH51: 265555 | BI51: 173348.46 | BJ51: 682413 | BK51: 0 | BL51: 0 | BM51: 0 | BN51: 805417.9 | BO51: 0 | BP51: 0 | BQ51: 0 | BR51: 811234 | BS51: 0 | BT51: 0 | BU51: 0 | BV51: 994683.04 | BW51: 0 | BX51: 0 | BY51: 0 | BZ51: 1009193.62 | CA51: 0 | CB51: 0 | CC51: 0 | CD51: 1325024.61 | CE51: 0 | CF51: 0 | CG51: 0 | CH51: 1450242.81 | CI51: 0 | CJ51: 0 | CK51: 0 | CL51: 1594362.43 | CP51: 1910708.95 | CT51: 1782283.6 | CX51: 1803633.54 | CY51: 0 | DB51: 1994.643123 | DC51: 0 | DD51: 0 | DE51: 0 | DF51: 0.02272727273 | DG51: 0.06818181818 | DH51: 0.1136363636 | DI51: 0.1590909091 | DJ51: 0.2045454545 | DK51: 0.25 | DL51: 0.2954545455 | DM51: 0.3409090909 | DN51: 0.3863636364 | DO51: 0.4318181818 | DP51: 0.4772727273 | DQ51: 0.1527779933 | DR51: 0.5227272727 | DS51: 0.5681818182 | DT51: 0.6136363636 | DU51: 0.6590909091 | DV51: 0.7045454545 | DW51: 0.75 | DX51: 0.7954545455 | DY51: 0.8409090909 | DZ51: 0.8863636364 | EA51: 0.9318181818 | EB51: 0.9772727273 | EC51: 766412.2968 | ED51: 22232469.06 | EE51: 5371398.526 | EF51: 11204854.37 | EG51: 766412.2968 | EH51: 0 | EI51: 0 | EJ51: 0 | EK51: 0 | EL51: 0.02272727273 | EM51: 0.06818181818 | EN51: 0.1136363636 | EO51: 0.1590909091 | EP51: 0.2045454545 | EQ51: 0.25 | ER51: 0.2954545455 | ES51: 0.3409090909 | ET51: 0.3863636364 | EU51: 0.4318181818 | EV51: 0.4318181818 | EW51: 0.4772727273 | EX51: 0.5227272727 | EY51: 0.5681818182 | EZ51: 0.6136363636 | FA51: 0.6590909091 | FB51: 0.7045454545 | FC51: 0.75 | FD51: 0.7954545455 | FE51: 0.8409090909 | FF51: 0.8863636364 | FG51: 0.9318181818 | FH51: 750490.9154 | FI51: 0 | FJ51: 0 | FK51: 0 | FL51: 0 | FM51: 0 | FN51: 0.02272727273 | FO51: 0.06818181818 | FP51: 0.1136363636 | FQ51: 0.1590909091 | FR51: 0.2045454545 | FS51: 0.25 | FT51: 0.2954545455 | FU51: 0.3409090909 | FV51: 0.3863636364 | FW51: 0.3863636364 | FX51: 0.4318181818 | FY51: 0.4772727273 | FZ51: 0.5227272727 | GA51: 0.5681818182 | GB51: 0.6136363636 | GC51: 0.6590909091 | GD51: 0.7045454545 | GE51: 0.75 | GF51: 0.7954545455 | GG51: 0.8409090909 | GH51: 0.8863636364 | GI51: 739670.25 | GJ51: 0 | GK51: 0 | GL51: 0 | GM51: 0 | GN51: 0 | GO51: 0 | GP51: 0.02272727273 | GQ51: 0.06818181818 | GR51: 0.1136363636 | GS51: 0.1590909091 | GT51: 0.2045454545 | GU51: 0.25 | GV51: 0.2954545455 | GW51: 0.3409090909 | GX51: 0.3409090909 | GY51: 0.3863636364 | GZ51: 0.4318181818 | HA51: 0.4772727273 | HB51: 0.5227272727 | HC51: 0.5681818182 | HD51: 0.6136363636 | HE51: 0.6590909091 | HF51: 0.7045454545 | HG51: 0.75 | HH51: 0.7954545455 | HI51: 0.8409090909 | HJ51: 730386.1605 | HK51: 0 | HL51: 0 | HM51: 0 | HN51: 0 | HO51: 0 | HP51: 0 | HQ51: 0 | HR51: 0.02272727273 | HS51: 0.06818181818 | HT51: 0.1136363636 | HU51: 0.1590909091 | HV51: 0.2045454545 | HW51: 0.25 | HX51: 0.2954545455 | HY51: 0.2954545455 | HZ51: 0.3409090909 | IA51: 0.3863636364 | IB51: 0.4318181818 | IC51: 0.4772727273 | ID51: 0.5227272727 | IE51: 0.5681818182 | IF51: 0.6136363636 | IG51: 0.6590909091 | IH51: 0.7045454545 | II51: 0.75 | IJ51: 0.7954545455 | IK51: 716134.1363
B52: Equipos de medida SMEC | C52: 22 | D52: 0 | E52: 0 | F52: 0 | G52: 0 | H52: 0 | I52: 0 | J52: 0 | K52: 0 | L52: 0 | M52: 0 | N52: 0 | O52: 0 | P52: 0 | Q52: 0 | R52: 0 | S52: 0 | T52: 0 | U52: 0 | V52: 0 | W52: 0 | X52: 0 | Y52: 0 | Z52: 0 | AA52: 0 | AB52: 0 | AC52: 0 | AD52: 0 | AE52: 0 | AF52: 0 | AG52: 0 | AH52: 0 | AI52: 0 | AJ52: 0 | AK52: 0 | AL52: 0 | AM52: 0 | AN52: 0 | AO52: 0 | AP52: 0 | AQ52: 0 | AR52: 0 | AS52: 0 | AT52: 0 | AU52: 0 | AV52: 0 | AW52: 0 | AX52: 0 | AY52: 0 | AZ52: 0 | BA52: 0 | BB52: 0 | BC52: 0 | BD52: 0 | BE52: 0 | BF52: 0 | BG52: 0 | BH52: 0 | BI52: 0 | BJ52: 0 | BK52: 0 | BL52: 0 | BM52: 0 | BN52: 0 | BO52: 0 | BP52: 0 | BQ52: 0 | BR52: 0 | BS52: 0 | BT52: 0 | BU52: 0 | BV52: 0 | BW52: 0 | BX52: 0 | BY52: 0 | BZ52: 0 | CA52: 0 | CB52: 0 | CC52: 0 | CD52: 0 | CE52: 0 | CF52: 0 | CG52: 0 | CH52: 0 | CI52: 0 | CJ52: 0 | CK52: 0 | CL52: 0 | CP52: 0 | CT52: 0 | CX52: 0 | CY52: 0 | DB52: 0 | DC52: 0 | DD52: 0 | DE52: 0 | DF52: 0.02272727273 | DG52: 0.06818181818 | DH52: 0.1136363636 | DI52: 0.1590909091 | DJ52: 0.2045454545 | DK52: 0.25 | DL52: 0.2954545455 | DM52: 0.3409090909 | DN52: 0.3863636364 | DO52: 0.4318181818 | DP52: 0.4772727273 | DQ52: 0 | DR52: 0.5227272727 | DS52: 0.5681818182 | DT52: 0.6136363636 | DU52: 0.6590909091 | DV52: 0.7045454545 | DW52: 0.75 | DX52: 0.7954545455 | DY52: 0.8409090909 | DZ52: 0.8863636364 | EA52: 0.9318181818 | EB52: 0.9772727273 | EC52: 0 | ED52: 0 | EE52: 0 | EF52: 0 | EG52: 0 | EH52: 0 | EI52: 0 | EJ52: 0 | EK52: 0 | EL52: 0.02272727273 | EM52: 0.06818181818 | EN52: 0.1136363636 | EO52: 0.1590909091 | EP52: 0.2045454545 | EQ52: 0.25 | ER52: 0.2954545455 | ES52: 0.3409090909 | ET52: 0.3863636364 | EU52: 0.4318181818 | EV52: 0.4318181818 | EW52: 0.4772727273 | EX52: 0.5227272727 | EY52: 0.5681818182 | EZ52: 0.6136363636 | FA52: 0.6590909091 | FB52: 0.7045454545 | FC52: 0.75 | FD52: 0.7954545455 | FE52: 0.8409090909 | FF52: 0.8863636364 | FG52: 0.9318181818 | FH52: 0 | FI52: 0 | FJ52: 0 | FK52: 0 | FL52: 0 | FM52: 0 | FN52: 0.02272727273 | FO52: 0.06818181818 | FP52: 0.1136363636 | FQ52: 0.1590909091 | FR52: 0.2045454545 | FS52: 0.25 | FT52: 0.2954545455 | FU52: 0.3409090909 | FV52: 0.3863636364 | FW52: 0.3863636364 | FX52: 0.4318181818 | FY52: 0.4772727273 | FZ52: 0.5227272727 | GA52: 0.5681818182 | GB52: 0.6136363636 | GC52: 0.6590909091 | GD52: 0.7045454545 | GE52: 0.75 | GF52: 0.7954545455 | GG52: 0.8409090909 | GH52: 0.8863636364 | GI52: 0 | GJ52: 0 | GK52: 0 | GL52: 0 | GM52: 0 | GN52: 0 | GO52: 0 | GP52: 0.02272727273 | GQ52: 0.06818181818 | GR52: 0.1136363636 | GS52: 0.1590909091 | GT52: 0.2045454545 | GU52: 0.25 | GV52: 0.2954545455 | GW52: 0.3409090909 | GX52: 0.3409090909 | GY52: 0.3863636364 | GZ52: 0.4318181818 | HA52: 0.4772727273 | HB52: 0.5227272727 | HC52: 0.5681818182 | HD52: 0.6136363636 | HE52: 0.6590909091 | HF52: 0.7045454545 | HG52: 0.75 | HH52: 0.7954545455 | HI52: 0.8409090909 | HJ52: 0 | HK52: 0 | HL52: 0 | HM52: 0 | HN52: 0 | HO52: 0 | HP52: 0 | HQ52: 0 | HR52: 0.02272727273 | HS52: 0.06818181818 | HT52: 0.1136363636 | HU52: 0.1590909091 | HV52: 0.2045454545 | HW52: 0.25 | HX52: 0.2954545455 | HY52: 0.2954545455 | HZ52: 0.3409090909 | IA52: 0.3863636364 | IB52: 0.4318181818 | IC52: 0.4772727273 | ID52: 0.5227272727 | IE52: 0.5681818182 | IF52: 0.6136363636 | IG52: 0.6590909091 | IH52: 0.7045454545 | II52: 0.75 | IJ52: 0.7954545455 | IK52: 0
B53: Mobiliario y equipo de oficina | C53: 7 | D53: 14383.15112 | E53: 0 | F53: 14250.37341 | G53: 0 | H53: 0 | I53: 0 | J53: 0 | K53: 0 | L53: 0 | M53: 0 | N53: 0 | O53: 0 | P53: 0 | Q53: 0 | R53: 0 | S53: 0 | T53: 0 | U53: 0 | V53: 0 | W53: 0 | X53: 0 | Y53: 0 | Z53: 0 | AA53: 0 | AB53: 0 | AC53: 0 | AD53: 0 | AE53: 0 | AF53: 0 | AG53: 0 | AH53: 0 | AI53: 0 | AJ53: 0 | AK53: 0 | AL53: 0 | AM53: 0 | AN53: 0 | AO53: 0 | AP53: 0 | AQ53: 0 | AR53: 0 | AS53: 0 | AT53: 0 | AU53: 0 | AV53: 0 | AW53: 0 | AX53: 0 | AY53: 0 | AZ53: 0 | BA53: 0 | BB53: 0 | BC53: 0 | BD53: 0 | BE53: 0 | BF53: 0 | BG53: 0 | BH53: 0 | BI53: 0 | BJ53: 0 | BK53: 0 | BL53: 0 | BM53: 0 | BN53: 0 | BO53: 0 | BP53: 0 | BQ53: 0 | BR53: 0 | BS53: 0 | BT53: 0 | BU53: 0 | BV53: 0 | BW53: 0 | BX53: 0 | BY53: 0 | BZ53: 0 | CA53: 0 | CB53: 0 | CC53: 0 | CD53: 0 | CE53: 0 | CF53: 0 | CG53: 0 | CH53: 0 | CI53: 0 | CJ53: 0 | CK53: 0 | CY53: 0 | DB53: 2000.93538 | DC53: 0 | DD53: 0 | DE53: 0 | DF53: 0 | DG53: 0 | DH53: 0 | DI53: 0 | DJ53: 0 | DK53: 0 | DL53: 0 | DM53: 0 | DN53: 0 | DO53: 0 | DP53: 0 | DQ53: 0 | DR53: 0 | DS53: 0 | DT53: 0 | DU53: 0 | DV53: 0.07142857143 | DW53: 0.2142857143 | DX53: 0.3571428571 | DY53: 0.5 | DZ53: 0.6428571429 | EA53: 0.7857142857 | EB53: 0.9285714286 | EC53: 0 | ED53: 14383.15112 | EE53: 14383.15112 | EF53: 0 | EG53: 0 | EH53: 0 | EI53: 0 | EJ53: 0 | EK53: 0 | EL53: 0 | EM53: 0 | EN53: 0 | EO53: 0 | EP53: 0 | EQ53: 0 | ER53: 0 | ES53: 0 | ET53: 0 | EU53: 0 | EV53: 0 | EW53: 0 | EX53: 0 | EY53: 0 | EZ53: 0 | FA53: 0 | FB53: 0.07142857143 | FC53: 0.2142857143 | FD53: 0.3571428571 | FE53: 0.5 | FF53: 0.6428571429 | FG53: 0.7857142857 | FH53: 0 | FI53: 0 | FJ53: 0 | FK53: 0 | FL53: 0 | FM53: 0 | FN53: 0 | FO53: 0 | FP53: 0 | FQ53: 0 | FR53: 0 | FS53: 0 | FT53: 0 | FU53: 0 | FV53: 0 | FW53: 0 | FX53: 0 | FY53: 0 | FZ53: 0 | GA53: 0 | GB53: 0 | GC53: 0 | GD53: 0.07142857143 | GE53: 0.2142857143 | GF53: 0.3571428571 | GG53: 0.5 | GH53: 0.6428571429 | GI53: 0 | GJ53: 0 | GK53: 0 | GL53: 0 | GM53: 0 | GN53: 0 | GO53: 0 | GP53: 0 | GQ53: 0 | GR53: 0 | GS53: 0 | GT53: 0 | GU53: 0 | GV53: 0 | GW53: 0 | GX53: 0 | GY53: 0 | GZ53: 0 | HA53: 0 | HB53: 0 | HC53: 0 | HD53: 0 | HE53: 0 | HF53: 0.07142857143 | HG53: 0.2142857143 | HH53: 0.3571428571 | HI53: 0.5 | HJ53: 0 | HK53: 0 | HL53: 0 | HM53: 0 | HN53: 0 | HO53: 0 | HP53: 0 | HQ53: 0 | HR53: 0 | HS53: 0 | HT53: 0 | HU53: 0 | HV53: 0 | HW53: 0 | HX53: 0 | HY53: 0 | HZ53: 0 | IA53: 0 | IB53: 0 | IC53: 0 | ID53: 0 | IE53: 0 | IF53: 0 | IG53: 0 | IH53: 0.07142857143 | II53: 0.2142857143 | IJ53: 0.3571428571 | IK53: 0
B54: Equipo de computación | C54: 4 | D54: 0 | E54: 0 | F54: 0 | G54: 0 | H54: 0 | I54: 0 | J54: 0 | K54: 0 | L54: 0 | M54: 0 | N54: 0 | O54: 0 | P54: 0 | Q54: 0 | R54: 0 | S54: 0 | T54: 0 | U54: 0 | V54: 0 | W54: 0 | X54: 0 | Y54: 0 | Z54: 0 | AA54: 0 | AB54: 0 | AC54: 0 | AD54: 0 | AE54: 0 | AF54: 0 | AG54: 0 | AH54: 0 | AI54: 0 | AJ54: 0 | AK54: 0 | AL54: 0 | AM54: 0 | AN54: 0 | AO54: 0 | AP54: 0 | AQ54: 0 | AR54: 0 | AS54: 0 | AT54: 0 | AU54: 0 | AV54: 0 | AW54: 0 | AX54: 0 | AY54: 0 | AZ54: 0 | BA54: 0 | BB54: 0 | BC54: 0 | BD54: 0 | BE54: 0 | BF54: 0 | BG54: 0 | BH54: 0 | BI54: 0 | BJ54: 0 | BK54: 0 | BL54: 0 | BM54: 0 | BN54: 0 | BO54: 0 | BP54: 0 | BQ54: 0 | BR54: 0 | BS54: 0 | BT54: 0 | BU54: 0 | BV54: 0 | BW54: 0 | BX54: 0 | BY54: 0 | BZ54: 0 | CA54: 0 | CB54: 0 | CC54: 0 | CD54: 0 | CE54: 0 | CF54: 0 | CG54: 0 | CH54: 0 | CI54: 0 | CJ54: 0 | CK54: 0 | CY54: 0 | DB54: 0 | DC54: 0 | DD54: 0 | DE54: 0 | DF54: 0 | DG54: 0 | DH54: 0 | DI54: 0 | DJ54: 0 | DK54: 0 | DL54: 0 | DM54: 0 | DN54: 0 | DO54: 0 | DP54: 0 | DQ54: 0 | DR54: 0 | DS54: 0 | DT54: 0 | DU54: 0 | DV54: 0 | DW54: 0 | DX54: 0 | DY54: 0.125 | DZ54: 0.375 | EA54: 0.625 | EB54: 0.875 | EC54: 0 | ED54: 0 | EE54: 0 | EF54: 0 | EG54: 0 | EH54: 0 | EI54: 0 | EJ54: 0 | EK54: 0 | EL54: 0 | EM54: 0 | EN54: 0 | EO54: 0 | EP54: 0 | EQ54: 0 | ER54: 0 | ES54: 0 | ET54: 0 | EU54: 0 | EV54: 0 | EW54: 0 | EX54: 0 | EY54: 0 | EZ54: 0 | FA54: 0 | FB54: 0 | FC54: 0 | FD54: 0 | FE54: 0.125 | FF54: 0.375 | FG54: 0.625 | FH54: 0 | FI54: 0 | FJ54: 0 | FK54: 0 | FL54: 0 | FM54: 0 | FN54: 0 | FO54: 0 | FP54: 0 | FQ54: 0 | FR54: 0 | FS54: 0 | FT54: 0 | FU54: 0 | FV54: 0 | FW54: 0 | FX54: 0 | FY54: 0 | FZ54: 0 | GA54: 0 | GB54: 0 | GC54: 0 | GD54: 0 | GE54: 0 | GF54: 0 | GG54: 0.125 | GH54: 0.375 | GI54: 0 | GJ54: 0 | GK54: 0 | GL54: 0 | GM54: 0 | GN54: 0 | GO54: 0 | GP54: 0 | GQ54: 0 | GR54: 0 | GS54: 0 | GT54: 0 | GU54: 0 | GV54: 0 | GW54: 0 | GX54: 0 | GY54: 0 | GZ54: 0 | HA54: 0 | HB54: 0 | HC54: 0 | HD54: 0 | HE54: 0 | HF54: 0 | HG54: 0 | HH54: 0 | HI54: 0.125 | HJ54: 0 | HK54: 0 | HL54: 0 | HM54: 0 | HN54: 0 | HO54: 0 | HP54: 0 | HQ54: 0 | HR54: 0 | HS54: 0 | HT54: 0 | HU54: 0 | HV54: 0 | HW54: 0 | HX54: 0 | HY54: 0 | HZ54: 0 | IA54: 0 | IB54: 0 | IC54: 0 | ID54: 0 | IE54: 0 | IF54: 0 | IG54: 0 | IH54: 0 | II54: 0 | IJ54: 0 | IK54: 0
B55: Equipos de transporte y carga | C55: 5 | D55: 0 | E55: 0 | F55: 0 | G55: 0 | H55: 0 | I55: 0 | J55: 0 | K55: 0 | L55: 0 | M55: 0 | N55: 0 | O55: 0 | P55: 0 | Q55: 0 | R55: 0 | S55: 0 | T55: 0 | U55: 0 | V55: 0 | W55: 0 | X55: 0 | Y55: 0 | Z55: 0 | AA55: 0 | AB55: 0 | AC55: 0 | AD55: 0 | AE55: 0 | AF55: 0 | AG55: 0 | AH55: 0 | AI55: 0 | AJ55: 0 | AK55: 0 | AL55: 0 | AM55: 0 | AN55: 0 | AO55: 0 | AP55: 0 | AQ55: 0 | AR55: 0 | AS55: 0 | AT55: 0 | AU55: 0 | AV55: 0 | AW55: 0 | AX55: 0 | AY55: 0 | AZ55: 0 | BA55: 0 | BB55: 0 | BC55: 0 | BD55: 0 | BE55: 0 | BF55: 0 | BG55: 0 | BH55: 0 | BI55: 0 | BJ55: 0 | BK55: 0 | BL55: 0 | BM55: 0 | BN55: 0 | BO55: 0 | BP55: 0 | BQ55: 0 | BR55: 0 | BS55: 0 | BT55: 0 | BU55: 0 | BV55: 0 | BW55: 0 | BX55: 0 | BY55: 0 | BZ55: 0 | CA55: 0 | CB55: 0 | CC55: 0 | CD55: 0 | CE55: 0 | CF55: 0 | CG55: 0 | CH55: 0 | CI55: 0 | CJ55: 0 | CK55: 0 | CY55: 0 | DB55: 0 | DC55: 0 | DD55: 0 | DE55: 0 | DF55: 0 | DG55: 0 | DH55: 0 | DI55: 0 | DJ55: 0 | DK55: 0 | DL55: 0 | DM55: 0 | DN55: 0 | DO55: 0 | DP55: 0 | DQ55: 0 | DR55: 0 | DS55: 0 | DT55: 0 | DU55: 0 | DV55: 0 | DW55: 0 | DX55: 0.1 | DY55: 0.3 | DZ55: 0.5 | EA55: 0.7 | EB55: 0.9 | EC55: 0 | ED55: 0 | EE55: 0 | EF55: 0 | EG55: 0 | EH55: 0 | EI55: 0 | EJ55: 0 | EK55: 0 | EL55: 0 | EM55: 0 | EN55: 0 | EO55: 0 | EP55: 0 | EQ55: 0 | ER55: 0 | ES55: 0 | ET55: 0 | EU55: 0 | EV55: 0 | EW55: 0 | EX55: 0 | EY55: 0 | EZ55: 0 | FA55: 0 | FB55: 0 | FC55: 0 | FD55: 0.1 | FE55: 0.3 | FF55: 0.5 | FG55: 0.7 | FH55: 0 | FI55: 0 | FJ55: 0 | FK55: 0 | FL55: 0 | FM55: 0 | FN55: 0 | FO55: 0 | FP55: 0 | FQ55: 0 | FR55: 0 | FS55: 0 | FT55: 0 | FU55: 0 | FV55: 0 | FW55: 0 | FX55: 0 | FY55: 0 | FZ55: 0 | GA55: 0 | GB55: 0 | GC55: 0 | GD55: 0 | GE55: 0 | GF55: 0.1 | GG55: 0.3 | GH55: 0.5 | GI55: 0 | GJ55: 0 | GK55: 0 | GL55: 0 | GM55: 0 | GN55: 0 | GO55: 0 | GP55: 0 | GQ55: 0 | GR55: 0 | GS55: 0 | GT55: 0 | GU55: 0 | GV55: 0 | GW55: 0 | GX55: 0 | GY55: 0 | GZ55: 0 | HA55: 0 | HB55: 0 | HC55: 0 | HD55: 0 | HE55: 0 | HF55: 0 | HG55: 0 | HH55: 0.1 | HI55: 0.3 | HJ55: 0 | HK55: 0 | HL55: 0 | HM55: 0 | HN55: 0 | HO55: 0 | HP55: 0 | HQ55: 0 | HR55: 0 | HS55: 0 | HT55: 0 | HU55: 0 | HV55: 0 | HW55: 0 | HX55: 0 | HY55: 0 | HZ55: 0 | IA55: 0 | IB55: 0 | IC55: 0 | ID55: 0 | IE55: 0 | IF55: 0 | IG55: 0 | IH55: 0 | II55: 0 | IJ55: 0.1 | IK55: 0
B56: Equipos de comunicaciones | C56: 8 | D56: 0 | E56: 0 | F56: 0 | G56: 0 | H56: 0 | I56: 0 | J56: 0 | K56: 0 | L56: 0 | M56: 0 | N56: 0 | O56: 0 | P56: 0 | Q56: 0 | R56: 0 | S56: 0 | T56: 0 | U56: 0 | V56: 0 | W56: 0 | X56: 0 | Y56: 0 | Z56: 0 | AA56: 0 | AB56: 0 | AC56: 0 | AD56: 0 | AE56: 0 | AF56: 0 | AG56: 0 | AH56: 0 | AI56: 0 | AJ56: 0 | AK56: 0 | AL56: 0 | AM56: 0 | AN56: 0 | AO56: 0 | AP56: 0 | AQ56: 0 | AR56: 0 | AS56: 0 | AT56: 0 | AU56: 0 | AV56: 0 | AW56: 0 | AX56: 0 | AY56: 0 | AZ56: 0 | BA56: 0 | BB56: 0 | BC56: 0 | BD56: 0 | BE56: 0 | BF56: 0 | BG56: 0 | BH56: 0 | BI56: 0 | BJ56: 0 | BK56: 0 | BL56: 0 | BM56: 0 | BN56: 0 | BO56: 0 | BP56: 0 | BQ56: 0 | BR56: 0 | BS56: 0 | BT56: 0 | BU56: 0 | BV56: 0 | BW56: 0 | BX56: 0 | BY56: 0 | BZ56: 0 | CA56: 0 | CB56: 0 | CC56: 0 | CD56: 0 | CE56: 0 | CF56: 0 | CG56: 0 | CH56: 0 | CI56: 0 | CJ56: 0 | CK56: 0 | CY56: 0 | DB56: 0 | DC56: 0 | DD56: 0 | DE56: 0 | DF56: 0 | DG56: 0 | DH56: 0 | DI56: 0 | DJ56: 0 | DK56: 0 | DL56: 0 | DM56: 0 | DN56: 0 | DO56: 0 | DP56: 0 | DQ56: 0 | DR56: 0 | DS56: 0 | DT56: 0 | DU56: 0.0625 | DV56: 0.1875 | DW56: 0.3125 | DX56: 0.4375 | DY56: 0.5625 | DZ56: 0.6875 | EA56: 0.8125 | EB56: 0.9375 | EC56: 0 | ED56: 0 | EE56: 0 | EF56: 0 | EG56: 0 | EH56: 0 | EI56: 0 | EJ56: 0 | EK56: 0 | EL56: 0 | EM56: 0 | EN56: 0 | EO56: 0 | EP56: 0 | EQ56: 0 | ER56: 0 | ES56: 0 | ET56: 0 | EU56: 0 | EV56: 0 | EW56: 0 | EX56: 0 | EY56: 0 | EZ56: 0 | FA56: 0.0625 | FB56: 0.1875 | FC56: 0.3125 | FD56: 0.4375 | FE56: 0.5625 | FF56: 0.6875 | FG56: 0.8125 | FH56: 0 | FI56: 0 | FJ56: 0 | FK56: 0 | FL56: 0 | FM56: 0 | FN56: 0 | FO56: 0 | FP56: 0 | FQ56: 0 | FR56: 0 | FS56: 0 | FT56: 0 | FU56: 0 | FV56: 0 | FW56: 0 | FX56: 0 | FY56: 0 | FZ56: 0 | GA56: 0 | GB56: 0 | GC56: 0.0625 | GD56: 0.1875 | GE56: 0.3125 | GF56: 0.4375 | GG56: 0.5625 | GH56: 0.6875 | GI56: 0 | GJ56: 0 | GK56: 0 | GL56: 0 | GM56: 0 | GN56: 0 | GO56: 0 | GP56: 0 | GQ56: 0 | GR56: 0 | GS56: 0 | GT56: 0 | GU56: 0 | GV56: 0 | GW56: 0 | GX56: 0 | GY56: 0 | GZ56: 0 | HA56: 0 | HB56: 0 | HC56: 0 | HD56: 0 | HE56: 0.0625 | HF56: 0.1875 | HG56: 0.3125 | HH56: 0.4375 | HI56: 0.5625 | HJ56: 0 | HK56: 0 | HL56: 0 | HM56: 0 | HN56: 0 | HO56: 0 | HP56: 0 | HQ56: 0 | HR56: 0 | HS56: 0 | HT56: 0 | HU56: 0 | HV56: 0 | HW56: 0 | HX56: 0 | HY56: 0 | HZ56: 0 | IA56: 0 | IB56: 0 | IC56: 0 | ID56: 0 | IE56: 0 | IF56: 0 | IG56: 0.0625 | IH56: 0.1875 | II56: 0.3125 | IJ56: 0.4375 | IK56: 0
B57: Otros equipos del sistema de comercialización | C57: 17 | D57: 0 | E57: 0 | F57: 0 | G57: 0 | H57: 0 | I57: 0 | J57: 0 | K57: 0 | L57: 0 | M57: 0 | N57: 0 | O57: 0 | P57: 0 | Q57: 0 | R57: 0 | S57: 0 | T57: 0 | U57: 0 | V57: 0 | W57: 0 | X57: 0 | Y57: 0 | Z57: 0 | AA57: 0 | AB57: 0 | AC57: 0 | AD57: 0 | AE57: 0 | AF57: 0 | AG57: 0 | AH57: 0 | AI57: 0 | AJ57: 0 | AK57: 0 | AL57: 0 | AM57: 0 | AN57: 0 | AO57: 0 | AP57: 0 | AQ57: 0 | AR57: 0 | AS57: 0 | AT57: 0 | AU57: 0 | AV57: 0 | AW57: 0 | AX57: 0 | AY57: 0 | AZ57: 0 | BA57: 0 | BB57: 0 | BC57: 0 | BD57: 0 | BE57: 0 | BF57: 0 | BG57: 0 | BH57: 0 | BI57: 0 | BJ57: 0 | BK57: 0 | BL57: 0 | BM57: 0 | BN57: 0 | BO57: 0 | BP57: 0 | BQ57: 0 | BR57: 0 | BS57: 0 | BT57: 0 | BU57: 0 | BV57: 0 | BW57: 0 | BX57: 0 | BY57: 0 | BZ57: 0 | CA57: 0 | CB57: 0 | CC57: 0 | CD57: 0 | CE57: 0 | CF57: 0 | CG57: 0 | CH57: 106264 | CI57: 0 | CJ57: 0 | CK57: 0 | CL57: 9925.51 | CP57: 0 | CT57: 0 | CY57: 0 | DB57: 0 | DC57: 0 | DD57: 0 | DE57: 0 | DF57: 0 | DG57: 0 | DH57: 0 | DI57: 0 | DJ57: 0 | DK57: 0.02941176471 | DL57: 0.08823529412 | DM57: 0.1470588235 | DN57: 0.2058823529 | DO57: 0.2647058824 | DP57: 0.3235294118 | DQ57: 0 | DR57: 0.3823529412 | DS57: 0.4411764706 | DT57: 0.5 | DU57: 0.5588235294 | DV57: 0.6176470588 | DW57: 0.6764705882 | DX57: 0.7352941176 | DY57: 0.7941176471 | DZ57: 0.8529411765 | EA57: 0.9117647059 | EB57: 0.9705882353 | EC57: 6151.209353 | ED57: 104570.559 | EE57: 0 | EF57: 77415.58509 | EG57: 6151.209353 | EH57: 0 | EI57: 0 | EJ57: 0 | EK57: 0 | EL57: 0 | EM57: 0 | EN57: 0 | EO57: 0 | EP57: 0 | EQ57: 0.02941176471 | ER57: 0.08823529412 | ES57: 0.1470588235 | ET57: 0.2058823529 | EU57: 0.2647058824 | EV57: 0.2647058824 | EW57: 0.3235294118 | EX57: 0.3823529412 | EY57: 0.4411764706 | EZ57: 0.5 | FA57: 0.5588235294 | FB57: 0.6176470588 | FC57: 0.6764705882 | FD57: 0.7352941176 | FE57: 0.7941176471 | FF57: 0.8529411765 | FG57: 0.9117647059 | FH57: 6151.209353 | FI57: 0 | FJ57: 0 | FK57: 0 | FL57: 0 | FM57: 0 | FN57: 0 | FO57: 0 | FP57: 0 | FQ57: 0 | FR57: 0 | FS57: 0.02941176471 | FT57: 0.08823529412 | FU57: 0.1470588235 | FV57: 0.2058823529 | FW57: 0.2058823529 | FX57: 0.2647058824 | FY57: 0.3235294118 | FZ57: 0.3823529412 | GA57: 0.4411764706 | GB57: 0.5 | GC57: 0.5588235294 | GD57: 0.6176470588 | GE57: 0.6764705882 | GF57: 0.7352941176 | GG57: 0.7941176471 | GH57: 0.8529411765 | GI57: 6151.209353 | GJ57: 0 | GK57: 0 | GL57: 0 | GM57: 0 | GN57: 0 | GO57: 0 | GP57: 0 | GQ57: 0 | GR57: 0 | GS57: 0 | GT57: 0 | GU57: 0.02941176471 | GV57: 0.08823529412 | GW57: 0.1470588235 | GX57: 0.1470588235 | GY57: 0.2058823529 | GZ57: 0.2647058824 | HA57: 0.3235294118 | HB57: 0.3823529412 | HC57: 0.4411764706 | HD57: 0.5 | HE57: 0.5588235294 | HF57: 0.6176470588 | HG57: 0.6764705882 | HH57: 0.7352941176 | HI57: 0.7941176471 | HJ57: 6151.209353 | HK57: 0 | HL57: 0 | HM57: 0 | HN57: 0 | HO57: 0 | HP57: 0 | HQ57: 0 | HR57: 0 | HS57: 0 | HT57: 0 | HU57: 0 | HV57: 0 | HW57: 0.02941176471 | HX57: 0.08823529412 | HY57: 0.08823529412 | HZ57: 0.1470588235 | IA57: 0.2058823529 | IB57: 0.2647058824 | IC57: 0.3235294118 | ID57: 0.3823529412 | IE57: 0.4411764706 | IF57: 0.5 | IG57: 0.5588235294 | IH57: 0.6176470588 | II57: 0.6764705882 | IJ57: 0.7352941176 | IK57: 6151.209353
B58: TOTAL SISTEMA DE COMERCIALIZACIÓN | D58: =SUM(D48:D57) -> 5660028.278 | E58: =SUM(E48:E57) -> 0 | F58: 4092084.312 | G58: =SUM(G48:G57) -> 385845.48 | H58: =SUM(H48:H57) -> 0 | I58: 0 | J58: 0 | K58: =SUM(K48:K57) -> 452747.86 | L58: =SUM(L48:L57) -> 0 | M58: =SUM(M48:M57) -> 0 | N58: =SUM(N48:N57) -> 0 | O58: =SUM(O48:O57) -> 370817.32 | P58: =SUM(P48:P57) -> 0 | Q58: =SUM(Q48:Q57) -> 0 | R58: =SUM(R48:R57) -> 0 | S58: =SUM(S48:S57) -> 396757.73 | T58: =SUM(T48:T57) -> 0 | U58: =SUM(U48:U57) -> 0 | V58: =SUM(V48:V57) -> 0 | W58: =SUM(W48:W57) -> 291785.67 | X58: =SUM(X48:X57) -> 0 | Y58: =SUM(Y48:Y57) -> 0 | Z58: =SUM(Z48:Z57) -> 0 | AA58: =SUM(AA48:AA57) -> 471133.24 | AB58: =SUM(AB48:AB57) -> 0 | AC58: =SUM(AC48:AC57) -> 0 | AD58: =SUM(AD48:AD57) -> 0 | AE58: =SUM(AE48:AE57) -> 641039 | AF58: =SUM(AF48:AF57) -> 0 | AG58: =SUM(AG48:AG57) -> 0 | AH58: =SUM(AH48:AH57) -> 0 | AI58: =SUM(AI48:AI57) -> 528906.63 | AJ58: =SUM(AJ48:AJ57) -> 0 | AK58: =SUM(AK48:AK57) -> 0 | AL58: =SUM(AL48:AL57) -> 0 | AM58: =SUM(AM48:AM57) -> 421950.03 | AN58: =SUM(AN48:AN57) -> 0 | AO58: =SUM(AO48:AO57) -> 0 | AP58: =SUM(AP48:AP57) -> 0 | AQ58: =SUM(AQ48:AQ57) -> 401723.83 | AR58: =SUM(AR48:AR57) -> 0 | AS58: =SUM(AS48:AS57) -> 0 | AT58: =SUM(AT48:AT57) -> 0 | AU58: =SUM(AU48:AU57) -> 401731.13 | AV58: =SUM(AV48:AV57) -> 0 | AW58: =SUM(AW48:AW57) -> 0 | AX58: =SUM(AX48:AX57) -> 0 | AY58: =SUM(AY48:AY57) -> 555885.0532 | AZ58: =SUM(AZ48:AZ57) -> 0 | BA58: =SUM(BA48:BA57) -> 0 | BB58: =SUM(BB48:BB57) -> 0 | BC58: =SUM(BC48:BC57) -> 660890.25 | BD58: =SUM(BD48:BD57) -> 0 | BE58: =SUM(BE48:BE57) -> 0 | BF58: =SUM(BF48:BF57) -> 0 | BG58: =SUM(BG48:BG57) -> 265555 | BH58: =SUM(BH48:BH57) -> 265555 | BI58: =SUM(BI48:BI57) -> 173348.46 | BJ58: =SUM(BJ48:BJ57) -> 682413 | BK58: =SUM(BK48:BK57) -> 0 | BL58: =SUM(BL48:BL57) -> 0 | BM58: =SUM(BM48:BM57) -> 0 | BN58: =SUM(BN48:BN57) -> 805417.9 | BO58: =SUM(BO48:BO57) -> 0 | BP58: =SUM(BP48:BP57) -> 0 | BQ58: =SUM(BQ48:BQ57) -> 0 | BR58: =SUM(BR48:BR57) -> 811234 | BS58: =SUM(BS48:BS57) -> 0 | BT58: =SUM(BT48:BT57) -> 0 | BU58: =SUM(BU48:BU57) -> 0 | BV58: =SUM(BV48:BV57) -> 994683.04 | BW58: =SUM(BW48:BW57) -> 0 | BX58: =SUM(BX48:BX57) -> 0 | BY58: =SUM(BY48:BY57) -> 0 | BZ58: =SUM(BZ48:BZ57) -> 1009193.62 | CA58: =SUM(CA48:CA57) -> 0 | CB58: =SUM(CB48:CB57) -> 0 | CC58: =SUM(CC48:CC57) -> 0 | CD58: =SUM(CD48:CD57) -> 1325024.61 | CE58: =SUM(CE48:CE57) -> 0 | CF58: =SUM(CF48:CF57) -> 0 | CG58: =SUM(CG48:CG57) -> 0 | CH58: =SUM(CH48:CH57) -> 1556506.81 | CI58: =SUM(CI48:CI57) -> 0 | CJ58: =SUM(CJ48:CJ57) -> 0 | CK58: =SUM(CK48:CK57) -> 0 | CL58: 1604287.94 | CM58: 0 | CN58: 0 | CO58: 0 | CP58: 1910708.95 | CQ58: 0 | CR58: 0 | CS58: 0 | CT58: 1782283.6 | CU58: 0 | CV58: 0 | CW58: 0 | CX58: =SUM(CX48:CX57) -> 1803633.54 | CY58: 0 | CZ58: 0 | DA58: 0 | EC58: =SUM(EC48:EC57) -> 799917.5463 | ED58: =SUM(ED48:ED57) -> 23445584.37 | EE58: =SUM(EE48:EE57) -> 5385781.677 | EF58: =SUM(EF48:EF57) -> 11461902.76 | EG58: =SUM(EG48:EG57) -> 799917.5463 | FH58: =SUM(FH48:FH57) -> 783996.1648 | GI58: =SUM(GI48:GI57) -> 773175.4995 | HJ58: =SUM(HJ48:HJ57) -> 763891.41 | IK58: =SUM(IK48:IK57) -> 749639.3858
B59: TOTAL PROPIEDADES Y PLANTA + SISTEMA DE DISTRIBUCIÓN + ALUMBRADO PÚBLICO + COMERCIALIZACIÓN | D59: =D13+D45+D47+D58 -> 80363913.34 | E59: =E13+E45+E47+E58 -> 0 | F59: 45909466.48 | G59: 2297920.789 | H59: =H13+H45+H47+H58 -> 0 | I59: 0 | J59: 0 | K59: 3705380.735 | L59: =L13+L45+L47+L58 -> 315949 | M59: 0 | N59: 0 | O59: 3354159.611 | P59: 0 | Q59: 0 | R59: 0 | S59: 3518386.36 | T59: 0 | U59: 0 | V59: 0 | W59: 3815993.57 | X59: 0 | Y59: 0 | Z59: 0 | AA59: 5590315.43 | AB59: 556386.07 | AC59: 0 | AD59: 0 | AE59: 6630069.31 | AF59: 0 | AG59: 0 | AH59: 0 | AI59: 8798937.464 | AJ59: 0 | AK59: 0 | AL59: 0 | AM59: 6243081.932 | AN59: 0 | AO59: 0 | AP59: 0 | AQ59: 7546107.309 | AR59: 0 | AS59: 0 | AT59: 0 | AU59: 5992535.49 | AV59: 0 | AW59: 0 | AX59: 0 | AY59: 9964863.591 | AZ59: 0 | BA59: 0 | BB59: 0 | BC59: 11143773.31 | BD59: 0 | BE59: 0 | BF59: 0 | BG59: =BG13+BG45+BG47+BG58 -> 8136602.248 | BH59: 6029079.558 | BI59: 6021259.68 | BJ59: 12605720.15 | BK59: 0 | BL59: 0 | BM59: 0 | BN59: 25963295.5 | BO59: 0 | BP59: 0 | BQ59: 0 | BR59: 19553374.01 | BS59: 65610.73 | BT59: 0 | BU59: 0 | BV59: 20404493.8 | BW59: 2126529.264 | BX59: 0 | BY59: 0 | BZ59: 22105252.66 | CA59: 2659763.211 | CB59: 0 | CC59: 0 | CD59: 18210896.86 | CE59: 519973.6671 | CF59: 0 | CG59: 0 | CH59: 17257121.71 | CI59: 143425.1252 | CJ59: 0 | CK59: 0 | CL59: =CL58+CL47+CL13+CL45 -> 19425056.51 | CM59: 0 | CN59: 0 | CO59: 0 | CP59: 44820260.72 | CQ59: 146532.4 | CR59: 0 | CS59: 0 | CT59: 25352384.31 | CU59: 1934068.2 | CV59: 0 | CW59: 0 | CX59: =CX58+CX47+CX13+CX45 -> 27778082.98 | CY59: 728733.5407 | CZ59: 0 | DA59: 0 | EC59: =EC13+EC45+EC47+EC58 -> 10311309.15 | ED59: =ED13+ED45+ED47+ED58 -> 352491678.5 | EE59: =EE13+EE45+EE47+EE58 -> 91571286.43 | EF59: =EF13+EF45+EF47+EF58 -> 181958322.1 | EG59: =EG13+EG45+EG47+EG58 -> 10311309.15 | FH59: =FH13+FH45+FH47+FH58 -> 9866420.275 | GI59: =GI13+GI45+GI47+GI58 -> 9532171.948 | HJ59: =HJ13+HJ45+HJ47+HJ58 -> 9337611.568 | IK59: =IK13+IK45+IK47+IK58 -> 8947759.367
A60: COEFICIENTE DE EFICIENCIA | B60: PROPIEDADES Y PLANTA | D60: 1 | G60: 0.7342593575 | K60: 0.7223278986 | O60: 0.8044641538 | S60: 0.6 | W60: 0.8861967157 | AA60: 0.8373990763 | AE60: 0.8548920515 | AI60: 0.8600493435 | AM60: 1 | AQ60: 0.9645074859 | AU60: 0 | AY60: 1 | BC60: 0.9007403578 | BJ60: 0.8213874949 | BN60: 0.8952290629 | BR60: 0.9315658893 | BV60: 0.9 | BZ60: 0.9 | CD60: 0.9 | CH60: 0.8910009396 | CL60: 0.9 | CP60: 0.9 | CT60: 0.9 | CX60: =AVERAGE(CL60:CW60) -> 0.9
B61: SISTEMA DE DISTRIBUCIÓN | D61: 1 | G61: 0.9125435465 | K61: 0.9211604003 | O61: 0.8439458799 | S61: 0.8285315588 | W61: 0.8344632031 | AA61: 0.8652207542 | AE61: 0.8486914675 | AI61: 0.850532975 | AM61: 0.7054968588 | AQ61: 0.8121332316 | AU61: 0.817041043 | AY61: 0.5764133852 | BC61: 0.8268928847 | BJ61: 0.8267861116 | BN61: 0.8744155803 | BR61: 0.8766376348 | BV61: 0.8854850637 | BZ61: 0.86554098 | CD61: 0.8659299129 | CH61: 0.8717298343 | CL61: 0.577350066 | CP61: 0.8219040015 | CT61: 0.7389896767 | CX61: =AVERAGE(CL61:CW61) -> 0.7127479147 | ED61: 79762021.93 | EE61: 18553756.84 | EF61: 44499359.01
B62: ALUMBRADO PÚBLICO | D62: 1 | G62: 1 | K62: 1 | O62: 1 | S62: 1 | W62: 0.92 | AA62: 0.92 | AE62: 0.92 | AI62: 0.92 | AM62: 1 | AQ62: 1 | AU62: 1 | AY62: 1 | BC62: 0.9 | BJ62: 0.9 | BN62: 0.9 | BR62: 0.9 | BV62: 0.9 | BZ62: 0.9 | CD62: 0.9 | CH62: 0.9 | CL62: 0.9 | CP62: 0.9 | CT62: 0.9 | CX62: 0.9
B63: SISTEMA DE COMERCIALIZACIÓN | D63: 1 | G63: 0.9707183508 | K63: 0.9418847745 | O63: 0.944590161 | S63: 0.6 | W63: 0.7 | AA63: 0.7056940665 | AE63: 0.7 | AI63: 0.7 | AM63: 0.7296268273 | AQ63: 0.8267973799 | AU63: 0.8417475415 | AY63: 0.6209712217 | BC63: 0.9 | BJ63: 0.9 | BN63: 0.9 | BR63: 0.9 | BV63: 0.9 | BZ63: 0.9 | CD63: 0.9 | CH63: 0.9 | CL63: 0.9 | CP63: 0.9 | CT63: 0.9 | CX63: 0.9
D65: 0 | F65: 0 | G65: 0 | H65: 0 | I65: 0 | J65: 0 | K65: 0 | L65: 0 | M65: 0 | N65: 0 | O65: 0 | P65: 0 | Q65: 0 | R65: 0 | S65: 0 | T65: 0 | U65: 0 | V65: 0 | W65: 0 | X65: 0 | Y65: 0 | Z65: 0 | AA65: 0 | AB65: 0 | AC65: 0 | AD65: 0 | AE65: 0 | AF65: 0 | AG65: 0 | AH65: 0 | AI65: 0 | AJ65: 0 | AK65: 0 | AL65: 0 | AM65: 0 | AN65: 0 | AO65: 0 | AP65: 0 | AQ65: 0 | AR65: 0 | AS65: 0 | AT65: 0 | AU65: 0 | AV65: 0 | AW65: 0 | AX65: 0 | AY65: 0 | AZ65: 0 | BA65: 0 | BB65: 0 | BC65: 0 | BD65: 0 | BE65: 0 | BF65: 0 | BG65: 0 | BH65: 0 | BI65: 0 | BJ65: 0 | BK65: 0 | BL65: 0 | BM65: 0 | BN65: 0 | BO65: 0 | BP65: 0 | BQ65: 0 | BR65: 0 | BS65: 0 | BT65: 0 | BU65: 0 | BV65: 0 | BW65: 0 | BX65: 0 | BY65: 0 | BZ65: 0 | CA65: 0 | CB65: 0 | CC65: 0 | CD65: 0 | CE65: 0 | CF65: 0 | CG65: 0 | CH65: 0 | CI65: 0 | CJ65: 0 | CK65: 0 | CM65: 0 | CN65: 0 | CO65: 0 | CR65: 0 | CS65: 0 | CT65: 0 | CV65: 0 | CW65: 0 | CX65: 0 | CZ65: 0 | DA65: 0
B67: Base de Capital | C67: =ACTIVOS!F7 -> BASE | D67: =ACTIVOS!H7 -> JUL26/ JUN27 | E67: =ACTIVOS!I7 -> JUL27 / JUN28 | F67: =ACTIVOS!J7 -> JUL28/ JUN29 | G67: =ACTIVOS!K7 -> JUL29/ JUN30
B68: BCD | C68: =ED45+ED13*(ED45/SUM(ED45,ED58)) -> 312803189.1 | D68: =C68 -> 312803189.1 | E68: =D68 -> 312803189.1 | F68: 312803189.1 | G68: 312803189.1
B69: BCAP | C69: =ED47 -> 14458507.47 | D69: =C69 -> 14458507.47 | E69: 14458507.47 | F69: 14458507.47 | G69: 14458507.47
B70: BCC | C70: =ED58+ED13*(ED58/SUM(ED45,ED58)) -> 25229981.9 | D70: 25229981.9 | E70: 25229981.9 | F70: 25229981.9 | G70: 25229981.9
